Workbook

Sheet 利用申込書1
A1: パソコンから利用申し込み書に入力される場合、下記の事項にご留意ください。 ・滋賀県内、県外識別のためお申込み主催者の郵便番号を入力ください。 ・ピアザホール、大会議室のご利用の場合、参加費の加算の有無について、該当のグループボックスにチェックを入れてください。 ・同一利用日、区分の会議室重複申し込みに注意ください。(ピアザホール、大会議室は本番と準備が重ならないよう注意ください。) ・利用申込書は窓口持参、郵送、FAXの他メールでも受け付けしておりますので、入力後添付ファイルでメール送信をも可能です。
E2: ■■ 滋賀県立県民交流センター利用申込書 ・ （ 利用承認書 ） ■■
Y3: 申込日 | AG3: 年 | AK3: 月 | AP3: 日 | AU3: =IF(AT3="(一社)A","一般社団法人A",(IF(AT3="㈱A","株式会社A",""))) -> 
C4: 滋賀県立県民交流センター | N4: 館長 宛 | AT4: =AD3&"."&AH3&"."&AM3 -> ..
C5: ( 指定管理者 株式会社コンベンションリンケージ) | AT5: =TODAY() -> 2024-04-07 | AU5: =IF(COUNTIF(AT5,"*(一社)*"),"一般社団法人","") ->  | AV5: =SUBSTITUTE(AT5,"(一社)","一般社団法人",1) -> 45389
AV6: =SUBSTITUTE(SUBSTITUTE(AT6,"(一社)","一般社団法人"),"(株)","株式会社") -> 
C7: 利用に際しては、県条例によるピアザ淡海滋賀県立県民交流センター利用規定並びにこれに基づく指示に従います。 | AO7: 2023年12月25日 更新 | AV7: =SUBSTITUTE(SUBSTITUTE(SUBSTITUTE(SUBSTITUTE(AT7,"(一社)","一般社団法人"),"(株)","株式会社"),"(一財)","一般財団法人"),"(社福)","社会福祉法人") -> 
A9: 申 込 者 | F9: 団体名 | Z9: 代表者 | AD9: (カナ)
AT10: =K9 -> 0 | AV10: =SUBSTITUTE(SUBSTITUTE(SUBSTITUTE(SUBSTITUTE(SUBSTITUTE(SUBSTITUTE(SUBSTITUTE(SUBSTITUTE(AT10,"(一社)","一般社団法人"),"(株)","株式会社"),"(一財)","一般財団法人"),"(社福)","社会福祉法人"),"(公社)","公益社団法人"),"(公財)","公益財団法人"),"(有)","有限会社"),"㈱","株式会社") -> 0
Z11: 会場 責任者 | AD11: (カナ)
F13: 住所 | K13: 〒 | N13: ― | S13: =PG!F1 ->  | Z13: *郵便番号は半角英数字で必ず入力ください。
F15: e-mail | Z15: Tel | AG15: － | AL15: －
Z16: Fax | AG16: － | AL16: －
A17: 主催者依頼事項他 | F17: * 申込み者と請求先、領収書宛先などが異なる場合など依頼事項を記載願います。
A20: 館内掲示用 催 事 名 | F20: 催事名に社名など必要な場合、含めて記入ください。ここに記載の通り掲示いたします。
A22: 催事内容 | H22: 会議 | K22: 研修 | M22: 講演 | Q22: 展示 | T22: 発表会 | Z22: その他 ( | AQ22: )
A23: 本番時間 | K23: ： | M23: ～ | Q23: ： | U23: 参加人員 | AD23: 名 | AE23: 限定 一般参加
A24: 参加費加算 | W24: * ピアザホール、大会議室のご利用が、対象となります。 (@1,000以下、3割加算、＠1,001以上 5割加算)
A25: ご利用日 *次の書式で半角 で入力ください。 20〇〇/〇〇/〇〇 | F25: 会 議 室 名 | M25: 利 用 区 分 | U25: 利用する各区のチェックボックスを クリックください。 | AG25: 利用料小計 | AM25: 備 考 (会議室に個別の館内掲示 が必要な場合、記載ください。) 凡例： 講師控室, 第2会場など
M26: 早朝開室 (8-9時) | R26: 午前 (9-12時) | W26: 午後 (13-17時) | AB26: 夜間 (18-21時)
M27: =IF(PG!I7=0, "", PG!I7) ->  | R27: =IF(PG!J7=0, "", PG!J7) ->  | W27: =IF(PG!K7=0,"",(IF(AND(PG!F9=1,PG!F10=1,OR(F27="ピアザホール(本番)", F27="ピアザホール(準備)",F27="練習室(一般)",F27="練習室(学生)")),PG!M7, PG!K7))) ->  | AB27: =IF(PG!L7=0,"",(IF(AND(PG!F9=1,PG!F10=1,OR(F27="ピアザホール(本番)", F27="ピアザホール(準備)",F27="練習室(一般)",F27="練習室(学生)")),PG!M7, PG!L7))) ->  | AG27: =IF(SUM(M27:AF28)=0,"",SUM(M27:AF28)) ->  | AT27: =IF(PG!$C$1=2,"県外5割加算含む","") -> 
AT28: =CHOOSE(PG!$C$2,VLOOLUP(PG!$D$7,DATA!$AK$1:$AN$24,2,FALSE),VLOOKUP(PG!$D$7,DATA!$AK$1:$AN$24,3,FALSE),VLOOKUP(PG!$D$7,DATA!$AK$1:$AN$24,4,)) -> 
M29: =IF(PG!I11=0, "",PG!I11) ->  | R29: =IF(PG!J11=0, "", PG!J11) ->  | W29: =IF(PG!K11=0,"",(IF(AND(PG!F13=1,PG!F14=1,OR(F29="ピアザホール(本番)", F29="ピアザホール(準備)",F29="練習室(一般)",F29="練習室(学生)")),PG!M11, PG!K11))) ->  | AB29: =IF(PG!L11=0,"",(IF(AND(PG!F13=1,PG!F14=1,OR(F29="ピアザホール(本番)", F29="ピアザホール(準備)",F29="練習室(一般)",F29="練習室(学生)")),PG!M11, PG!L11))) ->  | AG29: =IF(SUM(M29:AF30)=0,"",SUM(M29:AF30)) ->  | AT29: =IF(PG!$C$1=2,"県外5割加算含む","") -> 
AT30: =CHOOSE(PG!$C$2,VLOOLUP(PG!$D$11,DATA!$AK$1:$AN$24,2,FALSE),VLOOKUP(PG!$D$11,DATA!$AK$1:$AN$24,3,FALSE),VLOOKUP(PG!$D$11,DATA!$AK$1:$AN$24,4,)) -> 
M31: =IF(PG!I15=0, "", PG!I15) ->  | R31: =IF(PG!J15=0, "", PG!J15) ->  | W31: =IF(PG!K15=0,"",(IF(AND(PG!F17=1,PG!F18=1,OR(F31="ピアザホール(本番)", F31="ピアザホール(準備)",F31="練習室(一般)",F31="練習室(学生)")),PG!M15, PG!K15))) ->  | AB31: =IF(PG!L15=0,"",(IF(AND(PG!F17=1,PG!F18=1,OR(F31="ピアザホール(本番)", F31="ピアザホール(準備)",F31="練習室(一般)",F31="練習室(学生)")),PG!M15, PG!L15))) ->  | AG31: =IF(SUM(M31:AF32)=0,"",SUM(M31:AF32)) ->  | AT31: =IF(PG!$C$1=2,"県外5割加算含む","") -> 
AT32: =CHOOSE(PG!$C$2,VLOOLUP(PG!$D$15,DATA!$AK$1:$AN$24,2,FALSE),VLOOKUP(PG!$D$15,DATA!$AK$1:$AN$24,3,FALSE),VLOOKUP(PG!$D$15,DATA!$AK$1:$AN$24,4,)) -> 
M33: =IF(PG!I19=0, "", PG!I19) ->  | R33: =IF(PG!J19=0, "", PG!J19) ->  | W33: =IF(PG!K19=0,"",(IF(AND(PG!F21=1,PG!F22=1,OR(F33="ピアザホール(本番)", F33="ピアザホール(準備)",F33="練習室(一般)",F33="練習室(学生)")),PG!M19, PG!K19))) ->  | AB33: =IF(PG!L19=0,"",(IF(AND(PG!F21=1,PG!F22=1,OR(F33="ピアザホール(本番)", F33="ピアザホール(準備)",F33="練習室(一般)",F33="練習室(学生)")),PG!M19, PG!L19))) ->  | AG33: =IF(SUM(M33:AF34)=0,"",SUM(M33:AF34)) ->  | AT33: =IF(PG!$C$1=2,"県外5割加算含む","") -> 
AT34: =CHOOSE(PG!$C$2,VLOOLUP(PG!$D$19,DATA!$AK$1:$AN$24,2,FALSE),VLOOKUP(PG!$D$19,DATA!$AK$1:$AN$24,3,FALSE),VLOOKUP(PG!$D$19,DATA!$AK$1:$AN$24,4,)) -> 
M35: =IF(PG!I23=0, "",PG!I23) ->  | R35: =IF(PG!J23=0, "", PG!J23) ->  | W35: =IF(PG!K23=0,"",(IF(AND(PG!F25=1,PG!F26=1,OR(F35="ピアザホール(本番)", F35="ピアザホール(準備)",F35="練習室(一般)",F35="練習室(学生)")),PG!M23, PG!K23))) ->  | AB35: =IF(PG!L23=0,"",(IF(AND(PG!F25=1,PG!F26=1,OR(F35="ピアザホール(本番)", F35="ピアザホール(準備)",F35="練習室(一般)",F35="練習室(学生)")),PG!M23, PG!L23))) ->  | AG35: =IF(SUM(M35:AF36)=0,"",SUM(M35:AF36)) ->  | AT35: =IF(PG!$C$1=2,"県外5割加算含む","") -> 
AT36: =CHOOSE(PG!$C$2,VLOOLUP(PG!$D$23,DATA!$AK$1:$AN$24,2,FALSE),VLOOKUP(PG!$D$23,DATA!$AK$1:$AN$24,3,FALSE),VLOOKUP(PG!$D$23,DATA!$AK$1:$AN$24,4,)) -> 
M37: =IF(PG!I27=0, "", PG!I27) ->  | R37: =IF(PG!J27=0, "",PG!J27) ->  | W37: =IF(PG!K27=0,"",(IF(AND(PG!F29=1,PG!F30=1,OR(F37="ピアザホール(本番)", F37="ピアザホール(準備)",F37="練習室(一般)",F37="練習室(学生)")),PG!M27, PG!K27))) ->  | AB37: =IF(PG!L27=0,"",(IF(AND(PG!F29=1,PG!F30=1,OR(F37="ピアザホール(本番)", F37="ピアザホール(準備)",F37="練習室(一般)",F37="練習室(学生)")),PG!M27, PG!L27))) ->  | AG37: =IF(SUM(M37:AF38)=0,"",SUM(M37:AF38)) ->  | AT37: =IF(PG!$C$1=2,"県外5割加算含む","") -> 
AT38: =CHOOSE(PG!$C$2,VLOOLUP(PG!$D$27,DATA!$AK$1:$AN$24,2,FALSE),VLOOKUP(PG!$D$27,DATA!$AK$1:$AN$24,3,FALSE),VLOOKUP(PG!$D$27,DATA!$AK$1:$AN$24,4,)) -> 
M39: =IF(PG!I31=0, "",PG!I31) ->  | R39: =IF(PG!J31=0, "",PG!J31) ->  | W39: =IF(PG!K31=0,"",(IF(AND(PG!F33=1,PG!F34=1,OR(F39="ピアザホール(本番)", F39="ピアザホール(準備)",F39="練習室(一般)",F39="練習室(学生)")),PG!M31, PG!K31))) ->  | AB39: =IF(PG!L31=0,"",(IF(AND(PG!F33=1,PG!F34=1,OR(F39="ピアザホール(本番)", F39="ピアザホール(準備)",F39="練習室(一般)",F39="練習室(学生)")),PG!M31, PG!L31))) ->  | AG39: =IF(SUM(M39:AF40)=0,"",SUM(M39:AF40)) ->  | AT39: =IF(PG!$C$1=2,"県外5割加算含む","") -> 
AT40: =CHOOSE(PG!$C$2,VLOOLUP(PG!$D$31,DATA!$AK$1:$AN$24,2,FALSE),VLOOKUP(PG!$D$31,DATA!$AK$1:$AN$24,3,FALSE),VLOOKUP(PG!$D$31,DATA!$AK$1:$AN$24,4,)) -> 
M41: =IF(PG!I35=0, "", PG!I35) ->  | R41: =IF(PG!J35=0, "", PG!J35) ->  | W41: =IF(PG!K35=0,"",(IF(AND(PG!F37=1,PG!F38=1,OR(F41="ピアザホール(本番)", F41="ピアザホール(準備)",F41="練習室(一般)",F41="練習室(学生)")),PG!M35, PG!K35))) ->  | AB41: =IF(PG!L35=0,"",(IF(AND(PG!F37=1,PG!F38=1,OR(F41="ピアザホール(本番)", F41="ピアザホール(準備)",F41="練習室(一般)",F41="練習室(学生)")),PG!M35, PG!L35))) ->  | AG41: =IF(SUM(M41:AF42)=0,"",SUM(M41:AF42)) ->  | AT41: =IF(PG!$C$1=2,"県外5割加算含む","") -> 
AT42: =CHOOSE(PG!$C$2,VLOOLUP(PG!$D$35,DATA!$AK$1:$AN$24,2,FALSE),VLOOKUP(PG!$D$35,DATA!$AK$1:$AN$24,3,FALSE),VLOOKUP(PG!$D$35,DATA!$AK$1:$AN$24,4,)) -> 
A43: お支払い方法 | H43: 当日払い（ ） | N43: ＊キャッシュレス化 推進にご協力ください。 | W43: 利用料合計 | AB43: =IF(SUM(AG27:AL42)=0,"",SUM(AG27:AL42)) ->  | AM43: 承認印
H44: 事前銀行振込 | M44: ( | P44: 月 | S44: 日まで） | W44: 利用料総計 | AB44: =IF(SUM(AG27:AL42)+利用申込書2!AB56=0,"",SUM(AG27:AL42)+利用申込書2!AB56+利用申込書3!AB56) -> 
A45: 付帯設備 | F45: 不要 | J45: ・ | L45: 要（ 別紙の通り ） | W45: 物 販 | AC45: 無 ・ | AF45: 有
A46: 飲食 | G46: 無 | I46: ・ | J46: 有 | M46: ( 手配希望 | V46: 持込 )
A47: 連絡先の開示 | F47: 本催事についての問合せには、申込書の連絡先 をお答えしてもよろしいでしょうか？ | W47: ( 可 不可 ) | AV47: ,
A48: 開所時間の変更理由 | AV48: =CONCATENATE($AV$50,$AV$47,$AV$51,$AV$52,$AV$53) -> ,(0様)
A49: 休所日開室の理由 | AV49: =SUBSTITUTE(SUBSTITUTE(SUBSTITUTE(SUBSTITUTE(SUBSTITUTE(SUBSTITUTE(SUBSTITUTE(SUBSTITUTE(SUBSTITUTE(SUBSTITUTE(SUBSTITUTE(SUBSTITUTE(SUBSTITUTE(SUBSTITUTE(K9,"一般社団法人",""),"株式会社",""),"一般財団法人",""),"社会福祉法人",""),"有限会社",""),"㈱",""),"(一社)",""),"(一財)",""),"公益財団法人",""),"公益社団法人",""),"(有)",""),"(社福)",""),"(公社)",""),"(公財)","") -> 
A50: ｾﾝﾀｰ処理欄 | AV50: =SUBSTITUTE(SUBSTITUTE(SUBSTITUTE(SUBSTITUTE(SUBSTITUTE(SUBSTITUTE(SUBSTITUTE(SUBSTITUTE(SUBSTITUTE(SUBSTITUTE(SUBSTITUTE(SUBSTITUTE(SUBSTITUTE(SUBSTITUTE(K9,"一般社団法人","(一社)"),"株式会社","㈱"),"一般財団法人","(一財)"),"社会福祉法人","(社福)"),"有限会社","(有)"),"㈱","㈱"),"(一社)","(一社)"),"(一財)","(一財)"),"公益財団法人","(公社)"),"公益社団法人","(公社)"),"(有)","(有)"),"(社福)","(社福)"),"(公社)","(公社)"),"(公財)","(公財)") ->  | BD50: =SUBSTITUTE(SUBSTITUTE(SUBSTITUTE(SUBSTITUTE(K14,"滋賀県",""),"犬上郡",""),"愛知郡",""),"蒲生郡","") -> 
R51: 受付 | V51: 台帳記入 | Z51: 所在 | AD51: 種別 | AV51: ( | BD51: =IF(MID(BD50,4,1)="県",LEFT(BD50,4),LEFT(BD50,3)) -> 
Z52: =BD52 ->  | AD52: =IFERROR(VLOOKUP(K9,[1]Sheet1!$D$5:$E$3000,2,FALSE),"") -> nf | AH52: 上記の通り利用を承認します。 | AV52: =AD12 -> 0 | AW52: 同上 | BD52: =SUBSTITUTE(SUBSTITUTE(SUBSTITUTE(BD51,"近江八","近江八幡市"),"大阪市","大阪府"),"京都市","京都府") -> 
AH53: 印のないものは無効です。 | AV53: 様)
B55: *やむを得ない理由で、会議室の開所時間の変更、休館日の開室を希望される場合は県条例に基づき館長の特別承認が必要と | AQ55: Rev.6 | AT55: =A27 -> 00:00:00 | AU55: =IF(OR(F27<=207,N27="ピアザホール(準備)",N27="ピアザホール(本番)"),"2階",IF(OR(N27="練習室(一般)",N27="練習室(学生)"),"1階","3階")) -> 2階 | AV55: =PG!$D$7 -> 0 | AW55: =$F$21 -> 0
B56: なりますので、その理由を利用申込書の記載欄に記載ください。 | AT56: =A27 -> 00:00:00 | AW56: =CONCATENATE($AV$50,$AV$51,$AV$52,$AV$53) -> (0様)
B57: *本申込書に記載された個人に関わる情報につきましては、当施設利用に関する目的以外に使用しません。 | AT57: =A27 -> 00:00:00 | AV57: =$Y$23 -> 0 | AW57: =PG!$H$1 -> ：～：
B58: *利用承認書は、基本、記載の申込者住所へ郵送いたします。 | AT58: =IF(A29="",AT55,A29) -> 00:00:00 | AU58: =IF(OR(F29<=207,N29="ピアザホール(準備)",N29="ピアザホール(本番)"),"2階",IF(OR(N29="練習室(一般)",N29="練習室(学生)"),"1階","3階")) -> 2階 | AV58: =IF(AND(PG!$D$11=PG!$D$7,PG!$B$11=PG!$B$7),"",$F$29) ->  | AW58: =$F$21 -> 0
AT59: =IF(A29="",AT55,A29) -> 00:00:00 | AW59: =CONCATENATE($AV$50,$AV$51,$AV$52,$AV$53) -> (0様)
AT60: =IF(A29="",AT55,A29) -> 00:00:00 | AV60: =$Y$23 -> 0 | AW60: =PG!$H$1 -> ：～：
AT61: =IF(A31="",AT58,A31) -> 00:00:00 | AU61: =IF(OR(F31<=207,N31="ピアザホール(準備)",N31="ピアザホール(本番)"),"2階",IF(OR(N31="練習室(一般)",N31="練習室(学生)"),"1階","3階")) -> 2階 | AV61: =IF(AND(PG!$D$15=PG!$D$11,PG!$B$15=PG!$B$11),"",$F$31) ->  | AW61: =$F$21 -> 0
AT62: =IF(A31="",AT58,A31) -> 00:00:00 | AW62: =CONCATENATE($AV$50,$AV$51,$AV$52,$AV$53) -> (0様)
AT63: =IF(A31="",AT58,A31) -> 00:00:00 | AV63: =$Y$23 -> 0 | AW63: =PG!$H$1 -> ：～：
AT64: =IF(A33="",AT61,A33) -> 00:00:00 | AU64: =IF(OR(F33<=207,N33="ピアザホール(準備)",N33="ピアザホール(本番)"),"2階",IF(OR(N33="練習室(一般)",N33="練習室(学生)"),"1階","3階")) -> 2階 | AV64: =IF(AND(PG!$D$19=PG!$D$15,PG!$B$19=PG!$B$15),"",$F$33) ->  | AW64: =$F$21 -> 0
AT65: =IF(A33="",AT61,A33) -> 00:00:00 | AW65: =CONCATENATE($AV$50,$AV$51,$AV$52,$AV$53) -> (0様)
AT66: =IF(A33="",AT61,A33) -> 00:00:00 | AV66: =$Y$23 -> 0 | AW66: =PG!$H$1 -> ：～：
AT67: =IF(A35="",AT64,A35) -> 00:00:00 | AU67: =IF(OR(F35<=207,N35="ピアザホール(準備)",N35="ピアザホール(本番)"),"2階",IF(OR(N35="練習室(一般)",N35="練習室(学生)"),"1階","3階")) -> 2階 | AV67: =IF(AND(PG!$D$23=PG!$D$19,PG!$B$23=PG!$B$19),"",$F$35) ->  | AW67: =$F$21 -> 0
AT68: =IF(A35="",AT64,A35) -> 00:00:00 | AW68: =CONCATENATE($AV$50,$AV$51,$AV$52,$AV$53) -> (0様)
AT69: =IF(A35="",AT64,A35) -> 00:00:00 | AV69: =$Y$23 -> 0 | AW69: =PG!$H$1 -> ：～：
AT70: =IF(A37="",AT67,A37) -> 00:00:00 | AU70: =IF(OR(F37<=207,N37="ピアザホール(準備)",N37="ピアザホール(本番)"),"2階",IF(OR(N37="練習室(一般)",N37="練習室(学生)"),"1階","3階")) -> 2階 | AV70: =IF(AND(PG!$D$27=PG!$D$23,PG!$B$27=PG!$B$23),"",$F$37) ->  | AW70: =$F$21 -> 0
AT71: =IF(A37="",AT67,A37) -> 00:00:00 | AW71: =CONCATENATE($AV$50,$AV$51,$AV$52,$AV$53) -> (0様)
AT72: =IF(A37="",AT67,A37) -> 00:00:00 | AV72: =$Y$23 -> 0 | AW72: =PG!$H$1 -> ：～：
AT73: =IF(A39="",AT70,A39) -> 00:00:00 | AU73: =IF(OR(F39<=207,N39="ピアザホール(準備)",N39="ピアザホール(本番)"),"2階",IF(OR(N39="練習室(一般)",N39="練習室(学生)"),"1階","3階")) -> 2階 | AV73: =IF(AND(PG!$D$31=PG!$D$27,PG!$B$31=PG!$B$27),"",$F$39) ->  | AW73: =$F$21 -> 0
AT74: =IF(A39="",AT70,A39) -> 00:00:00 | AW74: =CONCATENATE($AV$50,$AV$51,$AV$52,$AV$53) -> (0様)
AT75: =IF(A39="",AT67,A39) -> 00:00:00 | AV75: =$Y$23 -> 0 | AW75: =PG!$H$1 -> ：～：
AT76: =IF(A41="",AT72,A41) -> 00:00:00 | AU76: =IF(OR(F41<=207,N41="ピアザホール(準備)",N41="ピアザホール(本番)"),"2階",IF(OR(N41="練習室(一般)",N41="練習室(学生)"),"1階","3階")) -> 2階 | AV76: =IF(AND(PG!$D$35=PG!$D$31,PG!$B$35=PG!$B$31),"",$F$41) ->  | AW76: =$F$21 -> 0
AT77: =IF(A41="",AT72,A41) -> 00:00:00 | AW77: =CONCATENATE($AV$50,$AV$51,$AV$52,$AV$53) -> (0様)
AT78: =IF(A41="",AT72,A41) -> 00:00:00 | AV78: =$Y$23 -> 0 | AW78: =PG!$H$1 -> ：～：

Sheet 利用申込書2
B2: <<<< | D2: 続き用1 >>>>
E3: 滋賀県立県民交流センター | AA3: 申込日 | AG3: 年 | AK3: 月 | AP3: 日
E4: ( 指定管理者 株式会社コンベンションリンケージ)
E6: 利用に際しては、県条例によるピアザ淡海滋賀県立県民交流センター利用規定並びにこれに基づく指示に従います。
A8: ご利用日 *次の書式で半角 で入力ください。 20〇〇/〇〇/〇〇 | F8: 会 議 室 名 | N8: 利 用 区 分 | T8: 利用する各区のチェックボックスをクリック ください。 | AG8: 利用料小計 | AM8: 備 考
M9: 早朝開室 (8-9時) | R9: 午前 (9-12時) | W9: 午後 (13-17時) | AB9: 夜間 (18-21時)
M10: =IF(PG!I39=0, "", PG!I39) ->  | R10: =IF(PG!J39=0, "", PG!J39) ->  | W10: =IF(PG!K39=0,"",(IF(AND(PG!F41=1,PG!F42=1,OR(F10="ピアザホール(本番)", F10="ピアザホール(準備)",F10="練習室(一般)",F10="練習室(学生)")),PG!M39, PG!K39))) ->  | AB10: =IF(PG!L39=0,"",(IF(AND(PG!F41=1,PG!F42=1,OR(F10="ピアザホール(本番)", F10="ピアザホール(準備)",F10="練習室(一般)",F10="練習室(学生)")),PG!M39, PG!L39))) ->  | AG10: =IF(SUM(M10:AF11)=0,"",SUM(M10:AF11)) -> 
M12: =IF(PG!I43=0, "", PG!I43) ->  | R12: =IF(PG!J43=0, "", PG!J43) ->  | W12: =IF(PG!K43=0,"",(IF(AND(PG!F45=1,PG!F46=1,OR(F12="ピアザホール(本番)", F12="ピアザホール(準備)",F12="練習室(一般)",F12="練習室(学生)")),PG!M43, PG!K43))) ->  | AB12: =IF(PG!L43=0,"",(IF(AND(PG!F45=1,PG!F46=1,OR(F12="ピアザホール(本番)", F12="ピアザホール(準備)",F12="練習室(一般)",F12="練習室(学生)")),PG!M43, PG!L43))) ->  | AG12: =IF(SUM(M12:AF13)=0,"",SUM(M12:AF13)) -> 
M14: =IF(PG!I47=0, "", PG!I47) ->  | R14: =IF(PG!J47=0, "", PG!J47) ->  | W14: =IF(PG!K47=0,"",(IF(AND(PG!F49=1,PG!F50=1,OR(F14="ピアザホール(本番)", F14="ピアザホール(準備)",F14="練習室(一般)",F14="練習室(学生)")),PG!M47, PG!K47))) ->  | AB14: =IF(PG!L47=0,"",(IF(AND(PG!F49=1,PG!F50=1,OR(F14="ピアザホール(本番)", F14="ピアザホール(準備)",F14="練習室(一般)",F14="練習室(学生)")),PG!M47, PG!L47))) ->  | AG14: =IF(SUM(M14:AF15)=0,"",SUM(M14:AF15)) -> 
M16: =IF(PG!I51=0, "", PG!I51) ->  | R16: =IF(PG!J51=0, "", PG!J51) ->  | W16: =IF(PG!K51=0,"",(IF(AND(PG!F53=1,PG!F54=1,OR(F16="ピアザホール(本番)", F16="ピアザホール(準備)",F16="練習室(一般)",F16="練習室(学生)")),PG!M51, PG!K51))) ->  | AB16: =IF(PG!L51=0,"",(IF(AND(PG!F53=1,PG!F54=1,OR(F16="ピアザホール(本番)", F16="ピアザホール(準備)",F16="練習室(一般)",F16="練習室(学生)")),PG!M51, PG!L51))) ->  | AG16: =IF(SUM(M16:AF17)=0,"",SUM(M16:AF17)) -> 
M18: =IF(PG!I55=0, "", PG!I55) ->  | R18: =IF(PG!J55=0, "", PG!J55) ->  | W18: =IF(PG!K55=0,"",(IF(AND(PG!F57=1,PG!F58=1,OR(F18="ピアザホール(本番)", F18="ピアザホール(準備)",F18="練習室(一般)",F18="練習室(学生)")),PG!M55, PG!K55))) ->  | AB18: =IF(PG!L55=0,"",(IF(AND(PG!F57=1,PG!F58=1,OR(F18="ピアザホール(本番)", F18="ピアザホール(準備)",F18="練習室(一般)",F18="練習室(学生)")),PG!M55, PG!L55))) ->  | AG18: =IF(SUM(M18:AF19)=0,"",SUM(M18:AF19)) ->  | AV18: =TEXT(AU66,"??????") -> 
M20: =IF(PG!I59=0, "", PG!I59) ->  | R20: =IF(PG!J59=0, "", PG!J59) ->  | W20: =IF(PG!K59=0,"",(IF(AND(PG!F61=1,PG!F62=1,OR(F20="ピアザホール(本番)", F20="ピアザホール(準備)",F20="練習室(一般)",F20="練習室(学生)")),PG!M59, PG!K59))) ->  | AB20: =IF(PG!L59=0,"",(IF(AND(PG!F61=1,PG!F62=1,OR(F20="ピアザホール(本番)", F20="ピアザホール(準備)",F20="練習室(一般)",F20="練習室(学生)")),PG!M59, PG!L59))) ->  | AG20: =IF(SUM(M20:AF21)=0,"",SUM(M20:AF21)) -> 
M22: =IF(PG!I63=0, "", PG!I63) ->  | R22: =IF(PG!J63=0, "", PG!J63) ->  | W22: =IF(PG!K63=0,"",(IF(AND(PG!F65=1,PG!F66=1,OR(F22="ピアザホール(本番)", F22="ピアザホール(準備)",F22="練習室(一般)",F22="練習室(学生)")),PG!M63, PG!K63))) ->  | AB22: =IF(PG!L63=0,"",(IF(AND(PG!F65=1,PG!F66=1,OR(F22="ピアザホール(本番)", F22="ピアザホール(準備)",F22="練習室(一般)",F22="練習室(学生)")),PG!M63, PG!L63))) ->  | AG22: =IF(SUM(M22:AF23)=0,"",SUM(M22:AF23)) -> 
M24: =IF(PG!I67=0, "", PG!I67) ->  | R24: =IF(PG!J67=0, "", PG!J67) ->  | W24: =IF(PG!K67=0,"",(IF(AND(PG!F69=1,PG!F70=1,OR(F24="ピアザホール(本番)", F24="ピアザホール(準備)",F24="練習室(一般)",F24="練習室(学生)")),PG!M67, PG!K67))) ->  | AB24: =IF(PG!L67=0,"",(IF(AND(PG!F69=1,PG!F70=1,OR(F24="ピアザホール(本番)", F24="ピアザホール(準備)",F24="練習室(一般)",F24="練習室(学生)")),PG!M67, PG!L67))) ->  | AG24: =IF(SUM(M24:AF25)=0,"",SUM(M24:AF25)) -> 
M26: =IF(PG!I71=0, "", PG!I71) ->  | R26: =IF(PG!J71=0, "", PG!J71) ->  | W26: =IF(PG!K71=0,"",(IF(AND(PG!F73=1,PG!F74=1,OR(F26="ピアザホール(本番)", F26="ピアザホール(準備)",F26="練習室(一般)",F26="練習室(学生)")),PG!M71, PG!K71))) ->  | AB26: =IF(PG!L71=0,"",(IF(AND(PG!F73=1,PG!F74=1,OR(F26="ピアザホール(本番)", F26="ピアザホール(準備)",F26="練習室(一般)",F26="練習室(学生)")),PG!M71, PG!L71))) ->  | AG26: =IF(SUM(M26:AF27)=0,"",SUM(M26:AF27)) -> 
M28: =IF(PG!I75=0, "", PG!I75) ->  | R28: =IF(PG!J75=0, "", PG!J75) ->  | W28: =IF(PG!K75=0,"",(IF(AND(PG!F77=1,PG!F78=1,OR(F28="ピアザホール(本番)", F28="ピアザホール(準備)",F28="練習室(一般)",F28="練習室(学生)")),PG!M75, PG!K75))) ->  | AB28: =IF(PG!L75=0,"",(IF(AND(PG!F77=1,PG!F78=1,OR(F28="ピアザホール(本番)", F28="ピアザホール(準備)",F28="練習室(一般)",F28="練習室(学生)")),PG!M75, PG!L75))) ->  | AG28: =IF(SUM(M28:AF29)=0,"",SUM(M28:AF29)) -> 
M30: =IF(PG!I79=0, "", PG!I79) ->  | R30: =IF(PG!J79=0, "", PG!J79) ->  | W30: =IF(PG!K79=0,"",(IF(AND(PG!F81=1,PG!F82=1,OR(F30="ピアザホール(本番)", F30="ピアザホール(準備)",F30="練習室(一般)",F30="練習室(学生)")),PG!M79, PG!K79))) ->  | AB30: =IF(PG!L79=0,"",(IF(AND(PG!F81=1,PG!F82=1,OR(F30="ピアザホール(本番)", F30="ピアザホール(準備)",F30="練習室(一般)",F30="練習室(学生)")),PG!M79, PG!L79))) ->  | AG30: =IF(SUM(M30:AF31)=0,"",SUM(M30:AF31)) -> 
M32: =IF(PG!I83=0, "", PG!I83) ->  | R32: =IF(PG!J83=0, "", PG!J83) ->  | W32: =IF(PG!K83=0,"",(IF(AND(PG!F85=1,PG!F86=1,OR(F32="ピアザホール(本番)", F32="ピアザホール(準備)",F32="練習室(一般)",F32="練習室(学生)")),PG!M83, PG!K83))) ->  | AB32: =IF(PG!L83=0,"",(IF(AND(PG!F85=1,PG!F86=1,OR(F32="ピアザホール(本番)", F32="ピアザホール(準備)",F32="練習室(一般)",F32="練習室(学生)")),PG!M83, PG!L83))) ->  | AG32: =IF(SUM(M32:AF33)=0,"",SUM(M32:AF33)) -> 
M34: =IF(PG!I87=0, "", PG!I87) ->  | R34: =IF(PG!J87=0, "", PG!J87) ->  | W34: =IF(PG!K87=0,"",(IF(AND(PG!F89=1,PG!F90=1,OR(F34="ピアザホール(本番)", F34="ピアザホール(準備)",F34="練習室(一般)",F34="練習室(学生)")),PG!M87, PG!K87))) ->  | AB34: =IF(PG!L87=0,"",(IF(AND(PG!F89=1,PG!F90=1,OR(F34="ピアザホール(本番)", F34="ピアザホール(準備)",F34="練習室(一般)",F34="練習室(学生)")),PG!M87, PG!L87))) ->  | AG34: =IF(SUM(M34:AF35)=0,"",SUM(M34:AF35)) -> 
M36: =IF(PG!I91=0, "", PG!I91) ->  | R36: =IF(PG!J91=0, "", PG!J91) ->  | W36: =IF(PG!K91=0,"",(IF(AND(PG!F93=1,PG!F94=1,OR(F36="ピアザホール(本番)", F36="ピアザホール(準備)",F36="練習室(一般)",F36="練習室(学生)")),PG!M91, PG!K91))) ->  | AB36: =IF(PG!L91=0,"",(IF(AND(PG!F93=1,PG!F94=1,OR(F36="ピアザホール(本番)", F36="ピアザホール(準備)",F36="練習室(一般)",F36="練習室(学生)")),PG!M91, PG!L91))) ->  | AG36: =IF(SUM(M36:AF37)=0,"",SUM(M36:AF37)) -> 
M38: =IF(PG!I95=0, "", PG!I95) ->  | R38: =IF(PG!J95=0, "", PG!J95) ->  | W38: =IF(PG!K95=0,"",(IF(AND(PG!F97=1,PG!F98=1,OR(F38="ピアザホール(本番)", F38="ピアザホール(準備)",F38="練習室(一般)",F38="練習室(学生)")),PG!M95, PG!K95))) ->  | AB38: =IF(PG!L95=0,"",(IF(AND(PG!F97=1,PG!F98=1,OR(F38="ピアザホール(本番)", F38="ピアザホール(準備)",F38="練習室(一般)",F38="練習室(学生)")),PG!M95, PG!L95))) ->  | AG38: =IF(SUM(M38:AF39)=0,"",SUM(M38:AF39)) -> 
M40: =IF(PG!I99=0, "", PG!I99) ->  | R40: =IF(PG!J99=0, "", PG!J99) ->  | W40: =IF(PG!K99=0,"",(IF(AND(PG!F101=1,PG!F102=1,OR(F40="ピアザホール(本番)", F40="ピアザホール(準備)",F40="練習室(一般)",F40="練習室(学生)")),PG!M99, PG!K99))) ->  | AB40: =IF(PG!L99=0,"",(IF(AND(PG!F101=1,PG!F102=1,OR(F40="ピアザホール(本番)", F40="ピアザホール(準備)",F40="練習室(一般)",F40="練習室(学生)")),PG!M99, PG!L99))) ->  | AG40: =IF(SUM(M40:AF41)=0,"",SUM(M40:AF41)) -> 
M42: =IF(PG!I103=0, "", PG!I103) ->  | R42: =IF(PG!J103=0, "", PG!J103) ->  | W42: =IF(PG!K103=0,"",(IF(AND(PG!F105=1,PG!F106=1,OR(F42="ピアザホール(本番)", F42="ピアザホール(準備)",F42="練習室(一般)",F42="練習室(学生)")),PG!M103, PG!K103))) ->  | AB42: =IF(PG!L103=0,"",(IF(AND(PG!F105=1,PG!F106=1,OR(F42="ピアザホール(本番)", F42="ピアザホール(準備)",F42="練習室(一般)",F42="練習室(学生)")),PG!M103, PG!L103))) ->  | AG42: =IF(SUM(M42:AF43)=0,"",SUM(M42:AF43)) -> 
M44: =IF(PG!I107=0, "", PG!I107) ->  | R44: =IF(PG!J107=0, "", PG!J107) ->  | W44: =IF(PG!K107=0,"",(IF(AND(PG!F109=1,PG!F110=1,OR(F44="ピアザホール(本番)", F44="ピアザホール(準備)",F44="練習室(一般)",F44="練習室(学生)")),PG!M107, PG!K107))) ->  | AB44: =IF(PG!L107=0,"",(IF(AND(PG!F109=1,PG!F110=1,OR(F44="ピアザホール(本番)", F44="ピアザホール(準備)",F44="練習室(一般)",F44="練習室(学生)")),PG!M107, PG!L107))) ->  | AG44: =IF(SUM(M44:AF45)=0,"",SUM(M44:AF45)) -> 
M46: =IF(PG!I111=0, "", PG!I111) ->  | R46: =IF(PG!J111=0, "", PG!J111) ->  | W46: =IF(PG!K111=0,"",(IF(AND(PG!F113=1,PG!F114=1,OR(F46="ピアザホール(本番)", F46="ピアザホール(準備)",F46="練習室(一般)",F46="練習室(学生)")),PG!M111, PG!K111))) ->  | AB46: =IF(PG!L111=0,"",(IF(AND(PG!F113=1,PG!F114=1,OR(F46="ピアザホール(本番)", F46="ピアザホール(準備)",F46="練習室(一般)",F46="練習室(学生)")),PG!M111, PG!L111))) ->  | AG46: =IF(SUM(M46:AF47)=0,"",SUM(M46:AF47)) -> 
M48: =IF(PG!I115=0, "", PG!I115) ->  | R48: =IF(PG!J115=0, "", PG!J115) ->  | W48: =IF(PG!K115=0,"",(IF(AND(PG!F117=1,PG!F118=1,OR(F48="ピアザホール(本番)", F48="ピアザホール(準備)",F48="練習室(一般)",F48="練習室(学生)")),PG!M115, PG!K115))) ->  | AB48: =IF(PG!L115=0,"",(IF(AND(PG!F117=1,PG!F118=1,OR(F48="ピアザホール(本番)", F48="ピアザホール(準備)",F48="練習室(一般)",F48="練習室(学生)")),PG!M115, PG!L115))) ->  | AG48: =IF(SUM(M48:AF49)=0,"",SUM(M48:AF49)) -> 
M50: =IF(PG!I119=0, "", PG!I119) ->  | R50: =IF(PG!J119=0, "", PG!J119) ->  | W50: =IF(PG!K119=0,"",(IF(AND(PG!F121=1,PG!F122=1,OR(F50="ピアザホール(本番)", F50="ピアザホール(準備)",F50="練習室(一般)",F50="練習室(学生)")),PG!M119, PG!K119))) ->  | AB50: =IF(PG!L119=0,"",(IF(AND(PG!F121=1,PG!F122=1,OR(F50="ピアザホール(本番)", F50="ピアザホール(準備)",F50="練習室(一般)",F50="練習室(学生)")),PG!M119, PG!L119))) ->  | AG50: =IF(SUM(M50:AF51)=0,"",SUM(M50:AF51)) -> 
M52: =IF(PG!I123=0, "", PG!I123) ->  | R52: =IF(PG!J123=0, "", PG!J123) ->  | W52: =IF(PG!K123=0,"",(IF(AND(PG!F125=1,PG!F126=1,OR(F52="ピアザホール(本番)", F52="ピアザホール(準備)",F52="練習室(一般)",F52="練習室(学生)")),PG!M123, PG!K123))) ->  | AB52: =IF(PG!L123=0,"",(IF(AND(PG!F125=1,PG!F126=1,OR(F52="ピアザホール(本番)", F52="ピアザホール(準備)",F52="練習室(一般)",F52="練習室(学生)")),PG!M123, PG!L123))) ->  | AG52: =IF(SUM(M52:AF53)=0,"",SUM(M52:AF53)) -> 
M54: =IF(PG!I127=0, "", PG!I127) ->  | R54: =IF(PG!J127=0, "", PG!J127) ->  | W54: =IF(PG!K127=0,"",(IF(AND(PG!F129=1,PG!F130=1,OR(F54="ピアザホール(本番)", F54="ピアザホール(準備)",F54="練習室(一般)",F54="練習室(学生)")),PG!M127, PG!K127))) ->  | AB54: =IF(PG!L127=0,"",(IF(AND(PG!F129=1,PG!F130=1,OR(F54="ピアザホール(本番)", F54="ピアザホール(準備)",F54="練習室(一般)",F54="練習室(学生)")),PG!M127, PG!L127))) ->  | AG54: =IF(SUM(M54:AF55)=0,"",SUM(M54:AF55)) -> 
AB56: =SUM(AG10:AL55) -> 0 | AM56: 承認印
A58: ｾﾝﾀｰ処理欄
V63: 受付 | Y63: 台帳記入
AH64: 上記の通り利用を承認します。
AH65: 印のないものは無効です。
AR66: =#REF!*10000+#REF!*1000+#REF!*100+#REF!*10+#REF! ->  | AS66: =#REF!*10000+#REF!*1000+#REF!*100+#REF!*10+#REF! ->  | AT66: =#REF!*10000+#REF!*1000+#REF!*100+#REF!*10+#REF! ->  | AU66: =SUM(AR66:AT66) -> 
Y67: 滋賀県立県民交流センター | AR67: =#REF!*10000+#REF!*1000+#REF!*100+#REF!*10+#REF! ->  | AS67: =#REF!*10000+#REF!*1000+#REF!*100+#REF!*10+#REF! ->  | AT67: =#REF!*10000+#REF!*1000+#REF!*100+#REF!*10+#REF! ->  | AU67: =SUM(AR67:AT67) -> 
Y68: 指定管理者 株式会社コンベンションリンケージ | AR68: =#REF!*10000+#REF!*1000+#REF!*100+#REF!*10+#REF! ->  | AS68: =#REF!*10000+#REF!*1000+#REF!*100+#REF!*10+#REF! ->  | AT68: =#REF!*10000+#REF!*1000+#REF!*100+#REF!*10+#REF! ->  | AU68: =SUM(AR68:AT68) -> 
AR69: =#REF!*10000+#REF!*1000+#REF!*100+#REF!*10+#REF! ->  | AS69: =#REF!*10000+#REF!*1000+#REF!*100+#REF!*10+#REF! ->  | AT69: =#REF!*10000+#REF!*1000+#REF!*100+#REF!*10+#REF! ->  | AU69: =SUM(AR69:AT69) -> 
AR70: =#REF!*10000+#REF!*1000+#REF!*100+#REF!*10+#REF! ->  | AS70: =#REF!*10000+#REF!*1000+#REF!*100+#REF!*10+#REF! ->  | AT70: =#REF!*10000+#REF!*1000+#REF!*100+#REF!*10+#REF! ->  | AU70: =SUM(AR70:AT70) -> 
AU71: =SUM(AU66:AU70) -> 

Sheet 利用申込書3
C2: <<<< | E2: 続き用2 >>>>
E3: 滋賀県立県民交流センター | AD3: 申込日 | AI3: 年 月 日（ ）
E4: ( 指定管理者 株式会社コンベンションリンケージ)
E6: 利用に際しては、県条例によるピアザ淡海滋賀県立県民交流センター利用規定並びにこれに基づく指示に従います。
A8: ご利用日 *次の書式で半角 で入力ください。 20〇〇/〇〇/〇〇 | F8: 会 議 室 名 | N8: 利 用 区 分 | T8: 利用する各区のチェックボックスをクリック ください。 | AG8: 利用料小計 | AM8: 備 考
M9: 早朝開室 (8-9時) | R9: 午前 (9-12時) | W9: 午後 (13-17時) | AB9: 夜間 (18-21時)
F10: 0 | M10: =IF(PG!I131=0, "", PG!I131) ->  | R10: =IF(PG!J131=0, "", PG!J131) ->  | W10: =IF(PG!K131=0,"",(IF(AND(PG!F133=1,PG!F134=1,OR(F10="ピアザホール(本番)", F10="ピアザホール(準備)",F10="練習室(一般)",F10="練習室(学生)")),PG!M131, PG!K131))) ->  | AB10: =IF(PG!L131=0,"",(IF(AND(PG!F133=1,PG!F134=1,OR(F10="ピアザホール(本番)", F10="ピアザホール(準備)",F10="練習室(一般)",F10="練習室(学生)")),PG!M131, PG!L131))) ->  | AG10: =IF(SUM(M10:AF11)=0,"",SUM(M10:AF11)) -> 
F12: 0 | M12: =IF(PG!I135=0, "", PG!I135) ->  | R12: =IF(PG!J135=0, "", PG!J135) ->  | W12: =IF(PG!K135=0,"",(IF(AND(PG!F137=1,PG!F138=1,OR(F12="ピアザホール(本番)", F12="ピアザホール(準備)",F12="練習室(一般)",F12="練習室(学生)")),PG!M135, PG!K135))) ->  | AB12: =IF(PG!L135=0,"",(IF(AND(PG!F137=1,PG!F138=1,OR(F12="ピアザホール(本番)", F12="ピアザホール(準備)",F12="練習室(一般)",F12="練習室(学生)")),PG!M135, PG!L135))) ->  | AG12: =IF(SUM(M12:AF13)=0,"",SUM(M12:AF13)) -> 
F14: 0 | M14: =IF(PG!I139=0, "", PG!I139) ->  | R14: =IF(PG!J139=0, "", PG!J139) ->  | W14: =IF(PG!K139=0,"",(IF(AND(PG!F141=1,PG!F142=1,OR(F14="ピアザホール(本番)", F14="ピアザホール(準備)",F14="練習室(一般)",F14="練習室(学生)")),PG!M139, PG!K139))) ->  | AB14: =IF(PG!L139=0,"",(IF(AND(PG!F141=1,PG!F142=1,OR(F14="ピアザホール(本番)", F14="ピアザホール(準備)",F14="練習室(一般)",F14="練習室(学生)")),PG!M139, PG!L139))) ->  | AG14: =IF(SUM(M14:AF15)=0,"",SUM(M14:AF15)) -> 
M16: =IF(PG!I143=0, "", PG!I143) ->  | R16: =IF(PG!J143=0, "", PG!J143) ->  | W16: =IF(PG!K143=0,"",(IF(AND(PG!F145=1,PG!F146=1,OR(F16="ピアザホール(本番)", F16="ピアザホール(準備)",F16="練習室(一般)",F16="練習室(学生)")),PG!M143, PG!K143))) ->  | AB16: =IF(PG!L143=0,"",(IF(AND(PG!F145=1,PG!F146=1,OR(F16="ピアザホール(本番)", F16="ピアザホール(準備)",F16="練習室(一般)",F16="練習室(学生)")),PG!M143, PG!L143))) ->  | AG16: =IF(SUM(M16:AF17)=0,"",SUM(M16:AF17)) -> 
M18: =IF(PG!I147=0, "", PG!I147) ->  | R18: =IF(PG!J147=0, "", PG!J147) ->  | W18: =IF(PG!K147=0,"",(IF(AND(PG!F149=1,PG!F150=1,OR(F18="ピアザホール(本番)", F18="ピアザホール(準備)",F18="練習室(一般)",F18="練習室(学生)")),PG!M147, PG!K147))) ->  | AB18: =IF(PG!L147=0,"",(IF(AND(PG!F149=1,PG!F150=1,OR(F18="ピアザホール(本番)", F18="ピアザホール(準備)",F18="練習室(一般)",F18="練習室(学生)")),PG!M147, PG!L147))) ->  | AG18: =IF(SUM(M18:AF19)=0,"",SUM(M18:AF19)) ->  | AV18: =TEXT(AU66,"??????") -> 
M20: =IF(PG!I151=0, "", PG!I151) ->  | R20: =IF(PG!J151=0, "", PG!J151) ->  | W20: =IF(PG!K151=0,"",(IF(AND(PG!F153=1,PG!F154=1,OR(F20="ピアザホール(本番)", F20="ピアザホール(準備)",F20="練習室(一般)",F20="練習室(学生)")),PG!M151, PG!K151))) ->  | AB20: =IF(PG!L151=0,"",(IF(AND(PG!F153=1,PG!F154=1,OR(F20="ピアザホール(本番)", F20="ピアザホール(準備)",F20="練習室(一般)",F20="練習室(学生)")),PG!M151, PG!L151))) ->  | AG20: =IF(SUM(M20:AF21)=0,"",SUM(M20:AF21)) -> 
M22: =IF(PG!I155=0, "", PG!I155) ->  | R22: =IF(PG!J155=0, "", PG!J155) ->  | W22: =IF(PG!K155=0,"",(IF(AND(PG!F157=1,PG!F158=1,OR(F22="ピアザホール(本番)", F22="ピアザホール(準備)",F22="練習室(一般)",F22="練習室(学生)")),PG!M155, PG!K155))) ->  | AB22: =IF(PG!L155=0,"",(IF(AND(PG!F157=1,PG!F158=1,OR(F22="ピアザホール(本番)", F22="ピアザホール(準備)",F22="練習室(一般)",F22="練習室(学生)")),PG!M155, PG!L155))) ->  | AG22: =IF(SUM(M22:AF23)=0,"",SUM(M22:AF23)) -> 
M24: =IF(PG!I159=0, "", PG!I159) ->  | R24: =IF(PG!J159=0, "", PG!J159) ->  | W24: =IF(PG!K159=0,"",(IF(AND(PG!F161=1,PG!F162=1,OR(F24="ピアザホール(本番)", F24="ピアザホール(準備)",F24="練習室(一般)",F24="練習室(学生)")),PG!M159, PG!K159))) ->  | AB24: =IF(PG!L159=0,"",(IF(AND(PG!F161=1,PG!F162=1,OR(F24="ピアザホール(本番)", F24="ピアザホール(準備)",F24="練習室(一般)",F24="練習室(学生)")),PG!M159, PG!L159))) ->  | AG24: =IF(SUM(M24:AF25)=0,"",SUM(M24:AF25)) -> 
M26: =IF(PG!I163=0, "", PG!I163) ->  | R26: =IF(PG!J163=0, "", PG!J163) ->  | W26: =IF(PG!K163=0,"",(IF(AND(PG!F165=1,PG!F166=1,OR(F26="ピアザホール(本番)", F26="ピアザホール(準備)",F26="練習室(一般)",F26="練習室(学生)")),PG!M163, PG!K163))) ->  | AB26: =IF(PG!L163=0,"",(IF(AND(PG!F165=1,PG!F166=1,OR(F26="ピアザホール(本番)", F26="ピアザホール(準備)",F26="練習室(一般)",F26="練習室(学生)")),PG!M163, PG!L163))) ->  | AG26: =IF(SUM(M26:AF27)=0,"",SUM(M26:AF27)) -> 
M28: =IF(PG!I167=0, "", PG!I167) ->  | R28: =IF(PG!J167=0, "", PG!J167) ->  | W28: =IF(PG!K167=0,"",(IF(AND(PG!F169=1,PG!F170=1,OR(F28="ピアザホール(本番)", F28="ピアザホール(準備)",F28="練習室(一般)",F28="練習室(学生)")),PG!M167, PG!K167))) ->  | AB28: =IF(PG!L167=0,"",(IF(AND(PG!F169=1,PG!F170=1,OR(F28="ピアザホール(本番)", F28="ピアザホール(準備)",F28="練習室(一般)",F28="練習室(学生)")),PG!M167, PG!L167))) ->  | AG28: =IF(SUM(M28:AF29)=0,"",SUM(M28:AF29)) -> 
M30: =IF(PG!I171=0, "", PG!I171) ->  | R30: =IF(PG!J171=0, "", PG!J171) ->  | W30: =IF(PG!K171=0,"",(IF(AND(PG!F173=1,PG!F174=1,OR(F30="ピアザホール(本番)", F30="ピアザホール(準備)",F30="練習室(一般)",F30="練習室(学生)")),PG!M171, PG!K171))) ->  | AB30: =IF(PG!L171=0,"",(IF(AND(PG!F173=1,PG!F174=1,OR(F30="ピアザホール(本番)", F30="ピアザホール(準備)",F30="練習室(一般)",F30="練習室(学生)")),PG!M171, PG!L171))) ->  | AG30: =IF(SUM(M30:AF31)=0,"",SUM(M30:AF31)) -> 
M32: =IF(PG!I175=0, "", PG!I175) ->  | R32: =IF(PG!J175=0, "", PG!J175) ->  | W32: =IF(PG!K175=0,"",(IF(AND(PG!F177=1,PG!F178=1,OR(F32="ピアザホール(本番)", F32="ピアザホール(準備)",F32="練習室(一般)",F32="練習室(学生)")),PG!M175, PG!K175))) ->  | AB32: =IF(PG!L175=0,"",(IF(AND(PG!F177=1,PG!F178=1,OR(F32="ピアザホール(本番)", F32="ピアザホール(準備)",F32="練習室(一般)",F32="練習室(学生)")),PG!M175, PG!L175))) ->  | AG32: =IF(SUM(M32:AF33)=0,"",SUM(M32:AF33)) -> 
M34: =IF(PG!I179=0, "", PG!I179) ->  | R34: =IF(PG!J179=0, "", PG!J179) ->  | W34: =IF(PG!K179=0,"",(IF(AND(PG!F181=1,PG!F182=1,OR(F34="ピアザホール(本番)", F34="ピアザホール(準備)",F34="練習室(一般)",F34="練習室(学生)")),PG!M179, PG!K179))) ->  | AB34: =IF(PG!L179=0,"",(IF(AND(PG!F181=1,PG!F182=1,OR(F34="ピアザホール(本番)", F34="ピアザホール(準備)",F34="練習室(一般)",F34="練習室(学生)")),PG!M179, PG!L179))) ->  | AG34: =IF(SUM(M34:AF35)=0,"",SUM(M34:AF35)) -> 
M36: =IF(PG!I183=0, "", PG!I183) ->  | R36: =IF(PG!J183=0, "", PG!J183) ->  | W36: =IF(PG!K183=0,"",(IF(AND(PG!F185=1,PG!F186=1,OR(F36="ピアザホール(本番)", F36="ピアザホール(準備)",F36="練習室(一般)",F36="練習室(学生)")),PG!M183, PG!K183))) ->  | AB36: =IF(PG!L183=0,"",(IF(AND(PG!F185=1,PG!F186=1,OR(F36="ピアザホール(本番)", F36="ピアザホール(準備)",F36="練習室(一般)",F36="練習室(学生)")),PG!M183, PG!L183))) ->  | AG36: =IF(SUM(M36:AF37)=0,"",SUM(M36:AF37)) -> 
M38: =IF(PG!I187=0, "", PG!I187) ->  | R38: =IF(PG!J187=0, "", PG!J187) ->  | W38: =IF(PG!K187=0,"",(IF(AND(PG!F189=1,PG!F190=1,OR(F38="ピアザホール(本番)", F38="ピアザホール(準備)",F38="練習室(一般)",F38="練習室(学生)")),PG!M187, PG!K187))) ->  | AB38: =IF(PG!L187=0,"",(IF(AND(PG!F189=1,PG!F190=1,OR(F38="ピアザホール(本番)", F38="ピアザホール(準備)",F38="練習室(一般)",F38="練習室(学生)")),PG!M187, PG!L187))) ->  | AG38: =IF(SUM(M38:AF39)=0,"",SUM(M38:AF39)) -> 
M40: =IF(PG!I191=0, "", PG!I191) ->  | R40: =IF(PG!J191=0, "", PG!J191) ->  | W40: =IF(PG!K191=0,"",(IF(AND(PG!F193=1,PG!F194=1,OR(F40="ピアザホール(本番)", F40="ピアザホール(準備)",F40="練習室(一般)",F40="練習室(学生)")),PG!M191, PG!K191))) ->  | AB40: =IF(PG!L191=0,"",(IF(AND(PG!F193=1,PG!F194=1,OR(F40="ピアザホール(本番)", F40="ピアザホール(準備)",F40="練習室(一般)",F40="練習室(学生)")),PG!M191, PG!L191))) ->  | AG40: =IF(SUM(M40:AF41)=0,"",SUM(M40:AF41)) -> 
M42: =IF(PG!I195=0, "", PG!I195) ->  | R42: =IF(PG!J195=0, "", PG!J195) ->  | W42: =IF(PG!K195=0,"",(IF(AND(PG!F197=1,PG!F198=1,OR(F42="ピアザホール(本番)", F42="ピアザホール(準備)",F42="練習室(一般)",F42="練習室(学生)")),PG!M195, PG!K195))) ->  | AB42: =IF(PG!L195=0,"",(IF(AND(PG!F197=1,PG!F198=1,OR(F42="ピアザホール(本番)", F42="ピアザホール(準備)",F42="練習室(一般)",F42="練習室(学生)")),PG!M195, PG!L195))) ->  | AG42: =IF(SUM(M42:AF43)=0,"",SUM(M42:AF43)) -> 
M44: =IF(PG!I199=0, "", PG!I199) ->  | R44: =IF(PG!J199=0, "", PG!J199) ->  | W44: =IF(PG!K199=0,"",(IF(AND(PG!F201=1,PG!F202=1,OR(F44="ピアザホール(本番)", F44="ピアザホール(準備)",F44="練習室(一般)",F44="練習室(学生)")),PG!M199, PG!K199))) ->  | AB44: =IF(PG!L199=0,"",(IF(AND(PG!F201=1,PG!F202=1,OR(F44="ピアザホール(本番)", F44="ピアザホール(準備)",F44="練習室(一般)",F44="練習室(学生)")),PG!M199, PG!L199))) ->  | AG44: =IF(SUM(M44:AF45)=0,"",SUM(M44:AF45)) -> 
M46: =IF(PG!I203=0, "", PG!I203) ->  | R46: =IF(PG!J203=0, "", PG!J203) ->  | W46: =IF(PG!K203=0,"",(IF(AND(PG!F205=1,PG!F206=1,OR(F46="ピアザホール(本番)", F46="ピアザホール(準備)",F46="練習室(一般)",F46="練習室(学生)")),PG!M203, PG!K203))) ->  | AB46: =IF(PG!L203=0,"",(IF(AND(PG!F205=1,PG!F206=1,OR(F46="ピアザホール(本番)", F46="ピアザホール(準備)",F46="練習室(一般)",F46="練習室(学生)")),PG!M203, PG!L203))) ->  | AG46: =IF(SUM(M46:AF47)=0,"",SUM(M46:AF47)) -> 
M48: =IF(PG!I207=0, "", PG!I207) ->  | R48: =IF(PG!J207=0, "", PG!J207) ->  | W48: =IF(PG!K207=0,"",(IF(AND(PG!F209=1,PG!F210=1,OR(F48="ピアザホール(本番)", F48="ピアザホール(準備)",F48="練習室(一般)",F48="練習室(学生)")),PG!M207, PG!K207))) ->  | AB48: =IF(PG!L207=0,"",(IF(AND(PG!F209=1,PG!F210=1,OR(F48="ピアザホール(本番)", F48="ピアザホール(準備)",F48="練習室(一般)",F48="練習室(学生)")),PG!M207, PG!L207))) ->  | AG48: =IF(SUM(M48:AF49)=0,"",SUM(M48:AF49)) -> 
M50: =IF(PG!I211=0, "", PG!I211) ->  | R50: =IF(PG!J211=0, "", PG!J211) ->  | W50: =IF(PG!K211=0,"",(IF(AND(PG!F213=1,PG!F214=1,OR(F50="ピアザホール(本番)", F50="ピアザホール(準備)",F50="練習室(一般)",F50="練習室(学生)")),PG!M211, PG!K211))) ->  | AB50: =IF(PG!L211=0,"",(IF(AND(PG!F213=1,PG!F214=1,OR(F50="ピアザホール(本番)", F50="ピアザホール(準備)",F50="練習室(一般)",F50="練習室(学生)")),PG!M211, PG!L211))) ->  | AG50: =IF(SUM(M50:AF51)=0,"",SUM(M50:AF51)) -> 
M52: =IF(PG!I215=0, "", PG!I215) ->  | R52: =IF(PG!J215=0, "", PG!J215) ->  | W52: =IF(PG!K215=0,"",(IF(AND(PG!F217=1,PG!F218=1,OR(F52="ピアザホール(本番)", F52="ピアザホール(準備)",F52="練習室(一般)",F52="練習室(学生)")),PG!M215, PG!K215))) ->  | AB52: =IF(PG!L215=0,"",(IF(AND(PG!F217=1,PG!F218=1,OR(F52="ピアザホール(本番)", F52="ピアザホール(準備)",F52="練習室(一般)",F52="練習室(学生)")),PG!M215, PG!L215))) ->  | AG52: =IF(SUM(M52:AF53)=0,"",SUM(M52:AF53)) -> 
M54: =IF(PG!I219=0, "", PG!I219) ->  | R54: =IF(PG!J219=0, "", PG!J219) ->  | W54: =IF(PG!K219=0,"",(IF(AND(PG!F221=1,PG!F222=1,OR(F54="ピアザホール(本番)", F54="ピアザホール(準備)",F54="練習室(一般)",F54="練習室(学生)")),PG!M219, PG!K219))) ->  | AB54: =IF(PG!L219=0,"",(IF(AND(PG!F221=1,PG!F222=1,OR(F54="ピアザホール(本番)", F54="ピアザホール(準備)",F54="練習室(一般)",F54="練習室(学生)")),PG!M219, PG!L219))) ->  | AG54: =IF(SUM(M54:AF55)=0,"",SUM(M54:AF55)) -> 
AB56: =SUM(AG10:AL55) -> 0 | AM56: 承認印
V61: 受付 | Y61: 台帳記入
AH62: 上記の通り利用を承認します。
AH63: 印のないものは無効です。
Y65: 滋賀県立県民交流センター
Y66: 指定管理者 株式会社コンベンションリンケージ | AR66: =#REF!*10000+#REF!*1000+#REF!*100+#REF!*10+#REF! ->  | AS66: =#REF!*10000+#REF!*1000+#REF!*100+#REF!*10+#REF! ->  | AT66: =#REF!*10000+#REF!*1000+#REF!*100+#REF!*10+#REF! ->  | AU66: =SUM(AR66:AT66) -> 
AR67: =#REF!*10000+#REF!*1000+#REF!*100+#REF!*10+#REF! ->  | AS67: =#REF!*10000+#REF!*1000+#REF!*100+#REF!*10+#REF! ->  | AT67: =#REF!*10000+#REF!*1000+#REF!*100+#REF!*10+#REF! ->  | AU67: =SUM(AR67:AT67) -> 
AR68: =#REF!*10000+#REF!*1000+#REF!*100+#REF!*10+#REF! ->  | AS68: =#REF!*10000+#REF!*1000+#REF!*100+#REF!*10+#REF! ->  | AT68: =#REF!*10000+#REF!*1000+#REF!*100+#REF!*10+#REF! ->  | AU68: =SUM(AR68:AT68) -> 
AR69: =#REF!*10000+#REF!*1000+#REF!*100+#REF!*10+#REF! ->  | AS69: =#REF!*10000+#REF!*1000+#REF!*100+#REF!*10+#REF! ->  | AT69: =#REF!*10000+#REF!*1000+#REF!*100+#REF!*10+#REF! ->  | AU69: =SUM(AR69:AT69) -> 
AR70: =#REF!*10000+#REF!*1000+#REF!*100+#REF!*10+#REF! ->  | AS70: =#REF!*10000+#REF!*1000+#REF!*100+#REF!*10+#REF! ->  | AT70: =#REF!*10000+#REF!*1000+#REF!*100+#REF!*10+#REF! ->  | AU70: =SUM(AR70:AT70) -> 
AU71: =SUM(AU66:AU70) -> 

Sheet DATA (hidden)
B1: 8：00-9：00 | C1: 1 | D1: 2 | E1: 3 | F1: 4 | G1: 5 | H1: 6 | I1: 7 | J1: 8 | K1: 9 | L1: 10 | M1: 11 | N1: 12 | V1: 振替休館日 | AA1: 所在 | AC1: 利用区分 | AF1: 時間 | AG1: 分 | AL1: 1 | AM1: 2 | AN1: 3 | AU1: 1 | AX1: 2 | BA1: 3 | BD1: 4 | BG1: 5 | BJ1: 6
C2: 県内・無料 | D2: 県内・3割 | E2: 県内・5割 | F2: 県外・無料 | G2: 県外・3割 | H2: 県外・5割 | I2: 休日 | J2: 休日 | K2: 休日 | L2: 休日 | M2: 休日 | N2: 休日 | Q2: 2023 | R2: 2024 | S2: 2025 | T2: 2022 | V2: 2023 | W2: 2024 | X2: 2025 | Y2: 2022 | Z2: 県内 | AA2: 大津 | AC2: 1 | AD2: 国 | AF2: 8 | AG2: 00 | AI2: 事後払い | AJ2: 〇 | AK2: ピアザホール(本番) | AM2: 参加費3割加算含む | AN2: 参加費5割加算含む | AU2: 本番 | AV2: 本番 | AW2: 本番 | AX2: 準備 | AY2: 本番 | AZ2: 本番 | BA2: 準備 | BB2: 本番 | BC2: 準備 | BD2: 1 | BE2: 準備 | BF2: 本番 | BG2: 準備 | BH2: 本番 | BI2: 本番 | BJ2: 準備 | BK2: 本番 | BL2: 準備
A3: 101 | B3: ピアザホール(本番) | C3: 7100 | D3: =C3*1.3 -> 9230 | E3: =C3*1.5 -> 10650 | F3: =C3*1.5 -> 10650 | G3: =C3*1.5+C3*0.3 -> 12780 | H3: =C3*1.5+C3*0.5 -> 14200 | I3: 10600 | J3: =I3*1.3 -> 13780 | K3: =I3*1.5 -> 15900 | L3: =I3*1.5 -> 15900 | M3: =I3*1.5+I3*0.3 -> 19080 | N3: =I3*1.5+I3*0.5 -> 21200 | O3: 101 | P3: 元日 | Q3: 2023-01-01 | R3: 2024-01-01 | S3: 2025-01-01 | T3: 2022-01-10 | V3: 2023-01-02 | W3: 2024-02-13 | X3: 2025-01-14 | Y3: 2022-01-11 | AA3: 草津 | AC3: 2 | AD3: 県 | AF3: 9 | AG3: 10 | AI3: 事後払い申請済 | AJ3: ◎ | AK3: ピアザホール(準備) | AM3: 参加費3割加算含む | AN3: 参加費5割加算含む | AU3: 午前 | AV3: 午後 | AW3: 夜間 | AX3: 午前 | AY3: 午後 | AZ3: 夜間 | BA3: 午前 | BB3: 午後 | BC3: 夜間 | BE3: 午後 | BF3: 夜間 | BG3: 午前 | BH3: 午後 | BI3: 夜間 | BJ3: 午前 | BK3: 午後 | BL3: 夜間
A4: 102 | B4: ピアザホール(準備) | C4: 3500 | D4: =C4*1.3 -> 4550 | E4: =C4*1.5 -> 5250 | F4: 5250 | G4: =C4*1.5+C4*0.3 -> 6300 | H4: =C4*1.5+C4*0.5 -> 7000 | I4: 5300 | J4: =I4*1.3 -> 6890 | K4: =I4*1.5 -> 7950 | L4: =I4*1.5 -> 7950 | M4: =I4*1.5+I4*0.3 -> 9540 | N4: =I4*1.5+I4*0.5 -> 10600 | O4: 102 | P4: 成人の日 | Q4: 2023-01-09 | R4: 2024-01-08 | S4: 2025-01-13 | T4: 2022-02-23 | V4: 2023-01-10 | W4: 2024-05-02 | X4: 2025-02-25 | Y4: 2022-03-22 | AA4: 守山 | AC4: 3 | AD4: 市町村 | AF4: 10 | AG4: 20 | AI4: 要確認 | AJ4: ※ | AK4: 大会議室(本番) | AM4: 参加費3割加算含む | AN4: 参加費5割加算含む | AT4: ピアザホール(本番) | AU4: 1 | AV4: 1 | AW4: 1 | AX4: 0 | AY4: 1 | AZ4: 1 | BA4: 0 | BB4: 1 | BC4: 0 | BE4: 0 | BF4: 1
A5: 208 | B5: 大会議室(本番) | C5: 10900 | D5: =C5*1.3 -> 14170 | E5: =C5*1.5 -> 16350 | F5: 16350 | G5: =C5*1.5+C5*0.3 -> 19620 | H5: =C5*1.5+C5*0.5 -> 21800 | I5: 10900 | J5: =I5*1.3 -> 14170 | K5: =I5*1.5 -> 16350 | L5: =I5*1.5 -> 16350 | M5: =I5*1.5+I5*0.3 -> 19620 | N5: =I5*1.5+I5*0.5 -> 21800 | O5: 208 | P5: 建国記念の日 | Q5: 2023-02-11 | R5: 2024-02-11 | S5: 2025-02-11 | T5: 2022-03-21 | W5: 2024-05-07 | Y5: 2022-07-19 | AA5: 近江八幡 | AC5: 4 | AD5: 福祉医療 | AF5: 11 | AG5: 30 | AI5: 請求書発行 | AJ5: ☆ | AK5: 大会議室(準備) | AM5: 参加費3割加算含む | AN5: 参加費5割加算含む | AT5: ピアザホール(準備) | AU5: 0 | AV5: 0 | AW5: 0 | AX5: 1 | AY5: 0 | AZ5: 0 | BA5: 1 | BB5: 0 | BC5: 1 | BE5: 1 | BF5: 0
A6: 209 | B6: 大会議室(準備) | C6: 5400 | D6: =C6*1.3 -> 7020 | E6: =C6*1.5 -> 8100 | F6: 8100 | G6: =C6*1.5+C6*0.3 -> 9720 | H6: =C6*1.5+C6*0.5 -> 10800 | I6: 5400 | J6: =I6*1.3 -> 7020 | K6: =I6*1.5 -> 8100 | L6: 8100 | M6: =I6*1.5+I6*0.3 -> 9720 | N6: =I6*1.5+I6*0.5 -> 10800 | O6: 209 | P6: 春分の日 | Q6: 2023-03-21 | R6: 2024-03-20 | S6: 2025-03-20 | T6: 2022-02-11 | V6: 2023-07-18 | W6: 2024-07-16 | Y6: 2022-09-20 | AA6: 東近江 | AC6: 5 | AD6: 環境 | AF6: 12 | AG6: 40 | AI6: 見積書発行 | AJ6: ★ | AK6: 201 | AN6: "" | AT6: 大会議室(本番) | AU6: 1 | AV6: 1 | AW6: 1 | AX6: 0 | AY6: 1 | AZ6: 1 | BA6: 0 | BB6: 1 | BC6: 0 | BE6: 0 | BF6: 1
A7: 201 | B7: 201会議室 | C7: 860 | D7: 860 | E7: 860 | F7: 1290 | G7: =D7*1.5 -> 1290 | H7: =E7*1.5 -> 1290 | I7: 860 | J7: 860 | K7: 860 | L7: 1290 | M7: =J7*1.5 -> 1290 | N7: =K7*1.5 -> 1290 | O7: 201 | P7: 昭和の日 | Q7: 2023-04-29 | R7: 2024-04-29 | S7: 2025-04-29 | T7: 2022-04-29 | V7: 2023-09-19 | W7: 2024-08-13 | Y7: 2022-10-11 | AA7: 野洲 | AC7: 6 | AD7: 産業経済 | AF7: 13 | AG7: 50 | AI7: 未発行 | AJ7: ※ | AK7: 202 | AT7: 大会議室(準備) | AU7: 0 | AV7: 0 | AW7: 0 | AX7: 1 | AY7: 0 | AZ7: 0 | BA7: 1 | BB7: 0 | BC7: 1 | BE7: 1 | BF7: 0
A8: 202 | B8: 202会議室 | C8: 860 | D8: 860 | E8: 860 | F8: 1290 | G8: 1290 | H8: 1290 | I8: 860 | J8: 860 | K8: 860 | L8: 1290 | M8: 1290 | N8: 1290 | O8: 202 | R8: 2024-02-12 | T8: 2022-05-03 | V8: 2023-10-10 | W8: 2024-09-17 | AA8: 彦根 | AC8: 7 | AD8: 労働 | AF8: 14 | AK8: 203 | AT8: 201会議室 | AU8: 24 | AV8: 24 | AW8: 24 | AX8: 3 | AY8: 24 | AZ8: 24 | BA8: 3 | BB8: 24 | BC8: 3 | BE8: 3 | BF8: 24
A9: 203 | B9: 203会議室 | C9: 1600 | D9: 1600 | E9: 1600 | F9: 2400 | G9: 2400 | H9: 2400 | I9: 1600 | J9: 1600 | K9: 1600 | L9: 2400 | M9: 2400 | N9: 2400 | O9: 203 | R9: 2024-02-23 | T9: 2022-05-04 | W9: 2024-09-24 | AA9: 長浜 | AC9: 8 | AD9: 教育 | AF9: 15 | AK9: 204 | AT9: 202会議室 | AU9: 24 | AV9: 24 | AW9: 24 | AX9: 3 | AY9: 24 | AZ9: 24 | BA9: 3 | BB9: 24 | BC9: 3 | BE9: 3 | BF9: 24
A10: 204 | B10: 204会議室 | C10: 1600 | D10: 1600 | E10: 1600 | F10: 2400 | G10: 2400 | H10: 2400 | I10: 1600 | J10: 1600 | K10: 1600 | L10: 2400 | M10: 2400 | N10: 2400 | O10: 204 | R10: 2024-09-23 | T10: 2022-05-05 | W10: 2024-10-15 | AA10: 米原 | AC10: 9 | AD10: 学術 | AF10: 16 | AK10: 205 | AT10: 203会議室 | AU10: 48 | AV10: 48 | AW10: 48 | AX10: 3 | AY10: 48 | AZ10: 48 | BA10: 3 | BB10: 48 | BC10: 3 | BE10: 3 | BF10: 48
A11: 205 | B11: 205会議室 | C11: 1100 | D11: 1100 | E11: 1100 | F11: =C11*1.5 -> 1650 | G11: 1650 | H11: 1650 | I11: 1100 | J11: 1100 | K11: 1100 | L11: =I11*1.5 -> 1650 | M11: 1650 | N11: 1650 | O11: 205 | P11: 憲法記念日 | R11: 2024-05-03 | S11: 2025-05-03 | T11: 2022-07-18 | W11: 2024-11-05 | AA11: 高島 | AC11: 10 | AD11: 文化芸術 生涯学習 | AF11: 17 | AK11: 206 | AT11: 204会議室 | AU11: 48 | AV11: 48 | AW11: 48 | AX11: 3 | AY11: 48 | AZ11: 48 | BA11: 3 | BB11: 48 | BC11: 3 | BE11: 3 | BF11: 48
A12: 206 | B12: 206会議室 | C12: 1100 | D12: 1100 | E12: 1100 | F12: 1650 | G12: 1650 | H12: 1650 | I12: 1100 | J12: 1100 | K12: 1100 | L12: 1650 | M12: 1650 | N12: 1650 | O12: 206 | P12: みどりの日 | Q12: 2023-05-04 | R12: 2024-05-04 | S12: 2025-05-04 | T12: 2022-08-11 | AA12: 栗東 | AC12: 11 | AF12: 18 | AK12: 207 | AT12: 205会議室 | AU12: 36 | AV12: 36 | AW12: 36 | AX12: 3 | AY12: 36 | AZ12: 36 | BA12: 3 | BB12: 36 | BC12: 3 | BE12: 3 | BF12: 36
A13: 207 | B13: 207会議室 | C13: 2300 | D13: 2300 | E13: 2300 | F13: 3450 | G13: 3450 | H13: 3450 | I13: 2300 | J13: 2300 | K13: 2300 | L13: 3450 | M13: 3450 | N13: 3450 | O13: 207 | P13: こどもの日 | Q13: 2023-05-05 | R13: 2024-05-05 | S13: 2025-05-05 | T13: 2022-09-19 | AA13: 湖南 | AC13: 12 | AD13: 地方自治 | AF13: 19 | AK13: 301 | AT13: 206会議室 | AU13: 36 | AV13: 36 | AW13: 36 | AX13: 3 | AY13: 36 | AZ13: 36 | BA13: 3 | BB13: 36 | BC13: 3 | BE13: 3 | BF13: 36
A14: 301 | B14: 301会議室 | C14: 1100 | D14: 1100 | E14: 1100 | F14: 1650 | G14: 1650 | H14: 1650 | I14: 1100 | J14: 1100 | K14: 1100 | L14: 1650 | M14: 1650 | N14: 1650 | O14: 301 | P14: 振替休日 | Q14: 2023-02-23 | R14: 2024-05-06 | S14: 2025-05-06 | T14: 2022-09-23 | AA14: 甲賀 | AC14: 13 | AF14: 20 | AK14: 302 | AT14: 207会議室 | AU14: 81 | AV14: 81 | AW14: 81 | AX14: 3 | AY14: 81 | AZ14: 81 | BA14: 3 | BB14: 81 | BC14: 3 | BE14: 3 | BF14: 81
A15: 302 | B15: 302会議室 | C15: 1100 | D15: 1100 | E15: 1100 | F15: 1650 | G15: 1650 | H15: 1650 | I15: 1100 | J15: 1100 | K15: 1100 | L15: 1650 | M15: 1650 | N15: 1650 | O15: 302 | P15: 海の日 | Q15: 2023-08-11 | R15: 2024-08-11 | S15: 2025-07-21 | T15: 2022-10-10 | AA15: 竜王 | AC15: 14 | AD15: 企業 | AF15: 21 | AK15: 303 | AT15: 301会議室 | AU15: 30 | AV15: 30 | AW15: 30 | AX15: 3 | AY15: 30 | AZ15: 30 | BA15: 3 | BB15: 30 | BC15: 3 | BE15: 3 | BF15: 30
A16: 303 | B16: 303会議室 | C16: 1100 | D16: 1100 | E16: 1100 | F16: 1650 | G16: 1650 | H16: 1650 | I16: 1100 | J16: 1100 | K16: 1100 | L16: 1650 | M16: 1650 | N16: 1650 | O16: 303 | P16: 山の日 | Q16: 2023-07-17 | R16: 2024-07-15 | S16: 2025-08-11 | T16: 2022-11-03 | AA16: 愛荘 | AF16: 22 | AK16: 304 | AT16: 302会議室 | AU16: 36 | AV16: 36 | AW16: 36 | AX16: 3 | AY16: 36 | AZ16: 36 | BA16: 3 | BB16: 36 | BC16: 3 | BE16: 3 | BF16: 36
A17: 304 | B17: 304会議室 | C17: 1100 | D17: 1100 | E17: 1100 | F17: =C17*1.5 -> 1650 | G17: 1650 | H17: 1650 | I17: 1100 | J17: 1100 | K17: 1100 | L17: =I17*1.5 -> 1650 | M17: 1650 | N17: 1650 | O17: 304 | P17: 振替休日 | R17: 2024-08-12 | T17: 2022-11-23 | AA17: 豊里 | AK17: 305 | AT17: 303会議室 | AU17: 36 | AV17: 36 | AW17: 36 | AX17: 3 | AY17: 36 | AZ17: 36 | BA17: 3 | BB17: 36 | BC17: 3 | BE17: 3 | BF17: 36
A18: 305 | B18: 305会議室 | C18: 2800 | D18: 2800 | E18: 2800 | F18: 4200 | G18: 4200 | H18: 4200 | I18: 2800 | J18: 2800 | K18: 2800 | L18: 4200 | M18: 4200 | N18: 4200 | O18: 305 | P18: 敬老の日 | Q18: 2023-09-18 | R18: 2024-09-16 | S18: 2025-09-15 | AA18: 甲良 | AK18: 特別会議室 | AT18: 304会議室 | AU18: 36 | AV18: 36 | AW18: 36 | AX18: 3 | AY18: 36 | AZ18: 36 | BA18: 3 | BB18: 36 | BC18: 3 | BE18: 3 | BF18: 36
A19: 306 | B19: 特別会議室 | C19: 1400 | D19: 1400 | E19: 1400 | F19: 2100 | G19: 2100 | H19: 2100 | I19: 1400 | J19: 1400 | K19: 1400 | L19: 2100 | M19: 2100 | N19: 2100 | O19: 306 | P19: 秋分の日 | Q19: 2023-09-23 | R19: 2024-09-23 | S19: 2025-09-23 | AA19: 多賀 | AK19: 応接室 | AT19: 305会議室 | AU19: 72 | AV19: 72 | AW19: 72 | AX19: 3 | AY19: 72 | AZ19: 72 | BA19: 3 | BB19: 72 | BC19: 3 | BE19: 3 | BF19: 72
A20: 307 | B20: 応接室 | C20: 1100 | D20: 1100 | E20: 1100 | F20: 1650 | G20: 1650 | H20: 1650 | I20: 1100 | J20: 1100 | K20: 1100 | L20: 1650 | M20: 1650 | N20: 1650 | O20: 307 | P20: 体育の日 | Q20: 2023-10-09 | R20: 2024-10-14 | S20: 2025-10-13 | AA20: 日野 | AK20: 和室 | AT20: 特別会議室 | AU20: 20 | AV20: 20 | AW20: 20 | AX20: 3 | AY20: 20 | AZ20: 20 | BA20: 3 | BB20: 20 | BC20: 3 | BE20: 3 | BF20: 20
A21: 308 | B21: 和室 | C21: 860 | D21: 860 | E21: 860 | F21: 1290 | G21: 1290 | H21: 1290 | I21: 860 | J21: 860 | K21: 860 | L21: 1290 | M21: 1290 | N21: 1290 | O21: 308 | P21: 文化の日 | Q21: 2023-11-03 | R21: 2024-11-03 | S21: 2025-11-03 | AA21: 京都 | AK21: 茶室 | AT21: 応接室 | AU21: 14 | AV21: 14 | AW21: 14 | AX21: 3 | AY21: 14 | AZ21: 14 | BA21: 3 | BB21: 14 | BC21: 3 | BE21: 3 | BF21: 14
A22: 309 | B22: 茶室 | C22: 1000 | D22: 1000 | E22: 1000 | F22: 1500 | G22: 1500 | H22: 1500 | I22: 1000 | J22: 1000 | K22: 1000 | L22: 1500 | M22: 1500 | N22: 1500 | O22: 309 | P22: 振替休日 | R22: 2024-11-04 | S22: 2025-11-24 | AA22: 大阪 | AK22: 練習室(一般) | AT22: 和室 | AU22: 12 | AV22: 12 | AW22: 12 | AX22: 3 | AY22: 12 | AZ22: 12 | BA22: 3 | BB22: 12 | BC22: 3 | BE22: 3 | BF22: 12
A23: 310 | B23: 練習室(一般) | C23: 1100 | D23: 1100 | E23: 1100 | F23: 1650 | G23: 1650 | H23: 1650 | I23: 1100 | J23: 1100 | K23: 1100 | L23: 1650 | M23: 1650 | N23: 1650 | O23: 310 | P23: 勤労感謝の日 | Q23: 2023-11-23 | R23: 2024-11-23 | S23: 2025-11-23 | AA23: 神戸 | AK23: 練習室(学生) | AT23: 茶室 | AU23: 6 | AV23: 6 | AW23: 6 | AX23: 3 | AY23: 6 | AZ23: 6 | BA23: 3 | BB23: 6 | BC23: 3 | BE23: 3 | BF23: 6
A24: 311 | B24: 練習室(学生) | C24: 750 | D24: 750 | E24: 750 | F24: =C24*1.5 -> 1125 | G24: =D24*1.5 -> 1125 | H24: =E24*1.5 -> 1125 | I24: 750 | J24: 750 | K24: 750 | L24: =I24*1.5 -> 1125 | M24: =J24*1.5 -> 1125 | N24: =K24*1.5 -> 1125 | O24: 311 | AA24: 奈良 | AK24: C | AT24: 練習室(一般) | AU24: 10 | AV24: 10 | AW24: 10 | AX24: 3 | AY24: 10 | AZ24: 10 | BA24: 3 | BB24: 10 | BC24: 3 | BE24: 3 | BF24: 10
B25: 0 | C25: 0 | D25: 0 | E25: 0 | F25: 0 | G25: 0 | H25: 0 | I25: 0 | J25: 0 | K25: 0 | L25: 0 | M25: 0 | N25: 0 | AA25: 和歌山 | AT25: 練習室(学生) | AU25: 10 | AV25: 10 | AW25: 10 | AX25: 3 | AY25: 10 | AZ25: 10 | BA25: 3 | BB25: 10 | BC25: 3 | BE25: 3 | BF25: 10
B26: 9：00-12：00 | C26: 1 | D26: 2 | E26: 3 | F26: 4 | G26: 5 | H26: 6 | I26: 7 | J26: 8 | K26: 9 | L26: 10 | M26: 11 | N26: 12 | AA26: 東京
B27: 会議室 | C27: 県内・無料 | D27: 県内・3割 | E27: 県内・5割 | F27: 県外・無料 | G27: 県外・3割 | H27: 県外・5割 | I27: 休日 | J27: 休日 | K27: 休日 | L27: 休日 | M27: 休日 | N27: 休日 | P27: 定員の7掛け | AA27: 三重
A28: 101 | B28: ピアザホール(本番) | C28: 21400 | D28: =C28*1.3 -> 27820 | E28: =C28*1.5 -> 32100 | F28: =C28*1.5 -> 32100 | G28: =C28*1.5+C28*0.3 -> 38520 | H28: =C28*1.5+C28*0.5 -> 42800 | I28: 32000 | J28: =I28*1.3 -> 41600 | K28: =I28*1.5 -> 48000 | L28: =I28*1.5 -> 48000 | M28: =I28*1.5+I28*0.3 -> 57600 | N28: =I28*1.5+I28*0.5 -> 64000 | O28: ピアザH(本） | P28: =Q28*0.7 -> 296.1 | Q28: 423 | AA28: 愛知
A29: 102 | B29: ピアザホール(準備) | C29: 10700 | D29: =C29*1.3 -> 13910 | E29: =C29*1.5 -> 16050 | F29: =C29*1.5 -> 16050 | G29: =C29*1.5+C29*0.3 -> 19260 | H29: =C29*1.5+C29*0.5 -> 21400 | I29: 16000 | J29: =I29*1.3 -> 20800 | K29: =I29*1.5 -> 24000 | L29: =I29*1.5 -> 24000 | M29: =I29*1.5+I29*0.3 -> 28800 | N29: =I29*1.5+I29*0.5 -> 32000 | O29: ピアザH(準) | P29: =Q29*0.7 -> 4.9 | Q29: 7 | AA29: 静岡
A30: 208 | B30: 大会議室(本番) | C30: 32800 | D30: =C30*1.3 -> 42640 | E30: =C30*1.5 -> 49200 | F30: 49200 | G30: =C30*1.5+C30*0.3 -> 59040 | H30: =C30*1.5+C30*0.5 -> 65600 | I30: 32800 | J30: =I30*1.3 -> 42640 | K30: =I30*1.5 -> 49200 | L30: =I30*1.5 -> 49200 | M30: =I30*1.5+I30*0.3 -> 59040 | N30: =I30*1.5+I30*0.5 -> 65600 | O30: 大会議室(本) | P30: 151.2 | Q30: 216 | AA30: 岡山
A31: 209 | B31: 大会議室(準備) | C31: 16400 | D31: =C31*1.3 -> 21320 | E31: =C31*1.5 -> 24600 | F31: 24600 | G31: =C31*1.5+C31*0.3 -> 29520 | H31: =C31*1.5+C31*0.5 -> 32800 | I31: 16400 | J31: =I31*1.3 -> 21320 | K31: =I31*1.5 -> 24600 | L31: 24600 | M31: =I31*1.5+I31*0.3 -> 29520 | N31: =I31*1.5+I31*0.5 -> 32800 | O31: 大会議室(準) | P31: 4.9 | Q31: 7
A32: 201 | B32: 201会議室 | C32: 2600 | D32: 2600 | E32: 2600 | F32: 3900 | G32: =D32*1.5 -> 3900 | H32: =E32*1.5 -> 3900 | I32: 2600 | J32: 2600 | K32: 2600 | L32: 3900 | M32: =J32*1.5 -> 3900 | N32: =K32*1.5 -> 3900 | O32: 201 | P32: 16.8 | Q32: 24
A33: 202 | B33: 202会議室 | C33: 2600 | D33: 2600 | E33: 2600 | F33: 3900 | G33: 3900 | H33: 3900 | I33: 2600 | J33: 2600 | K33: 2600 | L33: 3900 | M33: 3900 | N33: 3900 | O33: 202 | P33: 16.8 | Q33: 24
A34: 203 | B34: 203会議室 | C34: 4800 | D34: 4800 | E34: 4800 | F34: 7200 | G34: 7200 | H34: 7200 | I34: 4800 | J34: 4800 | K34: 4800 | L34: 7200 | M34: 7200 | N34: 7200 | O34: 203 | P34: 33.6 | Q34: 48
A35: 204 | B35: 204会議室 | C35: 4800 | D35: 4800 | E35: 4800 | F35: 7200 | G35: 7200 | H35: 7200 | I35: 4800 | J35: 4800 | K35: 4800 | L35: 7200 | M35: 7200 | N35: 7200 | O35: 204 | P35: 33.6 | Q35: 48
A36: 205 | B36: 205会議室 | C36: 3300 | D36: 3300 | E36: 3300 | F36: 4950 | G36: 4950 | H36: 4950 | I36: 3300 | J36: 3300 | K36: 3300 | L36: 4950 | M36: 4950 | N36: 4950 | O36: 205 | P36: 25.2 | Q36: 36
A37: 206 | B37: 206会議室 | C37: 3300 | D37: 3300 | E37: 3300 | F37: 4950 | G37: 4950 | H37: 4950 | I37: 3300 | J37: 3300 | K37: 3300 | L37: 4950 | M37: 4950 | N37: 4950 | O37: 206 | P37: 25.2 | Q37: 36
A38: 207 | B38: 207会議室 | C38: 7000 | D38: 7000 | E38: 7000 | F38: 10500 | G38: 10500 | H38: 10500 | I38: 7000 | J38: 7000 | K38: 7000 | L38: 10500 | M38: 10500 | N38: 10500 | O38: 207 | P38: 56.7 | Q38: 81
A39: 301 | B39: 301会議室 | C39: 3300 | D39: 3300 | E39: 3300 | F39: 4950 | G39: 4950 | H39: 4950 | I39: 3300 | J39: 3300 | K39: 3300 | L39: 4950 | M39: 4950 | N39: 4950 | O39: 301 | P39: 21 | Q39: 30
A40: 302 | B40: 302会議室 | C40: 3300 | D40: 3300 | E40: 3300 | F40: 4950 | G40: 4950 | H40: 4950 | I40: 3300 | J40: 3300 | K40: 3300 | L40: 4950 | M40: 4950 | N40: 4950 | O40: 302 | P40: 25.2 | Q40: 36
A41: 303 | B41: 303会議室 | C41: 3300 | D41: 3300 | E41: 3300 | F41: 4950 | G41: 4950 | H41: 4950 | I41: 3300 | J41: 3300 | K41: 3300 | L41: 4950 | M41: 4950 | N41: 4950 | O41: 303 | P41: 25.2 | Q41: 36
A42: 304 | B42: 304会議室 | C42: 3300 | D42: 3300 | E42: 3300 | F42: 4950 | G42: 4950 | H42: 4950 | I42: 3300 | J42: 3300 | K42: 3300 | L42: 4950 | M42: 4950 | N42: 4950 | O42: 304 | P42: 25.2 | Q42: 36
A43: 305 | B43: 305会議室 | C43: 8500 | D43: 8500 | E43: 8500 | F43: 12750 | G43: 12750 | H43: 12750 | I43: 8500 | J43: 8500 | K43: 8500 | L43: 12750 | M43: 12750 | N43: 12750 | O43: 305 | P43: 50.4 | Q43: 72
A44: 306 | B44: 特別会議室 | C44: 4300 | D44: 4300 | E44: 4300 | F44: 6450 | G44: 6450 | H44: 6450 | I44: 4300 | J44: 4300 | K44: 4300 | L44: 6450 | M44: 6450 | N44: 6450 | O44: 特別会議室 | P44: 14 | Q44: 20
A45: 307 | B45: 応接室 | C45: 3400 | D45: 3400 | E45: 3400 | F45: 5100 | G45: 5100 | H45: 5100 | I45: 3400 | J45: 3400 | K45: 3400 | L45: 5100 | M45: 5100 | N45: 5100 | O45: 応接室 | P45: 9.8 | Q45: 14
A46: 308 | B46: 和室 | C46: 2600 | D46: 2600 | E46: 2600 | F46: 3900 | G46: 3900 | H46: 3900 | I46: 2600 | J46: 2600 | K46: 2600 | L46: 3900 | M46: 3900 | N46: 3900 | O46: 和室 | P46: 8.4 | Q46: 12
A47: 309 | B47: 茶室 | C47: 2900 | D47: 2900 | E47: 2900 | F47: 4350 | G47: 4350 | H47: 4350 | I47: 2900 | J47: 2900 | K47: 2900 | L47: 4350 | M47: 4350 | N47: 4350 | O47: 茶室 | P47: 5.6 | Q47: 8
A48: 310 | B48: 練習室(一般) | C48: 3300 | D48: 3300 | E48: 3300 | F48: =C48*1.5 -> 4950 | G48: 4950 | H48: 4950 | I48: 3300 | J48: 3300 | K48: 3300 | L48: 4950 | M48: 4950 | N48: 4950 | O48: 練習室
A49: 311 | B49: 練習室(学生) | C49: 2400 | D49: 2400 | E49: 2400 | F49: =C49*1.5 -> 3600 | G49: =D49*1.5 -> 3600 | H49: =E49*1.5 -> 3600 | I49: 2400 | J49: 2400 | K49: 2400 | L49: =I49*1.5 -> 3600 | M49: =J49*1.5 -> 3600 | N49: =K49*1.5 -> 3600 | O49: 練習室(学)
B50: 0 | C50: 0 | D50: 0 | E50: 0 | F50: =C50*1.5 -> 0 | G50: 0 | H50: 0 | I50: 0 | J50: 0 | K50: 0 | L50: 0 | M50: 0 | N50: 0
B51: 13：00-17：00 | C51: 1 | D51: 2 | E51: 3 | F51: 4 | G51: 5 | H51: 6 | I51: 7 | J51: 8 | K51: 9 | L51: 10 | M51: 11 | N51: 12
B52: 会議室 | C52: 県内・無料 | D52: 県内・3割 | E52: 県内・5割 | F52: 県外・無料 | G52: 県外・3割 | H52: 県外・5割 | I52: 休日 | J52: 休日 | K52: 休日 | L52: 休日 | M52: 休日 | N52: 休日
B53: ピアザホール(本番) | C53: 29000 | D53: =C53*1.3 -> 37700 | E53: =C53*1.5 -> 43500 | F53: =C53*1.5 -> 43500 | G53: =C53*1.5+C53*0.3 -> 52200 | H53: =C53*1.5+C53*0.5 -> 58000 | I53: 43500 | J53: =I53*1.3 -> 56550 | K53: =I53*1.5 -> 65250 | L53: =I53*1.5 -> 65250 | M53: =I53*1.5+I53*0.3 -> 78300 | N53: =I53*1.5+I53*0.5 -> 87000
B54: ピアザホール(準備) | C54: 14500 | D54: =C54*1.3 -> 18850 | E54: =C54*1.5 -> 21750 | F54: =C54*1.5 -> 21750 | G54: =C54*1.5+C54*0.3 -> 26100 | H54: =C54*1.5+C54*0.5 -> 29000 | I54: 21800 | J54: =I54*1.3 -> 28340 | K54: =I54*1.5 -> 32700 | L54: =I54*1.5 -> 32700 | M54: =I54*1.5+I54*0.3 -> 39240 | N54: =I54*1.5+I54*0.5 -> 43600
B55: 大会議室(本番) | C55: 43800 | D55: =C55*1.3 -> 56940 | E55: =C55*1.5 -> 65700 | F55: 65700 | G55: =C55*1.5+C55*0.3 -> 78840 | H55: =C55*1.5+C55*0.5 -> 87600 | I55: 43800 | J55: =I55*1.3 -> 56940 | K55: =I55*1.5 -> 65700 | L55: =I55*1.5 -> 65700 | M55: =I55*1.5+I55*0.3 -> 78840 | N55: =I55*1.5+I55*0.5 -> 87600
B56: 大会議室(準備) | C56: 21900 | D56: =C56*1.3 -> 28470 | E56: =C56*1.5 -> 32850 | F56: 32850 | G56: =C56*1.5+C56*0.3 -> 39420 | H56: =C56*1.5+C56*0.5 -> 43800 | I56: 21900 | J56: =I56*1.3 -> 28470 | K56: =I56*1.5 -> 32850 | L56: 32850 | M56: =I56*1.5+I56*0.3 -> 39420 | N56: =I56*1.5+I56*0.5 -> 43800
B57: 201会議室 | C57: 3500 | D57: 3500 | E57: 3500 | F57: 5250 | G57: =D57*1.5 -> 5250 | H57: =E57*1.5 -> 5250 | I57: 3500 | J57: 3500 | K57: 3500 | L57: 5250 | M57: =J57*1.5 -> 5250 | N57: =K57*1.5 -> 5250
B58: 202会議室 | C58: 3500 | D58: 3500 | E58: 3500 | F58: 5250 | G58: 5250 | H58: 5250 | I58: 3500 | J58: 3500 | K58: 3500 | L58: 5250 | M58: 5250 | N58: 5250
B59: 203会議室 | C59: 6400 | D59: 6400 | E59: 6400 | F59: 9600 | G59: 9600 | H59: 9600 | I59: 6400 | J59: 6400 | K59: 6400 | L59: 9600 | M59: 9600 | N59: 9600
B60: 204会議室 | C60: 6400 | D60: 6400 | E60: 6400 | F60: 9600 | G60: 9600 | H60: 9600 | I60: 6400 | J60: 6400 | K60: 6400 | L60: 9600 | M60: 9600 | N60: 9600
B61: 205会議室 | C61: 4400 | D61: 4400 | E61: 4400 | F61: 6600 | G61: 6600 | H61: 6600 | I61: 4400 | J61: 4400 | K61: 4400 | L61: 6600 | M61: 6600 | N61: 6600
B62: 206会議室 | C62: 4400 | D62: 4400 | E62: 4400 | F62: 6600 | G62: 6600 | H62: 6600 | I62: 4400 | J62: 4400 | K62: 4400 | L62: 6600 | M62: 6600 | N62: 6600
B63: 207会議室 | C63: 9400 | D63: 9400 | E63: 9400 | F63: 14100 | G63: 14100 | H63: 14100 | I63: 9400 | J63: 9400 | K63: 9400 | L63: 14100 | M63: 14100 | N63: 14100
B64: 301会議室 | C64: 4400 | D64: 4400 | E64: 4400 | F64: 6600 | G64: 6600 | H64: 6600 | I64: 4400 | J64: 4400 | K64: 4400 | L64: 6600 | M64: 6600 | N64: 6600
B65: 302会議室 | C65: 4400 | D65: 4400 | E65: 4400 | F65: 6600 | G65: 6600 | H65: 6600 | I65: 4400 | J65: 4400 | K65: 4400 | L65: 6600 | M65: 6600 | N65: 6600
B66: 303会議室 | C66: 4400 | D66: 4400 | E66: 4400 | F66: 6600 | G66: 6600 | H66: 6600 | I66: 4400 | J66: 4400 | K66: 4400 | L66: 6600 | M66: 6600 | N66: 6600
B67: 304会議室 | C67: 4400 | D67: 4400 | E67: 4400 | F67: 6600 | G67: 6600 | H67: 6600 | I67: 4400 | J67: 4400 | K67: 4400 | L67: 6600 | M67: 6600 | N67: 6600
B68: 305会議室 | C68: 11300 | D68: 11300 | E68: 11300 | F68: 16950 | G68: 16950 | H68: 16950 | I68: 11300 | J68: 11300 | K68: 11300 | L68: 16950 | M68: 16950 | N68: 16950
B69: 特別会議室 | C69: 5800 | D69: 5800 | E69: 5800 | F69: 8700 | G69: 8700 | H69: 8700 | I69: 5800 | J69: 5800 | K69: 5800 | L69: 8700 | M69: 8700 | N69: 8700
B70: 応接室 | C70: 4600 | D70: 4600 | E70: 4600 | F70: 6900 | G70: 6900 | H70: 6900 | I70: 4600 | J70: 4600 | K70: 4600 | L70: 6900 | M70: 6900 | N70: 6900
B71: 和室 | C71: 3500 | D71: 3500 | E71: 3500 | F71: 5250 | G71: 5250 | H71: 5250 | I71: 3500 | J71: 3500 | K71: 3500 | L71: 5250 | M71: 5250 | N71: 5250
B72: 茶室 | C72: 3900 | D72: 3900 | E72: 3900 | F72: 5850 | G72: 5850 | H72: 5850 | I72: 3900 | J72: 3900 | K72: 3900 | L72: 5850 | M72: 5850 | N72: 5850
B73: 練習室(一般) | C73: 4400 | D73: 4400 | E73: 4400 | F73: =C73*1.5 -> 6600 | G73: 6600 | H73: 6600 | I73: 4400 | J73: 4400 | K73: 4400 | L73: 6600 | M73: 6600 | N73: 6600
B74: 練習室(学生) | C74: 3200 | D74: 3200 | E74: 3200 | F74: =C74*1.5 -> 4800 | G74: =D74*1.5 -> 4800 | H74: =E74*1.5 -> 4800 | I74: 3200 | J74: 3200 | K74: 3200 | L74: =I74*1.5 -> 4800 | M74: =J74*1.5 -> 4800 | N74: =K74*1.5 -> 4800
B75: 0 | C75: 0 | D75: 0 | E75: 0 | F75: =C75*1.5 -> 0 | G75: 0 | H75: 0 | I75: 0 | J75: 0 | K75: 0 | L75: 0 | M75: 0 | N75: 0
B76: 18：00-21：00 | C76: 1 | D76: 2 | E76: 3 | F76: 4 | G76: 5 | H76: 6 | I76: 7 | J76: 8 | K76: 9 | L76: 10 | M76: 11 | N76: 12
B77: 会議室 | C77: 県内・無料 | D77: 県内・3割 | E77: 県内・5割 | F77: 県外・無料 | G77: 県外・3割 | H77: 県外・5割 | I77: 休日 | J77: 休日 | K77: 休日 | L77: 休日 | M77: 休日 | N77: 休日
B78: ピアザホール(本番) | C78: 29000 | D78: =C78*1.3 -> 37700 | E78: =C78*1.5 -> 43500 | F78: =C78*1.5 -> 43500 | G78: =C78*1.5+C78*0.3 -> 52200 | H78: =C78*1.5+C78*0.5 -> 58000 | I78: 43500 | J78: =I78*1.3 -> 56550 | K78: =I78*1.5 -> 65250 | L78: =I78*1.5 -> 65250 | M78: =I78*1.5+I78*0.3 -> 78300 | N78: =I78*1.5+I78*0.5 -> 87000
B79: ピアザホール(準備) | C79: 14500 | D79: =C79*1.3 -> 18850 | E79: =C79*1.5 -> 21750 | F79: =C79*1.5 -> 21750 | G79: =C79*1.5+C79*0.3 -> 26100 | H79: =C79*1.5+C79*0.5 -> 29000 | I79: 21800 | J79: =I79*1.3 -> 28340 | K79: =I79*1.5 -> 32700 | L79: =I79*1.5 -> 32700 | M79: =I79*1.5+I79*0.3 -> 39240 | N79: =I79*1.5+I79*0.5 -> 43600
B80: 大会議室(本番) | C80: 32800 | D80: =C80*1.3 -> 42640 | E80: =C80*1.5 -> 49200 | F80: 49200 | G80: =C80*1.5+C80*0.3 -> 59040 | H80: =C80*1.5+C80*0.5 -> 65600 | I80: 32800 | J80: =I80*1.3 -> 42640 | K80: =I80*1.5 -> 49200 | L80: =I80*1.5 -> 49200 | M80: =I80*1.5+I80*0.3 -> 59040 | N80: =I80*1.5+I80*0.5 -> 65600
B81: 大会議室(準備) | C81: 16400 | D81: =C81*1.3 -> 21320 | E81: =C81*1.5 -> 24600 | F81: 24600 | G81: =C81*1.5+C81*0.3 -> 29520 | H81: =C81*1.5+C81*0.5 -> 32800 | I81: 16400 | J81: =I81*1.3 -> 21320 | K81: =I81*1.5 -> 24600 | L81: 24600 | M81: =I81*1.5+I81*0.3 -> 29520 | N81: =I81*1.5+I81*0.5 -> 32800
B82: 201会議室 | C82: 2600 | D82: 2600 | E82: 2600 | F82: 3900 | G82: =D82*1.5 -> 3900 | H82: =E82*1.5 -> 3900 | I82: 2600 | J82: 2600 | K82: 2600 | L82: 3900 | M82: =J82*1.5 -> 3900 | N82: =K82*1.5 -> 3900
B83: 202会議室 | C83: 2600 | D83: 2600 | E83: 2600 | F83: 3900 | G83: 3900 | H83: 3900 | I83: 2600 | J83: 2600 | K83: 2600 | L83: 3900 | M83: 3900 | N83: 3900
B84: 203会議室 | C84: 4800 | D84: 4800 | E84: 4800 | F84: 7200 | G84: 7200 | H84: 7200 | I84: 4800 | J84: 4800 | K84: 4800 | L84: 7200 | M84: 7200 | N84: 7200
B85: 204会議室 | C85: 4800 | D85: 4800 | E85: 4800 | F85: 7200 | G85: 7200 | H85: 7200 | I85: 4800 | J85: 4800 | K85: 4800 | L85: 7200 | M85: 7200 | N85: 7200
B86: 205会議室 | C86: 3300 | D86: 3300 | E86: 3300 | F86: 4950 | G86: 4950 | H86: 4950 | I86: 3300 | J86: 3300 | K86: 3300 | L86: 4950 | M86: 4950 | N86: 4950
B87: 206会議室 | C87: 3300 | D87: 3300 | E87: 3300 | F87: 4950 | G87: 4950 | H87: 4950 | I87: 3300 | J87: 3300 | K87: 3300 | L87: 4950 | M87: 4950 | N87: 4950
B88: 207会議室 | C88: 7000 | D88: 7000 | E88: 7000 | F88: 10500 | G88: 10500 | H88: 10500 | I88: 7000 | J88: 7000 | K88: 7000 | L88: 10500 | M88: 10500 | N88: 10500
B89: 301会議室 | C89: 3300 | D89: 3300 | E89: 3300 | F89: 4950 | G89: 4950 | H89: 4950 | I89: 3300 | J89: 3300 | K89: 3300 | L89: 4950 | M89: 4950 | N89: 4950
B90: 302会議室 | C90: 3300 | D90: 3300 | E90: 3300 | F90: 4950 | G90: 4950 | H90: 4950 | I90: 3300 | J90: 3300 | K90: 3300 | L90: 4950 | M90: 4950 | N90: 4950
B91: 303会議室 | C91: 3300 | D91: 3300 | E91: 3300 | F91: 4950 | G91: 4950 | H91: 4950 | I91: 3300 | J91: 3300 | K91: 3300 | L91: 4950 | M91: 4950 | N91: 4950
B92: 304会議室 | C92: 3300 | D92: 3300 | E92: 3300 | F92: 4950 | G92: 4950 | H92: 4950 | I92: 3300 | J92: 3300 | K92: 3300 | L92: 4950 | M92: 4950 | N92: 4950
B93: 305会議室 | C93: 8500 | D93: 8500 | E93: 8500 | F93: 12750 | G93: 12750 | H93: 12750 | I93: 8500 | J93: 8500 | K93: 8500 | L93: 12750 | M93: 12750 | N93: 12750
B94: 特別会議室 | C94: 4300 | D94: 4300 | E94: 4300 | F94: 6450 | G94: 6450 | H94: 6450 | I94: 4300 | J94: 4300 | K94: 4300 | L94: 6450 | M94: 6450 | N94: 6450
B95: 応接室 | C95: 3400 | D95: 3400 | E95: 3400 | F95: 5100 | G95: 5100 | H95: 5100 | I95: 3400 | J95: 3400 | K95: 3400 | L95: 5100 | M95: 5100 | N95: 5100
B96: 和室 | C96: 2600 | D96: 2600 | E96: 2600 | F96: 3900 | G96: 3900 | H96: 3900 | I96: 2600 | J96: 2600 | K96: 2600 | L96: 3900 | M96: 3900 | N96: 3900
B97: 茶室 | C97: 2900 | D97: 2900 | E97: 2900 | F97: 4350 | G97: 4350 | H97: 4350 | I97: 2900 | J97: 2900 | K97: 2900 | L97: 4350 | M97: 4350 | N97: 4350
B98: 練習室(一般) | C98: 3300 | D98: 3300 | E98: 3300 | F98: =C98*1.5 -> 4950 | G98: 4950 | H98: 4950 | I98: 3300 | J98: 3300 | K98: 3300 | L98: 4950 | M98: 4950 | N98: 4950
B99: 練習室(学生) | C99: 2400 | D99: 2400 | E99: 2400 | F99: =C99*1.5 -> 3600 | G99: =D99*1.5 -> 3600 | H99: =E99*1.5 -> 3600 | I99: 2400 | J99: 2400 | K99: 2400 | L99: =I99*1.5 -> 3600 | M99: =J99*1.5 -> 3600 | N99: =K99*1.5 -> 3600
B100: 0 | C100: 0 | D100: 0 | E100: 0 | F100: 0 | G100: 0 | H100: 0 | I100: 0 | J100: 0 | K100: 0 | L100: 0 | M100: 0 | N100: 0
B101: 午後-夜間 | C101: 1 | D101: 2 | E101: 3 | F101: 4 | G101: 5 | H101: 6 | I101: 7 | J101: 8 | K101: 9 | L101: 10 | M101: 11 | N101: 12
B102: 会議室 | C102: 県内・無料 | D102: 県内・3割 | E102: 県内・5割 | F102: 県外・無料 | G102: 県外・3割 | H102: 県外・5割 | I102: 休日 | J102: 休日 | K102: 休日 | L102: 休日 | M102: 休日 | N102: 休日
B103: ピアザホール(本番) | C103: 26700 | D103: =C103*1.3 -> 34710 | E103: =C103*1.5 -> 40050 | F103: =C103*1.5 -> 40050 | G103: =C103*1.5+C103*0.3 -> 48060 | H103: =C103*1.5+C103*0.5 -> 53400 | I103: 40000 | J103: =I103*1.3 -> 52000 | K103: =I103*1.5 -> 60000 | L103: =I103*1.5 -> 60000 | M103: =I103*1.5+I103*0.3 -> 72000 | N103: =I103*1.5+I103*0.5 -> 80000
B104: ピアザホール(準備) | C104: 13300 | D104: =C104*1.3 -> 17290 | E104: =C104*1.5 -> 19950 | F104: =C104*1.5 -> 19950 | G104: =C104*1.5+C104*0.3 -> 23940 | H104: =C104*1.5+C104*0.5 -> 26600 | I104: 20000 | J104: =I104*1.3 -> 26000 | K104: =I104*1.5 -> 30000 | L104: =I104*1.5 -> 30000 | M104: =I104*1.5+I104*0.3 -> 36000 | N104: =I104*1.5+I104*0.5 -> 40000
B105: 大会議室(本番) | C105: 43800 | D105: =C105*1.3 -> 56940 | E105: =C105*1.5 -> 65700 | F105: 65700 | G105: =C105*1.5+C105*0.3 -> 78840 | H105: =C105*1.5+C105*0.5 -> 87600 | I105: 43800 | J105: =I105*1.3 -> 56940 | K105: =I105*1.5 -> 65700 | L105: =I105*1.5 -> 65700 | M105: =I105*1.5+I105*0.3 -> 78840 | N105: =I105*1.5+I105*0.5 -> 87600
B106: 大会議室(準備) | C106: 21900 | D106: =C106*1.3 -> 28470 | E106: =C106*1.5 -> 32850 | F106: 32850 | G106: =C106*1.5+C106*0.3 -> 39420 | H106: =C106*1.5+C106*0.5 -> 43800 | I106: 21900 | J106: =I106*1.3 -> 28470 | K106: =I106*1.5 -> 32850 | L106: 32850 | M106: =I106*1.5+I106*0.3 -> 39420 | N106: =I106*1.5+I106*0.5 -> 43800
B107: 201会議室 | C107: 3500 | D107: 3500 | E107: 3500 | F107: 5250 | G107: =D107*1.5 -> 5250 | H107: =E107*1.5 -> 5250 | I107: 3500 | J107: 3500 | K107: 3500 | L107: 5250 | M107: =J107*1.5 -> 5250 | N107: =K107*1.5 -> 5250
B108: 202会議室 | C108: 3500 | D108: 3500 | E108: 3500 | F108: 5250 | G108: 5250 | H108: 5250 | I108: 3500 | J108: 3500 | K108: 3500 | L108: 5250 | M108: 5250 | N108: 5250
B109: 203会議室 | C109: 6400 | D109: 6400 | E109: 6400 | F109: 9600 | G109: 9600 | H109: 9600 | I109: 6400 | J109: 6400 | K109: 6400 | L109: 9600 | M109: 9600 | N109: 9600
B110: 204会議室 | C110: 6400 | D110: 6400 | E110: 6400 | F110: 9600 | G110: 9600 | H110: 9600 | I110: 6400 | J110: 6400 | K110: 6400 | L110: 9600 | M110: 9600 | N110: 9600
B111: 205会議室 | C111: 4400 | D111: 4400 | E111: 4400 | F111: 6600 | G111: 6600 | H111: 6600 | I111: 4400 | J111: 4400 | K111: 4400 | L111: 6600 | M111: 6600 | N111: 6600
B112: 206会議室 | C112: 4400 | D112: 4400 | E112: 4400 | F112: 6600 | G112: 6600 | H112: 6600 | I112: 4400 | J112: 4400 | K112: 4400 | L112: 6600 | M112: 6600 | N112: 6600
B113: 207会議室 | C113: 9400 | D113: 9400 | E113: 9400 | F113: 14100 | G113: 14100 | H113: 14100 | I113: 9400 | J113: 9400 | K113: 9400 | L113: 14100 | M113: 14100 | N113: 14100
B114: 301会議室 | C114: 4400 | D114: 4400 | E114: 4400 | F114: 6600 | G114: 6600 | H114: 6600 | I114: 4400 | J114: 4400 | K114: 4400 | L114: 6600 | M114: 6600 | N114: 6600
B115: 302会議室 | C115: 4400 | D115: 4400 | E115: 4400 | F115: 6600 | G115: 6600 | H115: 6600 | I115: 4400 | J115: 4400 | K115: 4400 | L115: 6600 | M115: 6600 | N115: 6600
B116: 303会議室 | C116: 4400 | D116: 4400 | E116: 4400 | F116: 6600 | G116: 6600 | H116: 6600 | I116: 4400 | J116: 4400 | K116: 4400 | L116: 6600 | M116: 6600 | N116: 6600
B117: 304会議室 | C117: 4400 | D117: 4400 | E117: 4400 | F117: 6600 | G117: 6600 | H117: 6600 | I117: 4400 | J117: 4400 | K117: 4400 | L117: 6600 | M117: 6600 | N117: 6600
B118: 305会議室 | C118: 11300 | D118: 11300 | E118: 11300 | F118: 16950 | G118: 16950 | H118: 16950 | I118: 11300 | J118: 11300 | K118: 11300 | L118: 16950 | M118: 16950 | N118: 16950
B119: 特別会議室 | C119: 5800 | D119: 5800 | E119: 5800 | F119: 8700 | G119: 8700 | H119: 8700 | I119: 5800 | J119: 5800 | K119: 5800 | L119: 8700 | M119: 8700 | N119: 8700
B120: 応接室 | C120: 4600 | D120: 4600 | E120: 4600 | F120: 6900 | G120: 6900 | H120: 6900 | I120: 4600 | J120: 4600 | K120: 4600 | L120: 6900 | M120: 6900 | N120: 6900
B121: 和室 | C121: 3500 | D121: 3500 | E121: 3500 | F121: 5250 | G121: 5250 | H121: 5250 | I121: 3500 | J121: 3500 | K121: 3500 | L121: 5250 | M121: 5250 | N121: 5250
B122: 茶室 | C122: 3900 | D122: 3900 | E122: 3900 | F122: 5850 | G122: 5850 | H122: 5850 | I122: 3900 | J122: 3900 | K122: 3900 | L122: 5850 | M122: 5850 | N122: 5850
B123: 練習室(一般) | C123: 3250 | D123: 3250 | E123: 3250 | F123: =C123*1.5 -> 4875 | G123: 4875 | H123: 4875 | I123: 3250 | J123: 3250 | K123: 3250 | L123: =I123*1.5 -> 4875 | M123: 4875 | N123: 4875
B124: 練習室(学生) | C124: 2400 | D124: 2400 | E124: 2400 | F124: =C124*1.5 -> 3600 | G124: =D124*1.5 -> 3600 | H124: =E124*1.5 -> 3600 | I124: 2400 | J124: 2400 | K124: 2400 | L124: =I124*1.5 -> 3600 | M124: =J124*1.5 -> 3600 | N124: =K124*1.5 -> 3600
B125: 0 | C125: 0 | D125: 0 | E125: 0 | F125: 0 | G125: 0 | H125: 0 | I125: 0 | J125: 0 | K125: 0 | L125: 0 | M125: 0 | N125: 0
C128: 1 | D128: 2 | E128: 3 | F128: 4 | G128: 5 | H128: 6 | I128: 7 | J128: 8 | K128: 9 | L128: 10 | M128: 11 | N128: 12
C129: 県内・無料 | D129: 県内・3割 | E129: 県内・5割 | F129: 県外・無料 | G129: 県外・3割 | H129: 県外・5割 | I129: 県内・無料 | J129: 県内・3割 | K129: 県内・5割 | L129: 県外・無料 | M129: 県外・3割 | N129: 県外・5割
A130: 101 | B130: ピアザホール(本番) | C130: ="" ->  | D130: 参加費③ | E130: 参加費⑤ | F130: 県外 | G130: 県外・参加費③ | H130: 県外・参加費⑤ | I130: ="" ->  | J130: 参加費③ | K130: 参加費⑤ | L130: 県外 | M130: 県外・参加費③ | N130: 県外・参加費⑤
A131: 102 | B131: ピアザホール(準備) | C131: ="" ->  | D131: 参加費③ | E131: 参加費⑤ | F131: 県外 | G131: 県外・参加費③ | H131: 県外・参加費⑤ | I131: ="" ->  | J131: 参加費③ | K131: 参加費⑤ | L131: 県外 | M131: 県外・参加費③ | N131: 県外・参加費⑤
A132: 208 | B132: 大会議室(本番) | C132: ="" ->  | D132: 参加費③ | E132: 参加費⑤ | F132: 県外 | G132: 県外・参加費③ | H132: 県外・参加費⑤ | I132: ="" ->  | J132: 参加費③ | K132: 参加費⑤ | L132: 県外 | M132: 県外・参加費③ | N132: 県外・参加費⑤
A133: 209 | B133: 大会議室(準備) | C133: ="" ->  | D133: 参加費③ | E133: 参加費⑤ | F133: 県外 | G133: 県外・参加費③ | H133: 県外・参加費⑤ | I133: ="" ->  | J133: 参加費③ | K133: 参加費⑤ | L133: 県外 | M133: 県外・参加費③ | N133: 県外・参加費⑤
A134: 201 | B134: 201会議室 | C134: ="" ->  | D134: ="" ->  | E134: ="" ->  | F134: 県外 | G134: 県外 | H134: 県外 | I134: ="" ->  | J134: ="" ->  | K134: ="" ->  | L134: 県外 | M134: 県外 | N134: 県外
A135: 202 | B135: 202会議室 | C135: ="" ->  | D135: ="" ->  | E135: ="" ->  | F135: 県外 | G135: 県外 | H135: 県外 | I135: ="" ->  | J135: ="" ->  | K135: ="" ->  | L135: 県外 | M135: 県外 | N135: 県外
A136: 203 | B136: 203会議室 | C136: ="" ->  | D136: ="" ->  | E136: ="" ->  | F136: 県外 | G136: 県外 | H136: 県外 | I136: ="" ->  | J136: ="" ->  | K136: ="" ->  | L136: 県外 | M136: 県外 | N136: 県外
A137: 204 | B137: 204会議室 | C137: ="" ->  | D137: ="" ->  | E137: ="" ->  | F137: 県外 | G137: 県外 | H137: 県外 | I137: ="" ->  | J137: ="" ->  | K137: ="" ->  | L137: 県外 | M137: 県外 | N137: 県外
A138: 205 | B138: 205会議室 | C138: ="" ->  | D138: ="" ->  | E138: ="" ->  | F138: 県外 | G138: 県外 | H138: 県外 | I138: ="" ->  | J138: ="" ->  | K138: ="" ->  | L138: 県外 | M138: 県外 | N138: 県外
A139: 206 | B139: 206会議室 | C139: ="" ->  | D139: ="" ->  | E139: ="" ->  | F139: 県外 | G139: 県外 | H139: 県外 | I139: ="" ->  | J139: ="" ->  | K139: ="" ->  | L139: 県外 | M139: 県外 | N139: 県外
A140: 207 | B140: 207会議室 | C140: ="" ->  | D140: ="" ->  | E140: ="" ->  | F140: 県外 | G140: 県外 | H140: 県外 | I140: ="" ->  | J140: ="" ->  | K140: ="" ->  | L140: 県外 | M140: 県外 | N140: 県外
A141: 301 | B141: 301会議室 | C141: ="" ->  | D141: ="" ->  | E141: ="" ->  | F141: 県外 | G141: 県外 | H141: 県外 | I141: ="" ->  | J141: ="" ->  | K141: ="" ->  | L141: 県外 | M141: 県外 | N141: 県外
A142: 302 | B142: 302会議室 | C142: ="" ->  | D142: ="" ->  | E142: ="" ->  | F142: 県外 | G142: 県外 | H142: 県外 | I142: ="" ->  | J142: ="" ->  | K142: ="" ->  | L142: 県外 | M142: 県外 | N142: 県外
A143: 303 | B143: 303会議室 | C143: ="" ->  | D143: ="" ->  | E143: ="" ->  | F143: 県外 | G143: 県外 | H143: 県外 | I143: ="" ->  | J143: ="" ->  | K143: ="" ->  | L143: 県外 | M143: 県外 | N143: 県外
A144: 304 | B144: 304会議室 | C144: ="" ->  | D144: ="" ->  | E144: ="" ->  | F144: 県外 | G144: 県外 | H144: 県外 | I144: ="" ->  | J144: ="" ->  | K144: ="" ->  | L144: 県外 | M144: 県外 | N144: 県外
A145: 305 | B145: 305会議室 | C145: ="" ->  | D145: ="" ->  | E145: ="" ->  | F145: 県外 | G145: 県外 | H145: 県外 | I145: ="" ->  | J145: ="" ->  | K145: ="" ->  | L145: 県外 | M145: 県外 | N145: 県外
A146: 306 | B146: 特別会議室 | C146: ="" ->  | D146: ="" ->  | E146: ="" ->  | F146: 県外 | G146: 県外 | H146: 県外 | I146: ="" ->  | J146: ="" ->  | K146: ="" ->  | L146: 県外 | M146: 県外 | N146: 県外
A147: 307 | B147: 応接室 | C147: ="" ->  | D147: ="" ->  | E147: ="" ->  | F147: 県外 | G147: 県外 | H147: 県外 | I147: ="" ->  | J147: ="" ->  | K147: ="" ->  | L147: 県外 | M147: 県外 | N147: 県外
A148: 308 | B148: 和室 | C148: ="" ->  | D148: ="" ->  | E148: ="" ->  | F148: 県外 | G148: 県外 | H148: 県外 | I148: ="" ->  | J148: ="" ->  | K148: ="" ->  | L148: 県外 | M148: 県外 | N148: 県外
A149: 309 | B149: 茶室 | C149: ="" ->  | D149: ="" ->  | E149: ="" ->  | F149: 県外 | G149: 県外 | H149: 県外 | I149: ="" ->  | J149: ="" ->  | K149: ="" ->  | L149: 県外 | M149: 県外 | N149: 県外
A150: 310 | B150: 練習室(一般) | C150: ="" ->  | D150: ="" ->  | E150: ="" ->  | F150: 県外 | G150: 県外 | H150: 県外 | I150: ="" ->  | J150: ="" ->  | K150: ="" ->  | L150: 県外 | M150: 県外 | N150: 県外
A151: 311 | B151: 練習室(学生) | C151: ="" ->  | D151: ="" ->  | E151: ="" ->  | F151: 県外 | G151: 県外 | H151: 県外 | I151: ="" ->  | J151: ="" ->  | K151: ="" ->  | L151: 県外 | M151: 県外 | N151: 県外

Sheet Sheet3 (hidden)
B1: 2019 | C1: 2020
A2: 元日 | B2: 2019-01-01 | C2: 2020-01-01
A3: 成人の日 | B3: 2019-01-14 | C3: 2020-01-13 | H3: 43526 | I3: 2 | J3: ピアザホール(本番)
A4: 建国記念の日 | B4: 2019-02-11 | C4: 2020-01-11
A5: 春分の日 | B5: 2019-03-21 | C5: 2020-03-20
A6: 昭和の日 | B6: 2019-04-29 | C6: 2020-04-29
B7: 2019-04-30 | H7: 43526 | I7: 2 | J7: 201
B8: 2019-05-01
B9: 2019-05-02
A10: 憲法記念日 | B10: 2019-05-03 | C10: 2020-05-03
A11: みどりの日 | B11: 2019-05-04 | C11: 2020-05-04 | H11: 43526 | I11: 2 | J11: 201 | M11: =IF(AND($H$11=$H$7,$J$11=$J$7),"重複",$J$11) -> 重複
A12: こどもの日 | B12: 2019-05-05
A13: 振替休日 | B13: 2019-05-06 | C13: 2020-05-05
A14: 海の日 | B14: 2019-07-15 | C14: 2020-07-23
A15: 山の日 | B15: 2019-08-11 | C15: 2020-08-10 | H15: 43526 | I15: 2 | J15: ピアザホール(本番)
A16: 振替休日 | B16: 2019-08-12
A17: 敬老の日 | B17: 2019-09-16 | C17: 2020-09-21
A18: 秋分の日 | B18: 2019-09-23 | C18: 2020-09-22
A19: 体育の日 | B19: 2019-10-14 | C19: 2020-07-24 | H19: 43526 | I19: 2 | J19: 大会議室(本番)
A20: 文化の日 | B20: 2019-11-03 | C20: 2020-11-03
A21: 振替休日 | B21: 2019-11-04
A22: 勤労感謝の日 | B22: 2019-11-23 | C22: 2020-11-23
H23: 43528 | I23: 1 | J23: 202
H27: 43528 | I27: 1 | J27: 201

Sheet Sheet1 (hidden)

Sheet Sheet2 (hidden)

Sheet SU (hidden)
J1: =PG!K1 -> FALSE | N1: =COUNTIFS(R2:R61,AJ6,S2:S61, ">0") -> 0 | Q1: 所在・分類 コード | R1: 日付け | S1: 会議室 | U1: 午前 | V1: 午後 | W1: 夜間 | X1: 人員A | Y1: 人員P | Z1: 人員N | AA1: 所在A | AB1: 分類A | AC1: 所在P | AD1: 分類P | AE1: 所在N | AF1: 分類N | AK1: =MID(AK2,34,(FIND("[",AK2)-35)) -> plication
A2: =IF(OR(S2<=207,S2=101,S2=102),"2階",IF(OR(S2=208,S2=209, S2 =210),"1階","3階")) -> 2階 | B2: =IF(T2=0,"",VLOOKUP(T2,DATA!$B$28:$O$49,14,FALSE)) ->  | C2: =IF(OR(B2="ピアザH(準)",B2="大会議室(準)",B2=""),"準備(掲示なし)",利用申込書1!F21) -> 準備(掲示なし) | D2: =PG!$O$7 -> 夜間 | E2: =PG!F7 -> 2 | G2: =利用申込書1!$A$27 -> 00:00:00 | H2: =VLOOKUP(T2,DATA!$B$2:$O$25,14,FALSE) -> 0 | J2: =利用申込書1!AG27 ->  | K2: =VLOOKUP($S2,$B$130:$D$151,3,FALSE) ->  | L2: 0 | P2: =PG!F3 -> 2 | Q2: =IF(S2=102,101,IF(S2=209,208,S2)) -> 0 | R2: =PG!V8 -> 1月0日 | S2: =VLOOKUP(T2,DATA!$B$2:$O$25,14,FALSE) -> 0 | T2: =PG!D7 -> 0 | U2: =IF(利用申込書1!M27="",利用申込書1!R27,利用申込書1!R27+利用申込書1!M27) ->  | V2: =利用申込書1!W27 ->  | W2: =利用申込書1!AB27 ->  | X2: =IF(U2="",0,IF(OR($B2="ピアザH(準)",$B2="大会議室(準)"),7,IF(OR(PG!$I$2<12,PG!$I$2=12),B4,3))) -> 0 | Y2: =IF(V2="",0,IF(OR($B2="ピアザH(準)",$B2="大会議室(準)"),7,IF(OR(PG!$J$2<13,PG!$J$2=13),3,$B4))) -> 0 | Z2: =IF(W2="",0,IF(OR($B2="ピアザH(準)",$B2="大会議室(準)"),7,IF(PG!$J$2<18,3,$B4))) -> 0 | AA2: =IF(AND($P$2=1,U2<>""),利用申込書1!$Z$52,"") ->  | AB2: =IF(AND($P$2=1,U2<>""),利用申込書1!$AD$52,"") ->  | AC2: =IF(AND($P$2=1,U2="",V2<>""),利用申込書1!$Z$52,"") ->  | AD2: =IF(AND($P$2=1, U2="",V2<>""),利用申込書1!$AD$52,"") ->  | AE2: =IF(AND($P$2=1,U2="",V2="",W2<>""),利用申込書1!$Z$52,"") ->  | AF2: =IF(AND($P$2=1, U2="",V2="",W2<>""),利用申込書1!$AD$52,"") ->  | AG2: =S2&"号室" -> 0号室 | AI2: =SUBSTITUTE(SUBSTITUTE(SUBSTITUTE(SUBSTITUTE(SUBSTITUTE(利用申込書1!$K$9,"一般社団法人","(一社)"),"株式会社","㈱"),"一般財団法人","(一財)"),"社会福祉法人)","(社福"),"有限会社","㈲") ->  | AK2: =CELL("filename",AK2) -> C:\Users\user\Desktop\web\data\application\[riyou_20240215.xlsm]SU
C3: =利用申込書1!$AV$48 -> ,(0様) | D3: =PG!$Q$7 -> 18:00-21:00 | E3: 1 | F3: =IF(OR(S3=101,S3=102,S3=208,S3=209),"別紙参照","") ->  | G3: =利用申込書1!$A$27 -> 00:00:00 | H3: =H2 -> 0 | Q3: =Q2+0.3 -> 0.3 | R3: =R2 -> 1月0日 | S3: =S2 -> 0 | AA3: =IF(AND($P$2=2,U2<>""),利用申込書1!$Z$52,"") ->  | AB3: =IF(AND($P$2=2,U2<>""),利用申込書1!$AD$52,"") ->  | AC3: =IF(AND($P$2=2,U2="",V2<>""),利用申込書1!$Z$52,"") ->  | AD3: =IF(AND($P$2=2, U2="",V2<>""),利用申込書1!$AD$52,"") ->  | AE3: =IF(AND($P$2=2,U2="",V2="",W2<>""),利用申込書1!$Z$52,"") ->  | AF3: =IF(AND($P$2=2, U2="",V2="",W2<>""),利用申込書1!$AD$52,"") ->  | AG3: =S3&"号室" -> 0号室 | AI3: ( | AM3: =MID(AK2,26,(FIND("[",AK2)-27)) -> \data\application | AN3: =LEFT(AM5,5) -> dataa
B4: =IF(T2=0,"",IF(VLOOKUP(T2,DATA!$B$28:$P$49,15,FALSE)>利用申込書1!$Y$23,利用申込書1!$Y$23,VLOOKUP(T2,DATA!$B$28:$P$49,15,FALSE))) ->  | C4: =PG!$H$1 -> ：～： | D4: =CHOOSE(PG!H7,VLOOKUP(S2,DATA!$A$129:$N$151,3,FALSE),VLOOKUP(S2,DATA!$A$129:$N$151,4,FALSE),VLOOKUP(S2,DATA!$A$129:$N$151,5,FALSE),VLOOKUP(S2,DATA!$A$129:$N$151,6,FALSE),VLOOKUP(S2,DATA!$A$129:$N$151,7,FALSE),VLOOKUP(S2,DATA!$A$129:$N$151,8,FALSE),VLOOKUP(S2,DATA!$A$129:$N$151,9,FALSE),VLOOKUP(S2,DATA!$A$129:$N$151,10,FALSE),VLOOKUP(S2,DATA!$A$129:$N$151,11,FALSE),VLOOKUP(S2,DATA!$A$129:$N$151,12,FALSE),VLOOKUP(S2,DATA!$A$129:$N$151,13,FALSE),VLOOKUP(S2,DATA!$A$129:$N$151,14,FALSE),"") ->  | E4: 1 | G4: =利用申込書1!$A$27 -> 00:00:00 | H4: =H2 -> 0 | R4: =R2 -> 1月0日 | S4: =S2 -> 0 | T4: =利用申込書1!$Y$23 -> 0 | AG4: 0号室 | AI4: =利用申込書1!AD12 -> 0 | AK4: =MID(AK2,34,(FIND("[",AK2)-35)) -> plication | AM4: =LEFT(AM5,8) -> dataappl
A5: =IF(OR(S5<=207,S5=101,S5=102),"2階",IF(OR(S5=208,S5=209, S5 =210),"1階","3階")) -> 2階 | B5: =IF(T5=0,"",VLOOKUP(T5,DATA!$B$28:$O$49,14,FALSE)) ->  | C5: =IF(OR(B5="ピアザH(準)",B5="大会議室(準)"),"準備(掲示なし)",利用申込書1!$F$21) -> 0 | D5: =PG!$O$11 -> 夜間 | E5: =PG!F11 -> 2 | G5: =IF(利用申込書1!$A$29="",$R$2,利用申込書1!$A$29) -> 1月0日 | H5: =VLOOKUP(T5,DATA!$B$2:$O$25,14,FALSE) -> 0 | J5: =利用申込書1!AG29 ->  | K5: =VLOOKUP($S5,$B$130:$D$151,3,FALSE) ->  | L5: 0 | Q5: =IF(S5=102,101,IF(S5=209,208,S5)) -> 0 | R5: =PG!V12 -> 1月0日 | S5: =VLOOKUP(T5,DATA!$B$2:$O$25,14,FALSE) -> 0 | T5: =PG!D11 -> 0 | U5: =IF(利用申込書1!M29="",利用申込書1!R29,利用申込書1!R29+利用申込書1!M29) ->  | V5: =利用申込書1!W29 ->  | W5: =利用申込書1!AB29 ->  | X5: =IF(U5="",0,IF(OR($B5="ピアザH(準)",$B5="大会議室(準)"),7,IF(OR(PG!$I$2<12,PG!$I$2=12),B7,3))) -> 0 | Y5: =IF(V5="",0,IF(OR($B5="ピアザH(準)",$B5="大会議室(準)"),7,IF(OR(PG!$J$2<13,PG!$J$2=13),3,$B7))) -> 0 | Z5: =IF(W5="",0,IF(OR($B5="ピアザH(準)",$B5="大会議室(準)"),7,IF(PG!$J$2<18,3,$B7))) -> 0 | AA5: =IF(AND($P$2=1,U5<>""),利用申込書1!$Z$52,"") ->  | AB5: =IF(AND($P$2=1,U5<>""),利用申込書1!$AD$52,"") ->  | AC5: =IF(AND($P$2=1,U5="",V5<>""),利用申込書1!$Z$52,"") ->  | AD5: =IF(AND($P$2=1, U5="",V5<>""),利用申込書1!$AD$52,"") ->  | AE5: =IF(AND($P$2=1,U5="",V5="",W5<>""),利用申込書1!$Z$52,"") ->  | AF5: =IF(AND($P$2=1, U5="",V5="",W5<>""),利用申込書1!$AD$52,"") ->  | AG5: 0号室 | AI5: 様) | AK5: =SUBSTITUTE(AK4,"\","") -> plication | AM5: =SUBSTITUTE(AM3,"\","") -> dataapplication
C6: =IF(R6=R2,"同上",$C$3) -> 同上 | D6: =PG!$Q$11 -> 18:00-21:00 | E6: 1 | F6: =IF(OR(S6=101,S6=102,S6=208,S6=209),"別紙参照","") ->  | G6: =IF(利用申込書1!$A$29="",$R$2,利用申込書1!$A$29) -> 1月0日 | H6: =H5 -> 0 | Q6: =Q5+0.3 -> 0.3 | R6: =R5 -> 1月0日 | S6: =S5 -> 0 | AA6: =IF(AND($P$2=2,U5<>""),利用申込書1!$Z$52,"") ->  | AB6: =IF(AND($P$2=2,U5<>""),利用申込書1!$AD$52,"") ->  | AC6: =IF(AND($P$2=2,U5="",V5<>""),利用申込書1!$Z$52,"") ->  | AD6: =IF(AND($P$2=2, U5="",V5<>""),利用申込書1!$AD$52,"") ->  | AE6: =IF(AND($P$2=2,U5="",V5="",W5<>""),利用申込書1!$Z$52,"") ->  | AF6: =IF(AND($P$2=2, U5="",V5="",W5<>""),利用申込書1!$AD$52,"") ->  | AG6: 0号室 | AJ6: =CONCATENATE(AN3,AK5) -> dataaplication | AK6: =MONTH(AK5) ->  | AL6: 月 | AM6: =AK6&AL6 -> 
B7: =IF(T5=0,"",IF(VLOOKUP(T5,DATA!$B$28:$P$49,15,FALSE)>利用申込書1!$Y$23,利用申込書1!$Y$23,VLOOKUP(T5,DATA!$B$28:$P$49,15,FALSE))) ->  | C7: =PG!$H$1 -> ：～： | D7: =CHOOSE(PG!H11,VLOOKUP(S5,DATA!$A$129:$N$151,3,FALSE),VLOOKUP(S5,DATA!$A$129:$N$151,4,FALSE),VLOOKUP(S5,DATA!$A$129:$N$151,5,FALSE),VLOOKUP(S5,DATA!$A$129:$N$151,6,FALSE),VLOOKUP(S5,DATA!$A$129:$N$151,7,FALSE),VLOOKUP(S5,DATA!$A$129:$N$151,8,FALSE),VLOOKUP(S5,DATA!$A$129:$N$151,9,FALSE),VLOOKUP(S5,DATA!$A$129:$N$151,10,FALSE),VLOOKUP(S5,DATA!$A$129:$N$151,11,FALSE),VLOOKUP(S5,DATA!$A$129:$N$151,12,FALSE),VLOOKUP(S5,DATA!$A$129:$N$151,13,FALSE),VLOOKUP(S5,DATA!$A$129:$N$151,14,FALSE),"") ->  | E7: 1 | G7: =IF(利用申込書1!$A$29="",$R$2,利用申込書1!$A$29) -> 1月0日 | H7: =H5 -> 0 | R7: =R5 -> 1月0日 | S7: =S5 -> 0 | T7: =利用申込書1!$Y$23 -> 0 | AG7: =S7&"号室" -> 0号室 | AK7: =DAY(AK5) ->  | AL7: 日 | AM7: =AK7&AL7 -> 
A8: =IF(OR(S8<=207,S8=101,S8=102),"2階",IF(OR(S8=208,S8=209, S8 =210),"1階","3階")) -> 2階 | B8: =IF(T8=0,"",VLOOKUP(T8,DATA!$B$28:$O$49,14,FALSE)) ->  | C8: =IF(OR(B8="ピアザH(準)",B8="大会議室(準)"),"準備(掲示なし)",IF(AND(R5=R8, B5<>"ピアザH(準)"),"同上",利用申込書1!$F$21)) -> 同上 | D8: =PG!$O$15 -> 夜間 | E8: =PG!F15 -> 2 | G8: =IF(利用申込書1!$A$31="",$R$5,利用申込書1!$A$31) -> 1月0日 | H8: =VLOOKUP(T8,DATA!$B$2:$O$25,14,FALSE) -> 0 | J8: =利用申込書1!AG31 ->  | K8: =VLOOKUP($S8,$B$130:$D$151,3,FALSE) ->  | L8: 0 | Q8: =IF(S8=102,101,IF(S8=209,208,S8)) -> 0 | R8: =PG!V16 -> 1月0日 | S8: =VLOOKUP(T8,DATA!$B$2:$O$25,14,FALSE) -> 0 | T8: =PG!D15 -> 0 | U8: =IF(利用申込書1!M31="",利用申込書1!R31,利用申込書1!R31+利用申込書1!M31) ->  | V8: =利用申込書1!W31 ->  | W8: =利用申込書1!AB31 ->  | X8: =IF(U8="",0,IF(OR($B8="ピアザH(準)",$B8="大会議室(準)"),7,IF(OR(PG!$I$2<12,PG!$I$2=12),B10,3))) -> 0 | Y8: =IF(V8="",0,IF(OR($B8="ピアザH(準)",$B8="大会議室(準)"),7,IF(OR(PG!$J$2<13,PG!$J$2=13),3,$B10))) -> 0 | Z8: =IF(W8="",0,IF(OR($B8="ピアザH(準)",$B8="大会議室(準)"),7,IF(PG!$J$2<18,3,$B10))) -> 0 | AA8: =IF(AND($P$2=1,U8<>""),利用申込書1!$Z$52,"") ->  | AB8: =IF(AND($P$2=1,U8<>""),利用申込書1!$AD$52,"") ->  | AC8: =IF(AND($P$2=1,U8="",V8<>""),利用申込書1!$Z$52,"") ->  | AD8: =IF(AND($P$2=1, U8="",V8<>""),利用申込書1!$AD$52,"") ->  | AE8: =IF(AND($P$2=1,U8="",V8="",W8<>""),利用申込書1!$Z$52,"") ->  | AF8: =IF(AND($P$2=1, U8="",V8="",W8<>""),利用申込書1!$AD$52,"") ->  | AG8: 0号室
C9: =IF(R9=R5,"",$C$3) ->  | D9: =PG!$Q$15 -> 18:00-21:00 | E9: 1 | F9: =IF(OR(S9=101,S9=102,S9=208,S9=209),"別紙参照","") ->  | G9: =IF(利用申込書1!$A$31="",$R$5,利用申込書1!$A$31) -> 1月0日 | H9: =H8 -> 0 | Q9: =Q8+0.3 -> 0.3 | R9: =R8 -> 1月0日 | S9: =S8 -> 0 | AA9: =IF(AND($P$2=2,U8<>""),利用申込書1!$Z$52,"") ->  | AB9: =IF(AND($P$2=2,U8<>""),利用申込書1!$AD$52,"") ->  | AC9: =IF(AND($P$2=2,U8="",V8<>""),利用申込書1!$Z$52,"") ->  | AD9: =IF(AND($P$2=2,U8="",V8<>""),利用申込書1!$AD$52,"") ->  | AE9: =IF(AND($P$2=2,U8="",V8="",W8<>""),利用申込書1!$Z$52,"") ->  | AF9: =IF(AND($P$2=2, U8="",V8="",W8<>""),利用申込書1!$AD$52,"") ->  | AG9: 0号室
B10: =IF(T8=0,"",IF(VLOOKUP(T8,DATA!$B$28:$P$49,15,FALSE)>利用申込書1!$Y$23,利用申込書1!$Y$23,VLOOKUP(T8,DATA!$B$28:$P$49,15,FALSE))) ->  | C10: =PG!$H$1 -> ：～： | D10: =CHOOSE(PG!H15,VLOOKUP(S8,DATA!$A$129:$N$151,3,FALSE),VLOOKUP(S8,DATA!$A$129:$N$151,4,FALSE),VLOOKUP(S8,DATA!$A$129:$N$151,5,FALSE),VLOOKUP(S8,DATA!$A$129:$N$151,6,FALSE),VLOOKUP(S8,DATA!$A$129:$N$151,7,FALSE),VLOOKUP(S8,DATA!$A$129:$N$151,8,FALSE),VLOOKUP(S8,DATA!$A$129:$N$151,9,FALSE),VLOOKUP(S8,DATA!$A$129:$N$151,10,FALSE),VLOOKUP(S8,DATA!$A$129:$N$151,11,FALSE),VLOOKUP(S8,DATA!$A$129:$N$151,12,FALSE),VLOOKUP(S8,DATA!$A$129:$N$151,13,FALSE),VLOOKUP(S8,DATA!$A$129:$N$151,14,FALSE),"") ->  | E10: 1 | G10: =IF(利用申込書1!$A$31="",$R$5,利用申込書1!$A$31) -> 1月0日 | H10: =H8 -> 0 | R10: =R8 -> 1月0日 | S10: =S8 -> 0 | T10: =利用申込書1!$Y$23 -> 0 | AG10: 0号室
A11: =IF(OR(S11<=207,S11=101,S11=102),"2階",IF(OR(S11=208,S11=209, S11 =210),"1階","3階")) -> 2階 | B11: =IF(T11=0,"",VLOOKUP(T11,DATA!$B$28:$O$49,14,FALSE)) ->  | C11: =IF(OR(B11="ピアザH(準)",B11="大会議室(準)"),"準備(掲示なし)",IF(AND(R8=R11, B8<>"ピアザH(準)"),"同上",利用申込書1!$F$21)) -> 同上 | D11: =PG!$O$19 -> 夜間 | E11: =PG!F19 -> 2 | G11: =IF(利用申込書1!$A$33="",$R$8,利用申込書1!$A$33) -> 1月0日 | H11: =VLOOKUP(T11,DATA!$B$2:$O$25,14,FALSE) -> 0 | J11: =利用申込書1!AG33 ->  | K11: =VLOOKUP($S11,$B$130:$D$151,3,FALSE) ->  | L11: 0 | Q11: =IF(S11=102,101,IF(S11=209,208,S11)) -> 0 | R11: =PG!V20 -> 1月0日 | S11: =VLOOKUP(T11,DATA!$B$2:$O$25,14,FALSE) -> 0 | T11: =PG!D19 -> 0 | U11: =IF(利用申込書1!M33="",利用申込書1!R33,利用申込書1!R33+利用申込書1!M33) ->  | V11: =利用申込書1!W33 ->  | W11: =利用申込書1!AB33 ->  | X11: =IF(U11="",0,IF(OR($B11="ピアザH(準)",$B11="大会議室(準)"),7,IF(OR(PG!$I$2<12,PG!$I$2=12),B13,3))) -> 0 | Y11: =IF(V11="",0,IF(OR($B11="ピアザH(準)",$B11="大会議室(準)"),7,IF(OR(PG!$J$2<13,PG!$J$2=13),3,$B13))) -> 0 | Z11: =IF(W11="",0,IF(OR($B11="ピアザH(準)",$B11="大会議室(準)"),7,IF(PG!$J$2<18,3,$B13))) -> 0 | AA11: =IF(AND($P$2=1,U11<>""),利用申込書1!$Z$52,"") ->  | AB11: =IF(AND($P$2=1,U11<>""),利用申込書1!$AD$52,"") ->  | AC11: =IF(AND($P$2=1,U11="",V11<>""),利用申込書1!$Z$52,"") ->  | AD11: =IF(AND($P$2=1, U11="",V11<>""),利用申込書1!$AD$52,"") ->  | AE11: =IF(AND($P$2=1,U11="",V11="",W11<>""),利用申込書1!$Z$52,"") ->  | AF11: =IF(AND($P$2=1, U11="",V11="",W11<>""),利用申込書1!$AD$52,"") ->  | AG11: 0号室
C12: =IF(R12=R8,"",$C$3) ->  | D12: =PG!$Q$19 -> 18:00-21:00 | E12: 1 | F12: =IF(OR(S12=101,S12=102,S12=208,S12=209),"別紙参照","") ->  | G12: =IF(利用申込書1!$A$33="",$R$8,利用申込書1!$A$33) -> 1月0日 | H12: =H11 -> 0 | Q12: =Q11+0.3 -> 0.3 | R12: =R11 -> 1月0日 | S12: =S11 -> 0 | AA12: =IF(AND($P$2=2,U11<>""),利用申込書1!$Z$52,"") ->  | AB12: =IF(AND($P$2=2,U11<>""),利用申込書1!$AD$52,"") ->  | AC12: =IF(AND($P$2=2,U11="",V11<>""),利用申込書1!$Z$52,"") ->  | AD12: =IF(AND($P$2=2,U11="",V11<>""),利用申込書1!$AD$52,"") ->  | AE12: =IF(AND($P$2=2,U11="",V11="",W11<>""),利用申込書1!$Z$52,"") ->  | AF12: =IF(AND($P$2=2, U11="",V11="",W11<>""),利用申込書1!$AD$52,"") ->  | AG12: 0号室
B13: =IF(T11=0,"",IF(VLOOKUP(T11,DATA!$B$28:$P$49,15,FALSE)>利用申込書1!$Y$23,利用申込書1!$Y$23,VLOOKUP(T11,DATA!$B$28:$P$49,15,FALSE))) ->  | C13: =PG!$H$1 -> ：～： | D13: =CHOOSE(PG!H19,VLOOKUP(S11,DATA!$A$129:$N$151,3,FALSE),VLOOKUP(S11,DATA!$A$129:$N$151,4,FALSE),VLOOKUP(S11,DATA!$A$129:$N$151,5,FALSE),VLOOKUP(S11,DATA!$A$129:$N$151,6,FALSE),VLOOKUP(S11,DATA!$A$129:$N$151,7,FALSE),VLOOKUP(S11,DATA!$A$129:$N$151,8,FALSE),VLOOKUP(S11,DATA!$A$129:$N$151,9,FALSE),VLOOKUP(S11,DATA!$A$129:$N$151,10,FALSE),VLOOKUP(S11,DATA!$A$129:$N$151,11,FALSE),VLOOKUP(S11,DATA!$A$129:$N$151,12,FALSE),VLOOKUP(S11,DATA!$A$129:$N$151,13,FALSE),VLOOKUP(S11,DATA!$A$129:$N$151,14,FALSE),"") ->  | E13: 1 | G13: =IF(利用申込書1!$A$33="",$R$8,利用申込書1!$A$33) -> 1月0日 | H13: =H11 -> 0 | R13: =R11 -> 1月0日 | S13: =S11 -> 0 | T13: =利用申込書1!$Y$23 -> 0 | AG13: 0号室
A14: =IF(OR(S14<=207,S14=101,S14=102),"2階",IF(OR(S14=208,S14=209, S14 =210),"1階","3階")) -> 2階 | B14: =IF(T14=0,"",VLOOKUP(T14,DATA!$B$28:$O$49,14,FALSE)) ->  | C14: =IF(OR(B14="ピアザH(準)",B14="大会議室(準)"),"準備(掲示なし)",IF(AND(R11=R14, B11<>"ピアザH(準)"),"同上",利用申込書1!$F$21)) -> 同上 | D14: =PG!$O$23 -> 夜間 | E14: =PG!F23 -> 2 | G14: =IF(利用申込書1!$A$35="",$R$11,利用申込書1!$A$35) -> 1月0日 | H14: =VLOOKUP(T14,DATA!$B$2:$O$25,14,FALSE) -> 0 | J14: =利用申込書1!AG35 ->  | K14: =VLOOKUP($S14,$B$130:$D$151,3,FALSE) ->  | L14: 0 | Q14: =IF(S14=102,101,IF(S14=209,208,S14)) -> 0 | R14: =PG!V24 -> 1月0日 | S14: =VLOOKUP(T14,DATA!$B$2:$O$25,14,FALSE) -> 0 | T14: =PG!D23 -> 0 | U14: =IF(利用申込書1!M35="",利用申込書1!R35,利用申込書1!R35+利用申込書1!M35) ->  | V14: =利用申込書1!W35 ->  | W14: =利用申込書1!AB35 ->  | X14: =IF(U14="",0,IF(OR($B14="ピアザH(準)",$B14="大会議室(準)"),7,IF(OR(PG!$I$2<12,PG!$I$2=12),B16,3))) -> 0 | Y14: =IF(V14="",0,IF(OR($B14="ピアザH(準)",$B14="大会議室(準)"),7,IF(OR(PG!$J$2<13,PG!$J$2=13),3,$B16))) -> 0 | Z14: =IF(W14="",0,IF(OR($B14="ピアザH(準)",$B14="大会議室(準)"),7,IF(PG!$J$2<18,3,$B16))) -> 0 | AA14: =IF(AND($P$2=1,U14<>""),利用申込書1!$Z$52,"") ->  | AB14: =IF(AND($P$2=1,U14<>""),利用申込書1!$AD$52,"") ->  | AC14: =IF(AND($P$2=1,U14="",V14<>""),利用申込書1!$Z$52,"") ->  | AD14: =IF(AND($P$2=1, U14="",V14<>""),利用申込書1!$AD$52,"") ->  | AE14: =IF(AND($P$2=1,U14="",V14="",W14<>""),利用申込書1!$Z$52,"") ->  | AF14: =IF(AND($P$2=1, U14="",V14="",W14<>""),利用申込書1!$AD$52,"") ->  | AG14: 0号室
C15: =IF(R15=R11,"",$C$3) ->  | D15: =PG!$Q$23 -> 18:00-21:00 | E15: 1 | F15: =IF(OR(S15=101,S15=102,S15=208,S15=209),"別紙参照","") ->  | G15: =IF(利用申込書1!$A$35="",$R$11,利用申込書1!$A$35) -> 1月0日 | H15: =H14 -> 0 | Q15: =Q14+0.3 -> 0.3 | R15: =R14 -> 1月0日 | S15: =S14 -> 0 | AA15: =IF(AND($P$2=2,U14<>""),利用申込書1!$Z$52,"") ->  | AB15: =IF(AND($P$2=2,U14<>""),利用申込書1!$AD$52,"") ->  | AC15: =IF(AND($P$2=2,U14="",V14<>""),利用申込書1!$Z$52,"") ->  | AD15: =IF(AND($P$2=2,U14="",V14<>""),利用申込書1!$AD$52,"") ->  | AE15: =IF(AND($P$2=2,U14="",V14="",W14<>""),利用申込書1!$Z$52,"") ->  | AF15: =IF(AND($P$2=2, U14="",V14="",W14<>""),利用申込書1!$AD$52,"") ->  | AG15: 0号室
B16: =IF(T14=0,"",IF(VLOOKUP(T14,DATA!$B$28:$P$49,15,FALSE)>利用申込書1!$Y$23,利用申込書1!$Y$23,VLOOKUP(T14,DATA!$B$28:$P$49,15,FALSE))) ->  | C16: =PG!$H$1 -> ：～： | D16: =CHOOSE(PG!H23,VLOOKUP(S14,DATA!$A$129:$N$151,3,FALSE),VLOOKUP(S14,DATA!$A$129:$N$151,4,FALSE),VLOOKUP(S14,DATA!$A$129:$N$151,5,FALSE),VLOOKUP(S14,DATA!$A$129:$N$151,6,FALSE),VLOOKUP(S14,DATA!$A$129:$N$151,7,FALSE),VLOOKUP(S14,DATA!$A$129:$N$151,8,FALSE),VLOOKUP(S14,DATA!$A$129:$N$151,9,FALSE),VLOOKUP(S14,DATA!$A$129:$N$151,10,FALSE),VLOOKUP(S14,DATA!$A$129:$N$151,11,FALSE),VLOOKUP(S14,DATA!$A$129:$N$151,12,FALSE),VLOOKUP(S14,DATA!$A$129:$N$151,13,FALSE),VLOOKUP(S14,DATA!$A$129:$N$151,14,FALSE),"") ->  | E16: 1 | G16: =IF(利用申込書1!$A$35="",$R$11,利用申込書1!$A$35) -> 1月0日 | H16: =H14 -> 0 | R16: =R14 -> 1月0日 | S16: =S14 -> 0 | T16: =利用申込書1!$Y$23 -> 0 | AG16: 0号室
A17: =IF(OR(S17<=207,S17=101,S17=102),"2階",IF(OR(S17=208,S17=209, S17 =210),"1階","3階")) -> 2階 | B17: =IF(T17=0,"",VLOOKUP(T17,DATA!$B$28:$O$49,14,FALSE)) ->  | C17: =IF(OR(B17="ピアザH(準)",B17="大会議室(準)"),"準備(掲示なし)",IF(AND(R14=R17, B14<>"ピアザH(準)"),"同上",利用申込書1!$F$21)) -> 同上 | D17: =PG!$O$27 -> 夜間 | E17: =PG!F27 -> 2 | G17: =IF(利用申込書1!$A$37="",$R$14,利用申込書1!$A$37) -> 1月0日 | H17: =VLOOKUP(T17,DATA!$B$2:$O$25,14,FALSE) -> 0 | J17: =利用申込書1!AG37 ->  | K17: =VLOOKUP($S17,$B$130:$D$151,3,FALSE) ->  | L17: 0 | Q17: =IF(S17=102,101,IF(S17=209,208,S17)) -> 0 | R17: =PG!V28 -> 1月0日 | S17: =VLOOKUP(T17,DATA!$B$2:$O$25,14,FALSE) -> 0 | T17: =PG!D27 -> 0 | U17: =IF(利用申込書1!M37="",利用申込書1!R37,利用申込書1!R37+利用申込書1!M37) ->  | V17: =利用申込書1!W37 ->  | W17: =利用申込書1!AB37 ->  | X17: =IF(U17="",0,IF(OR($B17="ピアザH(準)",$B17="大会議室(準)"),7,IF(OR(PG!$I$2<12,PG!$I$2=12),B19,3))) -> 0 | Y17: =IF(V17="",0,IF(OR($B17="ピアザH(準)",$B17="大会議室(準)"),7,IF(OR(PG!$J$2<13,PG!$J$2=13),3,$B19))) -> 0 | Z17: =IF(W17="",0,IF(OR($B17="ピアザH(準)",$B17="大会議室(準)"),7,IF(PG!$J$2<18,3,$B19))) -> 0 | AA17: =IF(AND($P$2=1,U17<>""),利用申込書1!$Z$52,"") ->  | AB17: =IF(AND($P$2=1,U17<>""),利用申込書1!$AD$52,"") ->  | AC17: =IF(AND($P$2=1,U17="",V17<>""),利用申込書1!$Z$52,"") ->  | AD17: =IF(AND($P$2=1, U17="",V17<>""),利用申込書1!$AD$52,"") ->  | AE17: =IF(AND($P$2=1,U17="",V17="",W17<>""),利用申込書1!$Z$52,"") ->  | AF17: =IF(AND($P$2=1, U17="",V17="",W17<>""),利用申込書1!$AD$52,"") ->  | AG17: 0号室
C18: =IF(R18=R14,"",$C$3) ->  | D18: =PG!$Q$27 -> 18:00-21:00 | E18: 1 | F18: =IF(OR(S18=101,S18=102,S18=208,S18=209),"別紙参照","") ->  | G18: =IF(利用申込書1!$A$37="",$R$14,利用申込書1!$A$37) -> 1月0日 | H18: =H17 -> 0 | Q18: =Q17+0.3 -> 0.3 | R18: =R17 -> 1月0日 | S18: =S17 -> 0 | AA18: =IF(AND($P$2=2,U17<>""),利用申込書1!$Z$52,"") ->  | AB18: =IF(AND($P$2=2,U17<>""),利用申込書1!$AD$52,"") ->  | AC18: =IF(AND($P$2=2,U17="",V17<>""),利用申込書1!$Z$52,"") ->  | AD18: =IF(AND($P$2=2,U17="",V17<>""),利用申込書1!$AD$52,"") ->  | AE18: =IF(AND($P$2=2,U17="",V17="",W17<>""),利用申込書1!$Z$52,"") ->  | AF18: =IF(AND($P$2=2, U17="",V17="",W17<>""),利用申込書1!$AD$52,"") ->  | AG18: 0号室
B19: =IF(T17=0,"",IF(VLOOKUP(T17,DATA!$B$28:$P$49,15,FALSE)>利用申込書1!$Y$23,利用申込書1!$Y$23,VLOOKUP(T17,DATA!$B$28:$P$49,15,FALSE))) ->  | C19: =PG!$H$1 -> ：～： | D19: =CHOOSE(PG!H27,VLOOKUP(S17,DATA!$A$129:$N$151,3,FALSE),VLOOKUP(S17,DATA!$A$129:$N$151,4,FALSE),VLOOKUP(S17,DATA!$A$129:$N$151,5,FALSE),VLOOKUP(S17,DATA!$A$129:$N$151,6,FALSE),VLOOKUP(S17,DATA!$A$129:$N$151,7,FALSE),VLOOKUP(S17,DATA!$A$129:$N$151,8,FALSE),VLOOKUP(S17,DATA!$A$129:$N$151,9,FALSE),VLOOKUP(S17,DATA!$A$129:$N$151,10,FALSE),VLOOKUP(S17,DATA!$A$129:$N$151,11,FALSE),VLOOKUP(S17,DATA!$A$129:$N$151,12,FALSE),VLOOKUP(S17,DATA!$A$129:$N$151,13,FALSE),VLOOKUP(S17,DATA!$A$129:$N$151,14,FALSE),"") ->  | E19: 1 | G19: =IF(利用申込書1!$A$37="",$R$14,利用申込書1!$A$37) -> 1月0日 | H19: =H17 -> 0 | R19: =R17 -> 1月0日 | S19: =S17 -> 0 | T19: =利用申込書1!$Y$23 -> 0 | AG19: 0号室
A20: =IF(OR(S20<=207,S20=101,S20=102),"2階",IF(OR(S20=208,S20=209, S20 =210),"1階","3階")) -> 2階 | B20: =IF(T20=0,"",VLOOKUP(T20,DATA!$B$28:$O$49,14,FALSE)) ->  | C20: =IF(OR(B20="ピアザH(準)",B20="大会議室(準)"),"準備(掲示なし)",IF(AND(R17=R20, B17<>"ピアザH(準)"),"同上",利用申込書1!$F$21)) -> 同上 | D20: =PG!$O$31 -> 夜間 | E20: =PG!F31 -> 2 | G20: =IF(利用申込書1!$A$39="",$R$17,利用申込書1!$A$39) -> 1月0日 | H20: =VLOOKUP(T20,DATA!$B$2:$O$25,14,FALSE) -> 0 | J20: =利用申込書1!AG39 ->  | K20: =VLOOKUP($S20,$B$130:$D$151,3,FALSE) ->  | L20: 0 | Q20: =IF(S20=102,101,IF(S20=209,208,S20)) -> 0 | R20: =PG!V32 -> 1月0日 | S20: =VLOOKUP(T20,DATA!$B$2:$O$25,14,FALSE) -> 0 | T20: =PG!D31 -> 0 | U20: =IF(利用申込書1!M39="",利用申込書1!R39,利用申込書1!R39+利用申込書1!M39) ->  | V20: =利用申込書1!W39 ->  | W20: =利用申込書1!AB39 ->  | X20: =IF(U20="",0,IF(OR($B20="ピアザH(準)",$B20="大会議室(準)"),7,IF(OR(PG!$I$2<12,PG!$I$2=12),B22,3))) -> 0 | Y20: =IF(V20="",0,IF(OR($B20="ピアザH(準)",$B20="大会議室(準)"),7,IF(OR(PG!$J$2<13,PG!$J$2=13),3,$B22))) -> 0 | Z20: =IF(W20="",0,IF(OR($B20="ピアザH(準)",$B20="大会議室(準)"),7,IF(PG!$J$2<18,3,$B22))) -> 0 | AA20: =IF(AND($P$2=1,U20<>""),利用申込書1!$Z$52,"") ->  | AB20: =IF(AND($P$2=1,U20<>""),利用申込書1!$AD$52,"") ->  | AC20: =IF(AND($P$2=1,U20="",V20<>""),利用申込書1!$Z$52,"") ->  | AD20: =IF(AND($P$2=1, U20="",V20<>""),利用申込書1!$AD$52,"") ->  | AE20: =IF(AND($P$2=1,U20="",V20="",W20<>""),利用申込書1!$Z$52,"") ->  | AF20: =IF(AND($P$2=1, U20="",V20="",W20<>""),利用申込書1!$AD$52,"") ->  | AG20: 0号室
C21: =IF(R21=R17,"",$C$3) ->  | D21: =PG!$Q$31 -> 18:00-21:00 | E21: 1 | F21: =IF(OR(S21=101,S21=102,S21=208,S21=209),"別紙参照","") ->  | G21: =IF(利用申込書1!$A$39="",$R$17,利用申込書1!$A$39) -> 1月0日 | H21: =H20 -> 0 | Q21: =Q20+0.3 -> 0.3 | R21: =R20 -> 1月0日 | S21: =S20 -> 0 | AA21: =IF(AND($P$2=2,U20<>""),利用申込書1!$Z$52,"") ->  | AB21: =IF(AND($P$2=2,U20<>""),利用申込書1!$AD$52,"") ->  | AC21: =IF(AND($P$2=2,U20="",V20<>""),利用申込書1!$Z$52,"") ->  | AD21: =IF(AND($P$2=2,U20="",V20<>""),利用申込書1!$AD$52,"") ->  | AE21: =IF(AND($P$2=2,U20="",V20="",W20<>""),利用申込書1!$Z$52,"") ->  | AF21: =IF(AND($P$2=2, U20="",V20="",W20<>""),利用申込書1!$AD$52,"") ->  | AG21: 0号室
B22: =IF(T20=0,"",IF(VLOOKUP(T20,DATA!$B$28:$P$49,15,FALSE)>利用申込書1!$Y$23,利用申込書1!$Y$23,VLOOKUP(T20,DATA!$B$28:$P$49,15,FALSE))) ->  | C22: =PG!$H$1 -> ：～： | D22: =CHOOSE(PG!H31,VLOOKUP(S20,DATA!$A$129:$N$151,3,FALSE),VLOOKUP(S20,DATA!$A$129:$N$151,4,FALSE),VLOOKUP(S20,DATA!$A$129:$N$151,5,FALSE),VLOOKUP(S20,DATA!$A$129:$N$151,6,FALSE),VLOOKUP(S20,DATA!$A$129:$N$151,7,FALSE),VLOOKUP(S20,DATA!$A$129:$N$151,8,FALSE),VLOOKUP(S20,DATA!$A$129:$N$151,9,FALSE),VLOOKUP(S20,DATA!$A$129:$N$151,10,FALSE),VLOOKUP(S20,DATA!$A$129:$N$151,11,FALSE),VLOOKUP(S20,DATA!$A$129:$N$151,12,FALSE),VLOOKUP(S20,DATA!$A$129:$N$151,13,FALSE),VLOOKUP(S20,DATA!$A$129:$N$151,14,FALSE),"") ->  | E22: 1 | G22: =IF(利用申込書1!$A$39="",$R$17,利用申込書1!$A$39) -> 1月0日 | H22: =H20 -> 0 | R22: =R20 -> 1月0日 | S22: =S20 -> 0 | T22: =利用申込書1!$Y$23 -> 0 | AG22: 0号室
A23: =IF(OR(S23<=207,S23=101,S23=102),"2階",IF(OR(S23=208,S23=209, S23 =210),"1階","3階")) -> 2階 | B23: =IF(T23=0,"",VLOOKUP(T23,DATA!$B$28:$O$49,14,FALSE)) ->  | C23: =IF(OR(B23="ピアザH(準)",B23="大会議室(準)"),"準備(掲示なし)",IF(AND(R20=R23, B20<>"ピアザH(準)"),"同上",利用申込書1!$F$21)) -> 同上 | D23: =PG!$O$35 -> 夜間 | E23: =PG!F35 -> 2 | G23: =IF(利用申込書1!$A$41="",$R$20,利用申込書1!$A$41) -> 1月0日 | H23: =VLOOKUP(T23,DATA!$B$2:$O$25,14,FALSE) -> 0 | J23: =利用申込書1!AG41 ->  | K23: =VLOOKUP($S23,$B$130:$D$151,3,FALSE) ->  | L23: 0 | Q23: =IF(S23=102,101,IF(S23=209,208,S23)) -> 0 | R23: =PG!V36 -> 1月0日 | S23: =VLOOKUP(T23,DATA!$B$2:$O$25,14,FALSE) -> 0 | T23: =PG!D35 -> 0 | U23: =IF(利用申込書1!M41="",利用申込書1!R41,利用申込書1!R41+利用申込書1!M41) ->  | V23: =利用申込書1!W41 ->  | W23: =利用申込書1!AB41 ->  | X23: =IF(U23="",0,IF(OR($B23="ピアザH(準)",$B23="大会議室(準)"),7,IF(OR(PG!$I$2<12,PG!$I$2=12),B25,3))) -> 0 | Y23: =IF(V23="",0,IF(OR($B23="ピアザH(準)",$B23="大会議室(準)"),7,IF(OR(PG!$J$2<13,PG!$J$2=13),3,$B25))) -> 0 | Z23: =IF(W23="",0,IF(OR($B23="ピアザH(準)",$B23="大会議室(準)"),7,IF(PG!$J$2<18,3,$B25))) -> 0 | AA23: =IF(AND($P$2=1,U23<>""),利用申込書1!$Z$52,"") ->  | AB23: =IF(AND($P$2=1,U23<>""),利用申込書1!$AD$52,"") ->  | AC23: =IF(AND($P$2=1,U23="",V23<>""),利用申込書1!$Z$52,"") ->  | AD23: =IF(AND($P$2=1, U23="",V23<>""),利用申込書1!$AD$52,"") ->  | AE23: =IF(AND($P$2=1,U23="",V23="",W23<>""),利用申込書1!$Z$52,"") ->  | AF23: =IF(AND($P$2=1, U23="",V23="",W23<>""),利用申込書1!$AD$52,"") ->  | AG23: 0号室
C24: =IF(R24=R20,"",$C$3) ->  | D24: =PG!$Q$35 -> 18:00-21:00 | E24: 1 | F24: =IF(OR(S24=101,S24=102,S24=208,S24=209),"別紙参照","") ->  | G24: =IF(利用申込書1!$A$41="",$R$20,利用申込書1!$A$41) -> 1月0日 | H24: =H23 -> 0 | Q24: =Q23+0.3 -> 0.3 | R24: =R23 -> 1月0日 | S24: =S23 -> 0 | AA24: =IF(AND($P$2=2,U23<>""),利用申込書1!$Z$52,"") ->  | AB24: =IF(AND($P$2=2,U23<>""),利用申込書1!$AD$52,"") ->  | AC24: =IF(AND($P$2=2,U23="",V23<>""),利用申込書1!$Z$52,"") ->  | AD24: =IF(AND($P$2=2,U23="",V23<>""),利用申込書1!$AD$52,"") ->  | AE24: =IF(AND($P$2=2,U23="",V23="",W23<>""),利用申込書1!$Z$52,"") ->  | AF24: =IF(AND($P$2=2, U23="",V23="",W23<>""),利用申込書1!$AD$52,"") ->  | AG24: 0号室
B25: =IF(T23=0,"",IF(VLOOKUP(T23,DATA!$B$28:$P$49,15,FALSE)>利用申込書1!$Y$23,利用申込書1!$Y$23,VLOOKUP(T23,DATA!$B$28:$P$49,15,FALSE))) ->  | C25: =PG!$H$1 -> ：～： | D25: =CHOOSE(PG!H35,VLOOKUP(S23,DATA!$A$129:$N$151,3,FALSE),VLOOKUP(S23,DATA!$A$129:$N$151,4,FALSE),VLOOKUP(S23,DATA!$A$129:$N$151,5,FALSE),VLOOKUP(S23,DATA!$A$129:$N$151,6,FALSE),VLOOKUP(S23,DATA!$A$129:$N$151,7,FALSE),VLOOKUP(S23,DATA!$A$129:$N$151,8,FALSE),VLOOKUP(S23,DATA!$A$129:$N$151,9,FALSE),VLOOKUP(S23,DATA!$A$129:$N$151,10,FALSE),VLOOKUP(S23,DATA!$A$129:$N$151,11,FALSE),VLOOKUP(S23,DATA!$A$129:$N$151,12,FALSE),VLOOKUP(S23,DATA!$A$129:$N$151,13,FALSE),VLOOKUP(S23,DATA!$A$129:$N$151,14,FALSE),"") ->  | E25: 1 | G25: =IF(利用申込書1!$A$41="",$R$20,利用申込書1!$A$41) -> 1月0日 | H25: =H23 -> 0 | R25: =R23 -> 1月0日 | S25: =S23 -> 0 | T25: =利用申込書1!$Y$23 -> 0 | AG25: 0号室
B26: =IF(T26=0,"",VLOOKUP(T26,DATA!$B$28:$O$49,14,FALSE)) ->  | C26: =IF(OR(B26="ピアザH(準)",B26="大会議室(準)"),"準備(掲示なし)",IF(AND(R23=R26, B23<>"ピアザH(準)"),"同上",利用申込書1!$F$21)) -> 同上 | D26: =PG!$O$39 -> 夜間 | G26: =IF(利用申込書2!$A$10="",$R$23,利用申込書2!$A$10) -> 1月0日 | H26: =VLOOKUP(T26,DATA!$B$2:$O$25,14,FALSE) -> 0 | J26: =利用申込書2!AG10 ->  | K26: =VLOOKUP($S26,$B$130:$D$151,3,FALSE) ->  | Q26: =IF(S26=102,101,IF(S26=209,208,S26)) -> 0 | R26: =PG!V40 -> 1月0日 | S26: =VLOOKUP(T26,DATA!$B$2:$O$25,14,FALSE) -> 0 | T26: =PG!D39 -> 0 | U26: =IF(利用申込書2!M10="",利用申込書2!R10,利用申込書2!R10+利用申込書2!M10) ->  | V26: =利用申込書2!W10 ->  | W26: =利用申込書2!AB10 ->  | X26: =IF(U26="",0,IF(OR($B26="ピアザH(準)",$B26="大会議室(準)"),7,IF(OR(PG!$I$2<12,PG!$I$2=12),B28,3))) -> 0 | Y26: =IF(V26="",0,IF(OR($B26="ピアザH(準)",$B26="大会議室(準)"),7,IF(OR(PG!$J$2<13,PG!$J$2=13),3,$B28))) -> 0 | Z26: =IF(W26="",0,IF(OR($B26="ピアザH(準)",$B26="大会議室(準)"),7,IF(PG!$J$2<18,3,$B28))) -> 0 | AA26: =IF(AND($P$2=1,U26<>""),利用申込書1!$Z$52,"") ->  | AB26: =IF(AND($P$2=1,U26<>""),利用申込書1!$AD$52,"") ->  | AC26: =IF(AND($P$2=1,U26="",V26<>""),利用申込書1!$Z$52,"") ->  | AD26: =IF(AND($P$2=1, U26="",V26<>""),利用申込書1!$AD$52,"") ->  | AE26: =IF(AND($P$2=1,U26="",V26="",W26<>""),利用申込書1!$Z$52,"") ->  | AF26: =IF(AND($P$2=1, U26="",V26="",W26<>""),利用申込書1!$AD$52,"") ->  | AG26: 0号室
C27: =IF(R27=R23,"",$C$3) ->  | D27: =PG!$Q$39 -> 18:00-21:00 | G27: =IF(利用申込書2!$A$10="",$R$23,利用申込書2!$A$10) -> 1月0日 | H27: =H26 -> 0 | Q27: =Q26+0.3 -> 0.3 | R27: =R26 -> 1月0日 | S27: =S26 -> 0 | AA27: =IF(AND($P$2=2,U26<>""),利用申込書1!$Z$52,"") ->  | AB27: =IF(AND($P$2=2,U26<>""),利用申込書1!$AD$52,"") ->  | AC27: =IF(AND($P$2=2,U26="",V26<>""),利用申込書1!$Z$52,"") ->  | AD27: =IF(AND($P$2=2,U26="",V26<>""),利用申込書1!$AD$52,"") ->  | AE27: =IF(AND($P$2=2,U26="",V26="",W26<>""),利用申込書1!$Z$52,"") ->  | AF27: =IF(AND($P$2=2, U26="",V26="",W26<>""),利用申込書1!$AD$52,"") ->  | AG27: 0号室
B28: =IF(T26=0,"",IF(VLOOKUP(T26,DATA!$B$28:$P$49,15,FALSE)>利用申込書1!$Y$23,利用申込書1!$Y$23,VLOOKUP(T26,DATA!$B$28:$P$49,15,FALSE))) ->  | C28: =PG!$H$1 -> ：～： | D28: =CHOOSE(PG!H39,VLOOKUP(S26,DATA!$A$129:$N$151,3,FALSE),VLOOKUP(S26,DATA!$A$129:$N$151,4,FALSE),VLOOKUP(S26,DATA!$A$129:$N$151,5,FALSE),VLOOKUP(S26,DATA!$A$129:$N$151,6,FALSE),VLOOKUP(S26,DATA!$A$129:$N$151,7,FALSE),VLOOKUP(S26,DATA!$A$129:$N$151,8,FALSE),VLOOKUP(S26,DATA!$A$129:$N$151,9,FALSE),VLOOKUP(S26,DATA!$A$129:$N$151,10,FALSE),VLOOKUP(S26,DATA!$A$129:$N$151,11,FALSE),VLOOKUP(S26,DATA!$A$129:$N$151,12,FALSE),VLOOKUP(S26,DATA!$A$129:$N$151,13,FALSE),VLOOKUP(S26,DATA!$A$129:$N$151,14,FALSE),"") ->  | G28: =IF(利用申込書2!$A$10="",$R$23,利用申込書2!$A$10) -> 1月0日 | H28: =H26 -> 0 | R28: =R26 -> 1月0日 | S28: =S26 -> 0 | AG28: 0号室
B29: =IF(T29=0,"",VLOOKUP(T29,DATA!$B$28:$O$49,14,FALSE)) ->  | C29: =IF(OR(B29="ピアザH(準)",B29="大会議室(準)"),"準備(掲示なし)",IF(AND(R26=R29, B26<>"ピアザH(準)"),"同上",利用申込書1!$F$21)) -> 同上 | D29: =PG!$O$43 -> 夜間 | G29: =IF(利用申込書2!$A$12="",$R$26,利用申込書2!$A$12) -> 1月0日 | H29: =VLOOKUP(T29,DATA!$B$2:$O$25,14,FALSE) -> 0 | J29: =利用申込書2!AG12 ->  | K29: =VLOOKUP($S29,$B$130:$D$151,3,FALSE) ->  | Q29: =IF(S29=102,101,IF(S29=209,208,S29)) -> 0 | R29: =PG!V44 -> 1月0日 | S29: =VLOOKUP(T29,DATA!$B$2:$O$25,14,FALSE) -> 0 | T29: =PG!D43 -> 0 | U29: =IF(利用申込書2!M12="",利用申込書2!R12,利用申込書2!R12+利用申込書2!M12) ->  | V29: =利用申込書2!W12 ->  | W29: =利用申込書2!AB12 ->  | X29: =IF(U29="",0,IF(OR($B29="ピアザH(準)",$B29="大会議室(準)"),7,IF(OR(PG!$I$2<12,PG!$I$2=12),B31,3))) -> 0 | Y29: =IF(V29="",0,IF(OR($B29="ピアザH(準)",$B29="大会議室(準)"),7,IF(OR(PG!$J$2<13,PG!$J$2=13),3,$B31))) -> 0 | Z29: =IF(W29="",0,IF(OR($B29="ピアザH(準)",$B29="大会議室(準)"),7,IF(PG!$J$2<18,3,$B31))) -> 0 | AA29: =IF(AND($P$2=1,U29<>""),利用申込書1!$Z$52,"") ->  | AB29: =IF(AND($P$2=1,U29<>""),利用申込書1!$AD$52,"") ->  | AC29: =IF(AND($P$2=1,U29="",V29<>""),利用申込書1!$Z$52,"") ->  | AD29: =IF(AND($P$2=1, U29="",V29<>""),利用申込書1!$AD$52,"") ->  | AE29: =IF(AND($P$2=1,U29="",V29="",W29<>""),利用申込書1!$Z$52,"") ->  | AF29: =IF(AND($P$2=1, U29="",V29="",W29<>""),利用申込書1!$AD$52,"") ->  | AG29: 0号室
C30: =IF(R30=R26,"",$C$3) ->  | D30: =PG!$Q$43 -> 18:00-21:00 | G30: =IF(利用申込書2!$A$12="",$R$26,利用申込書2!$A$12) -> 1月0日 | H30: =H29 -> 0 | Q30: =Q29+0.3 -> 0.3 | R30: =R29 -> 1月0日 | S30: =S29 -> 0 | AA30: =IF(AND($P$2=2,U29<>""),利用申込書1!$Z$52,"") ->  | AB30: =IF(AND($P$2=2,U29<>""),利用申込書1!$AD$52,"") ->  | AC30: =IF(AND($P$2=2,U29="",V29<>""),利用申込書1!$Z$52,"") ->  | AD30: =IF(AND($P$2=2,U29="",V29<>""),利用申込書1!$AD$52,"") ->  | AE30: =IF(AND($P$2=2,U29="",V29="",W29<>""),利用申込書1!$Z$52,"") ->  | AF30: =IF(AND($P$2=2, U29="",V29="",W29<>""),利用申込書1!$AD$52,"") ->  | AG30: 0号室
B31: =IF(T29=0,"",IF(VLOOKUP(T29,DATA!$B$28:$P$49,15,FALSE)>利用申込書1!$Y$23,利用申込書1!$Y$23,VLOOKUP(T29,DATA!$B$28:$P$49,15,FALSE))) ->  | C31: =PG!$H$1 -> ：～： | D31: =CHOOSE(PG!H43,VLOOKUP(S29,DATA!$A$129:$N$151,3,FALSE),VLOOKUP(S29,DATA!$A$129:$N$151,4,FALSE),VLOOKUP(S29,DATA!$A$129:$N$151,5,FALSE),VLOOKUP(S29,DATA!$A$129:$N$151,6,FALSE),VLOOKUP(S29,DATA!$A$129:$N$151,7,FALSE),VLOOKUP(S29,DATA!$A$129:$N$151,8,FALSE),VLOOKUP(S29,DATA!$A$129:$N$151,9,FALSE),VLOOKUP(S29,DATA!$A$129:$N$151,10,FALSE),VLOOKUP(S29,DATA!$A$129:$N$151,11,FALSE),VLOOKUP(S29,DATA!$A$129:$N$151,12,FALSE),VLOOKUP(S29,DATA!$A$129:$N$151,13,FALSE),VLOOKUP(S29,DATA!$A$129:$N$151,14,FALSE),"") ->  | G31: =IF(利用申込書2!$A$12="",$R$26,利用申込書2!$A$12) -> 1月0日 | H31: =H29 -> 0 | R31: =R29 -> 1月0日 | S31: =S29 -> 0 | AG31: 0号室
B32: =IF(T32=0,"",VLOOKUP(T32,DATA!$B$28:$O$49,14,FALSE)) ->  | C32: =IF(OR(B32="ピアザH(準)",B32="大会議室(準)"),"準備(掲示なし)",IF(AND(R29=R32, B29<>"ピアザH(準)"),"同上",利用申込書1!$F$21)) -> 同上 | D32: =PG!$O$47 -> 夜間 | G32: =IF(利用申込書2!$A$14="",$R$29,利用申込書2!$A$14) -> 1月0日 | H32: =VLOOKUP(T32,DATA!$B$2:$O$25,14,FALSE) -> 0 | J32: =利用申込書2!AG14 ->  | K32: =VLOOKUP($S32,$B$130:$D$151,3,FALSE) ->  | Q32: =IF(S32=102,101,IF(S32=209,208,S32)) -> 0 | R32: =PG!V48 -> 1月0日 | S32: =VLOOKUP(T32,DATA!$B$2:$O$25,14,FALSE) -> 0 | T32: =PG!D47 -> 0 | U32: =IF(利用申込書2!M14="",利用申込書2!R14,利用申込書2!R14+利用申込書2!M14) ->  | V32: =利用申込書2!W14 ->  | W32: =利用申込書2!AB14 ->  | X32: =IF(U32="",0,IF(OR($B32="ピアザH(準)",$B32="大会議室(準)"),7,IF(OR(PG!$I$2<12,PG!$I$2=12),B34,3))) -> 0 | Y32: =IF(V32="",0,IF(OR($B32="ピアザH(準)",$B32="大会議室(準)"),7,IF(OR(PG!$J$2<13,PG!$J$2=13),3,$B34))) -> 0 | Z32: =IF(W32="",0,IF(OR($B32="ピアザH(準)",$B32="大会議室(準)"),7,IF(PG!$J$2<18,3,$B34))) -> 0 | AA32: =IF(AND($P$2=1,U32<>""),利用申込書1!$Z$52,"") ->  | AB32: =IF(AND($P$2=1,U32<>""),利用申込書1!$AD$52,"") ->  | AC32: =IF(AND($P$2=1,U32="",V32<>""),利用申込書1!$Z$52,"") ->  | AD32: =IF(AND($P$2=1, U32="",V32<>""),利用申込書1!$AD$52,"") ->  | AE32: =IF(AND($P$2=1,U32="",V32="",W32<>""),利用申込書1!$Z$52,"") ->  | AF32: =IF(AND($P$2=1, U32="",V32="",W32<>""),利用申込書1!$AD$52,"") ->  | AG32: 0号室
C33: =IF(R33=R29,"",$C$3) ->  | D33: =PG!$Q$47 -> 18:00-21:00 | G33: =IF(利用申込書2!$A$14="",$R$29,利用申込書2!$A$14) -> 1月0日 | H33: =H32 -> 0 | Q33: =Q32+0.3 -> 0.3 | R33: =R32 -> 1月0日 | S33: =S32 -> 0 | AA33: =IF(AND($P$2=2,U32<>""),利用申込書1!$Z$52,"") ->  | AB33: =IF(AND($P$2=2,U32<>""),利用申込書1!$AD$52,"") ->  | AC33: =IF(AND($P$2=2,U32="",V32<>""),利用申込書1!$Z$52,"") ->  | AD33: =IF(AND($P$2=2,U32="",V32<>""),利用申込書1!$AD$52,"") ->  | AE33: =IF(AND($P$2=2,U32="",V32="",W32<>""),利用申込書1!$Z$52,"") ->  | AF33: =IF(AND($P$2=2, U32="",V32="",W32<>""),利用申込書1!$AD$52,"") ->  | AG33: 0号室
B34: =IF(T32=0,"",IF(VLOOKUP(T32,DATA!$B$28:$P$49,15,FALSE)>利用申込書1!$Y$23,利用申込書1!$Y$23,VLOOKUP(T32,DATA!$B$28:$P$49,15,FALSE))) ->  | C34: =PG!$H$1 -> ：～： | D34: =CHOOSE(PG!H47,VLOOKUP(S32,DATA!$A$129:$N$151,3,FALSE),VLOOKUP(S32,DATA!$A$129:$N$151,4,FALSE),VLOOKUP(S32,DATA!$A$129:$N$151,5,FALSE),VLOOKUP(S32,DATA!$A$129:$N$151,6,FALSE),VLOOKUP(S32,DATA!$A$129:$N$151,7,FALSE),VLOOKUP(S32,DATA!$A$129:$N$151,8,FALSE),VLOOKUP(S32,DATA!$A$129:$N$151,9,FALSE),VLOOKUP(S32,DATA!$A$129:$N$151,10,FALSE),VLOOKUP(S32,DATA!$A$129:$N$151,11,FALSE),VLOOKUP(S32,DATA!$A$129:$N$151,12,FALSE),VLOOKUP(S32,DATA!$A$129:$N$151,13,FALSE),VLOOKUP(S32,DATA!$A$129:$N$151,14,FALSE),"") ->  | G34: =IF(利用申込書2!$A$14="",$R$29,利用申込書2!$A$14) -> 1月0日 | H34: =H32 -> 0 | R34: =R32 -> 1月0日 | S34: =S32 -> 0 | AG34: 0号室
B35: =IF(T35=0,"",VLOOKUP(T35,DATA!$B$28:$O$49,14,FALSE)) ->  | C35: =IF(OR(B35="ピアザH(準)",B35="大会議室(準)"),"準備(掲示なし)",IF(AND(R32=R35, B32<>"ピアザH(準)"),"同上",利用申込書1!$F$21)) -> 同上 | D35: =PG!$O$51 -> 夜間 | G35: =IF(利用申込書2!$A$16="",$R$32,利用申込書2!$A$16) -> 1月0日 | H35: =VLOOKUP(T35,DATA!$B$2:$O$25,14,FALSE) -> 0 | J35: =利用申込書2!AG16 ->  | K35: =VLOOKUP($S35,$B$130:$D$151,3,FALSE) ->  | Q35: =IF(S35=102,101,IF(S35=209,208,S35)) -> 0 | R35: =PG!V52 -> 1月0日 | S35: =VLOOKUP(T35,DATA!$B$2:$O$25,14,FALSE) -> 0 | T35: =PG!D51 -> 0 | U35: =IF(利用申込書2!M16="",利用申込書2!R16,利用申込書2!R16+利用申込書2!M16) ->  | V35: =利用申込書2!W16 ->  | W35: =利用申込書2!AB16 ->  | X35: =IF(U35="",0,IF(OR($B35="ピアザH(準)",$B35="大会議室(準)"),7,IF(OR(PG!$I$2<12,PG!$I$2=12),B37,3))) -> 0 | Y35: =IF(V35="",0,IF(OR($B35="ピアザH(準)",$B35="大会議室(準)"),7,IF(OR(PG!$J$2<13,PG!$J$2=13),3,$B37))) -> 0 | Z35: =IF(W35="",0,IF(OR($B35="ピアザH(準)",$B35="大会議室(準)"),7,IF(PG!$J$2<18,3,$B37))) -> 0 | AA35: =IF(AND($P$2=1,U35<>""),利用申込書1!$Z$52,"") ->  | AB35: =IF(AND($P$2=1,U35<>""),利用申込書1!$AD$52,"") ->  | AC35: =IF(AND($P$2=1,U35="",V35<>""),利用申込書1!$Z$52,"") ->  | AD35: =IF(AND($P$2=1, U35="",V35<>""),利用申込書1!$AD$52,"") ->  | AE35: =IF(AND($P$2=1,U35="",V35="",W35<>""),利用申込書1!$Z$52,"") ->  | AF35: =IF(AND($P$2=1, U35="",V35="",W35<>""),利用申込書1!$AD$52,"") ->  | AG35: 0号室
C36: =IF(R36=R32,"",$C$3) ->  | D36: =PG!$Q$51 -> 18:00-21:00 | G36: =IF(利用申込書2!$A$16="",$R$32,利用申込書2!$A$16) -> 1月0日 | H36: =H35 -> 0 | Q36: =Q35+0.3 -> 0.3 | R36: =R35 -> 1月0日 | S36: =S35 -> 0 | AA36: =IF(AND($P$2=2,U35<>""),利用申込書1!$Z$52,"") ->  | AB36: =IF(AND($P$2=2,U35<>""),利用申込書1!$AD$52,"") ->  | AC36: =IF(AND($P$2=2,U35="",V35<>""),利用申込書1!$Z$52,"") ->  | AD36: =IF(AND($P$2=2,U35="",V35<>""),利用申込書1!$AD$52,"") ->  | AE36: =IF(AND($P$2=2,U35="",V35="",W35<>""),利用申込書1!$Z$52,"") ->  | AF36: =IF(AND($P$2=2, U35="",V35="",W35<>""),利用申込書1!$AD$52,"") ->  | AG36: 0号室
B37: =IF(T35=0,"",IF(VLOOKUP(T35,DATA!$B$28:$P$49,15,FALSE)>利用申込書1!$Y$23,利用申込書1!$Y$23,VLOOKUP(T35,DATA!$B$28:$P$49,15,FALSE))) ->  | C37: =PG!$H$1 -> ：～： | D37: =CHOOSE(PG!H51,VLOOKUP(S35,DATA!$A$129:$N$151,3,FALSE),VLOOKUP(S35,DATA!$A$129:$N$151,4,FALSE),VLOOKUP(S35,DATA!$A$129:$N$151,5,FALSE),VLOOKUP(S35,DATA!$A$129:$N$151,6,FALSE),VLOOKUP(S35,DATA!$A$129:$N$151,7,FALSE),VLOOKUP(S35,DATA!$A$129:$N$151,8,FALSE),VLOOKUP(S35,DATA!$A$129:$N$151,9,FALSE),VLOOKUP(S35,DATA!$A$129:$N$151,10,FALSE),VLOOKUP(S35,DATA!$A$129:$N$151,11,FALSE),VLOOKUP(S35,DATA!$A$129:$N$151,12,FALSE),VLOOKUP(S35,DATA!$A$129:$N$151,13,FALSE),VLOOKUP(S35,DATA!$A$129:$N$151,14,FALSE),"") ->  | G37: =IF(利用申込書2!$A$16="",$R$32,利用申込書2!$A$16) -> 1月0日 | H37: =H35 -> 0 | R37: =R35 -> 1月0日 | S37: =S35 -> 0 | AG37: 0号室
B38: =IF(T38=0,"",VLOOKUP(T38,DATA!$B$28:$O$49,14,FALSE)) ->  | C38: =IF(OR(B38="ピアザH(準)",B38="大会議室(準)"),"準備(掲示なし)",IF(AND(R35=R38, B35<>"ピアザH(準)"),"同上",利用申込書1!$F$21)) -> 同上 | D38: =PG!$O$55 -> 夜間 | G38: =IF(利用申込書2!$A$18="",$R$35,利用申込書2!$A$18) -> 1月0日 | H38: =VLOOKUP(T38,DATA!$B$2:$O$25,14,FALSE) -> 0 | J38: =利用申込書2!AG18 ->  | K38: =VLOOKUP($S38,$B$130:$D$151,3,FALSE) ->  | Q38: =IF(S38=102,101,IF(S38=209,208,S38)) -> 0 | R38: =PG!V56 -> 1月0日 | S38: =VLOOKUP(T38,DATA!$B$2:$O$25,14,FALSE) -> 0 | T38: =PG!D55 -> 0 | U38: =IF(利用申込書2!M18="",利用申込書2!R18,利用申込書2!R18+利用申込書2!M18) ->  | V38: =利用申込書2!W18 ->  | W38: =利用申込書2!AB18 ->  | X38: =IF(U38="",0,IF(OR($B38="ピアザH(準)",$B38="大会議室(準)"),7,IF(OR(PG!$I$2<12,PG!$I$2=12),B40,3))) -> 0 | Y38: =IF(V38="",0,IF(OR($B38="ピアザH(準)",$B38="大会議室(準)"),7,IF(OR(PG!$J$2<13,PG!$J$2=13),3,$B40))) -> 0 | Z38: =IF(W38="",0,IF(OR($B38="ピアザH(準)",$B38="大会議室(準)"),7,IF(PG!$J$2<18,3,$B40))) -> 0 | AA38: =IF(AND($P$2=1,U38<>""),利用申込書1!$Z$52,"") ->  | AB38: =IF(AND($P$2=1,U38<>""),利用申込書1!$AD$52,"") ->  | AC38: =IF(AND($P$2=1,U38="",V38<>""),利用申込書1!$Z$52,"") ->  | AD38: =IF(AND($P$2=1, U38="",V38<>""),利用申込書1!$AD$52,"") ->  | AE38: =IF(AND($P$2=1,U38="",V38="",W38<>""),利用申込書1!$Z$52,"") ->  | AF38: =IF(AND($P$2=1, U38="",V38="",W38<>""),利用申込書1!$AD$52,"") ->  | AG38: 0号室
C39: =IF(R39=R35,"",$C$3) ->  | D39: =PG!$Q$55 -> 18:00-21:00 | G39: =IF(利用申込書2!$A$18="",$R$35,利用申込書2!$A$18) -> 1月0日 | H39: =H38 -> 0 | Q39: =Q38+0.3 -> 0.3 | R39: =R38 -> 1月0日 | S39: =S38 -> 0 | AA39: =IF(AND($P$2=2,U38<>""),利用申込書1!$Z$52,"") ->  | AB39: =IF(AND($P$2=2,U38<>""),利用申込書1!$AD$52,"") ->  | AC39: =IF(AND($P$2=2,U38="",V38<>""),利用申込書1!$Z$52,"") ->  | AD39: =IF(AND($P$2=2,U38="",V38<>""),利用申込書1!$AD$52,"") ->  | AE39: =IF(AND($P$2=2,U38="",V38="",W38<>""),利用申込書1!$Z$52,"") ->  | AF39: =IF(AND($P$2=2, U38="",V38="",W38<>""),利用申込書1!$AD$52,"") ->  | AG39: =S39&"号室" -> 0号室
B40: =IF(T38=0,"",IF(VLOOKUP(T38,DATA!$B$28:$P$49,15,FALSE)>利用申込書1!$Y$23,利用申込書1!$Y$23,VLOOKUP(T38,DATA!$B$28:$P$49,15,FALSE))) ->  | C40: =PG!$H$1 -> ：～： | D40: =CHOOSE(PG!H55,VLOOKUP(S38,DATA!$A$129:$N$151,3,FALSE),VLOOKUP(S38,DATA!$A$129:$N$151,4,FALSE),VLOOKUP(S38,DATA!$A$129:$N$151,5,FALSE),VLOOKUP(S38,DATA!$A$129:$N$151,6,FALSE),VLOOKUP(S38,DATA!$A$129:$N$151,7,FALSE),VLOOKUP(S38,DATA!$A$129:$N$151,8,FALSE),VLOOKUP(S38,DATA!$A$129:$N$151,9,FALSE),VLOOKUP(S38,DATA!$A$129:$N$151,10,FALSE),VLOOKUP(S38,DATA!$A$129:$N$151,11,FALSE),VLOOKUP(S38,DATA!$A$129:$N$151,12,FALSE),VLOOKUP(S38,DATA!$A$129:$N$151,13,FALSE),VLOOKUP(S38,DATA!$A$129:$N$151,14,FALSE),"") ->  | G40: =IF(利用申込書2!$A$18="",$R$35,利用申込書2!$A$18) -> 1月0日 | H40: =H38 -> 0 | R40: =R38 -> 1月0日 | S40: =S38 -> 0 | AG40: 0号室
B41: =IF(T41=0,"",VLOOKUP(T41,DATA!$B$28:$O$49,14,FALSE)) ->  | C41: =IF(OR(B41="ピアザH(準)",B41="大会議室(準)"),"準備(掲示なし)",IF(AND(R38=R41, B38<>"ピアザH(準)"),"同上",利用申込書1!$F$21)) -> 同上 | D41: =PG!$O$59 -> 夜間 | G41: =IF(利用申込書2!$A$20="",$R$38,利用申込書2!$A$20) -> 1月0日 | H41: =VLOOKUP(T41,DATA!$B$2:$O$25,14,FALSE) -> 0 | J41: =利用申込書2!AG20 ->  | K41: =VLOOKUP($S41,$B$130:$D$151,3,FALSE) ->  | Q41: =IF(S41=102,101,IF(S41=209,208,S41)) -> 0 | R41: =PG!V60 -> 1月0日 | S41: =VLOOKUP(T41,DATA!$B$2:$O$25,14,FALSE) -> 0 | T41: =PG!D59 -> 0 | U41: =IF(利用申込書2!M20="",利用申込書2!R20,利用申込書2!R20+利用申込書2!M20) ->  | V41: =利用申込書2!W20 ->  | W41: =利用申込書2!AB20 ->  | X41: =IF(U41="",0,IF(OR($B41="ピアザH(準)",$B41="大会議室(準)"),7,IF(OR(PG!$I$2<12,PG!$I$2=12),B43,3))) -> 0 | Y41: =IF(V41="",0,IF(OR($B41="ピアザH(準)",$B41="大会議室(準)"),7,IF(OR(PG!$J$2<13,PG!$J$2=13),3,$B43))) -> 0 | Z41: =IF(W41="",0,IF(OR($B41="ピアザH(準)",$B41="大会議室(準)"),7,IF(PG!$J$2<18,3,$B43))) -> 0 | AA41: =IF(AND($P$2=1,U41<>""),利用申込書1!$Z$52,"") ->  | AB41: =IF(AND($P$2=1,U41<>""),利用申込書1!$AD$52,"") ->  | AC41: =IF(AND($P$2=1,U41="",V41<>""),利用申込書1!$Z$52,"") ->  | AD41: =IF(AND($P$2=1, U41="",V41<>""),利用申込書1!$AD$52,"") ->  | AE41: =IF(AND($P$2=1,U41="",V41="",W41<>""),利用申込書1!$Z$52,"") ->  | AF41: =IF(AND($P$2=1, U41="",V41="",W41<>""),利用申込書1!$AD$52,"") ->  | AG41: 0号室
C42: =IF(R42=R38,"",$C$3) ->  | D42: =PG!$Q$59 -> 18:00-21:00 | G42: =IF(利用申込書2!$A$20="",$R$38,利用申込書2!$A$20) -> 1月0日 | H42: =H41 -> 0 | Q42: =Q41+0.3 -> 0.3 | R42: =R41 -> 1月0日 | S42: =S41 -> 0 | AA42: =IF(AND($P$2=2,U41<>""),利用申込書1!$Z$52,"") ->  | AB42: =IF(AND($P$2=2,U41<>""),利用申込書1!$AD$52,"") ->  | AC42: =IF(AND($P$2=2,U41="",V41<>""),利用申込書1!$Z$52,"") ->  | AD42: =IF(AND($P$2=2,U41="",V41<>""),利用申込書1!$AD$52,"") ->  | AE42: =IF(AND($P$2=2,U41="",V41="",W41<>""),利用申込書1!$Z$52,"") ->  | AF42: =IF(AND($P$2=2, U41="",V41="",W41<>""),利用申込書1!$AD$52,"") ->  | AG42: 0号室
B43: =IF(T41=0,"",IF(VLOOKUP(T41,DATA!$B$28:$P$49,15,FALSE)>利用申込書1!$Y$23,利用申込書1!$Y$23,VLOOKUP(T41,DATA!$B$28:$P$49,15,FALSE))) ->  | C43: =PG!$H$1 -> ：～： | D43: =CHOOSE(PG!H59,VLOOKUP(S41,DATA!$A$129:$N$151,3,FALSE),VLOOKUP(S41,DATA!$A$129:$N$151,4,FALSE),VLOOKUP(S41,DATA!$A$129:$N$151,5,FALSE),VLOOKUP(S41,DATA!$A$129:$N$151,6,FALSE),VLOOKUP(S41,DATA!$A$129:$N$151,7,FALSE),VLOOKUP(S41,DATA!$A$129:$N$151,8,FALSE),VLOOKUP(S41,DATA!$A$129:$N$151,9,FALSE),VLOOKUP(S41,DATA!$A$129:$N$151,10,FALSE),VLOOKUP(S41,DATA!$A$129:$N$151,11,FALSE),VLOOKUP(S41,DATA!$A$129:$N$151,12,FALSE),VLOOKUP(S41,DATA!$A$129:$N$151,13,FALSE),VLOOKUP(S41,DATA!$A$129:$N$151,14,FALSE),"") ->  | G43: =IF(利用申込書2!$A$20="",$R$38,利用申込書2!$A$20) -> 1月0日 | H43: =H41 -> 0 | R43: =R41 -> 1月0日 | S43: =S41 -> 0 | AG43: 0号室
B44: =IF(T44=0,"",VLOOKUP(T44,DATA!$B$28:$O$49,14,FALSE)) ->  | C44: =IF(OR(B44="ピアザH(準)",B44="大会議室(準)"),"準備(掲示なし)",IF(AND(R41=R44, B41<>"ピアザH(準)"),"同上",利用申込書1!$F$21)) -> 同上 | D44: =PG!$O$63 -> 夜間 | G44: =IF(利用申込書2!$A$22="",$R$41,利用申込書2!$A$22) -> 1月0日 | H44: =VLOOKUP(T44,DATA!$B$2:$O$25,14,FALSE) -> 0 | J44: =利用申込書2!AG22 ->  | K44: =VLOOKUP($S44,$B$130:$D$151,3,FALSE) ->  | Q44: =IF(S44=102,101,IF(S44=209,208,S44)) -> 0 | R44: =PG!V64 -> 1月0日 | S44: =VLOOKUP(T44,DATA!$B$2:$O$25,14,FALSE) -> 0 | T44: =PG!D63 -> 0 | U44: =IF(利用申込書2!M22="",利用申込書2!R22,利用申込書2!R22+利用申込書2!M22) ->  | V44: =利用申込書2!W22 ->  | W44: =利用申込書2!AB22 ->  | X44: =IF(U44="",0,IF(OR($B44="ピアザH(準)",$B44="大会議室(準)"),7,IF(OR(PG!$I$2<12,PG!$I$2=12),B46,3))) -> 0 | Y44: =IF(V44="",0,IF(OR($B44="ピアザH(準)",$B44="大会議室(準)"),7,IF(OR(PG!$J$2<13,PG!$J$2=13),3,$B46))) -> 0 | Z44: =IF(W44="",0,IF(OR($B44="ピアザH(準)",$B44="大会議室(準)"),7,IF(PG!$J$2<18,3,$B46))) -> 0 | AA44: =IF(AND($P$2=1,U44<>""),利用申込書1!$Z$52,"") ->  | AB44: =IF(AND($P$2=1,U44<>""),利用申込書1!$AD$52,"") ->  | AC44: =IF(AND($P$2=1,U44="",V44<>""),利用申込書1!$Z$52,"") ->  | AD44: =IF(AND($P$2=1, U44="",V44<>""),利用申込書1!$AD$52,"") ->  | AE44: =IF(AND($P$2=1,U44="",V44="",W44<>""),利用申込書1!$Z$52,"") ->  | AF44: =IF(AND($P$2=1, U44="",V44="",W44<>""),利用申込書1!$AD$52,"") ->  | AG44: 0号室
C45: =IF(R45=R41,"",$C$3) ->  | D45: =PG!$Q$63 -> 18:00-21:00 | G45: =IF(利用申込書2!$A$22="",$R$41,利用申込書2!$A$22) -> 1月0日 | H45: =H44 -> 0 | Q45: =Q44+0.3 -> 0.3 | R45: =R44 -> 1月0日 | S45: =S44 -> 0 | AA45: =IF(AND($P$2=2,U44<>""),利用申込書1!$Z$52,"") ->  | AB45: =IF(AND($P$2=2,U44<>""),利用申込書1!$AD$52,"") ->  | AC45: =IF(AND($P$2=2,U44="",V44<>""),利用申込書1!$Z$52,"") ->  | AD45: =IF(AND($P$2=2,U44="",V44<>""),利用申込書1!$AD$52,"") ->  | AE45: =IF(AND($P$2=2,U44="",V44="",W44<>""),利用申込書1!$Z$52,"") ->  | AF45: =IF(AND($P$2=2, U44="",V44="",W44<>""),利用申込書1!$AD$52,"") ->  | AG45: 0号室
B46: =IF(T44=0,"",IF(VLOOKUP(T44,DATA!$B$28:$P$49,15,FALSE)>利用申込書1!$Y$23,利用申込書1!$Y$23,VLOOKUP(T44,DATA!$B$28:$P$49,15,FALSE))) ->  | C46: =PG!$H$1 -> ：～： | D46: =CHOOSE(PG!H63,VLOOKUP(S44,DATA!$A$129:$N$151,3,FALSE),VLOOKUP(S44,DATA!$A$129:$N$151,4,FALSE),VLOOKUP(S44,DATA!$A$129:$N$151,5,FALSE),VLOOKUP(S44,DATA!$A$129:$N$151,6,FALSE),VLOOKUP(S44,DATA!$A$129:$N$151,7,FALSE),VLOOKUP(S44,DATA!$A$129:$N$151,8,FALSE),VLOOKUP(S44,DATA!$A$129:$N$151,9,FALSE),VLOOKUP(S44,DATA!$A$129:$N$151,10,FALSE),VLOOKUP(S44,DATA!$A$129:$N$151,11,FALSE),VLOOKUP(S44,DATA!$A$129:$N$151,12,FALSE),VLOOKUP(S44,DATA!$A$129:$N$151,13,FALSE),VLOOKUP(S44,DATA!$A$129:$N$151,14,FALSE),"") ->  | G46: =IF(利用申込書2!$A$22="",$R$41,利用申込書2!$A$22) -> 1月0日 | H46: =H44 -> 0 | R46: =R44 -> 1月0日 | S46: =S44 -> 0 | AG46: 0号室
B47: =IF(T47=0,"",VLOOKUP(T47,DATA!$B$28:$O$49,14,FALSE)) ->  | C47: =IF(OR(B47="ピアザH(準)",B47="大会議室(準)"),"準備(掲示なし)",IF(AND(R44=R47, B44<>"ピアザH(準)"),"同上",利用申込書1!$F$21)) -> 同上 | D47: =PG!$O$67 -> 夜間 | G47: =IF(利用申込書2!$A$24="",$R$44,利用申込書2!$A$24) -> 1月0日 | H47: =VLOOKUP(T47,DATA!$B$2:$O$25,14,FALSE) -> 0 | J47: =利用申込書2!AG24 ->  | K47: =VLOOKUP($S47,$B$130:$D$151,3,FALSE) ->  | Q47: =IF(S47=102,101,IF(S47=209,208,S47)) -> 0 | R47: =PG!V68 -> 1月0日 | S47: =VLOOKUP(T47,DATA!$B$2:$O$25,14,FALSE) -> 0 | T47: =PG!D67 -> 0 | U47: =IF(利用申込書2!M24="",利用申込書2!R24,利用申込書2!R24+利用申込書2!M24) ->  | V47: =利用申込書2!W24 ->  | W47: =利用申込書2!AB24 ->  | X47: =IF(U47="",0,IF(OR($B47="ピアザH(準)",$B47="大会議室(準)"),7,IF(OR(PG!$I$2<12,PG!$I$2=12),B49,3))) -> 0 | Y47: =IF(V47="",0,IF(OR($B47="ピアザH(準)",$B47="大会議室(準)"),7,IF(OR(PG!$J$2<13,PG!$J$2=13),3,$B49))) -> 0 | Z47: =IF(W47="",0,IF(OR($B47="ピアザH(準)",$B47="大会議室(準)"),7,IF(PG!$J$2<18,3,$B49))) -> 0 | AA47: =IF(AND($P$2=1,U47<>""),利用申込書1!$Z$52,"") ->  | AB47: =IF(AND($P$2=1,U47<>""),利用申込書1!$AD$52,"") ->  | AC47: =IF(AND($P$2=1,U47="",V47<>""),利用申込書1!$Z$52,"") ->  | AD47: =IF(AND($P$2=1, U47="",V47<>""),利用申込書1!$AD$52,"") ->  | AE47: =IF(AND($P$2=1,U47="",V47="",W47<>""),利用申込書1!$Z$52,"") ->  | AF47: =IF(AND($P$2=1, U47="",V47="",W47<>""),利用申込書1!$AD$52,"") ->  | AG47: 0号室
C48: =IF(R48=R44,"",$C$3) ->  | D48: =PG!$Q$67 -> 18:00-21:00 | G48: =IF(利用申込書2!$A$24="",$R$44,利用申込書2!$A$24) -> 1月0日 | H48: =H47 -> 0 | Q48: =Q47+0.3 -> 0.3 | R48: =R47 -> 1月0日 | S48: =S47 -> 0 | AA48: =IF(AND($P$2=2,U47<>""),利用申込書1!$Z$52,"") ->  | AB48: =IF(AND($P$2=2,U47<>""),利用申込書1!$AD$52,"") ->  | AC48: =IF(AND($P$2=2,U47="",V47<>""),利用申込書1!$Z$52,"") ->  | AD48: =IF(AND($P$2=2,U47="",V47<>""),利用申込書1!$AD$52,"") ->  | AE48: =IF(AND($P$2=2,U47="",V47="",W47<>""),利用申込書1!$Z$52,"") ->  | AF48: =IF(AND($P$2=2, U47="",V47="",W47<>""),利用申込書1!$AD$52,"") ->  | AG48: 0号室
B49: =IF(T47=0,"",IF(VLOOKUP(T47,DATA!$B$28:$P$49,15,FALSE)>利用申込書1!$Y$23,利用申込書1!$Y$23,VLOOKUP(T47,DATA!$B$28:$P$49,15,FALSE))) ->  | C49: =PG!$H$1 -> ：～： | D49: =CHOOSE(PG!H67,VLOOKUP(S47,DATA!$A$129:$N$151,3,FALSE),VLOOKUP(S47,DATA!$A$129:$N$151,4,FALSE),VLOOKUP(S47,DATA!$A$129:$N$151,5,FALSE),VLOOKUP(S47,DATA!$A$129:$N$151,6,FALSE),VLOOKUP(S47,DATA!$A$129:$N$151,7,FALSE),VLOOKUP(S47,DATA!$A$129:$N$151,8,FALSE),VLOOKUP(S47,DATA!$A$129:$N$151,9,FALSE),VLOOKUP(S47,DATA!$A$129:$N$151,10,FALSE),VLOOKUP(S47,DATA!$A$129:$N$151,11,FALSE),VLOOKUP(S47,DATA!$A$129:$N$151,12,FALSE),VLOOKUP(S47,DATA!$A$129:$N$151,13,FALSE),VLOOKUP(S47,DATA!$A$129:$N$151,14,FALSE),"") ->  | G49: =IF(利用申込書2!$A$24="",$R$44,利用申込書2!$A$24) -> 1月0日 | H49: =H47 -> 0 | R49: =R47 -> 1月0日 | S49: =S47 -> 0 | AG49: 0号室
B50: =IF(T50=0,"",VLOOKUP(T50,DATA!$B$28:$O$49,14,FALSE)) ->  | C50: =IF(OR(B50="ピアザH(準)",B50="大会議室(準)"),"準備(掲示なし)",IF(AND(R47=R50, B47<>"ピアザH(準)"),"同上",利用申込書1!$F$21)) -> 同上 | D50: =PG!$O$71 -> 夜間 | G50: =IF(利用申込書2!$A$26="",$R$47,利用申込書2!$A$26) -> 1月0日 | H50: =VLOOKUP(T50,DATA!$B$2:$O$25,14,FALSE) -> 0 | J50: =利用申込書2!AG26 ->  | K50: =VLOOKUP($S50,$B$130:$D$151,3,FALSE) ->  | Q50: =IF(S50=102,101,IF(S50=209,208,S50)) -> 0 | R50: =PG!V72 -> 1月0日 | S50: =VLOOKUP(T50,DATA!$B$2:$O$25,14,FALSE) -> 0 | T50: =PG!D71 -> 0 | U50: =IF(利用申込書2!M26="",利用申込書2!R26,利用申込書2!R26+利用申込書2!M26) ->  | V50: =利用申込書2!W26 ->  | W50: =利用申込書2!AB26 ->  | X50: =IF(U50="",0,IF(OR($B50="ピアザH(準)",$B50="大会議室(準)"),7,IF(OR(PG!$I$2<12,PG!$I$2=12),B52,3))) -> 0 | Y50: =IF(V50="",0,IF(OR($B50="ピアザH(準)",$B50="大会議室(準)"),7,IF(OR(PG!$J$2<13,PG!$J$2=13),3,$B52))) -> 0 | Z50: =IF(W50="",0,IF(OR($B50="ピアザH(準)",$B50="大会議室(準)"),7,IF(PG!$J$2<18,3,$B52))) -> 0 | AA50: =IF(AND($P$2=1,U50<>""),利用申込書1!$Z$52,"") ->  | AB50: =IF(AND($P$2=1,U50<>""),利用申込書1!$AD$52,"") ->  | AC50: =IF(AND($P$2=1,U50="",V50<>""),利用申込書1!$Z$52,"") ->  | AD50: =IF(AND($P$2=1, U50="",V50<>""),利用申込書1!$AD$52,"") ->  | AE50: =IF(AND($P$2=1,U50="",V50="",W50<>""),利用申込書1!$Z$52,"") ->  | AF50: =IF(AND($P$2=1, U50="",V50="",W50<>""),利用申込書1!$AD$52,"") ->  | AG50: 0号室
C51: =IF(R51=R47,"",$C$3) ->  | D51: =PG!$Q$71 -> 18:00-21:00 | G51: =IF(利用申込書2!$A$26="",$R$47,利用申込書2!$A$26) -> 1月0日 | H51: =H50 -> 0 | Q51: =Q50+0.3 -> 0.3 | R51: =R50 -> 1月0日 | S51: =S50 -> 0 | AA51: =IF(AND($P$2=2,U50<>""),利用申込書1!$Z$52,"") ->  | AB51: =IF(AND($P$2=2,U50<>""),利用申込書1!$AD$52,"") ->  | AC51: =IF(AND($P$2=2,U50="",V50<>""),利用申込書1!$Z$52,"") ->  | AD51: =IF(AND($P$2=2,U50="",V50<>""),利用申込書1!$AD$52,"") ->  | AE51: =IF(AND($P$2=2,U50="",V50="",W50<>""),利用申込書1!$Z$52,"") ->  | AF51: =IF(AND($P$2=2, U50="",V50="",W50<>""),利用申込書1!$AD$52,"") ->  | AG51: 0号室
B52: =IF(T50=0,"",IF(VLOOKUP(T50,DATA!$B$28:$P$49,15,FALSE)>利用申込書1!$Y$23,利用申込書1!$Y$23,VLOOKUP(T50,DATA!$B$28:$P$49,15,FALSE))) ->  | C52: =PG!$H$1 -> ：～： | D52: =CHOOSE(PG!H64,VLOOKUP(S50,DATA!$A$129:$N$151,3,FALSE),VLOOKUP(S50,DATA!$A$129:$N$151,4,FALSE),VLOOKUP(S50,DATA!$A$129:$N$151,5,FALSE),VLOOKUP(S50,DATA!$A$129:$N$151,6,FALSE),VLOOKUP(S50,DATA!$A$129:$N$151,7,FALSE),VLOOKUP(S50,DATA!$A$129:$N$151,8,FALSE),VLOOKUP(S50,DATA!$A$129:$N$151,9,FALSE),VLOOKUP(S50,DATA!$A$129:$N$151,10,FALSE),VLOOKUP(S50,DATA!$A$129:$N$151,11,FALSE),VLOOKUP(S50,DATA!$A$129:$N$151,12,FALSE),VLOOKUP(S50,DATA!$A$129:$N$151,13,FALSE),VLOOKUP(S50,DATA!$A$129:$N$151,14,FALSE),"") ->  | G52: =IF(利用申込書2!$A$26="",$R$47,利用申込書2!$A$26) -> 1月0日 | H52: =H50 -> 0 | R52: =R50 -> 1月0日 | S52: =S50 -> 0 | AG52: 0号室
B53: =IF(T53=0,"",VLOOKUP(T53,DATA!$B$28:$O$49,14,FALSE)) ->  | C53: =IF(OR(B53="ピアザH(準)",B53="大会議室(準)"),"準備(掲示なし)",IF(AND(R50=R53, B50<>"ピアザH(準)"),"同上",利用申込書1!$F$21)) -> 同上 | D53: =PG!$O$75 -> 夜間 | G53: =IF(利用申込書2!$A$28="",$R$50,利用申込書2!$A$28) -> 1月0日 | H53: =VLOOKUP(T53,DATA!$B$2:$O$25,14,FALSE) -> 0 | J53: =利用申込書2!AG28 ->  | K53: =VLOOKUP($S53,$B$130:$D$151,3,FALSE) ->  | Q53: =IF(S53=102,101,IF(S53=209,208,S53)) -> 0 | R53: =PG!V76 -> 1月0日 | S53: =VLOOKUP(T53,DATA!$B$2:$O$25,14,FALSE) -> 0 | T53: =PG!D75 -> 0 | U53: =IF(利用申込書2!M28="",利用申込書2!R28,利用申込書2!R28+利用申込書2!M28) ->  | V53: =利用申込書2!W28 ->  | W53: =利用申込書2!AB28 ->  | X53: =IF(U53="",0,IF(OR($B53="ピアザH(準)",$B53="大会議室(準)"),7,IF(OR(PG!$I$2<12,PG!$I$2=12),B55,3))) -> 0 | Y53: =IF(V53="",0,IF(OR($B53="ピアザH(準)",$B53="大会議室(準)"),7,IF(OR(PG!$J$2<13,PG!$J$2=13),3,$B55))) -> 0 | Z53: =IF(W53="",0,IF(OR($B53="ピアザH(準)",$B53="大会議室(準)"),7,IF(PG!$J$2<18,3,$B55))) -> 0 | AA53: =IF(AND($P$2=1,U53<>""),利用申込書1!$Z$52,"") ->  | AB53: =IF(AND($P$2=1,U53<>""),利用申込書1!$AD$52,"") ->  | AC53: =IF(AND($P$2=1,U53="",V53<>""),利用申込書1!$Z$52,"") ->  | AD53: =IF(AND($P$2=1, U53="",V53<>""),利用申込書1!$AD$52,"") ->  | AE53: =IF(AND($P$2=1,U53="",V53="",W53<>""),利用申込書1!$Z$52,"") ->  | AF53: =IF(AND($P$2=1, U53="",V53="",W53<>""),利用申込書1!$AD$52,"") ->  | AG53: 0号室
C54: =IF(R54=R50,"",$C$3) ->  | D54: =PG!$Q$75 -> 18:00-21:00 | G54: =IF(利用申込書2!$A$28="",$R$50,利用申込書2!$A$28) -> 1月0日 | H54: =H53 -> 0 | Q54: =Q53+0.3 -> 0.3 | R54: =R53 -> 1月0日 | S54: =S53 -> 0 | AA54: =IF(AND($P$2=2,U53<>""),利用申込書1!$Z$52,"") ->  | AB54: =IF(AND($P$2=2,U53<>""),利用申込書1!$AD$52,"") ->  | AC54: =IF(AND($P$2=2,U53="",V53<>""),利用申込書1!$Z$52,"") ->  | AD54: =IF(AND($P$2=2,U53="",V53<>""),利用申込書1!$AD$52,"") ->  | AE54: =IF(AND($P$2=2,U53="",V53="",W53<>""),利用申込書1!$Z$52,"") ->  | AF54: =IF(AND($P$2=2, U53="",V53="",W53<>""),利用申込書1!$AD$52,"") ->  | AG54: 0号室
B55: =IF(T53=0,"",IF(VLOOKUP(T53,DATA!$B$28:$P$49,15,FALSE)>利用申込書1!$Y$23,利用申込書1!$Y$23,VLOOKUP(T53,DATA!$B$28:$P$49,15,FALSE))) ->  | C55: =PG!$H$1 -> ：～： | D55: =CHOOSE(PG!H67,VLOOKUP(S53,DATA!$A$129:$N$151,3,FALSE),VLOOKUP(S53,DATA!$A$129:$N$151,4,FALSE),VLOOKUP(S53,DATA!$A$129:$N$151,5,FALSE),VLOOKUP(S53,DATA!$A$129:$N$151,6,FALSE),VLOOKUP(S53,DATA!$A$129:$N$151,7,FALSE),VLOOKUP(S53,DATA!$A$129:$N$151,8,FALSE),VLOOKUP(S53,DATA!$A$129:$N$151,9,FALSE),VLOOKUP(S53,DATA!$A$129:$N$151,10,FALSE),VLOOKUP(S53,DATA!$A$129:$N$151,11,FALSE),VLOOKUP(S53,DATA!$A$129:$N$151,12,FALSE),VLOOKUP(S53,DATA!$A$129:$N$151,13,FALSE),VLOOKUP(S53,DATA!$A$129:$N$151,14,FALSE),"") ->  | G55: =IF(利用申込書2!$A$28="",$R$50,利用申込書2!$A$28) -> 1月0日 | H55: =H53 -> 0 | R55: =R53 -> 1月0日 | S55: =S53 -> 0 | AG55: 0号室
B56: =IF(T56=0,"",VLOOKUP(T56,DATA!$B$28:$O$49,14,FALSE)) ->  | C56: =IF(OR(B56="ピアザH(準)",B56="大会議室(準)"),"準備(掲示なし)",IF(AND(R53=R56, B53<>"ピアザH(準)"),"同上",利用申込書1!$F$21)) -> 同上 | D56: =PG!$O$79 -> 夜間 | G56: =IF(利用申込書2!$A$30="",$R$53,利用申込書2!$A$30) -> 1月0日 | H56: =VLOOKUP(T56,DATA!$B$2:$O$25,14,FALSE) -> 0 | J56: =利用申込書2!AG30 ->  | K56: =VLOOKUP($S56,$B$130:$D$151,3,FALSE) ->  | Q56: =IF(S56=102,101,IF(S56=209,208,S56)) -> 0 | R56: =PG!V80 -> 1月0日 | S56: =VLOOKUP(T56,DATA!$B$2:$O$25,14,FALSE) -> 0 | T56: =PG!D79 -> 0 | U56: =IF(利用申込書2!M30="",利用申込書2!R30,利用申込書2!R30+利用申込書2!M30) ->  | V56: =利用申込書2!W30 ->  | W56: =利用申込書2!AB30 ->  | X56: =IF(U56="",0,IF(OR($B56="ピアザH(準)",$B56="大会議室(準)"),7,IF(OR(PG!$I$2<12,PG!$I$2=12),B58,3))) -> 0 | Y56: =IF(V56="",0,IF(OR($B56="ピアザH(準)",$B56="大会議室(準)"),7,IF(OR(PG!$J$2<13,PG!$J$2=13),3,$B58))) -> 0 | Z56: =IF(W56="",0,IF(OR($B56="ピアザH(準)",$B56="大会議室(準)"),7,IF(PG!$J$2<18,3,$B58))) -> 0 | AA56: =IF(AND($P$2=1,U56<>""),利用申込書1!$Z$52,"") ->  | AB56: =IF(AND($P$2=1,U56<>""),利用申込書1!$AD$52,"") ->  | AC56: =IF(AND($P$2=1,U56="",V56<>""),利用申込書1!$Z$52,"") ->  | AD56: =IF(AND($P$2=1, U56="",V56<>""),利用申込書1!$AD$52,"") ->  | AE56: =IF(AND($P$2=1,U56="",V56="",W56<>""),利用申込書1!$Z$52,"") ->  | AF56: =IF(AND($P$2=1, U56="",V56="",W56<>""),利用申込書1!$AD$52,"") ->  | AG56: 0号室
C57: =IF(R57=R53,"",$C$3) ->  | D57: =PG!$Q$79 -> 18:00-21:00 | G57: =IF(利用申込書2!$A$30="",$R$53,利用申込書2!$A$30) -> 1月0日 | H57: =H56 -> 0 | Q57: =Q56+0.3 -> 0.3 | R57: =R56 -> 1月0日 | S57: =S56 -> 0 | AA57: =IF(AND($P$2=2,U56<>""),利用申込書1!$Z$52,"") ->  | AB57: =IF(AND($P$2=2,U56<>""),利用申込書1!$AD$52,"") ->  | AC57: =IF(AND($P$2=2,U56="",V56<>""),利用申込書1!$Z$52,"") ->  | AD57: =IF(AND($P$2=2,U56="",V56<>""),利用申込書1!$AD$52,"") ->  | AE57: =IF(AND($P$2=2,U56="",V56="",W56<>""),利用申込書1!$Z$52,"") ->  | AF57: =IF(AND($P$2=2, U56="",V56="",W56<>""),利用申込書1!$AD$52,"") ->  | AG57: 0号室
B58: =IF(T56=0,"",IF(VLOOKUP(T56,DATA!$B$28:$P$49,15,FALSE)>利用申込書1!$Y$23,利用申込書1!$Y$23,VLOOKUP(T56,DATA!$B$28:$P$49,15,FALSE))) ->  | C58: =PG!$H$1 -> ：～： | D58: =CHOOSE(PG!H70,VLOOKUP(S56,DATA!$A$129:$N$151,3,FALSE),VLOOKUP(S56,DATA!$A$129:$N$151,4,FALSE),VLOOKUP(S56,DATA!$A$129:$N$151,5,FALSE),VLOOKUP(S56,DATA!$A$129:$N$151,6,FALSE),VLOOKUP(S56,DATA!$A$129:$N$151,7,FALSE),VLOOKUP(S56,DATA!$A$129:$N$151,8,FALSE),VLOOKUP(S56,DATA!$A$129:$N$151,9,FALSE),VLOOKUP(S56,DATA!$A$129:$N$151,10,FALSE),VLOOKUP(S56,DATA!$A$129:$N$151,11,FALSE),VLOOKUP(S56,DATA!$A$129:$N$151,12,FALSE),VLOOKUP(S56,DATA!$A$129:$N$151,13,FALSE),VLOOKUP(S56,DATA!$A$129:$N$151,14,FALSE),"") ->  | G58: =IF(利用申込書2!$A$30="",$R$53,利用申込書2!$A$30) -> 1月0日 | H58: =H56 -> 0 | R58: =R56 -> 1月0日 | S58: =S56 -> 0 | AG58: 0号室
B59: =IF(T59=0,"",VLOOKUP(T59,DATA!$B$28:$O$49,14,FALSE)) ->  | C59: =IF(OR(B59="ピアザH(準)",B59="大会議室(準)"),"準備(掲示なし)",IF(AND(R56=R59, B56<>"ピアザH(準)"),"同上",利用申込書1!$F$21)) -> 同上 | D59: =PG!$O$83 -> 夜間 | G59: =IF(利用申込書2!$A$32="",$R$56,利用申込書2!$A$32) -> 1月0日 | H59: =VLOOKUP(T59,DATA!$B$2:$O$25,14,FALSE) -> 0 | J59: =利用申込書2!AG32 ->  | K59: =VLOOKUP($S59,$B$130:$D$151,3,FALSE) ->  | Q59: =IF(S59=102,101,IF(S59=209,208,S59)) -> 0 | R59: =PG!V84 -> 1月0日 | S59: =VLOOKUP(T59,DATA!$B$2:$O$25,14,FALSE) -> 0 | T59: =PG!D83 -> 0 | U59: =IF(利用申込書2!M32="",利用申込書2!R32,利用申込書2!R32+利用申込書2!M32) ->  | V59: =利用申込書2!W32 ->  | W59: =利用申込書2!AB32 ->  | X59: =IF(U59="",0,IF(OR($B59="ピアザH(準)",$B59="大会議室(準)"),7,IF(OR(PG!$I$2<12,PG!$I$2=12),B61,3))) -> 0 | Y59: =IF(V59="",0,IF(OR($B59="ピアザH(準)",$B59="大会議室(準)"),7,IF(OR(PG!$J$2<13,PG!$J$2=13),3,$B61))) -> 0 | Z59: =IF(W59="",0,IF(OR($B59="ピアザH(準)",$B59="大会議室(準)"),7,IF(PG!$J$2<18,3,$B61))) -> 0 | AA59: =IF(AND($P$2=1,U59<>""),利用申込書1!$Z$52,"") ->  | AB59: =IF(AND($P$2=1,U59<>""),利用申込書1!$AD$52,"") ->  | AC59: =IF(AND($P$2=1,U59="",V59<>""),利用申込書1!$Z$52,"") ->  | AD59: =IF(AND($P$2=1, U59="",V59<>""),利用申込書1!$AD$52,"") ->  | AE59: =IF(AND($P$2=1,U59="",V59="",W59<>""),利用申込書1!$Z$52,"") ->  | AF59: =IF(AND($P$2=1, U59="",V59="",W59<>""),利用申込書1!$AD$52,"") ->  | AG59: 0号室
C60: =IF(R60=R56,"",$C$3) ->  | D60: =PG!$Q$83 -> 18:00-21:00 | G60: =IF(利用申込書2!$A$32="",$R$56,利用申込書2!$A$32) -> 1月0日 | H60: =H59 -> 0 | Q60: =Q59+0.3 -> 0.3 | R60: =R59 -> 1月0日 | S60: =S59 -> 0 | AA60: =IF(AND($P$2=2,U59<>""),利用申込書1!$Z$52,"") ->  | AB60: =IF(AND($P$2=2,U59<>""),利用申込書1!$AD$52,"") ->  | AC60: =IF(AND($P$2=2,U59="",V59<>""),利用申込書1!$Z$52,"") ->  | AD60: =IF(AND($P$2=2,U59="",V59<>""),利用申込書1!$AD$52,"") ->  | AE60: =IF(AND($P$2=2,U59="",V59="",W59<>""),利用申込書1!$Z$52,"") ->  | AF60: =IF(AND($P$2=2, U59="",V59="",W59<>""),利用申込書1!$AD$52,"") ->  | AG60: 0号室
B61: =IF(T59=0,"",IF(VLOOKUP(T59,DATA!$B$28:$P$49,15,FALSE)>利用申込書1!$Y$23,利用申込書1!$Y$23,VLOOKUP(T59,DATA!$B$28:$P$49,15,FALSE))) ->  | C61: =PG!$H$1 -> ：～： | D61: =CHOOSE(PG!H73,VLOOKUP(S59,DATA!$A$129:$N$151,3,FALSE),VLOOKUP(S59,DATA!$A$129:$N$151,4,FALSE),VLOOKUP(S59,DATA!$A$129:$N$151,5,FALSE),VLOOKUP(S59,DATA!$A$129:$N$151,6,FALSE),VLOOKUP(S59,DATA!$A$129:$N$151,7,FALSE),VLOOKUP(S59,DATA!$A$129:$N$151,8,FALSE),VLOOKUP(S59,DATA!$A$129:$N$151,9,FALSE),VLOOKUP(S59,DATA!$A$129:$N$151,10,FALSE),VLOOKUP(S59,DATA!$A$129:$N$151,11,FALSE),VLOOKUP(S59,DATA!$A$129:$N$151,12,FALSE),VLOOKUP(S59,DATA!$A$129:$N$151,13,FALSE),VLOOKUP(S59,DATA!$A$129:$N$151,14,FALSE),"") ->  | G61: =IF(利用申込書2!$A$32="",$R$56,利用申込書2!$A$32) -> 1月0日 | H61: =H59 -> 0 | R61: =R59 -> 1月0日 | S61: =S59 -> 0 | AG61: 0号室
B62: =VLOOKUP(T62,DATA!$B$28:$O$49,14,FALSE) ->  | C62: =IF(OR(B62="ピアザH(準)",B62="大会議室(準)"),"準備(掲示なし)",IF(AND(R59=R62, R59<>"ピアザH(準)"),"同上",利用申込書1!$F$21)) ->  | K62: =VLOOKUP($S62,$B$130:$D$151,3,FALSE) -> 
C63: =IF(R63=R59,"",$C$3) -> ,(0様)
B64: =IF(T62=0,"",IF(VLOOKUP(T62,DATA!$B$28:$P$49,15,FALSE)>利用申込書1!$Y$23,利用申込書1!$Y$23,VLOOKUP(T62,DATA!$B$28:$P$49,15,FALSE))) ->  | C64: =PG!$H$1 -> ：～：
B65: =VLOOKUP(T65,DATA!$B$28:$O$49,14,FALSE) ->  | C65: =IF(OR(B65="ピアザH(準)",B65="大会議室(準)"),"準備(掲示なし)",IF(AND(R62=R65, R62<>"ピアザH(準)"),"同上",利用申込書1!$F$21)) ->  | K65: =VLOOKUP($S65,$B$130:$D$151,3,FALSE) -> 
C66: =IF(R66=R62,"",$C$3) -> 
B67: =IF(T65=0,"",IF(VLOOKUP(T65,DATA!$B$28:$P$49,15,FALSE)>利用申込書1!$Y$23,利用申込書1!$Y$23,VLOOKUP(T65,DATA!$B$28:$P$49,15,FALSE))) ->  | C67: =PG!$H$1 -> ：～：
B68: =VLOOKUP(T68,DATA!$B$28:$O$49,14,FALSE) ->  | C68: =IF(OR(B68="ピアザH(準)",B68="大会議室(準)"),"準備(掲示なし)",IF(AND(R65=R68, R65<>"ピアザH(準)"),"同上",利用申込書1!$F$21)) ->  | K68: =VLOOKUP($S68,$B$130:$D$151,3,FALSE) -> 
C69: =IF(R69=R65,"",$C$3) -> 
B70: =IF(T68=0,"",IF(VLOOKUP(T68,DATA!$B$28:$P$49,15,FALSE)>利用申込書1!$Y$23,利用申込書1!$Y$23,VLOOKUP(T68,DATA!$B$28:$P$49,15,FALSE))) ->  | C70: =PG!$H$1 -> ：～：
B71: =VLOOKUP(T71,DATA!$B$28:$O$49,14,FALSE) ->  | C71: =IF(R71=R68,"同上",$C$2) -> 同上 | K71: =VLOOKUP($S71,$B$130:$D$151,3,FALSE) -> 
C72: =IF(R72=R68,"",$C$3) -> 
B73: =IF(T71=0,"",IF(VLOOKUP(T71,DATA!$B$28:$P$49,15,FALSE)>利用申込書1!$Y$23,利用申込書1!$Y$23,VLOOKUP(T71,DATA!$B$28:$P$49,15,FALSE))) ->  | C73: =PG!$H$1 -> ：～：
B74: =VLOOKUP(T74,DATA!$B$28:$O$49,14,FALSE) ->  | C74: =IF(R74=R71,"同上",$C$2) -> 同上 | K74: =VLOOKUP($S74,$B$130:$D$151,3,FALSE) -> 
C75: =IF(R75=R71,"",$C$3) -> 
B76: =IF(T74=0,"",IF(VLOOKUP(T74,DATA!$B$28:$P$49,15,FALSE)>利用申込書1!$Y$23,利用申込書1!$Y$23,VLOOKUP(T74,DATA!$B$28:$P$49,15,FALSE))) ->  | C76: =PG!$H$1 -> ：～：
B77: =VLOOKUP(T77,DATA!$B$28:$O$49,14,FALSE) ->  | C77: =IF(R77=R74,"同上",$C$2) -> 同上 | K77: =VLOOKUP($S77,$B$130:$D$151,3,FALSE) -> 
C78: =IF(R78=R74,"",$C$3) -> 
B79: =IF(OR(B77="ピアザH(準)",B77="大会議室(準)"),10,利用申込書1!$Y$23) ->  | C79: =PG!$H$1 -> ：～：
B80: =VLOOKUP(T80,DATA!$B$28:$O$49,14,FALSE) ->  | C80: =IF(R80=R77,"同上",$C$2) -> 同上 | K80: =VLOOKUP($S80,$B$130:$D$151,3,FALSE) -> 
C81: =IF(R81=R77,"",$C$3) -> 
B82: =IF(T80=0,"",IF(VLOOKUP(T80,DATA!$B$28:$P$49,15,FALSE)>利用申込書1!$Y$23,利用申込書1!$Y$23,VLOOKUP(T80,DATA!$B$28:$P$49,15,FALSE))) ->  | C82: =PG!$H$1 -> ：～：
B83: =VLOOKUP(T83,DATA!$B$28:$O$49,14,FALSE) ->  | C83: =IF(R83=R80,"同上",$C$2) -> 同上 | K83: =VLOOKUP($S83,$B$130:$D$151,3,FALSE) -> 
C84: =IF(R84=R80,"",$C$3) -> 
B85: =IF(T83=0,"",IF(VLOOKUP(T83,DATA!$B$28:$P$49,15,FALSE)>利用申込書1!$Y$23,利用申込書1!$Y$23,VLOOKUP(T83,DATA!$B$28:$P$49,15,FALSE))) ->  | C85: =PG!$H$1 -> ：～：
B86: =VLOOKUP(T86,DATA!$B$28:$O$49,14,FALSE) ->  | C86: =IF(R86=R83,"同上",$C$2) -> 同上 | K86: =VLOOKUP($S86,$B$130:$D$151,3,FALSE) -> 
C87: =IF(R87=R83,"",$C$3) -> 
B88: =IF(T86=0,"",IF(VLOOKUP(T86,DATA!$B$28:$P$49,15,FALSE)>利用申込書1!$Y$23,利用申込書1!$Y$23,VLOOKUP(T86,DATA!$B$28:$P$49,15,FALSE))) ->  | C88: =PG!$H$1 -> ：～：
B89: =VLOOKUP(T89,DATA!$B$28:$O$49,14,FALSE) ->  | C89: =IF(R89=R86,"同上",$C$2) -> 同上 | K89: =VLOOKUP($S89,$B$130:$D$151,3,FALSE) -> 
C90: =IF(R90=R86,"",$C$3) -> 
B91: =IF(T89=0,"",IF(VLOOKUP(T89,DATA!$B$28:$P$49,15,FALSE)>利用申込書1!$Y$23,利用申込書1!$Y$23,VLOOKUP(T89,DATA!$B$28:$P$49,15,FALSE))) ->  | C91: =PG!$H$1 -> ：～：
B92: =VLOOKUP(T92,DATA!$B$28:$O$49,14,FALSE) ->  | C92: =IF(R92=R89,"同上",$C$2) -> 同上 | K92: =VLOOKUP($S92,$B$130:$D$151,3,FALSE) -> 
C93: =IF(R93=R89,"",$C$3) -> 
B94: =IF(T92=0,"",IF(VLOOKUP(T92,DATA!$B$28:$P$49,15,FALSE)>利用申込書1!$Y$23,利用申込書1!$Y$23,VLOOKUP(T92,DATA!$B$28:$P$49,15,FALSE))) ->  | C94: =PG!$H$1 -> ：～：
B95: =VLOOKUP(T95,DATA!$B$28:$O$49,14,FALSE) ->  | C95: =IF(R95=R92,"同上",$C$2) -> 同上 | K95: =VLOOKUP($S95,$B$130:$D$151,3,FALSE) -> 
C96: =IF(R96=R92,"",$C$3) -> 
B97: =IF(T95=0,"",IF(VLOOKUP(T95,DATA!$B$28:$P$49,15,FALSE)>利用申込書1!$Y$23,利用申込書1!$Y$23,VLOOKUP(T95,DATA!$B$28:$P$49,15,FALSE))) ->  | C97: =PG!$H$1 -> ：～：
B98: =VLOOKUP(T98,DATA!$B$28:$O$49,14,FALSE) ->  | C98: =IF(R98=R95,"同上",$C$2) -> 同上 | K98: =VLOOKUP($S98,$B$130:$D$151,3,FALSE) -> 
C99: =IF(R99=R95,"",$C$3) -> 
B100: =IF(T98=0,"",IF(VLOOKUP(T98,DATA!$B$28:$P$49,15,FALSE)>利用申込書1!$Y$23,利用申込書1!$Y$23,VLOOKUP(T98,DATA!$B$28:$P$49,15,FALSE))) ->  | C100: =PG!$H$1 -> ：～：
B101: =VLOOKUP(T101,DATA!$B$28:$O$49,14,FALSE) ->  | C101: =IF(R101=R98,"同上",$C$2) -> 同上 | K101: =VLOOKUP($S101,$B$130:$D$151,3,FALSE) -> 
C102: =IF(R102=R98,"",$C$3) -> 
B103: =IF(T101=0,"",IF(VLOOKUP(T101,DATA!$B$28:$P$49,15,FALSE)>利用申込書1!$Y$23,利用申込書1!$Y$23,VLOOKUP(T101,DATA!$B$28:$P$49,15,FALSE))) ->  | C103: =PG!$H$1 -> ：～：
B104: =VLOOKUP(T104,DATA!$B$28:$O$49,14,FALSE) ->  | C104: =IF(R104=R101,"同上",$C$2) -> 同上 | K104: =VLOOKUP($S104,$B$130:$D$151,3,FALSE) -> 
C105: =IF(R105=R101,"",$C$3) -> 
B106: =IF(T104=0,"",IF(VLOOKUP(T104,DATA!$B$28:$P$49,15,FALSE)>利用申込書1!$Y$23,利用申込書1!$Y$23,VLOOKUP(T104,DATA!$B$28:$P$49,15,FALSE))) ->  | C106: =PG!$H$1 -> ：～：
B107: =VLOOKUP(T107,DATA!$B$28:$O$49,14,FALSE) ->  | C107: =IF(R107=R104,"同上",$C$2) -> 同上 | K107: =VLOOKUP($S107,$B$130:$D$151,3,FALSE) -> 
C108: =IF(R108=R104,"",$C$3) -> 
B109: =IF(T107=0,"",IF(VLOOKUP(T107,DATA!$B$28:$P$49,15,FALSE)>利用申込書1!$Y$23,利用申込書1!$Y$23,VLOOKUP(T107,DATA!$B$28:$P$49,15,FALSE))) ->  | C109: =PG!$H$1 -> ：～：
B110: =VLOOKUP(T110,DATA!$B$28:$O$49,14,FALSE) ->  | C110: =IF(R110=R107,"同上",$C$2) -> 同上 | K110: =VLOOKUP($S110,$B$130:$D$151,3,FALSE) -> 
C111: =IF(R111=R107,"",$C$3) -> 
B112: =IF(T110=0,"",IF(VLOOKUP(T110,DATA!$B$28:$P$49,15,FALSE)>利用申込書1!$Y$23,利用申込書1!$Y$23,VLOOKUP(T110,DATA!$B$28:$P$49,15,FALSE))) ->  | C112: =PG!$H$1 -> ：～：
B113: =VLOOKUP(T113,DATA!$B$28:$O$49,14,FALSE) ->  | C113: =IF(R113=R110,"同上",$C$2) -> 同上 | K113: =VLOOKUP($S113,$B$130:$D$151,3,FALSE) -> 
C114: =IF(R114=R110,"",$C$3) -> 
B115: =IF(T113=0,"",IF(VLOOKUP(T113,DATA!$B$28:$P$49,15,FALSE)>利用申込書1!$Y$23,利用申込書1!$Y$23,VLOOKUP(T113,DATA!$B$28:$P$49,15,FALSE))) ->  | C115: =PG!$H$1 -> ：～：
B116: =VLOOKUP(T116,DATA!$B$28:$O$49,14,FALSE) ->  | C116: =IF(R116=R113,"同上",$C$2) -> 同上 | K116: =VLOOKUP($S116,$B$130:$D$151,3,FALSE) -> 
C117: =IF(R117=R113,"",$C$3) -> 
B118: =IF(T116=0,"",IF(VLOOKUP(T116,DATA!$B$28:$P$49,15,FALSE)>利用申込書1!$Y$23,利用申込書1!$Y$23,VLOOKUP(T116,DATA!$B$28:$P$49,15,FALSE))) ->  | C118: =PG!$H$1 -> ：～：
B119: =VLOOKUP(T119,DATA!$B$28:$O$49,14,FALSE) ->  | C119: =IF(R119=R116,"同上",$C$2) -> 同上 | K119: =VLOOKUP($S119,$B$130:$D$151,3,FALSE) -> 
C120: =IF(R120=R116,"",$C$3) -> 
B121: =IF(T119=0,"",IF(VLOOKUP(T119,DATA!$B$28:$P$49,15,FALSE)>利用申込書1!$Y$23,利用申込書1!$Y$23,VLOOKUP(T119,DATA!$B$28:$P$49,15,FALSE))) ->  | C121: =PG!$H$1 -> ：～：
B130: 101 | C130: ピアザホール
B131: 102 | C131: ピアザホール準備
B132: 201 | C132: 201号室
B133: 202 | C133: 202号室
B134: 203 | C134: 203号室
B135: 204 | C135: 204号室
B136: 205 | C136: 205号室
B137: 206 | C137: 206号室
B138: 207 | C138: 207号室
B139: 208 | C139: 大会議室
B140: 209 | C140: 大会議室準備
B141: 301 | C141: 301号室
B142: 302 | C142: 302号室
B143: 303 | C143: 303号室
B144: 304 | C144: 304号室
B145: 305 | C145: 305号室
B146: 306 | C146: 特別会議室
B147: 307 | C147: 応接室
B148: 308 | C148: 和室
B149: 309 | C149: 茶室
B150: 310 | C150: 練習室
B151: 311 | C151: 練習室学生
D152: =SUM(D130:D151) -> 0

Sheet Sheet4 (hidden)

Sheet UD (hidden)
A1: No. | B1: 申請日 | C1: 利用日 | D1: 団体名 | E1: 区分 | F1: 責任者氏名 | G1: メールアドレス | H1: 電話番号 | I1: 郵便番号 | J1: 住所 | K1: 所在地 | L1: 施設利用料 | M1: 付帯設備利用料 | N1: 料飲代 | O1: 駐車場利用料 | P1: 計 | Q1: 振込支払予定日 | R1: 支払日 | S1: 支払方法 | T1: =PG!K1 -> FALSE
B2: =利用申込書1!AD3&"年"&利用申込書1!AH3&"月"&利用申込書1!AM3&"日" -> 年月日 | D2: =利用申込書1!K9 -> 00:00:00 | E2: =利用申込書1!AD52 -> nf | F2: =利用申込書1!AD12 -> 0 | G2: =利用申込書1!K15 -> 0 | H2: =利用申込書1!AD15&"-"&利用申込書1!AH15&"-"&利用申込書1!AM15 -> -- | I2: =利用申込書1!L13&"-"&利用申込書1!O13 -> - | J2: =利用申込書1!K14 -> 0 | K2: =利用申込書1!Z52 ->  | P2: =SUM(L2:O2) -> 0 | Q2: =請求書ひな形!I44 ->  | S2: =IF(AND(T1=TRUE,T2=TRUE),"現金(付帯)・銀行振込(施設)",IF(AND(T1=TRUE,T2=FALSE),"銀行振込","現金")) -> 現金 | T2: FALSE

Sheet PG (hidden)
B1: 県内・外 | C1: =IF(OR(AND(利用申込書1!L13>0,利用申込書1!L13<520),利用申込書1!L13>529, AND(利用申込書1!L13=520,利用申込書1!O13>="0461",利用申込書1!O13<="0465")),2,1) -> 1 | D1: =IF(OR(利用申込書1!L13="", AND(利用申込書1!L13>=520,利用申込書1!L13<=529), 利用申込書1!L13=520,AND(利用申込書1!O13<"0461",利用申込書1!L13=520,利用申込書1!O13>"0465")),1,2) -> 1 | F1: =IF(OR($C$1=1,利用申込書1!L13=""),"","<県外料金適用>") ->  | H1: =利用申込書1!$I$23&利用申込書1!$K$23&利用申込書1!$L$23&利用申込書1!$M$23&利用申込書1!N23&利用申込書1!$O$23&利用申込書1!$Q$23&利用申込書1!$R$23 -> ：～： | I1: =LEFT(H1,2) -> ：～ | J1: =IF(MID(H1,6,1)="～",MID(H1,7,2),MID(H1,6,2)) ->  | K1: FALSE | AE1: =IF(利用申込書1!K9="",利用申込書1!AD12&"様",利用申込書1!K9) -> 様
B2: 有料加算 | C2: 1 | D2: =IF(OR(AND(利用申込書1!L13>0,利用申込書1!L13<520),利用申込書1!L13>529, AND(利用申込書1!L13=520,利用申込書1!O13>="0461",利用申込書1!O13<="0465")),2,1) -> 1 | F2: =IF($C$1=1,"県内料金","県外料金（5割加算)") -> 県内料金 | G2: =IF($C$2=1,"なし",(IF($C$2=2,"参加費3割加算","参加費5割加算"))) -> なし | I2: =VALUE(I1) ->  | J2: =VALUE(J1) ->  | K2: FALSE | AE2: =利用申込書1!AD12 -> 0
F3: =IF(OR(利用申込書1!L13<520,利用申込書1!L13>529, AND(利用申込書1!L13=520,利用申込書1!O13>="0461",利用申込書1!O13<="0465")),2,1) -> 2 | G3: =IF(OR(利用申込書1!L13<=521,利用申込書1!L13>=529), 2,1) -> 2 | AE3: =AF3&利用申込書1!AD15&利用申込書1!AH15&利用申込書1!AM15 -> Tel | AF3: Tel
AA4: =Z5&Y4&AD4 ->  | AE4: =AF5&利用申込書1!AD16&利用申込書1!AH16&利用申込書1!AM16 -> M | AF4: Fax
B5: 利用申し込み書用 | I5: 料金 | AE5: =PG!AF5&利用申込書1!K15 -> M | AF5: M
B6: 日時 | C6: 土日祝判定(1：平日) | D6: 会議室 | E6: チェックボックス | H6: No.(組み合わせ) | I6: 8時 | J6: A | K6: P | L6: N | M6: P=N | N6: SUM | AE6: =利用申込書1!AT4 -> ..
A7: =IF(D7="大会議室(準備)","大会議室",(IF(D7="大会議室(本番)","大会議室",(IF(D7="ピアザホール(準備)","PH",IF(D7="ピアザホール(本番)","PH",IF(D7="練習室(一般)","練習室",IF(D7="練習室(学生)","練習室",D7)))))))) -> 0 | B7: =IF(利用申込書1!A27="", B3,利用申込書1!A27) -> 00:00:00 | C7: =IF(OR((WEEKDAY(B7,2)>=6),COUNTIF(DATA!Q3:T23,B7)),2,1) -> 2 | D7: =利用申込書1!F27 -> 0 | E7: チェック1 | F7: =IF(G7,1,2) -> 2 | G7: FALSE | H7: =IF(AND($C$1=1,$C$2=1,C7=1),1,(IF(AND($C$1=1,$C$2=2,C7=1),2,(IF(AND($C$1=1,$C$2=3,C7=1),3,(IF(AND($C$1=2,$C$2=1,C7=1),4,(IF(AND($C$1=2,$C$2=2,C7=1),5,(IF(AND($C$1=2,$C$2=3,C7=1),6,(IF(AND($C$1=1,$C$2=1,C7=2),7,(IF(AND($C$1=1,$C$2=2,C7=2),8,(IF(AND($C$1=1,$C$2=3,C7=2),9,(IF(AND($C$1=2,$C$2=1,C7=2),10,(IF(AND($C$1=2,$C$2=2,C7=2),11,(IF(AND($C$1=2,$C$2=3,C7=2),12,""))))))))))))))))))))))) -> 7 | I7: =CHOOSE(H7,VLOOKUP(D7,DATA!$B$2:$N$25,2,FALSE),VLOOKUP(D7,DATA!$B$2:$N$25,3,FALSE),VLOOKUP(D7,DATA!$B$2:$N$25,4,FALSE),VLOOKUP(D7,DATA!$B$2:$N$25,5,FALSE),VLOOKUP(D7,DATA!$B$2:$N$25,6,FALSE),VLOOKUP(D7,DATA!$B$2:$N$25,7,FALSE),VLOOKUP(D7,DATA!$B$2:$N$25,8,FALSE),VLOOKUP(D7,DATA!$B$2:$N$25,9,FALSE),VLOOKUP(D7,DATA!$B$2:$N$25,10,FALSE),VLOOKUP(D7,DATA!$B$2:$N$25,11,FALSE),VLOOKUP(D7,DATA!$B$2:$N$25,12,FALSE),VLOOKUP(D7,DATA!$B$2:$N$25,13,FALSE),"")*(IF(F7=1,1,0)) -> 0 | J7: =CHOOSE(H7,VLOOKUP(D7,DATA!$B$27:$N$50,2,FALSE),VLOOKUP(D7,DATA!$B$27:$N$50,3,FALSE),VLOOKUP(D7,DATA!$B$27:$N$50,4,FALSE),VLOOKUP(D7,DATA!$B$27:$N$50,5,FALSE),VLOOKUP(D7,DATA!$B$27:$N$50,6,FALSE),VLOOKUP(D7,DATA!$B$27:$N$50,7,FALSE),VLOOKUP(D7,DATA!$B$27:$N$50,8,FALSE),VLOOKUP(D7,DATA!$B$27:$N$50,9,FALSE),VLOOKUP(D7,DATA!$B$27:$N$50,10,FALSE),VLOOKUP(D7,DATA!$B$27:$N$50,11,FALSE),VLOOKUP(D7,DATA!$B$27:$N$50,12,FALSE),VLOOKUP(D7,DATA!$B$27:$N$50,13,FALSE),"")*(IF(F8=1,1,0)) -> 0 | K7: =CHOOSE(H7,VLOOKUP(D7,DATA!$B$52:$N$75,2,FALSE),VLOOKUP(D7,DATA!$B$52:$N$75,3,FALSE),VLOOKUP(D7,DATA!$B$52:$N$75,4,FALSE),VLOOKUP(D7,DATA!$B$52:$N$77,5,FALSE),VLOOKUP(D7,DATA!$B$52:$N$75,6,FALSE),VLOOKUP(D7,DATA!$B$52:$N$75,7,FALSE),VLOOKUP(D7,DATA!$B$52:$N$75,8,FALSE),VLOOKUP(D7,DATA!$B$52:$N$75,9,FALSE),VLOOKUP(D7,DATA!$B$52:$N$75,10,FALSE),VLOOKUP(D7,DATA!$B$52:$N$75,11,FALSE),VLOOKUP(D7,DATA!$B$52:$N$75,12,FALSE),VLOOKUP(D7,DATA!$B$52:$N$75,13,FALSE),"")*(IF(F9=1,1,0)) -> 0 | L7: =CHOOSE(H7,VLOOKUP(D7,DATA!$B$77:$N$100,2,FALSE),VLOOKUP(D7,DATA!$B$77:$N$100,3,FALSE),VLOOKUP(D7,DATA!$B$77:$N$100,4,FALSE),VLOOKUP(D7,DATA!$B$77:$N$100,5,FALSE),VLOOKUP(D7,DATA!$B$77:$N$100,6,FALSE),VLOOKUP(D7,DATA!$B$77:$N$100,7,FALSE),VLOOKUP(D7,DATA!$B$77:$N$100,8,FALSE),VLOOKUP(D7,DATA!$B$77:$N$100,9,FALSE),VLOOKUP(D7,DATA!$B$77:$N$100,10,FALSE),VLOOKUP(D7,DATA!$B$77:$N$100,11,FALSE),VLOOKUP(D7,DATA!$B$77:$N$100,12,FALSE),VLOOKUP(D7,DATA!$B$77:$N$100,13,FALSE),"")*(IF(F10=1,1,0)) -> 0 | M7: =CHOOSE(H7,VLOOKUP(D7,DATA!$B$102:$N$125,2,FALSE),VLOOKUP(D7,DATA!$B$102:$N$125,3,FALSE),VLOOKUP(D7,DATA!$B$102:$N$125,4,FALSE),VLOOKUP(D7,DATA!$B$102:$N$125,5,FALSE),VLOOKUP(D7,DATA!$B$102:$N$125,6,FALSE),VLOOKUP(D7,DATA!$B$102:$N$125,7,FALSE),VLOOKUP(D7,DATA!$B$102:$N$125,8,FALSE),VLOOKUP(D7,DATA!$B$102:$N$125,9,FALSE),VLOOKUP(D7,DATA!$B$102:$N$125,10,FALSE),VLOOKUP(D7,DATA!$B$102:$N$125,11,FALSE),VLOOKUP(D7,DATA!$B$102:$N$125,12,FALSE),VLOOKUP(D7,DATA!$B$102:$N$125,13,FALSE),"")*(IF(F10=1,1,0)) -> 0 | N7: =利用申込書1!AG27 ->  | O7: =IF(AND(F8=1,F9=1,F10=1),"午前-午後-夜間",(IF(AND(F8=1,F9=1,F10=2),"午前-午後",(IF(AND(F8=2,F9=1,F10=1),"午後-夜間",(IF(AND(F8=1,F9=2,F10=2),"午前",(IF(AND(F8=2,F9=1,F10=2),"午後",IF(AND(F8=1,F9=2,F10=1),"午前・夜間","夜間")))))))))) -> 夜間 | Q7: =IF(I7>0,VLOOKUP(O7,$A$235:$B$238,2,FALSE),VLOOKUP(O7,$A$226:$B$232,2,FALSE)) -> 18:00-21:00 | R7: =B7 -> 00:00:00 | S7: =B7 -> 00:00:00 | T7: =YEAR(S7) -> 1900 | U7: 年 | V7: =T7&U7&T8&U8 -> 1900年1月 | W7: =IF(AND(F8=1,F9=1,F10=1),"APN",(IF(AND(F8=1,F9=1,F10=2),"AP",(IF(AND(F8=2,F9=1,F10=1),"PN",(IF(AND(F8=1,F9=2,F10=2),"A",(IF(AND(F8=2,F9=1,F10=2),"P","N"))))))))) -> N | X7: =利用申込書1!$AV$50 ->  | Y7: =X8&W7&"・"&AB7 -> 0N・ | Z7: =T7&U7 -> 1900年 | AA7: =Z7&V8 -> 1900年1月0日 | AB7: =CLEAN(X7) ->  | AE7: =利用申込書1!AT5 -> 2024-04-07
B8: =TEXT(B7,"YYYY") -> 1900 | E8: チェック2 | F8: =IF(F7=1,1,IF(G8,1,2)) -> 2 | G8: FALSE | J8: =B10&$J$6 -> 0A | K8: =B10&$K$6 -> 0P | L8: =B10&$L$6 -> 0N | Q8: =LEFT(Q7,2) -> 18 | S8: =B7 -> 00:00:00 | T8: =MONTH(S7) -> 1 | U8: 月 | V8: =T8&U8&T9&U9 -> 1月0日 | W8: =D7 -> 0 | X8: =LEFT(W8,3) -> 0
B9: =TEXT(B7,"YYYYmm") -> 190001 | E9: チェック3 | F9: 2 | G9: FALSE | J9: =G8 -> FALSE | K9: =G9 -> FALSE | L9: =G10 -> FALSE | Q9: =IF(MID(Q7,6,1)="-",MID(Q7,7,2),MID(Q7,6,2)) -> 21 | T9: =DAY(S7) -> 0 | U9: 日 | V9: =T9&U9 -> 0日 | AE9: =利用申込書1!AB44 -> 
B10: =TEXT(B7,"d") -> 0 | E10: チェック4 | F10: 2 | G10: FALSE | V10: =T8&U8 -> 1月
A11: =IF(D11="大会議室(準備)","大会議室",(IF(D11="大会議室(本番)","大会議室",(IF(D11="ピアザホール(準備)","PH",IF(D11="ピアザホール(本番)","PH",IF(D11="練習室(一般)","練習室",IF(D11="練習室(学生)","練習室",D11)))))))) -> 0 | B11: =IF(利用申込書1!A29="", B7,利用申込書1!A29) -> 00:00:00 | C11: =IF(OR((WEEKDAY(B11,2)>=6),COUNTIF(DATA!$Q$3:$T$23,B11)),2,1) -> 2 | D11: =利用申込書1!F29 -> 0 | E11: チェック1 | F11: 2 | G11: FALSE | H11: =IF(AND($C$1=1,$C$2=1,C11=1),1,(IF(AND($C$1=1,$C$2=2,C11=1),2,(IF(AND($C$1=1,$C$2=3,C11=1),3,(IF(AND($C$1=2,$C$2=1,C11=1),4,(IF(AND($C$1=2,$C$2=2,C11=1),5,(IF(AND($C$1=2,$C$2=3,C11=1),6,(IF(AND($C$1=1,$C$2=1,C11=2),7,(IF(AND($C$1=1,$C$2=2,C11=2),8,(IF(AND($C$1=1,$C$2=3,C11=2),9,(IF(AND($C$1=2,$C$2=1,C11=2),10,(IF(AND($C$1=2,$C$2=2,C11=2),11,(IF(AND($C$1=2,$C$2=3,C11=2),12,""))))))))))))))))))))))) -> 7 | I11: =CHOOSE(H11,VLOOKUP(D11,DATA!$B$2:$N$25,2,FALSE),VLOOKUP(D11,DATA!$B$2:$N$25,3,FALSE),VLOOKUP(D11,DATA!$B$2:$N$25,4,FALSE),VLOOKUP(D11,DATA!$B$2:$N$25,5,FALSE),VLOOKUP(D11,DATA!$B$2:$N$25,6,FALSE),VLOOKUP(D11,DATA!$B$2:$N$25,7,FALSE),VLOOKUP(D11,DATA!$B$2:$N$25,8,FALSE),VLOOKUP(D11,DATA!$B$2:$N$25,9,FALSE),VLOOKUP(D11,DATA!$B$2:$N$25,10,FALSE),VLOOKUP(D11,DATA!$B$2:$N$25,11,FALSE),VLOOKUP(D11,DATA!$B$2:$N$25,12,FALSE),VLOOKUP(D11,DATA!$B$2:$N$25,13,FALSE),"")*(IF(F11=1,1,0)) -> 0 | J11: =CHOOSE(H11,VLOOKUP(D11,DATA!$B$27:$N$50,2,FALSE),VLOOKUP(D11,DATA!$B$27:$N$50,3,FALSE),VLOOKUP(D11,DATA!$B$27:$N$50,4,FALSE),VLOOKUP(D11,DATA!$B$27:$N$50,5,FALSE),VLOOKUP(D11,DATA!$B$27:$N$50,6,FALSE),VLOOKUP(D11,DATA!$B$27:$N$50,7,FALSE),VLOOKUP(D11,DATA!$B$27:$N$50,8,FALSE),VLOOKUP(D11,DATA!$B$27:$N$50,9,FALSE),VLOOKUP(D11,DATA!$B$27:$N$50,10,FALSE),VLOOKUP(D11,DATA!$B$27:$N$50,11,FALSE),VLOOKUP(D11,DATA!$B$27:$N$50,12,FALSE),VLOOKUP(D11,DATA!$B$27:$N$50,13,FALSE),"")*(IF(F12=1,1,0)) -> 0 | K11: =CHOOSE(H11,VLOOKUP(D11,DATA!$B$52:$N$75,2,FALSE),VLOOKUP(D11,DATA!$B$52:$N$75,3,FALSE),VLOOKUP(D11,DATA!$B$52:$N$75,4,FALSE),VLOOKUP(D11,DATA!$B$52:$N$77,5,FALSE),VLOOKUP(D11,DATA!$B$52:$N$75,6,FALSE),VLOOKUP(D11,DATA!$B$52:$N$75,7,FALSE),VLOOKUP(D11,DATA!$B$52:$N$75,8,FALSE),VLOOKUP(D11,DATA!$B$52:$N$75,9,FALSE),VLOOKUP(D11,DATA!$B$52:$N$75,10,FALSE),VLOOKUP(D11,DATA!$B$52:$N$75,11,FALSE),VLOOKUP(D11,DATA!$B$52:$N$75,12,FALSE),VLOOKUP(D11,DATA!$B$52:$N$75,13,FALSE),"")*(IF(F13=1,1,0)) -> 0 | L11: =CHOOSE(H11,VLOOKUP(D11,DATA!$B$77:$N$100,2,FALSE),VLOOKUP(D11,DATA!$B$77:$N$100,3,FALSE),VLOOKUP(D11,DATA!$B$77:$N$100,4,FALSE),VLOOKUP(D11,DATA!$B$77:$N$100,5,FALSE),VLOOKUP(D11,DATA!$B$77:$N$100,6,FALSE),VLOOKUP(D11,DATA!$B$77:$N$100,7,FALSE),VLOOKUP(D11,DATA!$B$77:$N$100,8,FALSE),VLOOKUP(D11,DATA!$B$77:$N$100,9,FALSE),VLOOKUP(D11,DATA!$B$77:$N$100,10,FALSE),VLOOKUP(D11,DATA!$B$77:$N$100,11,FALSE),VLOOKUP(D11,DATA!$B$77:$N$100,12,FALSE),VLOOKUP(D11,DATA!$B$77:$N$100,13,FALSE),"")*(IF(F14=1,1,0)) -> 0 | M11: =CHOOSE(H11,VLOOKUP(D11,DATA!$B$102:$N$125,2,FALSE),VLOOKUP(D11,DATA!$B$102:$N$125,3,FALSE),VLOOKUP(D11,DATA!$B$102:$N$125,4,FALSE),VLOOKUP(D11,DATA!$B$102:$N$125,5,FALSE),VLOOKUP(D11,DATA!$B$102:$N$125,6,FALSE),VLOOKUP(D11,DATA!$B$102:$N$125,7,FALSE),VLOOKUP(D11,DATA!$B$102:$N$125,8,FALSE),VLOOKUP(D11,DATA!$B$102:$N$125,9,FALSE),VLOOKUP(D11,DATA!$B$102:$N$125,10,FALSE),VLOOKUP(D11,DATA!$B$102:$N$125,11,FALSE),VLOOKUP(D11,DATA!$B$102:$N$125,12,FALSE),VLOOKUP(D11,DATA!$B$102:$N$125,13,FALSE),"")*(IF(F14=1,1,0)) -> 0 | N11: =利用申込書1!AG29 ->  | O11: =IF(AND(F12=1,F13=1,F14=1),"午前-午後-夜間",(IF(AND(F12=1,F13=1,F14=2),"午前-午後",(IF(AND(F12=2,F13=1,F14=1),"午後-夜間",(IF(AND(F12=1,F13=2,F14=2),"午前",(IF(AND(F12=2,F13=1,F14=2),"午後",IF(AND(F12=1,F13=2,F14=1),"午前・夜間","夜間")))))))))) -> 夜間 | Q11: =IF(I11>0,VLOOKUP(O11,$A$235:$B$238,2,FALSE),VLOOKUP(O11,$A$226:$B$232,2,FALSE)) -> 18:00-21:00 | R11: =IF(B11=B7,"",B11) ->  | S11: =B11 -> 00:00:00 | T11: =YEAR(S11) -> 1900 | U11: 年 | V11: =T11&U11&T12&U12 -> 1900年1月 | W11: =IF(AND(F12=1,F13=1,F14=1),"APN",(IF(AND(F12=1,F13=1,F14=2),"AP",(IF(AND(F12=2,F13=1,F14=1),"PN",(IF(AND(F12=1,F13=2,F14=2),"A",(IF(AND(F12=2,F13=1,F14=2),"P","N"))))))))) -> N | X11: =利用申込書1!$AV$50 ->  | Y11: =X12&W11&"・"&AB11 -> 0N・ | Z11: =T11&U11 -> 1900年 | AA11: =Z11&V12 -> 1900年1月0日 | AB11: =CLEAN(X11) -> 
B12: =TEXT(B11,"YYYY") -> 1900 | E12: チェック2 | F12: =IF(F11=1,1,IF(G12,1,2)) -> 2 | G12: FALSE | J12: =B14&J6 -> 0A | K12: =B14&$K$6 -> 0P | L12: =B14&$L$6 -> 0N | Q12: =LEFT(Q11,2) -> 18 | S12: =B11 -> 00:00:00 | T12: =MONTH(S11) -> 1 | U12: 月 | V12: =T12&U12&T13&U13 -> 1月0日 | W12: =D11 -> 0 | X12: =LEFT(W12,3) -> 0
B13: =TEXT(B11,"YYYYmm") -> 190001 | E13: チェック3 | F13: 2 | G13: FALSE | J13: =G12 -> FALSE | K13: =G13 -> FALSE | L13: =G14 -> FALSE | Q13: =IF(MID(Q11,6,1)="-",MID(Q11,7,2),MID(Q11,6,2)) -> 21 | T13: =DAY(S11) -> 0 | U13: 日 | V13: =T13&U13 -> 0日
B14: =TEXT(B11,"d") -> 0 | E14: チェック4 | F14: 2 | G14: FALSE | V14: =T12&U12 -> 1月
A15: =IF(D15="大会議室(準備)","大会議室",(IF(D15="大会議室(本番)","大会議室",(IF(D15="ピアザホール(準備)","PH",IF(D15="ピアザホール(本番)","PH",IF(D15="練習室(一般)","練習室",IF(D15="練習室(学生)","練習室",D15)))))))) -> 0 | B15: =IF(利用申込書1!A31="", B11,利用申込書1!A31) -> 00:00:00 | C15: =IF(OR((WEEKDAY(B15,2)>=6),COUNTIF(DATA!$Q$3:$T$23,B15)),2,1) -> 2 | D15: =利用申込書1!F31 -> 0 | E15: チェック1 | F15: =IF(G15,1,2) -> 2 | G15: FALSE | H15: =IF(AND($C$1=1,$C$2=1,C15=1),1,(IF(AND($C$1=1,$C$2=2,C15=1),2,(IF(AND($C$1=1,$C$2=3,C15=1),3,(IF(AND($C$1=2,$C$2=1,C15=1),4,(IF(AND($C$1=2,$C$2=2,C15=1),5,(IF(AND($C$1=2,$C$2=3,C15=1),6,(IF(AND($C$1=1,$C$2=1,C15=2),7,(IF(AND($C$1=1,$C$2=2,C15=2),8,(IF(AND($C$1=1,$C$2=3,C15=2),9,(IF(AND($C$1=2,$C$2=1,C15=2),10,(IF(AND($C$1=2,$C$2=2,C15=2),11,(IF(AND($C$1=2,$C$2=3,C15=2),12,""))))))))))))))))))))))) -> 7 | I15: =CHOOSE(H15,VLOOKUP(D15,DATA!$B$2:$N$25,2,FALSE),VLOOKUP(D15,DATA!$B$2:$N$25,3,FALSE),VLOOKUP(D15,DATA!$B$2:$N$25,4,FALSE),VLOOKUP(D15,DATA!$B$2:$N$25,5,FALSE),VLOOKUP(D15,DATA!$B$2:$N$25,6,FALSE),VLOOKUP(D15,DATA!$B$2:$N$25,7,FALSE),VLOOKUP(D15,DATA!$B$2:$N$25,8,FALSE),VLOOKUP(D15,DATA!$B$2:$N$25,9,FALSE),VLOOKUP(D15,DATA!$B$2:$N$25,10,FALSE),VLOOKUP(D15,DATA!$B$2:$N$25,11,FALSE),VLOOKUP(D15,DATA!$B$2:$N$25,12,FALSE),VLOOKUP(D15,DATA!$B$2:$N$25,13,FALSE),"")*(IF(F15=1,1,0)) -> 0 | J15: =CHOOSE(H15,VLOOKUP(D15,DATA!$B$27:$N$50,2,FALSE),VLOOKUP(D15,DATA!$B$27:$N$50,3,FALSE),VLOOKUP(D15,DATA!$B$27:$N$50,4,FALSE),VLOOKUP(D15,DATA!$B$27:$N$50,5,FALSE),VLOOKUP(D15,DATA!$B$27:$N$50,6,FALSE),VLOOKUP(D15,DATA!$B$27:$N$50,7,FALSE),VLOOKUP(D15,DATA!$B$27:$N$50,8,FALSE),VLOOKUP(D15,DATA!$B$27:$N$50,9,FALSE),VLOOKUP(D15,DATA!$B$27:$N$50,10,FALSE),VLOOKUP(D15,DATA!$B$27:$N$50,11,FALSE),VLOOKUP(D15,DATA!$B$27:$N$50,12,FALSE),VLOOKUP(D15,DATA!$B$27:$N$50,13,FALSE),"")*(IF(F16=1,1,0)) -> 0 | K15: =CHOOSE(H15,VLOOKUP(D15,DATA!$B$52:$N$75,2,FALSE),VLOOKUP(D15,DATA!$B$52:$N$75,3,FALSE),VLOOKUP(D15,DATA!$B$52:$N$75,4,FALSE),VLOOKUP(D15,DATA!$B$52:$N$77,5,FALSE),VLOOKUP(D15,DATA!$B$52:$N$75,6,FALSE),VLOOKUP(D15,DATA!$B$52:$N$75,7,FALSE),VLOOKUP(D15,DATA!$B$52:$N$75,8,FALSE),VLOOKUP(D15,DATA!$B$52:$N$75,9,FALSE),VLOOKUP(D15,DATA!$B$52:$N$75,10,FALSE),VLOOKUP(D15,DATA!$B$52:$N$75,11,FALSE),VLOOKUP(D15,DATA!$B$52:$N$75,12,FALSE),VLOOKUP(D15,DATA!$B$52:$N$75,13,FALSE),"")*(IF(F17=1,1,0)) -> 0 | L15: =CHOOSE(H15,VLOOKUP(D15,DATA!$B$77:$N$100,2,FALSE),VLOOKUP(D15,DATA!$B$77:$N$100,3,FALSE),VLOOKUP(D15,DATA!$B$77:$N$100,4,FALSE),VLOOKUP(D15,DATA!$B$77:$N$100,5,FALSE),VLOOKUP(D15,DATA!$B$77:$N$100,6,FALSE),VLOOKUP(D15,DATA!$B$77:$N$100,7,FALSE),VLOOKUP(D15,DATA!$B$77:$N$100,8,FALSE),VLOOKUP(D15,DATA!$B$77:$N$100,9,FALSE),VLOOKUP(D15,DATA!$B$77:$N$100,10,FALSE),VLOOKUP(D15,DATA!$B$77:$N$100,11,FALSE),VLOOKUP(D15,DATA!$B$77:$N$100,12,FALSE),VLOOKUP(D15,DATA!$B$77:$N$100,13,FALSE),"")*(IF(F18=1,1,0)) -> 0 | M15: =CHOOSE(H15,VLOOKUP(D15,DATA!$B$102:$N$125,2,FALSE),VLOOKUP(D15,DATA!$B$102:$N$125,3,FALSE),VLOOKUP(D15,DATA!$B$102:$N$125,4,FALSE),VLOOKUP(D15,DATA!$B$102:$N$125,5,FALSE),VLOOKUP(D15,DATA!$B$102:$N$125,6,FALSE),VLOOKUP(D15,DATA!$B$102:$N$125,7,FALSE),VLOOKUP(D15,DATA!$B$102:$N$125,8,FALSE),VLOOKUP(D15,DATA!$B$102:$N$125,9,FALSE),VLOOKUP(D15,DATA!$B$102:$N$125,10,FALSE),VLOOKUP(D15,DATA!$B$102:$N$125,11,FALSE),VLOOKUP(D15,DATA!$B$102:$N$125,12,FALSE),VLOOKUP(D15,DATA!$B$102:$N$125,13,FALSE),"")*(IF(F18=1,1,0)) -> 0 | N15: =利用申込書1!AG31 ->  | O15: =IF(AND(F16=1,F17=1,F18=1),"午前-午後-夜間",(IF(AND(F16=1,F17=1,F18=2),"午前-午後",(IF(AND(F16=2,F17=1,F18=1),"午後-夜間",(IF(AND(F16=1,F17=2,F18=2),"午前",(IF(AND(F16=2,F17=1,F18=2),"午後",IF(AND(F16=1,F17=2,F18=1),"午前・夜間","夜間")))))))))) -> 夜間 | Q15: =IF(I15>0,VLOOKUP(O15,$A$235:$B$238,2,FALSE),VLOOKUP(O15,$A$226:$B$232,2,FALSE)) -> 18:00-21:00 | R15: =IF(B15=B11,"",B15) ->  | S15: =B15 -> 00:00:00 | T15: =YEAR(S15) -> 1900 | U15: 年 | V15: =T15&U15&T16&U16 -> 1900年1月 | W15: =IF(AND(F16=1,F17=1,F18=1),"APN",(IF(AND(F16=1,F17=1,F18=2),"AP",(IF(AND(F16=2,F17=1,F18=1),"PN",(IF(AND(F16=1,F17=2,F18=2),"A",(IF(AND(F16=2,F17=1,F18=2),"P","N"))))))))) -> N | X15: =利用申込書1!$AV$50 ->  | Y15: =X16&W15&"・"&AB15 -> 0N・ | Z15: =T15&U15 -> 1900年 | AA15: =Z15&V16 -> 1900年1月0日 | AB15: =CLEAN(X15) -> 
B16: =TEXT(B15,"YYYY") -> 1900 | E16: チェック2 | F16: =IF(F15=1,1,IF(G16,1,2)) -> 2 | G16: FALSE | J16: =B18&$J$6 -> 0A | K16: =B18&$K$6 -> 0P | L16: =B18&$L$6 -> 0N | Q16: =LEFT(Q15,2) -> 18 | S16: =B15 -> 00:00:00 | T16: =MONTH(S15) -> 1 | U16: 月 | V16: =T16&U16&T17&U17 -> 1月0日 | W16: =D15 -> 0 | X16: =LEFT(W16,3) -> 0
B17: =TEXT(B15,"YYYYmm") -> 190001 | E17: チェック3 | F17: 2 | G17: FALSE | J17: =G16 -> FALSE | K17: =G17 -> FALSE | L17: =G18 -> FALSE | Q17: =IF(MID(Q15,6,1)="-",MID(Q15,7,2),MID(Q15,6,2)) -> 21 | T17: =DAY(S15) -> 0 | U17: 日 | V17: =T17&U17 -> 0日
B18: =TEXT(B15,"d") -> 0 | E18: チェック4 | F18: 2 | G18: FALSE | V18: =T16&U16 -> 1月
A19: =IF(D19="大会議室(準備)","大会議室",(IF(D19="大会議室(本番)","大会議室",(IF(D19="ピアザホール(準備)","PH",IF(D19="ピアザホール(本番)","PH",IF(D19="練習室(一般)","練習室",IF(D19="練習室(学生)","練習室",D19)))))))) -> 0 | B19: =IF(利用申込書1!A33="", B15,利用申込書1!A33) -> 00:00:00 | C19: =IF(OR((WEEKDAY(B19,2)>=6),COUNTIF(DATA!$Q$3:$T$23,B19)),2,1) -> 2 | D19: =利用申込書1!F33 -> 0 | E19: チェック1 | F19: 2 | G19: FALSE | H19: =IF(AND($C$1=1,$C$2=1,C19=1),1,(IF(AND($C$1=1,$C$2=2,C19=1),2,(IF(AND($C$1=1,$C$2=3,C19=1),3,(IF(AND($C$1=2,$C$2=1,C19=1),4,(IF(AND($C$1=2,$C$2=2,C19=1),5,(IF(AND($C$1=2,$C$2=3,C19=1),6,(IF(AND($C$1=1,$C$2=1,C19=2),7,(IF(AND($C$1=1,$C$2=2,C19=2),8,(IF(AND($C$1=1,$C$2=3,C19=2),9,(IF(AND($C$1=2,$C$2=1,C19=2),10,(IF(AND($C$1=2,$C$2=2,C19=2),11,(IF(AND($C$1=2,$C$2=3,C19=2),12,""))))))))))))))))))))))) -> 7 | I19: =CHOOSE(H19,VLOOKUP(D19,DATA!$B$2:$N$25,2,FALSE),VLOOKUP(D19,DATA!$B$2:$N$25,3,FALSE),VLOOKUP(D19,DATA!$B$2:$N$25,4,FALSE),VLOOKUP(D19,DATA!$B$2:$N$25,5,FALSE),VLOOKUP(D19,DATA!$B$2:$N$25,6,FALSE),VLOOKUP(D19,DATA!$B$2:$N$25,7,FALSE),VLOOKUP(D19,DATA!$B$2:$N$25,8,FALSE),VLOOKUP(D19,DATA!$B$2:$N$25,9,FALSE),VLOOKUP(D19,DATA!$B$2:$N$25,10,FALSE),VLOOKUP(D19,DATA!$B$2:$N$25,11,FALSE),VLOOKUP(D19,DATA!$B$2:$N$25,12,FALSE),VLOOKUP(D19,DATA!$B$2:$N$25,13,FALSE),"")*(IF(F19=1,1,0)) -> 0 | J19: =CHOOSE(H19,VLOOKUP(D19,DATA!$B$27:$N$50,2,FALSE),VLOOKUP(D19,DATA!$B$27:$N$50,3,FALSE),VLOOKUP(D19,DATA!$B$27:$N$50,4,FALSE),VLOOKUP(D19,DATA!$B$27:$N$50,5,FALSE),VLOOKUP(D19,DATA!$B$27:$N$50,6,FALSE),VLOOKUP(D19,DATA!$B$27:$N$50,7,FALSE),VLOOKUP(D19,DATA!$B$27:$N$50,8,FALSE),VLOOKUP(D19,DATA!$B$27:$N$50,9,FALSE),VLOOKUP(D19,DATA!$B$27:$N$50,10,FALSE),VLOOKUP(D19,DATA!$B$27:$N$50,11,FALSE),VLOOKUP(D19,DATA!$B$27:$N$50,12,FALSE),VLOOKUP(D19,DATA!$B$27:$N$50,13,FALSE),"")*(IF(F20=1,1,0)) -> 0 | K19: =CHOOSE(H19,VLOOKUP(D19,DATA!$B$52:$N$75,2,FALSE),VLOOKUP(D19,DATA!$B$52:$N$75,3,FALSE),VLOOKUP(D19,DATA!$B$52:$N$75,4,FALSE),VLOOKUP(D19,DATA!$B$52:$N$77,5,FALSE),VLOOKUP(D19,DATA!$B$52:$N$75,6,FALSE),VLOOKUP(D19,DATA!$B$52:$N$75,7,FALSE),VLOOKUP(D19,DATA!$B$52:$N$75,8,FALSE),VLOOKUP(D19,DATA!$B$52:$N$75,9,FALSE),VLOOKUP(D19,DATA!$B$52:$N$75,10,FALSE),VLOOKUP(D19,DATA!$B$52:$N$75,11,FALSE),VLOOKUP(D19,DATA!$B$52:$N$75,12,FALSE),VLOOKUP(D19,DATA!$B$52:$N$75,13,FALSE),"")*(IF(F21=1,1,0)) -> 0 | L19: =CHOOSE(H19,VLOOKUP(D19,DATA!$B$77:$N$100,2,FALSE),VLOOKUP(D19,DATA!$B$77:$N$100,3,FALSE),VLOOKUP(D19,DATA!$B$77:$N$100,4,FALSE),VLOOKUP(D19,DATA!$B$77:$N$100,5,FALSE),VLOOKUP(D19,DATA!$B$77:$N$100,6,FALSE),VLOOKUP(D19,DATA!$B$77:$N$100,7,FALSE),VLOOKUP(D19,DATA!$B$77:$N$100,8,FALSE),VLOOKUP(D19,DATA!$B$77:$N$100,9,FALSE),VLOOKUP(D19,DATA!$B$77:$N$100,10,FALSE),VLOOKUP(D19,DATA!$B$77:$N$100,11,FALSE),VLOOKUP(D19,DATA!$B$77:$N$100,12,FALSE),VLOOKUP(D19,DATA!$B$77:$N$100,13,FALSE),"")*(IF(F22=1,1,0)) -> 0 | M19: =CHOOSE(H19,VLOOKUP(D19,DATA!$B$102:$N$125,2,FALSE),VLOOKUP(D19,DATA!$B$102:$N$125,3,FALSE),VLOOKUP(D19,DATA!$B$102:$N$125,4,FALSE),VLOOKUP(D19,DATA!$B$102:$N$125,5,FALSE),VLOOKUP(D19,DATA!$B$102:$N$125,6,FALSE),VLOOKUP(D19,DATA!$B$102:$N$125,7,FALSE),VLOOKUP(D19,DATA!$B$102:$N$125,8,FALSE),VLOOKUP(D19,DATA!$B$102:$N$125,9,FALSE),VLOOKUP(D19,DATA!$B$102:$N$125,10,FALSE),VLOOKUP(D19,DATA!$B$102:$N$125,11,FALSE),VLOOKUP(D19,DATA!$B$102:$N$125,12,FALSE),VLOOKUP(D19,DATA!$B$102:$N$125,13,FALSE),"")*(IF(F22=1,1,0)) -> 0 | N19: =利用申込書1!AG33 ->  | O19: =IF(AND(F20=1,F21=1,F22=1),"午前-午後-夜間",(IF(AND(F20=1,F21=1,F22=2),"午前-午後",(IF(AND(F20=2,F21=1,F22=1),"午後-夜間",(IF(AND(F20=1,F21=2,F22=2),"午前",(IF(AND(F20=2,F21=1,F22=2),"午後",IF(AND(F20=1,F21=2,F22=1),"午前・夜間","夜間")))))))))) -> 夜間 | Q19: =IF(I19>0,VLOOKUP(O19,$A$235:$B$238,2,FALSE),VLOOKUP(O19,$A$226:$B$232,2,FALSE)) -> 18:00-21:00 | R19: =IF(B19=B15,"",B19) ->  | S19: =B19 -> 00:00:00 | T19: =YEAR(S19) -> 1900 | U19: 年 | V19: =T19&U19&T20&U20 -> 1900年1月 | W19: =IF(AND(F20=1,F21=1,F22=1),"APN",(IF(AND(F20=1,F21=1,F22=2),"AP",(IF(AND(F20=2,F21=1,F22=1),"PN",(IF(AND(F20=1,F21=2,F22=2),"A",(IF(AND(F20=2,F21=1,F22=2),"P","N"))))))))) -> N | X19: =利用申込書1!$AV$50 ->  | Y19: =X20&W19&"・"&AB19 -> 0N・ | Z19: =T19&U19 -> 1900年 | AA19: =Z19&V20 -> 1900年1月0日 | AB19: =CLEAN(X19) -> 
B20: =TEXT(B19,"YYYY") -> 1900 | E20: チェック2 | F20: =IF(F19=1,1,IF(G20,1,2)) -> 2 | G20: FALSE | J20: =B22&$J$6 -> 0A | K20: =B22&$K$6 -> 0P | L20: =B22&$L$6 -> 0N | Q20: =LEFT(Q19,2) -> 18 | S20: =B19 -> 00:00:00 | T20: =MONTH(S19) -> 1 | U20: 月 | V20: =T20&U20&T21&U21 -> 1月0日 | W20: =D19 -> 0 | X20: =LEFT(W20,3) -> 0
B21: =TEXT(B19,"YYYYmm") -> 190001 | E21: チェック3 | F21: 2 | G21: FALSE | J21: =G20 -> FALSE | K21: =G21 -> FALSE | L21: =G22 -> FALSE | Q21: =IF(MID(Q19,6,1)="-",MID(Q19,7,2),MID(Q19,6,2)) -> 21 | T21: =DAY(S19) -> 0 | U21: 日 | V21: =T21&U21 -> 0日
B22: =TEXT(B19,"d") -> 0 | E22: チェック4 | F22: 2 | G22: FALSE | V22: =T20&U20 -> 1月
A23: =IF(D23="大会議室(準備)","大会議室",(IF(D23="大会議室(本番)","大会議室",(IF(D23="ピアザホール(準備)","PH",IF(D23="ピアザホール(本番)","PH",IF(D23="練習室(一般)","練習室",IF(D23="練習室(学生)","練習室",D23)))))))) -> 0 | B23: =IF(利用申込書1!A35="", B19,利用申込書1!A35) -> 00:00:00 | C23: =IF(OR((WEEKDAY(B23,2)>=6),COUNTIF(DATA!$Q$3:$T$23,B23)),2,1) -> 2 | D23: =利用申込書1!F35 -> 0 | E23: チェック1 | F23: 2 | G23: FALSE | H23: =IF(AND($C$1=1,$C$2=1,C23=1),1,(IF(AND($C$1=1,$C$2=2,C23=1),2,(IF(AND($C$1=1,$C$2=3,C23=1),3,(IF(AND($C$1=2,$C$2=1,C23=1),4,(IF(AND($C$1=2,$C$2=2,C23=1),5,(IF(AND($C$1=2,$C$2=3,C23=1),6,(IF(AND($C$1=1,$C$2=1,C23=2),7,(IF(AND($C$1=1,$C$2=2,C23=2),8,(IF(AND($C$1=1,$C$2=3,C23=2),9,(IF(AND($C$1=2,$C$2=1,C23=2),10,(IF(AND($C$1=2,$C$2=2,C23=2),11,(IF(AND($C$1=2,$C$2=3,C23=2),12,""))))))))))))))))))))))) -> 7 | I23: =CHOOSE(H23,VLOOKUP(D23,DATA!$B$2:$N$25,2,FALSE),VLOOKUP(D23,DATA!$B$2:$N$25,3,FALSE),VLOOKUP(D23,DATA!$B$2:$N$25,4,FALSE),VLOOKUP(D23,DATA!$B$2:$N$25,5,FALSE),VLOOKUP(D23,DATA!$B$2:$N$25,6,FALSE),VLOOKUP(D23,DATA!$B$2:$N$25,7,FALSE),VLOOKUP(D23,DATA!$B$2:$N$25,8,FALSE),VLOOKUP(D23,DATA!$B$2:$N$25,9,FALSE),VLOOKUP(D23,DATA!$B$2:$N$25,10,FALSE),VLOOKUP(D23,DATA!$B$2:$N$25,11,FALSE),VLOOKUP(D23,DATA!$B$2:$N$25,12,FALSE),VLOOKUP(D23,DATA!$B$2:$N$25,13,FALSE),"")*(IF(F23=1,1,0)) -> 0 | J23: =CHOOSE(H23,VLOOKUP(D23,DATA!$B$27:$N$50,2,FALSE),VLOOKUP(D23,DATA!$B$27:$N$50,3,FALSE),VLOOKUP(D23,DATA!$B$27:$N$50,4,FALSE),VLOOKUP(D23,DATA!$B$27:$N$50,5,FALSE),VLOOKUP(D23,DATA!$B$27:$N$50,6,FALSE),VLOOKUP(D23,DATA!$B$27:$N$50,7,FALSE),VLOOKUP(D23,DATA!$B$27:$N$50,8,FALSE),VLOOKUP(D23,DATA!$B$27:$N$50,9,FALSE),VLOOKUP(D23,DATA!$B$27:$N$50,10,FALSE),VLOOKUP(D23,DATA!$B$27:$N$50,11,FALSE),VLOOKUP(D23,DATA!$B$27:$N$50,12,FALSE),VLOOKUP(D23,DATA!$B$27:$N$50,13,FALSE),"")*(IF(F24=1,1,0)) -> 0 | K23: =CHOOSE(H23,VLOOKUP(D23,DATA!$B$52:$N$75,2,FALSE),VLOOKUP(D23,DATA!$B$52:$N$75,3,FALSE),VLOOKUP(D23,DATA!$B$52:$N$75,4,FALSE),VLOOKUP(D23,DATA!$B$52:$N$77,5,FALSE),VLOOKUP(D23,DATA!$B$52:$N$75,6,FALSE),VLOOKUP(D23,DATA!$B$52:$N$75,7,FALSE),VLOOKUP(D23,DATA!$B$52:$N$75,8,FALSE),VLOOKUP(D23,DATA!$B$52:$N$75,9,FALSE),VLOOKUP(D23,DATA!$B$52:$N$75,10,FALSE),VLOOKUP(D23,DATA!$B$52:$N$75,11,FALSE),VLOOKUP(D23,DATA!$B$52:$N$75,12,FALSE),VLOOKUP(D23,DATA!$B$52:$N$75,13,FALSE),"")*(IF(F25=1,1,0)) -> 0 | L23: =CHOOSE(H23,VLOOKUP(D23,DATA!$B$77:$N$100,2,FALSE),VLOOKUP(D23,DATA!$B$77:$N$100,3,FALSE),VLOOKUP(D23,DATA!$B$77:$N$100,4,FALSE),VLOOKUP(D23,DATA!$B$77:$N$100,5,FALSE),VLOOKUP(D23,DATA!$B$77:$N$100,6,FALSE),VLOOKUP(D23,DATA!$B$77:$N$100,7,FALSE),VLOOKUP(D23,DATA!$B$77:$N$100,8,FALSE),VLOOKUP(D23,DATA!$B$77:$N$100,9,FALSE),VLOOKUP(D23,DATA!$B$77:$N$100,10,FALSE),VLOOKUP(D23,DATA!$B$77:$N$100,11,FALSE),VLOOKUP(D23,DATA!$B$77:$N$100,12,FALSE),VLOOKUP(D23,DATA!$B$77:$N$100,13,FALSE),"")*(IF(F26=1,1,0)) -> 0 | M23: =CHOOSE(H23,VLOOKUP(D23,DATA!$B$102:$N$125,2,FALSE),VLOOKUP(D23,DATA!$B$102:$N$125,3,FALSE),VLOOKUP(D23,DATA!$B$102:$N$125,4,FALSE),VLOOKUP(D23,DATA!$B$102:$N$125,5,FALSE),VLOOKUP(D23,DATA!$B$102:$N$125,6,FALSE),VLOOKUP(D23,DATA!$B$102:$N$125,7,FALSE),VLOOKUP(D23,DATA!$B$102:$N$125,8,FALSE),VLOOKUP(D23,DATA!$B$102:$N$125,9,FALSE),VLOOKUP(D23,DATA!$B$102:$N$125,10,FALSE),VLOOKUP(D23,DATA!$B$102:$N$125,11,FALSE),VLOOKUP(D23,DATA!$B$102:$N$125,12,FALSE),VLOOKUP(D23,DATA!$B$102:$N$125,13,FALSE),"")*(IF(F26=1,1,0)) -> 0 | N23: =利用申込書1!AG35 ->  | O23: =IF(AND(F24=1,F25=1,F26=1),"午前-午後-夜間",(IF(AND(F24=1,F25=1,F26=2),"午前-午後",(IF(AND(F24=2,F25=1,F26=1),"午後-夜間",(IF(AND(F24=1,F25=2,F26=2),"午前",(IF(AND(F24=2,F25=1,F26=2),"午後",IF(AND(F24=1,F25=2,F26=1),"午前・夜間","夜間")))))))))) -> 夜間 | Q23: =IF(I23>0,VLOOKUP(O23,$A$235:$B$238,2,FALSE),VLOOKUP(O23,$A$226:$B$232,2,FALSE)) -> 18:00-21:00 | R23: =IF(B23=B19,"",B23) ->  | S23: =B23 -> 00:00:00 | T23: =YEAR(S23) -> 1900 | U23: 年 | V23: =T23&U23&T24&U24 -> 1900年1月 | W23: =IF(AND(F24=1,F25=1,F26=1),"APN",(IF(AND(F24=1,F25=1,F26=2),"AP",(IF(AND(F24=2,F25=1,F26=1),"PN",(IF(AND(F24=1,F25=2,F26=2),"A",(IF(AND(F24=2,F25=1,F26=2),"P","N"))))))))) -> N | X23: =利用申込書1!$AV$50 ->  | Y23: =X24&W23&"・"&AB23 -> 0N・ | Z23: =T23&U23 -> 1900年 | AA23: =Z23&V24 -> 1900年1月0日 | AB23: =CLEAN(X23) -> 
B24: =TEXT(B23,"YYYY") -> 1900 | E24: チェック2 | F24: =IF(F23=1,1,IF(G24,1,2)) -> 2 | G24: FALSE | J24: =B26&$J$6 -> 0A | K24: =B26&$K$6 -> 0P | L24: =B26&$L$6 -> 0N | Q24: =LEFT(Q23,2) -> 18 | S24: =B23 -> 00:00:00 | T24: =MONTH(S23) -> 1 | U24: 月 | V24: =T24&U24&T25&U25 -> 1月0日 | W24: =D23 -> 0 | X24: =LEFT(W24,3) -> 0
B25: =TEXT(B23,"YYYYmm") -> 190001 | E25: チェック3 | F25: 2 | G25: FALSE | J25: =G24 -> FALSE | K25: =G25 -> FALSE | L25: =G26 -> FALSE | Q25: =IF(MID(Q23,6,1)="-",MID(Q23,7,2),MID(Q23,6,2)) -> 21 | T25: =DAY(S23) -> 0 | U25: 日 | V25: =T25&U25 -> 0日
B26: =TEXT(B23,"d") -> 0 | E26: チェック4 | F26: 2 | G26: FALSE | Q26: =LEFT(Q25,2) -> 21 | V26: =T24&U24 -> 1月
A27: =IF(D27="大会議室(準備)","大会議室",(IF(D27="大会議室(本番)","大会議室",(IF(D27="ピアザホール(準備)","PH",IF(D27="ピアザホール(本番)","PH",IF(D27="練習室(一般)","練習室",IF(D27="練習室(学生)","練習室",D27)))))))) -> 0 | B27: =IF(利用申込書1!A37="", B23,利用申込書1!A37) -> 00:00:00 | C27: =IF(OR((WEEKDAY(B27,2)>=6),COUNTIF(DATA!$Q$3:$T$23,B27)),2,1) -> 2 | D27: =利用申込書1!F37 -> 0 | E27: チェック1 | F27: 2 | G27: FALSE | H27: =IF(AND($C$1=1,$C$2=1,C27=1),1,(IF(AND($C$1=1,$C$2=2,C27=1),2,(IF(AND($C$1=1,$C$2=3,C27=1),3,(IF(AND($C$1=2,$C$2=1,C27=1),4,(IF(AND($C$1=2,$C$2=2,C27=1),5,(IF(AND($C$1=2,$C$2=3,C27=1),6,(IF(AND($C$1=1,$C$2=1,C27=2),7,(IF(AND($C$1=1,$C$2=2,C27=2),8,(IF(AND($C$1=1,$C$2=3,C27=2),9,(IF(AND($C$1=2,$C$2=1,C27=2),10,(IF(AND($C$1=2,$C$2=2,C27=2),11,(IF(AND($C$1=2,$C$2=3,C27=2),12,""))))))))))))))))))))))) -> 7 | I27: =CHOOSE(H27,VLOOKUP(D27,DATA!$B$2:$N$25,2,FALSE),VLOOKUP(D27,DATA!$B$2:$N$25,3,FALSE),VLOOKUP(D27,DATA!$B$2:$N$25,4,FALSE),VLOOKUP(D27,DATA!$B$2:$N$25,5,FALSE),VLOOKUP(D27,DATA!$B$2:$N$25,6,FALSE),VLOOKUP(D27,DATA!$B$2:$N$25,7,FALSE),VLOOKUP(D27,DATA!$B$2:$N$25,8,FALSE),VLOOKUP(D27,DATA!$B$2:$N$25,9,FALSE),VLOOKUP(D27,DATA!$B$2:$N$25,10,FALSE),VLOOKUP(D27,DATA!$B$2:$N$25,11,FALSE),VLOOKUP(D27,DATA!$B$2:$N$25,12,FALSE),VLOOKUP(D27,DATA!$B$2:$N$25,13,FALSE),"")*(IF(F27=1,1,0)) -> 0 | J27: =CHOOSE(H27,VLOOKUP(D27,DATA!$B$27:$N$50,2,FALSE),VLOOKUP(D27,DATA!$B$27:$N$50,3,FALSE),VLOOKUP(D27,DATA!$B$27:$N$50,4,FALSE),VLOOKUP(D27,DATA!$B$27:$N$50,5,FALSE),VLOOKUP(D27,DATA!$B$27:$N$50,6,FALSE),VLOOKUP(D27,DATA!$B$27:$N$50,7,FALSE),VLOOKUP(D27,DATA!$B$27:$N$50,8,FALSE),VLOOKUP(D27,DATA!$B$27:$N$50,9,FALSE),VLOOKUP(D27,DATA!$B$27:$N$50,10,FALSE),VLOOKUP(D27,DATA!$B$27:$N$50,11,FALSE),VLOOKUP(D27,DATA!$B$27:$N$50,12,FALSE),VLOOKUP(D27,DATA!$B$27:$N$50,13,FALSE),"")*(IF(F28=1,1,0)) -> 0 | K27: =CHOOSE(H27,VLOOKUP(D27,DATA!$B$52:$N$75,2,FALSE),VLOOKUP(D27,DATA!$B$52:$N$75,3,FALSE),VLOOKUP(D27,DATA!$B$52:$N$75,4,FALSE),VLOOKUP(D27,DATA!$B$52:$N$77,5,FALSE),VLOOKUP(D27,DATA!$B$52:$N$75,6,FALSE),VLOOKUP(D27,DATA!$B$52:$N$75,7,FALSE),VLOOKUP(D27,DATA!$B$52:$N$75,8,FALSE),VLOOKUP(D27,DATA!$B$52:$N$75,9,FALSE),VLOOKUP(D27,DATA!$B$52:$N$75,10,FALSE),VLOOKUP(D27,DATA!$B$52:$N$75,11,FALSE),VLOOKUP(D27,DATA!$B$52:$N$75,12,FALSE),VLOOKUP(D27,DATA!$B$52:$N$75,13,FALSE),"")*(IF(F29=1,1,0)) -> 0 | L27: =CHOOSE(H27,VLOOKUP(D27,DATA!$B$77:$N$100,2,FALSE),VLOOKUP(D27,DATA!$B$77:$N$100,3,FALSE),VLOOKUP(D27,DATA!$B$77:$N$100,4,FALSE),VLOOKUP(D27,DATA!$B$77:$N$100,5,FALSE),VLOOKUP(D27,DATA!$B$77:$N$100,6,FALSE),VLOOKUP(D27,DATA!$B$77:$N$100,7,FALSE),VLOOKUP(D27,DATA!$B$77:$N$100,8,FALSE),VLOOKUP(D27,DATA!$B$77:$N$100,9,FALSE),VLOOKUP(D27,DATA!$B$77:$N$100,10,FALSE),VLOOKUP(D27,DATA!$B$77:$N$100,11,FALSE),VLOOKUP(D27,DATA!$B$77:$N$100,12,FALSE),VLOOKUP(D27,DATA!$B$77:$N$100,13,FALSE),"")*(IF(F30=1,1,0)) -> 0 | M27: =CHOOSE(H27,VLOOKUP(D27,DATA!$B$102:$N$125,2,FALSE),VLOOKUP(D27,DATA!$B$102:$N$125,3,FALSE),VLOOKUP(D27,DATA!$B$102:$N$125,4,FALSE),VLOOKUP(D27,DATA!$B$102:$N$125,5,FALSE),VLOOKUP(D27,DATA!$B$102:$N$125,6,FALSE),VLOOKUP(D27,DATA!$B$102:$N$125,7,FALSE),VLOOKUP(D27,DATA!$B$102:$N$125,8,FALSE),VLOOKUP(D27,DATA!$B$102:$N$125,9,FALSE),VLOOKUP(D27,DATA!$B$102:$N$125,10,FALSE),VLOOKUP(D27,DATA!$B$102:$N$125,11,FALSE),VLOOKUP(D27,DATA!$B$102:$N$125,12,FALSE),VLOOKUP(D27,DATA!$B$102:$N$125,13,FALSE),"")*(IF(F30=1,1,0)) -> 0 | N27: =利用申込書1!AG37 ->  | O27: =IF(AND(F28=1,F29=1,F30=1),"午前-午後-夜間",(IF(AND(F28=1,F29=1,F30=2),"午前-午後",(IF(AND(F28=2,F29=1,F30=1),"午後-夜間",(IF(AND(F28=1,F29=2,F30=2),"午前",(IF(AND(F28=2,F29=1,F30=2),"午後",IF(AND(F28=1,F29=2,F30=1),"午前・夜間","夜間")))))))))) -> 夜間 | Q27: =IF(I27>0,VLOOKUP(O27,$A$235:$B$238,2,FALSE),VLOOKUP(O27,$A$226:$B$232,2,FALSE)) -> 18:00-21:00 | R27: =IF(B27=B23,"",B27) ->  | S27: =B27 -> 00:00:00 | T27: =YEAR(S27) -> 1900 | U27: 年 | V27: =T27&U27&T28&U28 -> 1900年1月 | W27: =IF(AND(F28=1,F29=1,F30=1),"APN",(IF(AND(F28=1,F29=1,F30=2),"AP",(IF(AND(F28=2,F29=1,F30=1),"PN",(IF(AND(F28=1,F29=2,F30=2),"A",(IF(AND(F28=2,F29=1,F30=2),"P","N"))))))))) -> N | X27: =利用申込書1!$AV$50 ->  | Y27: =X28&W27&"・"&AB27 -> 0N・ | Z27: =T27&U27 -> 1900年 | AA27: =Z27&V28 -> 1900年1月0日 | AB27: =CLEAN(X27) -> 
B28: =TEXT(B27,"YYYY") -> 1900 | E28: チェック2 | F28: =IF(F27=1,1,IF(G28,1,2)) -> 2 | G28: FALSE | J28: =B30&$J$6 -> 0A | K28: =B30&$K$6 -> 0P | L28: =B30&$L$6 -> 0N | Q28: =LEFT(Q27,2) -> 18 | S28: =B27 -> 00:00:00 | T28: =MONTH(S27) -> 1 | U28: 月 | V28: =T28&U28&T29&U29 -> 1月0日 | W28: =D27 -> 0 | X28: =LEFT(W28,3) -> 0
B29: =TEXT(B27,"YYYYmm") -> 190001 | E29: チェック3 | F29: 2 | G29: FALSE | J29: =G28 -> FALSE | K29: =G29 -> FALSE | L29: =G30 -> FALSE | Q29: =IF(MID(Q27,6,1)="-",MID(Q27,7,2),MID(Q27,6,2)) -> 21 | T29: =DAY(S27) -> 0 | U29: 日 | V29: =T29&U29 -> 0日
B30: =TEXT(B27,"d") -> 0 | E30: チェック4 | F30: 2 | G30: FALSE | V30: =T28&U28 -> 1月
A31: =IF(D31="大会議室(準備)","大会議室",(IF(D31="大会議室(本番)","大会議室",(IF(D31="ピアザホール(準備)","PH",IF(D31="ピアザホール(本番)","PH",IF(D31="練習室(一般)","練習室",IF(D31="練習室(学生)","練習室",D31)))))))) -> 0 | B31: =IF(利用申込書1!A39="", B27,利用申込書1!A39) -> 00:00:00 | C31: =IF(OR((WEEKDAY(B31,2)>=6),COUNTIF(DATA!$Q$3:$T$23,B31)),2,1) -> 2 | D31: =利用申込書1!F39 -> 0 | E31: チェック1 | F31: =IF(G31,1,2) -> 2 | G31: FALSE | H31: =IF(AND($C$1=1,$C$2=1,C31=1),1,(IF(AND($C$1=1,$C$2=2,C31=1),2,(IF(AND($C$1=1,$C$2=3,C31=1),3,(IF(AND($C$1=2,$C$2=1,C31=1),4,(IF(AND($C$1=2,$C$2=2,C31=1),5,(IF(AND($C$1=2,$C$2=3,C31=1),6,(IF(AND($C$1=1,$C$2=1,C31=2),7,(IF(AND($C$1=1,$C$2=2,C31=2),8,(IF(AND($C$1=1,$C$2=3,C31=2),9,(IF(AND($C$1=2,$C$2=1,C31=2),10,(IF(AND($C$1=2,$C$2=2,C31=2),11,(IF(AND($C$1=2,$C$2=3,C31=2),12,""))))))))))))))))))))))) -> 7 | I31: =CHOOSE(H31,VLOOKUP(D31,DATA!$B$2:$N$25,2,FALSE),VLOOKUP(D31,DATA!$B$2:$N$25,3,FALSE),VLOOKUP(D31,DATA!$B$2:$N$25,4,FALSE),VLOOKUP(D31,DATA!$B$2:$N$25,5,FALSE),VLOOKUP(D31,DATA!$B$2:$N$25,6,FALSE),VLOOKUP(D31,DATA!$B$2:$N$25,7,FALSE),VLOOKUP(D31,DATA!$B$2:$N$25,8,FALSE),VLOOKUP(D31,DATA!$B$2:$N$25,9,FALSE),VLOOKUP(D31,DATA!$B$2:$N$25,10,FALSE),VLOOKUP(D31,DATA!$B$2:$N$25,11,FALSE),VLOOKUP(D31,DATA!$B$2:$N$25,12,FALSE),VLOOKUP(D31,DATA!$B$2:$N$25,13,FALSE),"")*(IF(F31=1,1,0)) -> 0 | J31: =CHOOSE(H31,VLOOKUP(D31,DATA!$B$27:$N$50,2,FALSE),VLOOKUP(D31,DATA!$B$27:$N$50,3,FALSE),VLOOKUP(D31,DATA!$B$27:$N$50,4,FALSE),VLOOKUP(D31,DATA!$B$27:$N$50,5,FALSE),VLOOKUP(D31,DATA!$B$27:$N$50,6,FALSE),VLOOKUP(D31,DATA!$B$27:$N$50,7,FALSE),VLOOKUP(D31,DATA!$B$27:$N$50,8,FALSE),VLOOKUP(D31,DATA!$B$27:$N$50,9,FALSE),VLOOKUP(D31,DATA!$B$27:$N$50,10,FALSE),VLOOKUP(D31,DATA!$B$27:$N$50,11,FALSE),VLOOKUP(D31,DATA!$B$27:$N$50,12,FALSE),VLOOKUP(D31,DATA!$B$27:$N$50,13,FALSE),"")*(IF(F32=1,1,0)) -> 0 | K31: =CHOOSE(H31,VLOOKUP(D31,DATA!$B$52:$N$75,2,FALSE),VLOOKUP(D31,DATA!$B$52:$N$75,3,FALSE),VLOOKUP(D31,DATA!$B$52:$N$75,4,FALSE),VLOOKUP(D31,DATA!$B$52:$N$77,5,FALSE),VLOOKUP(D31,DATA!$B$52:$N$75,6,FALSE),VLOOKUP(D31,DATA!$B$52:$N$75,7,FALSE),VLOOKUP(D31,DATA!$B$52:$N$75,8,FALSE),VLOOKUP(D31,DATA!$B$52:$N$75,9,FALSE),VLOOKUP(D31,DATA!$B$52:$N$75,10,FALSE),VLOOKUP(D31,DATA!$B$52:$N$75,11,FALSE),VLOOKUP(D31,DATA!$B$52:$N$75,12,FALSE),VLOOKUP(D31,DATA!$B$52:$N$75,13,FALSE),"")*(IF(F33=1,1,0)) -> 0 | L31: =CHOOSE(H31,VLOOKUP(D31,DATA!$B$77:$N$100,2,FALSE),VLOOKUP(D31,DATA!$B$77:$N$100,3,FALSE),VLOOKUP(D31,DATA!$B$77:$N$100,4,FALSE),VLOOKUP(D31,DATA!$B$77:$N$100,5,FALSE),VLOOKUP(D31,DATA!$B$77:$N$100,6,FALSE),VLOOKUP(D31,DATA!$B$77:$N$100,7,FALSE),VLOOKUP(D31,DATA!$B$77:$N$100,8,FALSE),VLOOKUP(D31,DATA!$B$77:$N$100,9,FALSE),VLOOKUP(D31,DATA!$B$77:$N$100,10,FALSE),VLOOKUP(D31,DATA!$B$77:$N$100,11,FALSE),VLOOKUP(D31,DATA!$B$77:$N$100,12,FALSE),VLOOKUP(D31,DATA!$B$77:$N$100,13,FALSE),"")*(IF(F34=1,1,0)) -> 0 | M31: =CHOOSE(H31,VLOOKUP(D31,DATA!$B$102:$N$125,2,FALSE),VLOOKUP(D31,DATA!$B$102:$N$125,3,FALSE),VLOOKUP(D31,DATA!$B$102:$N$125,4,FALSE),VLOOKUP(D31,DATA!$B$102:$N$125,5,FALSE),VLOOKUP(D31,DATA!$B$102:$N$125,6,FALSE),VLOOKUP(D31,DATA!$B$102:$N$125,7,FALSE),VLOOKUP(D31,DATA!$B$102:$N$125,8,FALSE),VLOOKUP(D31,DATA!$B$102:$N$125,9,FALSE),VLOOKUP(D31,DATA!$B$102:$N$125,10,FALSE),VLOOKUP(D31,DATA!$B$102:$N$125,11,FALSE),VLOOKUP(D31,DATA!$B$102:$N$125,12,FALSE),VLOOKUP(D31,DATA!$B$102:$N$125,13,FALSE),"")*(IF(F34=1,1,0)) -> 0 | N31: =利用申込書1!AG39 ->  | O31: =IF(AND(F32=1,F33=1,F34=1),"午前-午後-夜間",(IF(AND(F32=1,F33=1,F34=2),"午前-午後",(IF(AND(F32=2,F33=1,F34=1),"午後-夜間",(IF(AND(F32=1,F33=2,F34=2),"午前",(IF(AND(F32=2,F33=1,F34=2),"午後",IF(AND(F32=1,F33=2,F34=1),"午前・夜間","夜間")))))))))) -> 夜間 | Q31: =IF(I31>0,VLOOKUP(O31,$A$235:$B$238,2,FALSE),VLOOKUP(O31,$A$226:$B$232,2,FALSE)) -> 18:00-21:00 | R31: =IF(B31=B27,"",B31) ->  | S31: =B31 -> 00:00:00 | T31: =YEAR(S31) -> 1900 | U31: 年 | V31: =T31&U31&T32&U32 -> 1900年1月 | W31: =IF(AND(F32=1,F33=1,F34=1),"APN",(IF(AND(F32=1,F33=1,F34=2),"AP",(IF(AND(F32=2,F33=1,F34=1),"PN",(IF(AND(F32=1,F33=2,F34=2),"A",(IF(AND(F32=2,F33=1,F34=2),"P","N"))))))))) -> N | X31: =利用申込書1!$AV$50 ->  | Y31: =X32&W31&"・"&AB31 -> 0N・ | Z31: =T31&U31 -> 1900年 | AA31: =Z31&V32 -> 1900年1月0日 | AB31: =CLEAN(X31) -> 
B32: =TEXT(B31,"YYYY") -> 1900 | E32: チェック2 | F32: =IF(F31=1,1,IF(G32,1,2)) -> 2 | G32: FALSE | J32: =B34&$J$6 -> 0A | K32: =B34&$K$6 -> 0P | L32: =B34&$L$6 -> 0N | Q32: =LEFT(Q31,2) -> 18 | S32: =B31 -> 00:00:00 | T32: =MONTH(S31) -> 1 | U32: 月 | V32: =T32&U32&T33&U33 -> 1月0日 | W32: =D31 -> 0 | X32: =LEFT(W32,3) -> 0
B33: =TEXT(B31,"YYYYmm") -> 190001 | E33: チェック3 | F33: 2 | G33: FALSE | J33: =G32 -> FALSE | K33: =G33 -> FALSE | L33: =G34 -> FALSE | Q33: =IF(MID(Q31,6,1)="-",MID(Q31,7,2),MID(Q31,6,2)) -> 21 | T33: =DAY(S31) -> 0 | U33: 日 | V33: =T33&U33 -> 0日
B34: =TEXT(B31,"d") -> 0 | E34: チェック4 | F34: 2 | G34: FALSE | V34: =T32&U32 -> 1月
A35: =IF(D35="大会議室(準備)","大会議室",(IF(D35="大会議室(本番)","大会議室",(IF(D35="ピアザホール(準備)","PH",IF(D35="ピアザホール(本番)","PH",IF(D35="練習室(一般)","練習室",IF(D35="練習室(学生)","練習室",D35)))))))) -> 0 | B35: =IF(利用申込書1!A41="", B31,利用申込書1!A41) -> 00:00:00 | C35: =IF(OR((WEEKDAY(B35,2)>=6),COUNTIF(DATA!$Q$3:$T$23,B35)),2,1) -> 2 | D35: =利用申込書1!F41 -> 0 | E35: チェック1 | F35: 2 | G35: FALSE | H35: =IF(AND($C$1=1,$C$2=1,C35=1),1,(IF(AND($C$1=1,$C$2=2,C35=1),2,(IF(AND($C$1=1,$C$2=3,C35=1),3,(IF(AND($C$1=2,$C$2=1,C35=1),4,(IF(AND($C$1=2,$C$2=2,C35=1),5,(IF(AND($C$1=2,$C$2=3,C35=1),6,(IF(AND($C$1=1,$C$2=1,C35=2),7,(IF(AND($C$1=1,$C$2=2,C35=2),8,(IF(AND($C$1=1,$C$2=3,C35=2),9,(IF(AND($C$1=2,$C$2=1,C35=2),10,(IF(AND($C$1=2,$C$2=2,C35=2),11,(IF(AND($C$1=2,$C$2=3,C35=2),12,""))))))))))))))))))))))) -> 7 | I35: =CHOOSE(H35,VLOOKUP(D35,DATA!$B$2:$N$25,2,FALSE),VLOOKUP(D35,DATA!$B$2:$N$25,3,FALSE),VLOOKUP(D35,DATA!$B$2:$N$25,4,FALSE),VLOOKUP(D35,DATA!$B$2:$N$25,5,FALSE),VLOOKUP(D35,DATA!$B$2:$N$25,6,FALSE),VLOOKUP(D35,DATA!$B$2:$N$25,7,FALSE),VLOOKUP(D35,DATA!$B$2:$N$25,8,FALSE),VLOOKUP(D35,DATA!$B$2:$N$25,9,FALSE),VLOOKUP(D35,DATA!$B$2:$N$25,10,FALSE),VLOOKUP(D35,DATA!$B$2:$N$25,11,FALSE),VLOOKUP(D35,DATA!$B$2:$N$25,12,FALSE),VLOOKUP(D35,DATA!$B$2:$N$25,13,FALSE),"")*(IF(F35=1,1,0)) -> 0 | J35: =CHOOSE(H35,VLOOKUP(D35,DATA!$B$27:$N$50,2,FALSE),VLOOKUP(D35,DATA!$B$27:$N$50,3,FALSE),VLOOKUP(D35,DATA!$B$27:$N$50,4,FALSE),VLOOKUP(D35,DATA!$B$27:$N$50,5,FALSE),VLOOKUP(D35,DATA!$B$27:$N$50,6,FALSE),VLOOKUP(D35,DATA!$B$27:$N$50,7,FALSE),VLOOKUP(D35,DATA!$B$27:$N$50,8,FALSE),VLOOKUP(D35,DATA!$B$27:$N$50,9,FALSE),VLOOKUP(D35,DATA!$B$27:$N$50,10,FALSE),VLOOKUP(D35,DATA!$B$27:$N$50,11,FALSE),VLOOKUP(D35,DATA!$B$27:$N$50,12,FALSE),VLOOKUP(D35,DATA!$B$27:$N$50,13,FALSE),"")*(IF(F36=1,1,0)) -> 0 | K35: =CHOOSE(H35,VLOOKUP(D35,DATA!$B$52:$N$75,2,FALSE),VLOOKUP(D35,DATA!$B$52:$N$75,3,FALSE),VLOOKUP(D35,DATA!$B$52:$N$75,4,FALSE),VLOOKUP(D35,DATA!$B$52:$N$77,5,FALSE),VLOOKUP(D35,DATA!$B$52:$N$75,6,FALSE),VLOOKUP(D35,DATA!$B$52:$N$75,7,FALSE),VLOOKUP(D35,DATA!$B$52:$N$75,8,FALSE),VLOOKUP(D35,DATA!$B$52:$N$75,9,FALSE),VLOOKUP(D35,DATA!$B$52:$N$75,10,FALSE),VLOOKUP(D35,DATA!$B$52:$N$75,11,FALSE),VLOOKUP(D35,DATA!$B$52:$N$75,12,FALSE),VLOOKUP(D35,DATA!$B$52:$N$75,13,FALSE),"")*(IF(F37=1,1,0)) -> 0 | L35: =CHOOSE(H35,VLOOKUP(D35,DATA!$B$77:$N$100,2,FALSE),VLOOKUP(D35,DATA!$B$77:$N$100,3,FALSE),VLOOKUP(D35,DATA!$B$77:$N$100,4,FALSE),VLOOKUP(D35,DATA!$B$77:$N$100,5,FALSE),VLOOKUP(D35,DATA!$B$77:$N$100,6,FALSE),VLOOKUP(D35,DATA!$B$77:$N$100,7,FALSE),VLOOKUP(D35,DATA!$B$77:$N$100,8,FALSE),VLOOKUP(D35,DATA!$B$77:$N$100,9,FALSE),VLOOKUP(D35,DATA!$B$77:$N$100,10,FALSE),VLOOKUP(D35,DATA!$B$77:$N$100,11,FALSE),VLOOKUP(D35,DATA!$B$77:$N$100,12,FALSE),VLOOKUP(D35,DATA!$B$77:$N$100,13,FALSE),"")*(IF(F38=1,1,0)) -> 0 | M35: =CHOOSE(H35,VLOOKUP(D35,DATA!$B$102:$N$125,2,FALSE),VLOOKUP(D35,DATA!$B$102:$N$125,3,FALSE),VLOOKUP(D35,DATA!$B$102:$N$125,4,FALSE),VLOOKUP(D35,DATA!$B$102:$N$125,5,FALSE),VLOOKUP(D35,DATA!$B$102:$N$125,6,FALSE),VLOOKUP(D35,DATA!$B$102:$N$125,7,FALSE),VLOOKUP(D35,DATA!$B$102:$N$125,8,FALSE),VLOOKUP(D35,DATA!$B$102:$N$125,9,FALSE),VLOOKUP(D35,DATA!$B$102:$N$125,10,FALSE),VLOOKUP(D35,DATA!$B$102:$N$125,11,FALSE),VLOOKUP(D35,DATA!$B$102:$N$125,12,FALSE),VLOOKUP(D35,DATA!$B$102:$N$125,13,FALSE),"")*(IF(F38=1,1,0)) -> 0 | N35: =利用申込書1!AG41 ->  | O35: =IF(AND(F36=1,F37=1,F38=1),"午前-午後-夜間",(IF(AND(F36=1,F37=1,F38=2),"午前-午後",(IF(AND(F36=2,F37=1,F38=1),"午後-夜間",(IF(AND(F36=1,F37=2,F38=2),"午前",(IF(AND(F36=2,F37=1,F38=2),"午後",IF(AND(F36=1,F37=2,F38=1),"午前・夜間","夜間")))))))))) -> 夜間 | Q35: =IF(I35>0,VLOOKUP(O35,$A$235:$B$238,2,FALSE),VLOOKUP(O35,$A$226:$B$232,2,FALSE)) -> 18:00-21:00 | R35: =IF(B35=B31,"",B35) ->  | S35: =B35 -> 00:00:00 | T35: =YEAR(S35) -> 1900 | U35: 年 | V35: =T35&U35&T36&U36 -> 1900年1月 | W35: =IF(AND(F36=1,F37=1,F38=1),"APN",(IF(AND(F36=1,F37=1,F38=2),"AP",(IF(AND(F36=2,F37=1,F38=1),"PN",(IF(AND(F36=1,F37=2,F38=2),"A",(IF(AND(F36=2,F37=1,F38=2),"P","N"))))))))) -> N | X35: =利用申込書1!$AV$50 ->  | Y35: =X36&W35&"・"&AB35 -> 0N・ | Z35: =T35&U35 -> 1900年 | AA35: =Z35&V36 -> 1900年1月0日 | AB35: =CLEAN(X35) -> 
B36: =TEXT(B35,"YYYY") -> 1900 | E36: チェック2 | F36: =IF(F35=1,1,IF(G36,1,2)) -> 2 | G36: FALSE | J36: =B38&$J$6 -> 0A | K36: =B38&$K$6 -> 0P | L36: =B38&$L$6 -> 0N | Q36: =LEFT(Q35,2) -> 18 | S36: =B35 -> 00:00:00 | T36: =MONTH(S35) -> 1 | U36: 月 | V36: =T36&U36&T37&U37 -> 1月0日 | W36: =D35 -> 0 | X36: =LEFT(W36,3) -> 0
B37: =TEXT(B35,"YYYYmm") -> 190001 | E37: チェック3 | F37: 2 | G37: FALSE | J37: =G36 -> FALSE | K37: =G37 -> FALSE | L37: =G38 -> FALSE | Q37: =IF(MID(Q35,6,1)="-",MID(Q35,7,2),MID(Q35,6,2)) -> 21 | T37: =DAY(S35) -> 0 | U37: 日 | V37: =T37&U37 -> 0日
A38: 利用申し込み続き用 1ページ | B38: =TEXT(B35,"d") -> 0 | E38: チェック4 | F38: 2 | G38: FALSE | V38: =T36&U36 -> 1月
A39: =IF(D39="大会議室(準備)","大会議室",(IF(D39="大会議室(本番)","大会議室",(IF(D39="ピアザホール(準備)","PH",IF(D39="ピアザホール(本番)","PH",IF(D39="練習室(一般)","練習室",IF(D39="練習室(学生)","練習室",D39)))))))) -> 0 | B39: =IF(利用申込書2!A10="", B35,利用申込書2!A10) -> 00:00:00 | C39: =IF(OR((WEEKDAY(B39,2)>=6),COUNTIF(DATA!$Q$3:$T$23,B39)),2,1) -> 2 | D39: =利用申込書2!F10 -> 0 | E39: チェック1 | F39: =IF(G39,1,2) -> 2 | G39: FALSE | H39: =IF(AND($C$1=1,$C$2=1,C39=1),1,(IF(AND($C$1=1,$C$2=2,C39=1),2,(IF(AND($C$1=1,$C$2=3,C39=1),3,(IF(AND($C$1=2,$C$2=1,C39=1),4,(IF(AND($C$1=2,$C$2=2,C39=1),5,(IF(AND($C$1=2,$C$2=3,C39=1),6,(IF(AND($C$1=1,$C$2=1,C39=2),7,(IF(AND($C$1=1,$C$2=2,C39=2),8,(IF(AND($C$1=1,$C$2=3,C39=2),9,(IF(AND($C$1=2,$C$2=1,C39=2),10,(IF(AND($C$1=2,$C$2=2,C39=2),11,(IF(AND($C$1=2,$C$2=3,C39=2),12,""))))))))))))))))))))))) -> 7 | I39: =CHOOSE(H39,VLOOKUP(D39,DATA!$B$2:$N$25,2,FALSE),VLOOKUP(D39,DATA!$B$2:$N$25,3,FALSE),VLOOKUP(D39,DATA!$B$2:$N$25,4,FALSE),VLOOKUP(D39,DATA!$B$2:$N$25,5,FALSE),VLOOKUP(D39,DATA!$B$2:$N$25,6,FALSE),VLOOKUP(D39,DATA!$B$2:$N$25,7,FALSE),VLOOKUP(D39,DATA!$B$2:$N$25,8,FALSE),VLOOKUP(D39,DATA!$B$2:$N$25,9,FALSE),VLOOKUP(D39,DATA!$B$2:$N$25,10,FALSE),VLOOKUP(D39,DATA!$B$2:$N$25,11,FALSE),VLOOKUP(D39,DATA!$B$2:$N$25,12,FALSE),VLOOKUP(D39,DATA!$B$2:$N$25,13,FALSE),"")*(IF(F39=1,1,0)) -> 0 | J39: =CHOOSE(H39,VLOOKUP(D39,DATA!$B$27:$N$50,2,FALSE),VLOOKUP(D39,DATA!$B$27:$N$50,3,FALSE),VLOOKUP(D39,DATA!$B$27:$N$50,4,FALSE),VLOOKUP(D39,DATA!$B$27:$N$50,5,FALSE),VLOOKUP(D39,DATA!$B$27:$N$50,6,FALSE),VLOOKUP(D39,DATA!$B$27:$N$50,7,FALSE),VLOOKUP(D39,DATA!$B$27:$N$50,8,FALSE),VLOOKUP(D39,DATA!$B$27:$N$50,9,FALSE),VLOOKUP(D39,DATA!$B$27:$N$50,10,FALSE),VLOOKUP(D39,DATA!$B$27:$N$50,11,FALSE),VLOOKUP(D39,DATA!$B$27:$N$50,12,FALSE),VLOOKUP(D39,DATA!$B$27:$N$50,13,FALSE),"")*(IF(F40=1,1,0)) -> 0 | K39: =CHOOSE(H39,VLOOKUP(D39,DATA!$B$52:$N$75,2,FALSE),VLOOKUP(D39,DATA!$B$52:$N$75,3,FALSE),VLOOKUP(D39,DATA!$B$52:$N$75,4,FALSE),VLOOKUP(D39,DATA!$B$52:$N$77,5,FALSE),VLOOKUP(D39,DATA!$B$52:$N$75,6,FALSE),VLOOKUP(D39,DATA!$B$52:$N$75,7,FALSE),VLOOKUP(D39,DATA!$B$52:$N$75,8,FALSE),VLOOKUP(D39,DATA!$B$52:$N$75,9,FALSE),VLOOKUP(D39,DATA!$B$52:$N$75,10,FALSE),VLOOKUP(D39,DATA!$B$52:$N$75,11,FALSE),VLOOKUP(D39,DATA!$B$52:$N$75,12,FALSE),VLOOKUP(D39,DATA!$B$52:$N$75,13,FALSE),"")*(IF(F41=1,1,0)) -> 0 | L39: =CHOOSE(H39,VLOOKUP(D39,DATA!$B$77:$N$100,2,FALSE),VLOOKUP(D39,DATA!$B$77:$N$100,3,FALSE),VLOOKUP(D39,DATA!$B$77:$N$100,4,FALSE),VLOOKUP(D39,DATA!$B$77:$N$100,5,FALSE),VLOOKUP(D39,DATA!$B$77:$N$100,6,FALSE),VLOOKUP(D39,DATA!$B$77:$N$100,7,FALSE),VLOOKUP(D39,DATA!$B$77:$N$100,8,FALSE),VLOOKUP(D39,DATA!$B$77:$N$100,9,FALSE),VLOOKUP(D39,DATA!$B$77:$N$100,10,FALSE),VLOOKUP(D39,DATA!$B$77:$N$100,11,FALSE),VLOOKUP(D39,DATA!$B$77:$N$100,12,FALSE),VLOOKUP(D39,DATA!$B$77:$N$100,13,FALSE),"")*(IF(F42=1,1,0)) -> 0 | M39: =CHOOSE(H39,VLOOKUP(D39,DATA!$B$102:$N$125,2,FALSE),VLOOKUP(D39,DATA!$B$102:$N$125,3,FALSE),VLOOKUP(D39,DATA!$B$102:$N$125,4,FALSE),VLOOKUP(D39,DATA!$B$102:$N$125,5,FALSE),VLOOKUP(D39,DATA!$B$102:$N$125,6,FALSE),VLOOKUP(D39,DATA!$B$102:$N$125,7,FALSE),VLOOKUP(D39,DATA!$B$102:$N$125,8,FALSE),VLOOKUP(D39,DATA!$B$102:$N$125,9,FALSE),VLOOKUP(D39,DATA!$B$102:$N$125,10,FALSE),VLOOKUP(D39,DATA!$B$102:$N$125,11,FALSE),VLOOKUP(D39,DATA!$B$102:$N$125,12,FALSE),VLOOKUP(D39,DATA!$B$102:$N$125,13,FALSE),"")*(IF(F42=1,1,0)) -> 0 | N39: =利用申込書2!AG10 ->  | O39: =IF(AND(F40=1,F41=1,F42=1),"午前-午後-夜間",(IF(AND(F40=1,F41=1,F42=2),"午前-午後",(IF(AND(F40=2,F41=1,F42=1),"午後-夜間",(IF(AND(F40=1,F41=2,F42=2),"午前",(IF(AND(F40=2,F41=1,F42=2),"午後",IF(AND(F40=1,F41=2,F42=1),"午前・夜間","夜間")))))))))) -> 夜間 | Q39: =IF(I39>0,VLOOKUP(O39,$A$235:$B$238,2,FALSE),VLOOKUP(O39,$A$226:$B$232,2,FALSE)) -> 18:00-21:00 | R39: =IF(B39=B35,"",B39) ->  | S39: =B39 -> 00:00:00 | T39: =YEAR(S39) -> 1900 | U39: 年 | V39: =T39&U39&T40&U40 -> 1900年1月 | W39: =IF(AND(F40=1,F41=1,F42=1),"APN",(IF(AND(F40=1,F41=1,F42=2),"AP",(IF(AND(F40=2,F41=1,F42=1),"PN",(IF(AND(F40=1,F41=2,F42=2),"A",(IF(AND(F40=2,F41=1,F42=2),"P","N"))))))))) -> N | X39: =利用申込書1!$AV$50 ->  | Y39: =X40&W39&"・"&AB39 -> 0N・ | Z39: =T39&U39 -> 1900年 | AA39: =Z39&V40 -> 1900年1月0日 | AB39: =CLEAN(X39) -> 
B40: =TEXT(B39,"YYYY") -> 1900 | E40: チェック2 | F40: =IF(F39=1,1,IF(G40,1,2)) -> 2 | G40: FALSE | J40: =B42&$J$6 -> 0A | K40: =B42&$K$6 -> 0P | L40: =B42&$L$6 -> 0N | Q40: =LEFT(Q39,2) -> 18 | S40: =B39 -> 00:00:00 | T40: =MONTH(S39) -> 1 | U40: 月 | V40: =T40&U40&T41&U41 -> 1月0日 | W40: =D39 -> 0 | X40: =LEFT(W40,3) -> 0
B41: =TEXT(B39,"YYYYmm") -> 190001 | E41: チェック3 | F41: 2 | G41: FALSE | J41: =G40 -> FALSE | K41: =G41 -> FALSE | L41: =G42 -> FALSE | Q41: =IF(MID(Q39,6,1)="-",MID(Q39,7,2),MID(Q39,6,2)) -> 21 | T41: =DAY(S39) -> 0 | U41: 日 | V41: =T41&U41 -> 0日
B42: =TEXT(B39,"d") -> 0 | E42: チェック4 | F42: 2 | G42: FALSE | V42: =T40&U40 -> 1月
A43: =IF(D43="大会議室(準備)","大会議室",(IF(D43="大会議室(本番)","大会議室",(IF(D43="ピアザホール(準備)","PH",IF(D43="ピアザホール(本番)","PH",IF(D43="練習室(一般)","練習室",IF(D43="練習室(学生)","練習室",D43)))))))) -> 0 | B43: =IF(利用申込書2!A12="", B39,利用申込書2!A12) -> 00:00:00 | C43: =IF(OR((WEEKDAY(B43,2)>=6),COUNTIF(DATA!$Q$3:$T$23,B43)),2,1) -> 2 | D43: =利用申込書2!F12 -> 0 | E43: チェック1 | F43: 2 | G43: FALSE | H43: =IF(AND($C$1=1,$C$2=1,C43=1),1,(IF(AND($C$1=1,$C$2=2,C43=1),2,(IF(AND($C$1=1,$C$2=3,C43=1),3,(IF(AND($C$1=2,$C$2=1,C43=1),4,(IF(AND($C$1=2,$C$2=2,C43=1),5,(IF(AND($C$1=2,$C$2=3,C43=1),6,(IF(AND($C$1=1,$C$2=1,C43=2),7,(IF(AND($C$1=1,$C$2=2,C43=2),8,(IF(AND($C$1=1,$C$2=3,C43=2),9,(IF(AND($C$1=2,$C$2=1,C43=2),10,(IF(AND($C$1=2,$C$2=2,C43=2),11,(IF(AND($C$1=2,$C$2=3,C43=2),12,""))))))))))))))))))))))) -> 7 | I43: =CHOOSE(H43,VLOOKUP(D43,DATA!$B$2:$N$25,2,FALSE),VLOOKUP(D43,DATA!$B$2:$N$25,3,FALSE),VLOOKUP(D43,DATA!$B$2:$N$25,4,FALSE),VLOOKUP(D43,DATA!$B$2:$N$25,5,FALSE),VLOOKUP(D43,DATA!$B$2:$N$25,6,FALSE),VLOOKUP(D43,DATA!$B$2:$N$25,7,FALSE),VLOOKUP(D43,DATA!$B$2:$N$25,8,FALSE),VLOOKUP(D43,DATA!$B$2:$N$25,9,FALSE),VLOOKUP(D43,DATA!$B$2:$N$25,10,FALSE),VLOOKUP(D43,DATA!$B$2:$N$25,11,FALSE),VLOOKUP(D43,DATA!$B$2:$N$25,12,FALSE),VLOOKUP(D43,DATA!$B$2:$N$25,13,FALSE),"")*(IF(F43=1,1,0)) -> 0 | J43: =CHOOSE(H43,VLOOKUP(D43,DATA!$B$27:$N$50,2,FALSE),VLOOKUP(D43,DATA!$B$27:$N$50,3,FALSE),VLOOKUP(D43,DATA!$B$27:$N$50,4,FALSE),VLOOKUP(D43,DATA!$B$27:$N$50,5,FALSE),VLOOKUP(D43,DATA!$B$27:$N$50,6,FALSE),VLOOKUP(D43,DATA!$B$27:$N$50,7,FALSE),VLOOKUP(D43,DATA!$B$27:$N$50,8,FALSE),VLOOKUP(D43,DATA!$B$27:$N$50,9,FALSE),VLOOKUP(D43,DATA!$B$27:$N$50,10,FALSE),VLOOKUP(D43,DATA!$B$27:$N$50,11,FALSE),VLOOKUP(D43,DATA!$B$27:$N$50,12,FALSE),VLOOKUP(D43,DATA!$B$27:$N$50,13,FALSE),"")*(IF(F44=1,1,0)) -> 0 | K43: =CHOOSE(H43,VLOOKUP(D43,DATA!$B$52:$N$75,2,FALSE),VLOOKUP(D43,DATA!$B$52:$N$75,3,FALSE),VLOOKUP(D43,DATA!$B$52:$N$75,4,FALSE),VLOOKUP(D43,DATA!$B$52:$N$77,5,FALSE),VLOOKUP(D43,DATA!$B$52:$N$75,6,FALSE),VLOOKUP(D43,DATA!$B$52:$N$75,7,FALSE),VLOOKUP(D43,DATA!$B$52:$N$75,8,FALSE),VLOOKUP(D43,DATA!$B$52:$N$75,9,FALSE),VLOOKUP(D43,DATA!$B$52:$N$75,10,FALSE),VLOOKUP(D43,DATA!$B$52:$N$75,11,FALSE),VLOOKUP(D43,DATA!$B$52:$N$75,12,FALSE),VLOOKUP(D43,DATA!$B$52:$N$75,13,FALSE),"")*(IF(F45=1,1,0)) -> 0 | L43: =CHOOSE(H43,VLOOKUP(D43,DATA!$B$77:$N$100,2,FALSE),VLOOKUP(D43,DATA!$B$77:$N$100,3,FALSE),VLOOKUP(D43,DATA!$B$77:$N$100,4,FALSE),VLOOKUP(D43,DATA!$B$77:$N$100,5,FALSE),VLOOKUP(D43,DATA!$B$77:$N$100,6,FALSE),VLOOKUP(D43,DATA!$B$77:$N$100,7,FALSE),VLOOKUP(D43,DATA!$B$77:$N$100,8,FALSE),VLOOKUP(D43,DATA!$B$77:$N$100,9,FALSE),VLOOKUP(D43,DATA!$B$77:$N$100,10,FALSE),VLOOKUP(D43,DATA!$B$77:$N$100,11,FALSE),VLOOKUP(D43,DATA!$B$77:$N$100,12,FALSE),VLOOKUP(D43,DATA!$B$77:$N$100,13,FALSE),"")*(IF(F46=1,1,0)) -> 0 | M43: =CHOOSE(H43,VLOOKUP(D43,DATA!$B$102:$N$125,2,FALSE),VLOOKUP(D43,DATA!$B$102:$N$125,3,FALSE),VLOOKUP(D43,DATA!$B$102:$N$125,4,FALSE),VLOOKUP(D43,DATA!$B$102:$N$125,5,FALSE),VLOOKUP(D43,DATA!$B$102:$N$125,6,FALSE),VLOOKUP(D43,DATA!$B$102:$N$125,7,FALSE),VLOOKUP(D43,DATA!$B$102:$N$125,8,FALSE),VLOOKUP(D43,DATA!$B$102:$N$125,9,FALSE),VLOOKUP(D43,DATA!$B$102:$N$125,10,FALSE),VLOOKUP(D43,DATA!$B$102:$N$125,11,FALSE),VLOOKUP(D43,DATA!$B$102:$N$125,12,FALSE),VLOOKUP(D43,DATA!$B$102:$N$125,13,FALSE),"")*(IF(F46=1,1,0)) -> 0 | N43: =利用申込書2!AG12 ->  | O43: =IF(AND(F44=1,F45=1,F46=1),"午前-午後-夜間",(IF(AND(F44=1,F45=1,F46=2),"午前-午後",(IF(AND(F44=2,F45=1,F46=1),"午後-夜間",(IF(AND(F44=1,F45=2,F46=2),"午前",(IF(AND(F44=2,F45=1,F46=2),"午後",IF(AND(F44=1,F45=2,F46=1),"午前・夜間","夜間")))))))))) -> 夜間 | Q43: =IF(I43>0,VLOOKUP(O43,$A$235:$B$238,2,FALSE),VLOOKUP(O43,$A$226:$B$232,2,FALSE)) -> 18:00-21:00 | R43: =IF(B43=B39,"",B43) ->  | S43: =B43 -> 00:00:00 | T43: =YEAR(S43) -> 1900 | U43: 年 | V43: =T43&U43&T44&U44 -> 1900年1月 | W43: =IF(AND(F44=1,F45=1,F46=1),"APN",(IF(AND(F44=1,F45=1,F46=2),"AP",(IF(AND(F44=2,F45=1,F46=1),"PN",(IF(AND(F44=1,F45=2,F46=2),"A",(IF(AND(F44=2,F45=1,F46=2),"P","N"))))))))) -> N | X43: =利用申込書1!$AV$50 ->  | Y43: =X44&W43&"・"&AB43 -> 0N・ | Z43: =T43&U43 -> 1900年 | AA43: =Z43&V44 -> 1900年1月0日 | AB43: =CLEAN(X43) -> 
B44: =TEXT(B43,"YYYY") -> 1900 | E44: チェック2 | F44: =IF(F43=1,1,IF(G44,1,2)) -> 2 | G44: FALSE | J44: =B46&$J$6 -> 0A | K44: =B46&$K$6 -> 0P | L44: =B46&$L$6 -> 0N | Q44: =LEFT(Q43,2) -> 18 | S44: =B43 -> 00:00:00 | T44: =MONTH(S43) -> 1 | U44: 月 | V44: =T44&U44&T45&U45 -> 1月0日 | W44: =D43 -> 0 | X44: =LEFT(W44,3) -> 0
B45: =TEXT(B43,"YYYYmm") -> 190001 | E45: チェック3 | F45: 2 | G45: FALSE | J45: =G44 -> FALSE | K45: =G45 -> FALSE | L45: =G46 -> FALSE | Q45: =IF(MID(Q43,6,1)="-",MID(Q43,7,2),MID(Q43,6,2)) -> 21 | T45: =DAY(S43) -> 0 | U45: 日 | V45: =T45&U45 -> 0日
B46: =TEXT(B43,"d") -> 0 | E46: チェック4 | F46: 2 | G46: FALSE | V46: =T44&U44 -> 1月
A47: =IF(D47="大会議室(準備)","大会議室",(IF(D47="大会議室(本番)","大会議室",(IF(D47="ピアザホール(準備)","PH",IF(D47="ピアザホール(本番)","PH",IF(D47="練習室(一般)","練習室",IF(D47="練習室(学生)","練習室",D47)))))))) -> 0 | B47: =IF(利用申込書2!A14="", B43,利用申込書2!A14) -> 00:00:00 | C47: =IF(OR((WEEKDAY(B47,2)>=6),COUNTIF(DATA!$Q$3:$T$23,B47)),2,1) -> 2 | D47: =利用申込書2!F14 -> 0 | E47: チェック1 | F47: 2 | G47: FALSE | H47: =IF(AND($C$1=1,$C$2=1,C47=1),1,(IF(AND($C$1=1,$C$2=2,C47=1),2,(IF(AND($C$1=1,$C$2=3,C47=1),3,(IF(AND($C$1=2,$C$2=1,C47=1),4,(IF(AND($C$1=2,$C$2=2,C47=1),5,(IF(AND($C$1=2,$C$2=3,C47=1),6,(IF(AND($C$1=1,$C$2=1,C47=2),7,(IF(AND($C$1=1,$C$2=2,C47=2),8,(IF(AND($C$1=1,$C$2=3,C47=2),9,(IF(AND($C$1=2,$C$2=1,C47=2),10,(IF(AND($C$1=2,$C$2=2,C47=2),11,(IF(AND($C$1=2,$C$2=3,C47=2),12,""))))))))))))))))))))))) -> 7 | I47: =CHOOSE(H47,VLOOKUP(D47,DATA!$B$2:$N$25,2,FALSE),VLOOKUP(D47,DATA!$B$2:$N$25,3,FALSE),VLOOKUP(D47,DATA!$B$2:$N$25,4,FALSE),VLOOKUP(D47,DATA!$B$2:$N$25,5,FALSE),VLOOKUP(D47,DATA!$B$2:$N$25,6,FALSE),VLOOKUP(D47,DATA!$B$2:$N$25,7,FALSE),VLOOKUP(D47,DATA!$B$2:$N$25,8,FALSE),VLOOKUP(D47,DATA!$B$2:$N$25,9,FALSE),VLOOKUP(D47,DATA!$B$2:$N$25,10,FALSE),VLOOKUP(D47,DATA!$B$2:$N$25,11,FALSE),VLOOKUP(D47,DATA!$B$2:$N$25,12,FALSE),VLOOKUP(D47,DATA!$B$2:$N$25,13,FALSE),"")*(IF(F47=1,1,0)) -> 0 | J47: =CHOOSE(H47,VLOOKUP(D47,DATA!$B$27:$N$50,2,FALSE),VLOOKUP(D47,DATA!$B$27:$N$50,3,FALSE),VLOOKUP(D47,DATA!$B$27:$N$50,4,FALSE),VLOOKUP(D47,DATA!$B$27:$N$50,5,FALSE),VLOOKUP(D47,DATA!$B$27:$N$50,6,FALSE),VLOOKUP(D47,DATA!$B$27:$N$50,7,FALSE),VLOOKUP(D47,DATA!$B$27:$N$50,8,FALSE),VLOOKUP(D47,DATA!$B$27:$N$50,9,FALSE),VLOOKUP(D47,DATA!$B$27:$N$50,10,FALSE),VLOOKUP(D47,DATA!$B$27:$N$50,11,FALSE),VLOOKUP(D47,DATA!$B$27:$N$50,12,FALSE),VLOOKUP(D47,DATA!$B$27:$N$50,13,FALSE),"")*(IF(F48=1,1,0)) -> 0 | K47: =CHOOSE(H47,VLOOKUP(D47,DATA!$B$52:$N$75,2,FALSE),VLOOKUP(D47,DATA!$B$52:$N$75,3,FALSE),VLOOKUP(D47,DATA!$B$52:$N$75,4,FALSE),VLOOKUP(D47,DATA!$B$52:$N$77,5,FALSE),VLOOKUP(D47,DATA!$B$52:$N$75,6,FALSE),VLOOKUP(D47,DATA!$B$52:$N$75,7,FALSE),VLOOKUP(D47,DATA!$B$52:$N$75,8,FALSE),VLOOKUP(D47,DATA!$B$52:$N$75,9,FALSE),VLOOKUP(D47,DATA!$B$52:$N$75,10,FALSE),VLOOKUP(D47,DATA!$B$52:$N$75,11,FALSE),VLOOKUP(D47,DATA!$B$52:$N$75,12,FALSE),VLOOKUP(D47,DATA!$B$52:$N$75,13,FALSE),"")*(IF(F49=1,1,0)) -> 0 | L47: =CHOOSE(H47,VLOOKUP(D47,DATA!$B$77:$N$100,2,FALSE),VLOOKUP(D47,DATA!$B$77:$N$100,3,FALSE),VLOOKUP(D47,DATA!$B$77:$N$100,4,FALSE),VLOOKUP(D47,DATA!$B$77:$N$100,5,FALSE),VLOOKUP(D47,DATA!$B$77:$N$100,6,FALSE),VLOOKUP(D47,DATA!$B$77:$N$100,7,FALSE),VLOOKUP(D47,DATA!$B$77:$N$100,8,FALSE),VLOOKUP(D47,DATA!$B$77:$N$100,9,FALSE),VLOOKUP(D47,DATA!$B$77:$N$100,10,FALSE),VLOOKUP(D47,DATA!$B$77:$N$100,11,FALSE),VLOOKUP(D47,DATA!$B$77:$N$100,12,FALSE),VLOOKUP(D47,DATA!$B$77:$N$100,13,FALSE),"")*(IF(F50=1,1,0)) -> 0 | M47: =CHOOSE(H47,VLOOKUP(D47,DATA!$B$102:$N$125,2,FALSE),VLOOKUP(D47,DATA!$B$102:$N$125,3,FALSE),VLOOKUP(D47,DATA!$B$102:$N$125,4,FALSE),VLOOKUP(D47,DATA!$B$102:$N$125,5,FALSE),VLOOKUP(D47,DATA!$B$102:$N$125,6,FALSE),VLOOKUP(D47,DATA!$B$102:$N$125,7,FALSE),VLOOKUP(D47,DATA!$B$102:$N$125,8,FALSE),VLOOKUP(D47,DATA!$B$102:$N$125,9,FALSE),VLOOKUP(D47,DATA!$B$102:$N$125,10,FALSE),VLOOKUP(D47,DATA!$B$102:$N$125,11,FALSE),VLOOKUP(D47,DATA!$B$102:$N$125,12,FALSE),VLOOKUP(D47,DATA!$B$102:$N$125,13,FALSE),"")*(IF(F50=1,1,0)) -> 0 | N47: =利用申込書2!AG14 ->  | O47: =IF(AND(F48=1,F49=1,F50=1),"午前-午後-夜間",(IF(AND(F48=1,F49=1,F50=2),"午前-午後",(IF(AND(F48=2,F49=1,F50=1),"午後-夜間",(IF(AND(F48=1,F49=2,F50=2),"午前",(IF(AND(F48=2,F49=1,F50=2),"午後",IF(AND(F48=1,F49=2,F50=1),"午前・夜間","夜間")))))))))) -> 夜間 | Q47: =IF(I47>0,VLOOKUP(O47,$A$235:$B$238,2,FALSE),VLOOKUP(O47,$A$226:$B$232,2,FALSE)) -> 18:00-21:00 | R47: =IF(B47=B43,"",B47) ->  | S47: =B47 -> 00:00:00 | T47: =YEAR(S47) -> 1900 | U47: 年 | V47: =T47&U47&T48&U48 -> 1900年1月 | W47: =IF(AND(F48=1,F49=1,F50=1),"APN",(IF(AND(F48=1,F49=1,F50=2),"AP",(IF(AND(F48=2,F49=1,F50=1),"PN",(IF(AND(F48=1,F49=2,F50=2),"A",(IF(AND(F48=2,F49=1,F50=2),"P","N"))))))))) -> N | X47: =利用申込書1!$AV$50 ->  | Y47: =X48&W47&"・"&AB47 -> 0N・ | Z47: =T47&U47 -> 1900年 | AA47: =Z47&V48 -> 1900年1月0日 | AB47: =CLEAN(X47) -> 
B48: =TEXT(B47,"YYYY") -> 1900 | E48: チェック2 | F48: =IF(F47=1,1,IF(G48,1,2)) -> 2 | G48: FALSE | J48: =B50&$J$6 -> 0A | K48: =B50&$K$6 -> 0P | L48: =B50&$L$6 -> 0N | Q48: =LEFT(Q47,2) -> 18 | S48: =B47 -> 00:00:00 | T48: =MONTH(S47) -> 1 | U48: 月 | V48: =T48&U48&T49&U49 -> 1月0日 | W48: =D47 -> 0 | X48: =LEFT(W48,3) -> 0
B49: =TEXT(B47,"YYYYmm") -> 190001 | E49: チェック3 | F49: 2 | G49: FALSE | J49: =G48 -> FALSE | K49: =G49 -> FALSE | L49: =G50 -> FALSE | Q49: =IF(MID(Q47,6,1)="-",MID(Q47,7,2),MID(Q47,6,2)) -> 21 | T49: =DAY(S47) -> 0 | U49: 日 | V49: =T49&U49 -> 0日
B50: =TEXT(B47,"d") -> 0 | E50: チェック4 | F50: 2 | G50: FALSE | V50: =T48&U48 -> 1月
A51: =IF(D51="大会議室(準備)","大会議室",(IF(D51="大会議室(本番)","大会議室",(IF(D51="ピアザホール(準備)","PH",IF(D51="ピアザホール(本番)","PH",IF(D51="練習室(一般)","練習室",IF(D51="練習室(学生)","練習室",D51)))))))) -> 0 | B51: =IF(利用申込書2!A16="", B47,利用申込書2!A16) -> 00:00:00 | C51: =IF(OR((WEEKDAY(B51,2)>=6),COUNTIF(DATA!$Q$3:$T$23,B51)),2,1) -> 2 | D51: =利用申込書2!F16 -> 0 | E51: チェック1 | F51: 2 | G51: FALSE | H51: =IF(AND($C$1=1,$C$2=1,C51=1),1,(IF(AND($C$1=1,$C$2=2,C51=1),2,(IF(AND($C$1=1,$C$2=3,C51=1),3,(IF(AND($C$1=2,$C$2=1,C51=1),4,(IF(AND($C$1=2,$C$2=2,C51=1),5,(IF(AND($C$1=2,$C$2=3,C51=1),6,(IF(AND($C$1=1,$C$2=1,C51=2),7,(IF(AND($C$1=1,$C$2=2,C51=2),8,(IF(AND($C$1=1,$C$2=3,C51=2),9,(IF(AND($C$1=2,$C$2=1,C51=2),10,(IF(AND($C$1=2,$C$2=2,C51=2),11,(IF(AND($C$1=2,$C$2=3,C51=2),12,""))))))))))))))))))))))) -> 7 | I51: =CHOOSE(H51,VLOOKUP(D51,DATA!$B$2:$N$25,2,FALSE),VLOOKUP(D51,DATA!$B$2:$N$25,3,FALSE),VLOOKUP(D51,DATA!$B$2:$N$25,4,FALSE),VLOOKUP(D51,DATA!$B$2:$N$25,5,FALSE),VLOOKUP(D51,DATA!$B$2:$N$25,6,FALSE),VLOOKUP(D51,DATA!$B$2:$N$25,7,FALSE),VLOOKUP(D51,DATA!$B$2:$N$25,8,FALSE),VLOOKUP(D51,DATA!$B$2:$N$25,9,FALSE),VLOOKUP(D51,DATA!$B$2:$N$25,10,FALSE),VLOOKUP(D51,DATA!$B$2:$N$25,11,FALSE),VLOOKUP(D51,DATA!$B$2:$N$25,12,FALSE),VLOOKUP(D51,DATA!$B$2:$N$25,13,FALSE),"")*(IF(F51=1,1,0)) -> 0 | J51: =CHOOSE(H51,VLOOKUP(D51,DATA!$B$27:$N$50,2,FALSE),VLOOKUP(D51,DATA!$B$27:$N$50,3,FALSE),VLOOKUP(D51,DATA!$B$27:$N$50,4,FALSE),VLOOKUP(D51,DATA!$B$27:$N$50,5,FALSE),VLOOKUP(D51,DATA!$B$27:$N$50,6,FALSE),VLOOKUP(D51,DATA!$B$27:$N$50,7,FALSE),VLOOKUP(D51,DATA!$B$27:$N$50,8,FALSE),VLOOKUP(D51,DATA!$B$27:$N$50,9,FALSE),VLOOKUP(D51,DATA!$B$27:$N$50,10,FALSE),VLOOKUP(D51,DATA!$B$27:$N$50,11,FALSE),VLOOKUP(D51,DATA!$B$27:$N$50,12,FALSE),VLOOKUP(D51,DATA!$B$27:$N$50,13,FALSE),"")*(IF(F52=1,1,0)) -> 0 | K51: =CHOOSE(H51,VLOOKUP(D51,DATA!$B$52:$N$75,2,FALSE),VLOOKUP(D51,DATA!$B$52:$N$75,3,FALSE),VLOOKUP(D51,DATA!$B$52:$N$75,4,FALSE),VLOOKUP(D51,DATA!$B$52:$N$77,5,FALSE),VLOOKUP(D51,DATA!$B$52:$N$75,6,FALSE),VLOOKUP(D51,DATA!$B$52:$N$75,7,FALSE),VLOOKUP(D51,DATA!$B$52:$N$75,8,FALSE),VLOOKUP(D51,DATA!$B$52:$N$75,9,FALSE),VLOOKUP(D51,DATA!$B$52:$N$75,10,FALSE),VLOOKUP(D51,DATA!$B$52:$N$75,11,FALSE),VLOOKUP(D51,DATA!$B$52:$N$75,12,FALSE),VLOOKUP(D51,DATA!$B$52:$N$75,13,FALSE),"")*(IF(F53=1,1,0)) -> 0 | L51: =CHOOSE(H51,VLOOKUP(D51,DATA!$B$77:$N$100,2,FALSE),VLOOKUP(D51,DATA!$B$77:$N$100,3,FALSE),VLOOKUP(D51,DATA!$B$77:$N$100,4,FALSE),VLOOKUP(D51,DATA!$B$77:$N$100,5,FALSE),VLOOKUP(D51,DATA!$B$77:$N$100,6,FALSE),VLOOKUP(D51,DATA!$B$77:$N$100,7,FALSE),VLOOKUP(D51,DATA!$B$77:$N$100,8,FALSE),VLOOKUP(D51,DATA!$B$77:$N$100,9,FALSE),VLOOKUP(D51,DATA!$B$77:$N$100,10,FALSE),VLOOKUP(D51,DATA!$B$77:$N$100,11,FALSE),VLOOKUP(D51,DATA!$B$77:$N$100,12,FALSE),VLOOKUP(D51,DATA!$B$77:$N$100,13,FALSE),"")*(IF(F54=1,1,0)) -> 0 | M51: =CHOOSE(H51,VLOOKUP(D51,DATA!$B$102:$N$125,2,FALSE),VLOOKUP(D51,DATA!$B$102:$N$125,3,FALSE),VLOOKUP(D51,DATA!$B$102:$N$125,4,FALSE),VLOOKUP(D51,DATA!$B$102:$N$125,5,FALSE),VLOOKUP(D51,DATA!$B$102:$N$125,6,FALSE),VLOOKUP(D51,DATA!$B$102:$N$125,7,FALSE),VLOOKUP(D51,DATA!$B$102:$N$125,8,FALSE),VLOOKUP(D51,DATA!$B$102:$N$125,9,FALSE),VLOOKUP(D51,DATA!$B$102:$N$125,10,FALSE),VLOOKUP(D51,DATA!$B$102:$N$125,11,FALSE),VLOOKUP(D51,DATA!$B$102:$N$125,12,FALSE),VLOOKUP(D51,DATA!$B$102:$N$125,13,FALSE),"")*(IF(F54=1,1,0)) -> 0 | N51: =利用申込書2!AG16 ->  | O51: =IF(AND(F52=1,F53=1,F54=1),"午前-午後-夜間",(IF(AND(F52=1,F53=1,F54=2),"午前-午後",(IF(AND(F52=2,F53=1,F54=1),"午後-夜間",(IF(AND(F52=1,F53=2,F54=2),"午前",(IF(AND(F52=2,F53=1,F54=2),"午後",IF(AND(F52=1,F53=2,F54=1),"午前・夜間","夜間")))))))))) -> 夜間 | Q51: =IF(I51>0,VLOOKUP(O51,$A$235:$B$238,2,FALSE),VLOOKUP(O51,$A$226:$B$232,2,FALSE)) -> 18:00-21:00 | R51: =IF(B51=B47,"",B51) ->  | S51: =B51 -> 00:00:00 | T51: =YEAR(S51) -> 1900 | U51: 年 | V51: =T51&U51&T52&U52 -> 1900年1月 | W51: =IF(AND(F52=1,F53=1,F54=1),"APN",(IF(AND(F52=1,F53=1,F54=2),"AP",(IF(AND(F52=2,F53=1,F54=1),"PN",(IF(AND(F52=1,F53=2,F54=2),"A",(IF(AND(F52=2,F53=1,F54=2),"P","N"))))))))) -> N | X51: =利用申込書1!$AV$50 ->  | Y51: =X52&W51&"・"&AB51 -> 0N・ | Z51: =T51&U51 -> 1900年 | AA51: =Z51&V52 -> 1900年1月0日 | AB51: =CLEAN(X51) -> 
B52: =TEXT(B51,"YYYY") -> 1900 | E52: チェック2 | F52: =IF(F51=1,1,IF(G52,1,2)) -> 2 | G52: FALSE | J52: =B54&$J$6 -> 0A | K52: =B54&$K$6 -> 0P | L52: =B54&$L$6 -> 0N | Q52: =LEFT(Q51,2) -> 18 | S52: =B51 -> 00:00:00 | T52: =MONTH(S51) -> 1 | U52: 月 | V52: =T52&U52&T53&U53 -> 1月0日 | W52: =D51 -> 0 | X52: =LEFT(W52,3) -> 0
B53: =TEXT(B51,"YYYYmm") -> 190001 | E53: チェック3 | F53: 2 | G53: FALSE | J53: =G52 -> FALSE | K53: =G53 -> FALSE | L53: =G54 -> FALSE | Q53: =IF(MID(Q51,6,1)="-",MID(Q51,7,2),MID(Q51,6,2)) -> 21 | T53: =DAY(S51) -> 0 | U53: 日 | V53: =T53&U53 -> 0日
B54: =TEXT(B51,"d") -> 0 | E54: チェック4 | F54: 2 | G54: FALSE | V54: =T52&U52 -> 1月
A55: =IF(D55="大会議室(準備)","大会議室",(IF(D55="大会議室(本番)","大会議室",(IF(D55="ピアザホール(準備)","PH",IF(D55="ピアザホール(本番)","PH",IF(D55="練習室(一般)","練習室",IF(D55="練習室(学生)","練習室",D55)))))))) -> 0 | B55: =IF(利用申込書2!A18="", B51,利用申込書2!A18) -> 00:00:00 | C55: =IF(OR((WEEKDAY(B55,2)>=6),COUNTIF(DATA!$Q$3:$T$23,B55)),2,1) -> 2 | D55: =利用申込書2!F18 -> 0 | E55: チェック1 | F55: 2 | G55: FALSE | H55: =IF(AND($C$1=1,$C$2=1,C55=1),1,(IF(AND($C$1=1,$C$2=2,C55=1),2,(IF(AND($C$1=1,$C$2=3,C55=1),3,(IF(AND($C$1=2,$C$2=1,C55=1),4,(IF(AND($C$1=2,$C$2=2,C55=1),5,(IF(AND($C$1=2,$C$2=3,C55=1),6,(IF(AND($C$1=1,$C$2=1,C55=2),7,(IF(AND($C$1=1,$C$2=2,C55=2),8,(IF(AND($C$1=1,$C$2=3,C55=2),9,(IF(AND($C$1=2,$C$2=1,C55=2),10,(IF(AND($C$1=2,$C$2=2,C55=2),11,(IF(AND($C$1=2,$C$2=3,C55=2),12,""))))))))))))))))))))))) -> 7 | I55: =CHOOSE(H55,VLOOKUP(D55,DATA!$B$2:$N$25,2,FALSE),VLOOKUP(D55,DATA!$B$2:$N$25,3,FALSE),VLOOKUP(D55,DATA!$B$2:$N$25,4,FALSE),VLOOKUP(D55,DATA!$B$2:$N$25,5,FALSE),VLOOKUP(D55,DATA!$B$2:$N$25,6,FALSE),VLOOKUP(D55,DATA!$B$2:$N$25,7,FALSE),VLOOKUP(D55,DATA!$B$2:$N$25,8,FALSE),VLOOKUP(D55,DATA!$B$2:$N$25,9,FALSE),VLOOKUP(D55,DATA!$B$2:$N$25,10,FALSE),VLOOKUP(D55,DATA!$B$2:$N$25,11,FALSE),VLOOKUP(D55,DATA!$B$2:$N$25,12,FALSE),VLOOKUP(D55,DATA!$B$2:$N$25,13,FALSE),"")*(IF(F55=1,1,0)) -> 0 | J55: =CHOOSE(H55,VLOOKUP(D55,DATA!$B$27:$N$50,2,FALSE),VLOOKUP(D55,DATA!$B$27:$N$50,3,FALSE),VLOOKUP(D55,DATA!$B$27:$N$50,4,FALSE),VLOOKUP(D55,DATA!$B$27:$N$50,5,FALSE),VLOOKUP(D55,DATA!$B$27:$N$50,6,FALSE),VLOOKUP(D55,DATA!$B$27:$N$50,7,FALSE),VLOOKUP(D55,DATA!$B$27:$N$50,8,FALSE),VLOOKUP(D55,DATA!$B$27:$N$50,9,FALSE),VLOOKUP(D55,DATA!$B$27:$N$50,10,FALSE),VLOOKUP(D55,DATA!$B$27:$N$50,11,FALSE),VLOOKUP(D55,DATA!$B$27:$N$50,12,FALSE),VLOOKUP(D55,DATA!$B$27:$N$50,13,FALSE),"")*(IF(F56=1,1,0)) -> 0 | K55: =CHOOSE(H55,VLOOKUP(D55,DATA!$B$52:$N$75,2,FALSE),VLOOKUP(D55,DATA!$B$52:$N$75,3,FALSE),VLOOKUP(D55,DATA!$B$52:$N$75,4,FALSE),VLOOKUP(D55,DATA!$B$52:$N$77,5,FALSE),VLOOKUP(D55,DATA!$B$52:$N$75,6,FALSE),VLOOKUP(D55,DATA!$B$52:$N$75,7,FALSE),VLOOKUP(D55,DATA!$B$52:$N$75,8,FALSE),VLOOKUP(D55,DATA!$B$52:$N$75,9,FALSE),VLOOKUP(D55,DATA!$B$52:$N$75,10,FALSE),VLOOKUP(D55,DATA!$B$52:$N$75,11,FALSE),VLOOKUP(D55,DATA!$B$52:$N$75,12,FALSE),VLOOKUP(D55,DATA!$B$52:$N$75,13,FALSE),"")*(IF(F57=1,1,0)) -> 0 | L55: =CHOOSE(H55,VLOOKUP(D55,DATA!$B$77:$N$100,2,FALSE),VLOOKUP(D55,DATA!$B$77:$N$100,3,FALSE),VLOOKUP(D55,DATA!$B$77:$N$100,4,FALSE),VLOOKUP(D55,DATA!$B$77:$N$100,5,FALSE),VLOOKUP(D55,DATA!$B$77:$N$100,6,FALSE),VLOOKUP(D55,DATA!$B$77:$N$100,7,FALSE),VLOOKUP(D55,DATA!$B$77:$N$100,8,FALSE),VLOOKUP(D55,DATA!$B$77:$N$100,9,FALSE),VLOOKUP(D55,DATA!$B$77:$N$100,10,FALSE),VLOOKUP(D55,DATA!$B$77:$N$100,11,FALSE),VLOOKUP(D55,DATA!$B$77:$N$100,12,FALSE),VLOOKUP(D55,DATA!$B$77:$N$100,13,FALSE),"")*(IF(F58=1,1,0)) -> 0 | M55: =CHOOSE(H55,VLOOKUP(D55,DATA!$B$102:$N$125,2,FALSE),VLOOKUP(D55,DATA!$B$102:$N$125,3,FALSE),VLOOKUP(D55,DATA!$B$102:$N$125,4,FALSE),VLOOKUP(D55,DATA!$B$102:$N$125,5,FALSE),VLOOKUP(D55,DATA!$B$102:$N$125,6,FALSE),VLOOKUP(D55,DATA!$B$102:$N$125,7,FALSE),VLOOKUP(D55,DATA!$B$102:$N$125,8,FALSE),VLOOKUP(D55,DATA!$B$102:$N$125,9,FALSE),VLOOKUP(D55,DATA!$B$102:$N$125,10,FALSE),VLOOKUP(D55,DATA!$B$102:$N$125,11,FALSE),VLOOKUP(D55,DATA!$B$102:$N$125,12,FALSE),VLOOKUP(D55,DATA!$B$102:$N$125,13,FALSE),"")*(IF(F58=1,1,0)) -> 0 | N55: =利用申込書2!AG18 ->  | O55: =IF(AND(F56=1,F57=1,F58=1),"午前-午後-夜間",(IF(AND(F56=1,F57=1,F58=2),"午前-午後",(IF(AND(F56=2,F57=1,F58=1),"午後-夜間",(IF(AND(F56=1,F57=2,F58=2),"午前",(IF(AND(F56=2,F57=1,F58=2),"午後",IF(AND(F56=1,F57=2,F58=1),"午前・夜間","夜間")))))))))) -> 夜間 | Q55: =IF(I55>0,VLOOKUP(O55,$A$235:$B$238,2,FALSE),VLOOKUP(O55,$A$226:$B$232,2,FALSE)) -> 18:00-21:00 | R55: =IF(B55=B51,"",B55) ->  | S55: =B55 -> 00:00:00 | T55: =YEAR(S55) -> 1900 | U55: 年 | V55: =T55&U55&T56&U56 -> 1900年1月 | W55: =IF(AND(F56=1,F57=1,F58=1),"APN",(IF(AND(F56=1,F57=1,F58=2),"AP",(IF(AND(F56=2,F57=1,F58=1),"PN",(IF(AND(F56=1,F57=2,F58=2),"A",(IF(AND(F56=2,F57=1,F58=2),"P","N"))))))))) -> N | X55: =利用申込書1!$AV$50 ->  | Y55: =X56&W55&"・"&AB55 -> 0N・ | Z55: =T55&U55 -> 1900年 | AA55: =Z55&V56 -> 1900年1月0日 | AB55: =CLEAN(X55) -> 
B56: =TEXT(B55,"YYYY") -> 1900 | E56: チェック2 | F56: =IF(F55=1,1,IF(G56,1,2)) -> 2 | G56: FALSE | J56: =B58&$J$6 -> 0A | K56: =B58&$K$6 -> 0P | L56: =B58&$L$6 -> 0N | Q56: =LEFT(Q55,2) -> 18 | S56: =B55 -> 00:00:00 | T56: =MONTH(S55) -> 1 | U56: 月 | V56: =T56&U56&T57&U57 -> 1月0日 | W56: =D55 -> 0 | X56: =LEFT(W56,3) -> 0
B57: =TEXT(B55,"YYYYmm") -> 190001 | E57: チェック3 | F57: 2 | G57: FALSE | J57: =G56 -> FALSE | K57: =G57 -> FALSE | L57: =G58 -> FALSE | Q57: =IF(MID(Q55,6,1)="-",MID(Q55,7,2),MID(Q55,6,2)) -> 21 | T57: =DAY(S55) -> 0 | U57: 日 | V57: =T57&U57 -> 0日
B58: =TEXT(B55,"d") -> 0 | E58: チェック4 | F58: 2 | G58: FALSE | V58: =T56&U56 -> 1月
A59: =IF(D59="大会議室(準備)","大会議室",(IF(D59="大会議室(本番)","大会議室",(IF(D59="ピアザホール(準備)","PH",IF(D59="ピアザホール(本番)","PH",IF(D59="練習室(一般)","練習室",IF(D59="練習室(学生)","練習室",D59)))))))) -> 0 | B59: =IF(利用申込書2!A20="", B55,利用申込書2!A20) -> 00:00:00 | C59: =IF(OR((WEEKDAY(B59,2)>=6),COUNTIF(DATA!$Q$3:$T$23,B59)),2,1) -> 2 | D59: =利用申込書2!F20 -> 0 | E59: チェック1 | F59: 2 | G59: FALSE | H59: =IF(AND($C$1=1,$C$2=1,C59=1),1,(IF(AND($C$1=1,$C$2=2,C59=1),2,(IF(AND($C$1=1,$C$2=3,C59=1),3,(IF(AND($C$1=2,$C$2=1,C59=1),4,(IF(AND($C$1=2,$C$2=2,C59=1),5,(IF(AND($C$1=2,$C$2=3,C59=1),6,(IF(AND($C$1=1,$C$2=1,C59=2),7,(IF(AND($C$1=1,$C$2=2,C59=2),8,(IF(AND($C$1=1,$C$2=3,C59=2),9,(IF(AND($C$1=2,$C$2=1,C59=2),10,(IF(AND($C$1=2,$C$2=2,C59=2),11,(IF(AND($C$1=2,$C$2=3,C59=2),12,""))))))))))))))))))))))) -> 7 | I59: =CHOOSE(H59,VLOOKUP(D59,DATA!$B$2:$N$25,2,FALSE),VLOOKUP(D59,DATA!$B$2:$N$25,3,FALSE),VLOOKUP(D59,DATA!$B$2:$N$25,4,FALSE),VLOOKUP(D59,DATA!$B$2:$N$25,5,FALSE),VLOOKUP(D59,DATA!$B$2:$N$25,6,FALSE),VLOOKUP(D59,DATA!$B$2:$N$25,7,FALSE),VLOOKUP(D59,DATA!$B$2:$N$25,8,FALSE),VLOOKUP(D59,DATA!$B$2:$N$25,9,FALSE),VLOOKUP(D59,DATA!$B$2:$N$25,10,FALSE),VLOOKUP(D59,DATA!$B$2:$N$25,11,FALSE),VLOOKUP(D59,DATA!$B$2:$N$25,12,FALSE),VLOOKUP(D59,DATA!$B$2:$N$25,13,FALSE),"")*(IF(F59=1,1,0)) -> 0 | J59: =CHOOSE(H59,VLOOKUP(D59,DATA!$B$27:$N$50,2,FALSE),VLOOKUP(D59,DATA!$B$27:$N$50,3,FALSE),VLOOKUP(D59,DATA!$B$27:$N$50,4,FALSE),VLOOKUP(D59,DATA!$B$27:$N$50,5,FALSE),VLOOKUP(D59,DATA!$B$27:$N$50,6,FALSE),VLOOKUP(D59,DATA!$B$27:$N$50,7,FALSE),VLOOKUP(D59,DATA!$B$27:$N$50,8,FALSE),VLOOKUP(D59,DATA!$B$27:$N$50,9,FALSE),VLOOKUP(D59,DATA!$B$27:$N$50,10,FALSE),VLOOKUP(D59,DATA!$B$27:$N$50,11,FALSE),VLOOKUP(D59,DATA!$B$27:$N$50,12,FALSE),VLOOKUP(D59,DATA!$B$27:$N$50,13,FALSE),"")*(IF(F60=1,1,0)) -> 0 | K59: =CHOOSE(H59,VLOOKUP(D59,DATA!$B$52:$N$75,2,FALSE),VLOOKUP(D59,DATA!$B$52:$N$75,3,FALSE),VLOOKUP(D59,DATA!$B$52:$N$75,4,FALSE),VLOOKUP(D59,DATA!$B$52:$N$77,5,FALSE),VLOOKUP(D59,DATA!$B$52:$N$75,6,FALSE),VLOOKUP(D59,DATA!$B$52:$N$75,7,FALSE),VLOOKUP(D59,DATA!$B$52:$N$75,8,FALSE),VLOOKUP(D59,DATA!$B$52:$N$75,9,FALSE),VLOOKUP(D59,DATA!$B$52:$N$75,10,FALSE),VLOOKUP(D59,DATA!$B$52:$N$75,11,FALSE),VLOOKUP(D59,DATA!$B$52:$N$75,12,FALSE),VLOOKUP(D59,DATA!$B$52:$N$75,13,FALSE),"")*(IF(F61=1,1,0)) -> 0 | L59: =CHOOSE(H59,VLOOKUP(D59,DATA!$B$77:$N$100,2,FALSE),VLOOKUP(D59,DATA!$B$77:$N$100,3,FALSE),VLOOKUP(D59,DATA!$B$77:$N$100,4,FALSE),VLOOKUP(D59,DATA!$B$77:$N$100,5,FALSE),VLOOKUP(D59,DATA!$B$77:$N$100,6,FALSE),VLOOKUP(D59,DATA!$B$77:$N$100,7,FALSE),VLOOKUP(D59,DATA!$B$77:$N$100,8,FALSE),VLOOKUP(D59,DATA!$B$77:$N$100,9,FALSE),VLOOKUP(D59,DATA!$B$77:$N$100,10,FALSE),VLOOKUP(D59,DATA!$B$77:$N$100,11,FALSE),VLOOKUP(D59,DATA!$B$77:$N$100,12,FALSE),VLOOKUP(D59,DATA!$B$77:$N$100,13,FALSE),"")*(IF(F62=1,1,0)) -> 0 | M59: =CHOOSE(H59,VLOOKUP(D59,DATA!$B$102:$N$125,2,FALSE),VLOOKUP(D59,DATA!$B$102:$N$125,3,FALSE),VLOOKUP(D59,DATA!$B$102:$N$125,4,FALSE),VLOOKUP(D59,DATA!$B$102:$N$125,5,FALSE),VLOOKUP(D59,DATA!$B$102:$N$125,6,FALSE),VLOOKUP(D59,DATA!$B$102:$N$125,7,FALSE),VLOOKUP(D59,DATA!$B$102:$N$125,8,FALSE),VLOOKUP(D59,DATA!$B$102:$N$125,9,FALSE),VLOOKUP(D59,DATA!$B$102:$N$125,10,FALSE),VLOOKUP(D59,DATA!$B$102:$N$125,11,FALSE),VLOOKUP(D59,DATA!$B$102:$N$125,12,FALSE),VLOOKUP(D59,DATA!$B$102:$N$125,13,FALSE),"")*(IF(F62=1,1,0)) -> 0 | N59: =利用申込書2!AG20 ->  | O59: =IF(AND(F60=1,F61=1,F62=1),"午前-午後-夜間",(IF(AND(F60=1,F61=1,F62=2),"午前-午後",(IF(AND(F60=2,F61=1,F62=1),"午後-夜間",(IF(AND(F60=1,F61=2,F62=2),"午前",(IF(AND(F60=2,F61=1,F62=2),"午後",IF(AND(F60=1,F61=2,F62=1),"午前・夜間","夜間")))))))))) -> 夜間 | Q59: =IF(I59>0,VLOOKUP(O59,$A$235:$B$238,2,FALSE),VLOOKUP(O59,$A$226:$B$232,2,FALSE)) -> 18:00-21:00 | R59: =IF(B59=B55,"",B59) ->  | S59: =B59 -> 00:00:00 | T59: =YEAR(S59) -> 1900 | U59: 年 | V59: =T59&U59&T60&U60 -> 1900年1月 | W59: =IF(AND(F60=1,F61=1,F62=1),"APN",(IF(AND(F60=1,F61=1,F62=2),"AP",(IF(AND(F60=2,F61=1,F62=1),"PN",(IF(AND(F60=1,F61=2,F62=2),"A",(IF(AND(F60=2,F61=1,F62=2),"P","N"))))))))) -> N | X59: =利用申込書1!$AV$50 ->  | Y59: =X60&W59&"・"&AB59 -> 0N・ | Z59: =T59&U59 -> 1900年 | AA59: =Z59&V60 -> 1900年1月0日 | AB59: =CLEAN(X59) -> 
B60: =TEXT(B59,"YYYY") -> 1900 | E60: チェック2 | F60: =IF(F59=1,1,IF(G60,1,2)) -> 2 | G60: FALSE | J60: =B62&$J$6 -> 0A | K60: =B62&$K$6 -> 0P | L60: =B62&$L$6 -> 0N | Q60: =LEFT(Q59,2) -> 18 | S60: =B59 -> 00:00:00 | T60: =MONTH(S59) -> 1 | U60: 月 | V60: =T60&U60&T61&U61 -> 1月0日 | W60: =D59 -> 0 | X60: =LEFT(W60,3) -> 0
B61: =TEXT(B59,"YYYYmm") -> 190001 | E61: チェック3 | F61: 2 | G61: FALSE | J61: =G60 -> FALSE | K61: =G61 -> FALSE | L61: =G62 -> FALSE | Q61: =IF(MID(Q59,6,1)="-",MID(Q59,7,2),MID(Q59,6,2)) -> 21 | T61: =DAY(S59) -> 0 | U61: 日 | V61: =T61&U61 -> 0日
B62: =TEXT(B59,"d") -> 0 | E62: チェック4 | F62: 2 | G62: FALSE | V62: =T60&U60 -> 1月
A63: =IF(D63="大会議室(準備)","大会議室",(IF(D63="大会議室(本番)","大会議室",(IF(D63="ピアザホール(準備)","PH",IF(D63="ピアザホール(本番)","PH",IF(D63="練習室(一般)","練習室",IF(D63="練習室(学生)","練習室",D63)))))))) -> 0 | B63: =IF(利用申込書2!A22="", B59,利用申込書2!A22) -> 00:00:00 | C63: =IF(OR((WEEKDAY(B63,2)>=6),COUNTIF(DATA!$Q$3:$T$23,B63)),2,1) -> 2 | D63: =利用申込書2!F22 -> 0 | E63: チェック1 | F63: 2 | G63: FALSE | H63: =IF(AND($C$1=1,$C$2=1,C63=1),1,(IF(AND($C$1=1,$C$2=2,C63=1),2,(IF(AND($C$1=1,$C$2=3,C63=1),3,(IF(AND($C$1=2,$C$2=1,C63=1),4,(IF(AND($C$1=2,$C$2=2,C63=1),5,(IF(AND($C$1=2,$C$2=3,C63=1),6,(IF(AND($C$1=1,$C$2=1,C63=2),7,(IF(AND($C$1=1,$C$2=2,C63=2),8,(IF(AND($C$1=1,$C$2=3,C63=2),9,(IF(AND($C$1=2,$C$2=1,C63=2),10,(IF(AND($C$1=2,$C$2=2,C63=2),11,(IF(AND($C$1=2,$C$2=3,C63=2),12,""))))))))))))))))))))))) -> 7 | I63: =CHOOSE(H63,VLOOKUP(D63,DATA!$B$2:$N$25,2,FALSE),VLOOKUP(D63,DATA!$B$2:$N$25,3,FALSE),VLOOKUP(D63,DATA!$B$2:$N$25,4,FALSE),VLOOKUP(D63,DATA!$B$2:$N$25,5,FALSE),VLOOKUP(D63,DATA!$B$2:$N$25,6,FALSE),VLOOKUP(D63,DATA!$B$2:$N$25,7,FALSE),VLOOKUP(D63,DATA!$B$2:$N$25,8,FALSE),VLOOKUP(D63,DATA!$B$2:$N$25,9,FALSE),VLOOKUP(D63,DATA!$B$2:$N$25,10,FALSE),VLOOKUP(D63,DATA!$B$2:$N$25,11,FALSE),VLOOKUP(D63,DATA!$B$2:$N$25,12,FALSE),VLOOKUP(D63,DATA!$B$2:$N$25,13,FALSE),"")*(IF(F63=1,1,0)) -> 0 | J63: =CHOOSE(H63,VLOOKUP(D63,DATA!$B$27:$N$50,2,FALSE),VLOOKUP(D63,DATA!$B$27:$N$50,3,FALSE),VLOOKUP(D63,DATA!$B$27:$N$50,4,FALSE),VLOOKUP(D63,DATA!$B$27:$N$50,5,FALSE),VLOOKUP(D63,DATA!$B$27:$N$50,6,FALSE),VLOOKUP(D63,DATA!$B$27:$N$50,7,FALSE),VLOOKUP(D63,DATA!$B$27:$N$50,8,FALSE),VLOOKUP(D63,DATA!$B$27:$N$50,9,FALSE),VLOOKUP(D63,DATA!$B$27:$N$50,10,FALSE),VLOOKUP(D63,DATA!$B$27:$N$50,11,FALSE),VLOOKUP(D63,DATA!$B$27:$N$50,12,FALSE),VLOOKUP(D63,DATA!$B$27:$N$50,13,FALSE),"")*(IF(F64=1,1,0)) -> 0 | K63: =CHOOSE(H63,VLOOKUP(D63,DATA!$B$52:$N$75,2,FALSE),VLOOKUP(D63,DATA!$B$52:$N$75,3,FALSE),VLOOKUP(D63,DATA!$B$52:$N$75,4,FALSE),VLOOKUP(D63,DATA!$B$52:$N$77,5,FALSE),VLOOKUP(D63,DATA!$B$52:$N$75,6,FALSE),VLOOKUP(D63,DATA!$B$52:$N$75,7,FALSE),VLOOKUP(D63,DATA!$B$52:$N$75,8,FALSE),VLOOKUP(D63,DATA!$B$52:$N$75,9,FALSE),VLOOKUP(D63,DATA!$B$52:$N$75,10,FALSE),VLOOKUP(D63,DATA!$B$52:$N$75,11,FALSE),VLOOKUP(D63,DATA!$B$52:$N$75,12,FALSE),VLOOKUP(D63,DATA!$B$52:$N$75,13,FALSE),"")*(IF(F65=1,1,0)) -> 0 | L63: =CHOOSE(H63,VLOOKUP(D63,DATA!$B$77:$N$100,2,FALSE),VLOOKUP(D63,DATA!$B$77:$N$100,3,FALSE),VLOOKUP(D63,DATA!$B$77:$N$100,4,FALSE),VLOOKUP(D63,DATA!$B$77:$N$100,5,FALSE),VLOOKUP(D63,DATA!$B$77:$N$100,6,FALSE),VLOOKUP(D63,DATA!$B$77:$N$100,7,FALSE),VLOOKUP(D63,DATA!$B$77:$N$100,8,FALSE),VLOOKUP(D63,DATA!$B$77:$N$100,9,FALSE),VLOOKUP(D63,DATA!$B$77:$N$100,10,FALSE),VLOOKUP(D63,DATA!$B$77:$N$100,11,FALSE),VLOOKUP(D63,DATA!$B$77:$N$100,12,FALSE),VLOOKUP(D63,DATA!$B$77:$N$100,13,FALSE),"")*(IF(F66=1,1,0)) -> 0 | M63: =CHOOSE(H63,VLOOKUP(D63,DATA!$B$102:$N$125,2,FALSE),VLOOKUP(D63,DATA!$B$102:$N$125,3,FALSE),VLOOKUP(D63,DATA!$B$102:$N$125,4,FALSE),VLOOKUP(D63,DATA!$B$102:$N$125,5,FALSE),VLOOKUP(D63,DATA!$B$102:$N$125,6,FALSE),VLOOKUP(D63,DATA!$B$102:$N$125,7,FALSE),VLOOKUP(D63,DATA!$B$102:$N$125,8,FALSE),VLOOKUP(D63,DATA!$B$102:$N$125,9,FALSE),VLOOKUP(D63,DATA!$B$102:$N$125,10,FALSE),VLOOKUP(D63,DATA!$B$102:$N$125,11,FALSE),VLOOKUP(D63,DATA!$B$102:$N$125,12,FALSE),VLOOKUP(D63,DATA!$B$102:$N$125,13,FALSE),"")*(IF(F66=1,1,0)) -> 0 | N63: =利用申込書2!AG22 ->  | O63: =IF(AND(F64=1,F65=1,F66=1),"午前-午後-夜間",(IF(AND(F64=1,F65=1,F66=2),"午前-午後",(IF(AND(F64=2,F65=1,F66=1),"午後-夜間",(IF(AND(F64=1,F65=2,F66=2),"午前",(IF(AND(F64=2,F65=1,F66=2),"午後",IF(AND(F64=1,F65=2,F66=1),"午前・夜間","夜間")))))))))) -> 夜間 | Q63: =IF(I63>0,VLOOKUP(O63,$A$235:$B$238,2,FALSE),VLOOKUP(O63,$A$226:$B$232,2,FALSE)) -> 18:00-21:00 | R63: =IF(B63=B59,"",B63) ->  | S63: =B63 -> 00:00:00 | T63: =YEAR(S63) -> 1900 | U63: 年 | V63: =T63&U63&T64&U64 -> 1900年1月 | W63: =IF(AND(F64=1,F65=1,F66=1),"APN",(IF(AND(F64=1,F65=1,F66=2),"AP",(IF(AND(F64=2,F65=1,F66=1),"PN",(IF(AND(F64=1,F65=2,F66=2),"A",(IF(AND(F64=2,F65=1,F66=2),"P","N"))))))))) -> N | X63: =利用申込書1!$AV$50 ->  | Y63: =X64&W63&"・"&AB63 -> 0N・ | Z63: =T63&U63 -> 1900年 | AA63: =Z63&V64 -> 1900年1月0日 | AB63: =CLEAN(X63) -> 
B64: =TEXT(B63,"YYYY") -> 1900 | E64: チェック2 | F64: =IF(F63=1,1,IF(G64,1,2)) -> 2 | G64: FALSE | J64: =B66&$J$6 -> 0A | K64: =B66&$K$6 -> 0P | L64: =B66&$L$6 -> 0N | Q64: =LEFT(Q63,2) -> 18 | S64: =B63 -> 00:00:00 | T64: =MONTH(S63) -> 1 | U64: 月 | V64: =T64&U64&T65&U65 -> 1月0日 | W64: =D63 -> 0 | X64: =LEFT(W64,3) -> 0
B65: =TEXT(B63,"YYYYmm") -> 190001 | E65: チェック3 | F65: 2 | G65: FALSE | J65: =G64 -> FALSE | K65: =G65 -> FALSE | L65: =G66 -> FALSE | Q65: =IF(MID(Q63,6,1)="-",MID(Q63,7,2),MID(Q63,6,2)) -> 21 | T65: =DAY(S63) -> 0 | U65: 日 | V65: =T65&U65 -> 0日
B66: =TEXT(B63,"d") -> 0 | E66: チェック4 | F66: 2 | G66: FALSE | V66: =T64&U64 -> 1月
A67: =IF(D67="大会議室(準備)","大会議室",(IF(D67="大会議室(本番)","大会議室",(IF(D67="ピアザホール(準備)","PH",IF(D67="ピアザホール(本番)","PH",IF(D67="練習室(一般)","練習室",IF(D67="練習室(学生)","練習室",D67)))))))) -> 0 | B67: =IF(利用申込書2!A24="",B63,利用申込書2!A24) -> 00:00:00 | C67: =IF(OR((WEEKDAY(B67,2)>=6),COUNTIF(DATA!$Q$3:$T$23,B67)),2,1) -> 2 | D67: =利用申込書2!F24 -> 0 | E67: チェック1 | F67: 2 | G67: FALSE | H67: =IF(AND($C$1=1,$C$2=1,C67=1),1,(IF(AND($C$1=1,$C$2=2,C67=1),2,(IF(AND($C$1=1,$C$2=3,C67=1),3,(IF(AND($C$1=2,$C$2=1,C67=1),4,(IF(AND($C$1=2,$C$2=2,C67=1),5,(IF(AND($C$1=2,$C$2=3,C67=1),6,(IF(AND($C$1=1,$C$2=1,C67=2),7,(IF(AND($C$1=1,$C$2=2,C67=2),8,(IF(AND($C$1=1,$C$2=3,C67=2),9,(IF(AND($C$1=2,$C$2=1,C67=2),10,(IF(AND($C$1=2,$C$2=2,C67=2),11,(IF(AND($C$1=2,$C$2=3,C67=2),12,""))))))))))))))))))))))) -> 7 | I67: =CHOOSE(H67,VLOOKUP(D67,DATA!$B$2:$N$25,2,FALSE),VLOOKUP(D67,DATA!$B$2:$N$25,3,FALSE),VLOOKUP(D67,DATA!$B$2:$N$25,4,FALSE),VLOOKUP(D67,DATA!$B$2:$N$25,5,FALSE),VLOOKUP(D67,DATA!$B$2:$N$25,6,FALSE),VLOOKUP(D67,DATA!$B$2:$N$25,7,FALSE),VLOOKUP(D67,DATA!$B$2:$N$25,8,FALSE),VLOOKUP(D67,DATA!$B$2:$N$25,9,FALSE),VLOOKUP(D67,DATA!$B$2:$N$25,10,FALSE),VLOOKUP(D67,DATA!$B$2:$N$25,11,FALSE),VLOOKUP(D67,DATA!$B$2:$N$25,12,FALSE),VLOOKUP(D67,DATA!$B$2:$N$25,13,FALSE),"")*(IF(F67=1,1,0)) -> 0 | J67: =CHOOSE(H67,VLOOKUP(D67,DATA!$B$27:$N$50,2,FALSE),VLOOKUP(D67,DATA!$B$27:$N$50,3,FALSE),VLOOKUP(D67,DATA!$B$27:$N$50,4,FALSE),VLOOKUP(D67,DATA!$B$27:$N$50,5,FALSE),VLOOKUP(D67,DATA!$B$27:$N$50,6,FALSE),VLOOKUP(D67,DATA!$B$27:$N$50,7,FALSE),VLOOKUP(D67,DATA!$B$27:$N$50,8,FALSE),VLOOKUP(D67,DATA!$B$27:$N$50,9,FALSE),VLOOKUP(D67,DATA!$B$27:$N$50,10,FALSE),VLOOKUP(D67,DATA!$B$27:$N$50,11,FALSE),VLOOKUP(D67,DATA!$B$27:$N$50,12,FALSE),VLOOKUP(D67,DATA!$B$27:$N$50,13,FALSE),"")*(IF(F68=1,1,0)) -> 0 | K67: =CHOOSE(H67,VLOOKUP(D67,DATA!$B$52:$N$75,2,FALSE),VLOOKUP(D67,DATA!$B$52:$N$75,3,FALSE),VLOOKUP(D67,DATA!$B$52:$N$75,4,FALSE),VLOOKUP(D67,DATA!$B$52:$N$77,5,FALSE),VLOOKUP(D67,DATA!$B$52:$N$75,6,FALSE),VLOOKUP(D67,DATA!$B$52:$N$75,7,FALSE),VLOOKUP(D67,DATA!$B$52:$N$75,8,FALSE),VLOOKUP(D67,DATA!$B$52:$N$75,9,FALSE),VLOOKUP(D67,DATA!$B$52:$N$75,10,FALSE),VLOOKUP(D67,DATA!$B$52:$N$75,11,FALSE),VLOOKUP(D67,DATA!$B$52:$N$75,12,FALSE),VLOOKUP(D67,DATA!$B$52:$N$75,13,FALSE),"")*(IF(F69=1,1,0)) -> 0 | L67: =CHOOSE(H67,VLOOKUP(D67,DATA!$B$77:$N$100,2,FALSE),VLOOKUP(D67,DATA!$B$77:$N$100,3,FALSE),VLOOKUP(D67,DATA!$B$77:$N$100,4,FALSE),VLOOKUP(D67,DATA!$B$77:$N$100,5,FALSE),VLOOKUP(D67,DATA!$B$77:$N$100,6,FALSE),VLOOKUP(D67,DATA!$B$77:$N$100,7,FALSE),VLOOKUP(D67,DATA!$B$77:$N$100,8,FALSE),VLOOKUP(D67,DATA!$B$77:$N$100,9,FALSE),VLOOKUP(D67,DATA!$B$77:$N$100,10,FALSE),VLOOKUP(D67,DATA!$B$77:$N$100,11,FALSE),VLOOKUP(D67,DATA!$B$77:$N$100,12,FALSE),VLOOKUP(D67,DATA!$B$77:$N$100,13,FALSE),"")*(IF(F70=1,1,0)) -> 0 | M67: =CHOOSE(H67,VLOOKUP(D67,DATA!$B$102:$N$125,2,FALSE),VLOOKUP(D67,DATA!$B$102:$N$125,3,FALSE),VLOOKUP(D67,DATA!$B$102:$N$125,4,FALSE),VLOOKUP(D67,DATA!$B$102:$N$125,5,FALSE),VLOOKUP(D67,DATA!$B$102:$N$125,6,FALSE),VLOOKUP(D67,DATA!$B$102:$N$125,7,FALSE),VLOOKUP(D67,DATA!$B$102:$N$125,8,FALSE),VLOOKUP(D67,DATA!$B$102:$N$125,9,FALSE),VLOOKUP(D67,DATA!$B$102:$N$125,10,FALSE),VLOOKUP(D67,DATA!$B$102:$N$125,11,FALSE),VLOOKUP(D67,DATA!$B$102:$N$125,12,FALSE),VLOOKUP(D67,DATA!$B$102:$N$125,13,FALSE),"")*(IF(F70=1,1,0)) -> 0 | N67: =利用申込書2!AG24 ->  | O67: =IF(AND(F68=1,F69=1,F70=1),"午前-午後-夜間",(IF(AND(F68=1,F69=1,F70=2),"午前-午後",(IF(AND(F68=2,F69=1,F70=1),"午後-夜間",(IF(AND(F68=1,F69=2,F70=2),"午前",(IF(AND(F68=2,F69=1,F70=2),"午後",IF(AND(F68=1,F69=2,F70=1),"午前・夜間","夜間")))))))))) -> 夜間 | Q67: =IF(I67>0,VLOOKUP(O67,$A$235:$B$238,2,FALSE),VLOOKUP(O67,$A$226:$B$232,2,FALSE)) -> 18:00-21:00 | R67: =IF(B67=B63,"",B67) ->  | S67: =B67 -> 00:00:00 | T67: =YEAR(S67) -> 1900 | U67: 年 | V67: =T67&U67&T68&U68 -> 1900年1月 | W67: =IF(AND(F68=1,F69=1,F70=1),"APN",(IF(AND(F68=1,F69=1,F70=2),"AP",(IF(AND(F68=2,F69=1,F70=1),"PN",(IF(AND(F68=1,F69=2,F70=2),"A",(IF(AND(F68=2,F69=1,F70=2),"P","N"))))))))) -> N | X67: =利用申込書1!$AV$50 ->  | Y67: =X68&W67&"・"&AB67 -> 0N・ | Z67: =T67&U67 -> 1900年 | AA67: =Z67&V68 -> 1900年1月0日 | AB67: =CLEAN(X67) -> 
B68: =TEXT(B67,"YYYY") -> 1900 | E68: チェック2 | F68: =IF(F67=1,1,IF(G68,1,2)) -> 2 | G68: FALSE | J68: =B70&$J$6 -> 0A | K68: =B70&$K$6 -> 0P | L68: =B70&$L$6 -> 0N | Q68: =LEFT(Q67,2) -> 18 | S68: =B67 -> 00:00:00 | T68: =MONTH(S67) -> 1 | U68: 月 | V68: =T68&U68&T69&U69 -> 1月0日 | W68: =D67 -> 0 | X68: =LEFT(W68,3) -> 0
B69: =TEXT(B67,"YYYYmm") -> 190001 | E69: チェック3 | F69: 2 | G69: FALSE | J69: =G68 -> FALSE | K69: =G69 -> FALSE | L69: =G70 -> FALSE | Q69: =IF(MID(Q67,6,1)="-",MID(Q67,7,2),MID(Q67,6,2)) -> 21 | T69: =DAY(S67) -> 0 | U69: 日 | V69: =T69&U69 -> 0日
B70: =TEXT(B67,"d") -> 0 | E70: チェック4 | F70: 2 | G70: FALSE | V70: =T68&U68 -> 1月
A71: =IF(D71="大会議室(準備)","大会議室",(IF(D71="大会議室(本番)","大会議室",(IF(D71="ピアザホール(準備)","PH",IF(D71="ピアザホール(本番)","PH",IF(D71="練習室(一般)","練習室",IF(D71="練習室(学生)","練習室",D71)))))))) -> 0 | B71: =IF(利用申込書2!A26="", B67,利用申込書2!A26) -> 00:00:00 | C71: =IF(OR((WEEKDAY(B71,2)>=6),COUNTIF(DATA!$Q$3:$T$23,B71)),2,1) -> 2 | D71: =利用申込書2!F26 -> 0 | E71: チェック1 | F71: 2 | G71: FALSE | H71: =IF(AND($C$1=1,$C$2=1,C71=1),1,(IF(AND($C$1=1,$C$2=2,C71=1),2,(IF(AND($C$1=1,$C$2=3,C71=1),3,(IF(AND($C$1=2,$C$2=1,C71=1),4,(IF(AND($C$1=2,$C$2=2,C71=1),5,(IF(AND($C$1=2,$C$2=3,C71=1),6,(IF(AND($C$1=1,$C$2=1,C71=2),7,(IF(AND($C$1=1,$C$2=2,C71=2),8,(IF(AND($C$1=1,$C$2=3,C71=2),9,(IF(AND($C$1=2,$C$2=1,C71=2),10,(IF(AND($C$1=2,$C$2=2,C71=2),11,(IF(AND($C$1=2,$C$2=3,C71=2),12,""))))))))))))))))))))))) -> 7 | I71: =CHOOSE(H71,VLOOKUP(D71,DATA!$B$2:$N$25,2,FALSE),VLOOKUP(D71,DATA!$B$2:$N$25,3,FALSE),VLOOKUP(D71,DATA!$B$2:$N$25,4,FALSE),VLOOKUP(D71,DATA!$B$2:$N$25,5,FALSE),VLOOKUP(D71,DATA!$B$2:$N$25,6,FALSE),VLOOKUP(D71,DATA!$B$2:$N$25,7,FALSE),VLOOKUP(D71,DATA!$B$2:$N$25,8,FALSE),VLOOKUP(D71,DATA!$B$2:$N$25,9,FALSE),VLOOKUP(D71,DATA!$B$2:$N$25,10,FALSE),VLOOKUP(D71,DATA!$B$2:$N$25,11,FALSE),VLOOKUP(D71,DATA!$B$2:$N$25,12,FALSE),VLOOKUP(D71,DATA!$B$2:$N$25,13,FALSE),"")*(IF(F71=1,1,0)) -> 0 | J71: =CHOOSE(H71,VLOOKUP(D71,DATA!$B$27:$N$50,2,FALSE),VLOOKUP(D71,DATA!$B$27:$N$50,3,FALSE),VLOOKUP(D71,DATA!$B$27:$N$50,4,FALSE),VLOOKUP(D71,DATA!$B$27:$N$50,5,FALSE),VLOOKUP(D71,DATA!$B$27:$N$50,6,FALSE),VLOOKUP(D71,DATA!$B$27:$N$50,7,FALSE),VLOOKUP(D71,DATA!$B$27:$N$50,8,FALSE),VLOOKUP(D71,DATA!$B$27:$N$50,9,FALSE),VLOOKUP(D71,DATA!$B$27:$N$50,10,FALSE),VLOOKUP(D71,DATA!$B$27:$N$50,11,FALSE),VLOOKUP(D71,DATA!$B$27:$N$50,12,FALSE),VLOOKUP(D71,DATA!$B$27:$N$50,13,FALSE),"")*(IF(F72=1,1,0)) -> 0 | K71: =CHOOSE(H71,VLOOKUP(D71,DATA!$B$52:$N$75,2,FALSE),VLOOKUP(D71,DATA!$B$52:$N$75,3,FALSE),VLOOKUP(D71,DATA!$B$52:$N$75,4,FALSE),VLOOKUP(D71,DATA!$B$52:$N$77,5,FALSE),VLOOKUP(D71,DATA!$B$52:$N$75,6,FALSE),VLOOKUP(D71,DATA!$B$52:$N$75,7,FALSE),VLOOKUP(D71,DATA!$B$52:$N$75,8,FALSE),VLOOKUP(D71,DATA!$B$52:$N$75,9,FALSE),VLOOKUP(D71,DATA!$B$52:$N$75,10,FALSE),VLOOKUP(D71,DATA!$B$52:$N$75,11,FALSE),VLOOKUP(D71,DATA!$B$52:$N$75,12,FALSE),VLOOKUP(D71,DATA!$B$52:$N$75,13,FALSE),"")*(IF(F73=1,1,0)) -> 0 | L71: =CHOOSE(H71,VLOOKUP(D71,DATA!$B$77:$N$100,2,FALSE),VLOOKUP(D71,DATA!$B$77:$N$100,3,FALSE),VLOOKUP(D71,DATA!$B$77:$N$100,4,FALSE),VLOOKUP(D71,DATA!$B$77:$N$100,5,FALSE),VLOOKUP(D71,DATA!$B$77:$N$100,6,FALSE),VLOOKUP(D71,DATA!$B$77:$N$100,7,FALSE),VLOOKUP(D71,DATA!$B$77:$N$100,8,FALSE),VLOOKUP(D71,DATA!$B$77:$N$100,9,FALSE),VLOOKUP(D71,DATA!$B$77:$N$100,10,FALSE),VLOOKUP(D71,DATA!$B$77:$N$100,11,FALSE),VLOOKUP(D71,DATA!$B$77:$N$100,12,FALSE),VLOOKUP(D71,DATA!$B$77:$N$100,13,FALSE),"")*(IF(F74=1,1,0)) -> 0 | M71: =CHOOSE(H71,VLOOKUP(D71,DATA!$B$102:$N$125,2,FALSE),VLOOKUP(D71,DATA!$B$102:$N$125,3,FALSE),VLOOKUP(D71,DATA!$B$102:$N$125,4,FALSE),VLOOKUP(D71,DATA!$B$102:$N$125,5,FALSE),VLOOKUP(D71,DATA!$B$102:$N$125,6,FALSE),VLOOKUP(D71,DATA!$B$102:$N$125,7,FALSE),VLOOKUP(D71,DATA!$B$102:$N$125,8,FALSE),VLOOKUP(D71,DATA!$B$102:$N$125,9,FALSE),VLOOKUP(D71,DATA!$B$102:$N$125,10,FALSE),VLOOKUP(D71,DATA!$B$102:$N$125,11,FALSE),VLOOKUP(D71,DATA!$B$102:$N$125,12,FALSE),VLOOKUP(D71,DATA!$B$102:$N$125,13,FALSE),"")*(IF(F74=1,1,0)) -> 0 | N71: =利用申込書2!AG26 ->  | O71: =IF(AND(F72=1,F73=1,F74=1),"午前-午後-夜間",(IF(AND(F72=1,F73=1,F74=2),"午前-午後",(IF(AND(F72=2,F73=1,F74=1),"午後-夜間",(IF(AND(F72=1,F73=2,F74=2),"午前",(IF(AND(F72=2,F73=1,F74=2),"午後",IF(AND(F72=1,F73=2,F74=1),"午前・夜間","夜間")))))))))) -> 夜間 | Q71: =IF(I71>0,VLOOKUP(O71,$A$235:$B$238,2,FALSE),VLOOKUP(O71,$A$226:$B$232,2,FALSE)) -> 18:00-21:00 | R71: =IF(B71=B67,"",B71) ->  | S71: =B71 -> 00:00:00 | T71: =YEAR(S71) -> 1900 | U71: 年 | V71: =T71&U71&T72&U72 -> 1900年1月 | W71: =IF(AND(F72=1,F73=1,F74=1),"APN",(IF(AND(F72=1,F73=1,F74=2),"AP",(IF(AND(F72=2,F73=1,F74=1),"PN",(IF(AND(F72=1,F73=2,F74=2),"A",(IF(AND(F72=2,F73=1,F74=2),"P","N"))))))))) -> N | X71: =利用申込書1!$AV$50 ->  | Y71: =X72&W71&"・"&AB71 -> 0N・ | Z71: =T71&U71 -> 1900年 | AA71: =Z71&V72 -> 1900年1月0日 | AB71: =CLEAN(X71) -> 
B72: =TEXT(B71,"YYYY") -> 1900 | E72: チェック2 | F72: =IF(F71=1,1,IF(G72,1,2)) -> 2 | G72: FALSE | J72: =B74&$J$6 -> 0A | K72: =B74&$K$6 -> 0P | L72: =B74&$L$6 -> 0N | Q72: =LEFT(Q71,2) -> 18 | S72: =B71 -> 00:00:00 | T72: =MONTH(S71) -> 1 | U72: 月 | V72: =T72&U72&T73&U73 -> 1月0日 | W72: =D71 -> 0 | X72: =LEFT(W72,3) -> 0
B73: =TEXT(B71,"YYYYmm") -> 190001 | E73: チェック3 | F73: 2 | G73: FALSE | J73: =G72 -> FALSE | K73: =G73 -> FALSE | L73: =G74 -> FALSE | Q73: =IF(MID(Q71,6,1)="-",MID(Q71,7,2),MID(Q71,6,2)) -> 21 | T73: =DAY(S71) -> 0 | U73: 日 | V73: =T73&U73 -> 0日
B74: =TEXT(B71,"d") -> 0 | E74: チェック4 | F74: 2 | G74: FALSE | V74: =T72&U72 -> 1月
A75: =IF(D75="大会議室(準備)","大会議室",(IF(D75="大会議室(本番)","大会議室",(IF(D75="ピアザホール(準備)","PH",IF(D75="ピアザホール(本番)","PH",IF(D75="練習室(一般)","練習室",IF(D75="練習室(学生)","練習室",D75)))))))) -> 0 | B75: =IF(利用申込書2!A28="", B71,利用申込書2!A28) -> 00:00:00 | C75: =IF(OR((WEEKDAY(B75,2)>=6),COUNTIF(DATA!$Q$3:$T$23,B75)),2,1) -> 2 | D75: =利用申込書2!F28 -> 0 | E75: チェック1 | F75: 2 | G75: FALSE | H75: =IF(AND($C$1=1,$C$2=1,C75=1),1,(IF(AND($C$1=1,$C$2=2,C75=1),2,(IF(AND($C$1=1,$C$2=3,C75=1),3,(IF(AND($C$1=2,$C$2=1,C75=1),4,(IF(AND($C$1=2,$C$2=2,C75=1),5,(IF(AND($C$1=2,$C$2=3,C75=1),6,(IF(AND($C$1=1,$C$2=1,C75=2),7,(IF(AND($C$1=1,$C$2=2,C75=2),8,(IF(AND($C$1=1,$C$2=3,C75=2),9,(IF(AND($C$1=2,$C$2=1,C75=2),10,(IF(AND($C$1=2,$C$2=2,C75=2),11,(IF(AND($C$1=2,$C$2=3,C75=2),12,""))))))))))))))))))))))) -> 7 | I75: =CHOOSE(H75,VLOOKUP(D75,DATA!$B$2:$N$25,2,FALSE),VLOOKUP(D75,DATA!$B$2:$N$25,3,FALSE),VLOOKUP(D75,DATA!$B$2:$N$25,4,FALSE),VLOOKUP(D75,DATA!$B$2:$N$25,5,FALSE),VLOOKUP(D75,DATA!$B$2:$N$25,6,FALSE),VLOOKUP(D75,DATA!$B$2:$N$25,7,FALSE),VLOOKUP(D75,DATA!$B$2:$N$25,8,FALSE),VLOOKUP(D75,DATA!$B$2:$N$25,9,FALSE),VLOOKUP(D75,DATA!$B$2:$N$25,10,FALSE),VLOOKUP(D75,DATA!$B$2:$N$25,11,FALSE),VLOOKUP(D75,DATA!$B$2:$N$25,12,FALSE),VLOOKUP(D75,DATA!$B$2:$N$25,13,FALSE),"")*(IF(F75=1,1,0)) -> 0 | J75: =CHOOSE(H75,VLOOKUP(D75,DATA!$B$27:$N$50,2,FALSE),VLOOKUP(D75,DATA!$B$27:$N$50,3,FALSE),VLOOKUP(D75,DATA!$B$27:$N$50,4,FALSE),VLOOKUP(D75,DATA!$B$27:$N$50,5,FALSE),VLOOKUP(D75,DATA!$B$27:$N$50,6,FALSE),VLOOKUP(D75,DATA!$B$27:$N$50,7,FALSE),VLOOKUP(D75,DATA!$B$27:$N$50,8,FALSE),VLOOKUP(D75,DATA!$B$27:$N$50,9,FALSE),VLOOKUP(D75,DATA!$B$27:$N$50,10,FALSE),VLOOKUP(D75,DATA!$B$27:$N$50,11,FALSE),VLOOKUP(D75,DATA!$B$27:$N$50,12,FALSE),VLOOKUP(D75,DATA!$B$27:$N$50,13,FALSE),"")*(IF(F76=1,1,0)) -> 0 | K75: =CHOOSE(H75,VLOOKUP(D75,DATA!$B$52:$N$75,2,FALSE),VLOOKUP(D75,DATA!$B$52:$N$75,3,FALSE),VLOOKUP(D75,DATA!$B$52:$N$75,4,FALSE),VLOOKUP(D75,DATA!$B$52:$N$77,5,FALSE),VLOOKUP(D75,DATA!$B$52:$N$75,6,FALSE),VLOOKUP(D75,DATA!$B$52:$N$75,7,FALSE),VLOOKUP(D75,DATA!$B$52:$N$75,8,FALSE),VLOOKUP(D75,DATA!$B$52:$N$75,9,FALSE),VLOOKUP(D75,DATA!$B$52:$N$75,10,FALSE),VLOOKUP(D75,DATA!$B$52:$N$75,11,FALSE),VLOOKUP(D75,DATA!$B$52:$N$75,12,FALSE),VLOOKUP(D75,DATA!$B$52:$N$75,13,FALSE),"")*(IF(F77=1,1,0)) -> 0 | L75: =CHOOSE(H75,VLOOKUP(D75,DATA!$B$77:$N$100,2,FALSE),VLOOKUP(D75,DATA!$B$77:$N$100,3,FALSE),VLOOKUP(D75,DATA!$B$77:$N$100,4,FALSE),VLOOKUP(D75,DATA!$B$77:$N$100,5,FALSE),VLOOKUP(D75,DATA!$B$77:$N$100,6,FALSE),VLOOKUP(D75,DATA!$B$77:$N$100,7,FALSE),VLOOKUP(D75,DATA!$B$77:$N$100,8,FALSE),VLOOKUP(D75,DATA!$B$77:$N$100,9,FALSE),VLOOKUP(D75,DATA!$B$77:$N$100,10,FALSE),VLOOKUP(D75,DATA!$B$77:$N$100,11,FALSE),VLOOKUP(D75,DATA!$B$77:$N$100,12,FALSE),VLOOKUP(D75,DATA!$B$77:$N$100,13,FALSE),"")*(IF(F78=1,1,0)) -> 0 | M75: =CHOOSE(H75,VLOOKUP(D75,DATA!$B$102:$N$125,2,FALSE),VLOOKUP(D75,DATA!$B$102:$N$125,3,FALSE),VLOOKUP(D75,DATA!$B$102:$N$125,4,FALSE),VLOOKUP(D75,DATA!$B$102:$N$125,5,FALSE),VLOOKUP(D75,DATA!$B$102:$N$125,6,FALSE),VLOOKUP(D75,DATA!$B$102:$N$125,7,FALSE),VLOOKUP(D75,DATA!$B$102:$N$125,8,FALSE),VLOOKUP(D75,DATA!$B$102:$N$125,9,FALSE),VLOOKUP(D75,DATA!$B$102:$N$125,10,FALSE),VLOOKUP(D75,DATA!$B$102:$N$125,11,FALSE),VLOOKUP(D75,DATA!$B$102:$N$125,12,FALSE),VLOOKUP(D75,DATA!$B$102:$N$125,13,FALSE),"")*(IF(F78=1,1,0)) -> 0 | N75: =利用申込書2!AG28 ->  | O75: =IF(AND(F76=1,F77=1,F78=1),"午前-午後-夜間",(IF(AND(F76=1,F77=1,F78=2),"午前-午後",(IF(AND(F76=2,F77=1,F78=1),"午後-夜間",(IF(AND(F76=1,F77=2,F78=2),"午前",(IF(AND(F76=2,F77=1,F78=2),"午後",IF(AND(F76=1,F77=2,F78=1),"午前・夜間","夜間")))))))))) -> 夜間 | Q75: =IF(I75>0,VLOOKUP(O75,$A$235:$B$238,2,FALSE),VLOOKUP(O75,$A$226:$B$232,2,FALSE)) -> 18:00-21:00 | R75: =IF(B75=B71,"",B75) ->  | S75: =B75 -> 00:00:00 | T75: =YEAR(S75) -> 1900 | U75: 年 | V75: =T75&U75&T76&U76 -> 1900年1月 | W75: =IF(AND(F76=1,F77=1,F78=1),"APN",(IF(AND(F76=1,F77=1,F78=2),"AP",(IF(AND(F76=2,F77=1,F78=1),"PN",(IF(AND(F76=1,F77=2,F78=2),"A",(IF(AND(F76=2,F77=1,F78=2),"P","N"))))))))) -> N | X75: =利用申込書1!$AV$50 ->  | Y75: =X76&W75&"・"&AB75 -> 0N・ | Z75: =T75&U75 -> 1900年 | AA75: =Z75&V76 -> 1900年1月0日 | AB75: =CLEAN(X75) -> 
B76: =TEXT(B75,"YYYY") -> 1900 | E76: チェック2 | F76: =IF(F75=1,1,IF(G76,1,2)) -> 2 | G76: FALSE | J76: =B78&$J$6 -> 0A | K76: =B78&$K$6 -> 0P | L76: =B78&$L$6 -> 0N | Q76: =LEFT(Q75,2) -> 18 | S76: =B75 -> 00:00:00 | T76: =MONTH(S75) -> 1 | U76: 月 | V76: =T76&U76&T77&U77 -> 1月0日 | W76: =D75 -> 0 | X76: =LEFT(W76,3) -> 0
B77: =TEXT(B75,"YYYYmm") -> 190001 | E77: チェック3 | F77: 2 | G77: FALSE | J77: =G76 -> FALSE | K77: =G77 -> FALSE | L77: =G78 -> FALSE | Q77: =IF(MID(Q75,6,1)="-",MID(Q75,7,2),MID(Q75,6,2)) -> 21 | T77: =DAY(S75) -> 0 | U77: 日 | V77: =T77&U77 -> 0日
B78: =TEXT(B75,"d") -> 0 | E78: チェック4 | F78: 2 | G78: FALSE | V78: =T76&U76 -> 1月
A79: =IF(D79="大会議室(準備)","大会議室",(IF(D79="大会議室(本番)","大会議室",(IF(D79="ピアザホール(準備)","PH",IF(D79="ピアザホール(本番)","PH",IF(D79="練習室(一般)","練習室",IF(D79="練習室(学生)","練習室",D79)))))))) -> 0 | B79: =IF(利用申込書2!A30="",B75,利用申込書2!A30) -> 00:00:00 | C79: =IF(OR((WEEKDAY(B79,2)>=6),COUNTIF(DATA!$Q$3:$T$23,B79)),2,1) -> 2 | D79: =利用申込書2!F30 -> 0 | E79: チェック1 | F79: 2 | G79: FALSE | H79: =IF(AND($C$1=1,$C$2=1,C79=1),1,(IF(AND($C$1=1,$C$2=2,C79=1),2,(IF(AND($C$1=1,$C$2=3,C79=1),3,(IF(AND($C$1=2,$C$2=1,C79=1),4,(IF(AND($C$1=2,$C$2=2,C79=1),5,(IF(AND($C$1=2,$C$2=3,C79=1),6,(IF(AND($C$1=1,$C$2=1,C79=2),7,(IF(AND($C$1=1,$C$2=2,C79=2),8,(IF(AND($C$1=1,$C$2=3,C79=2),9,(IF(AND($C$1=2,$C$2=1,C79=2),10,(IF(AND($C$1=2,$C$2=2,C79=2),11,(IF(AND($C$1=2,$C$2=3,C79=2),12,""))))))))))))))))))))))) -> 7 | I79: =CHOOSE(H79,VLOOKUP(D79,DATA!$B$2:$N$25,2,FALSE),VLOOKUP(D79,DATA!$B$2:$N$25,3,FALSE),VLOOKUP(D79,DATA!$B$2:$N$25,4,FALSE),VLOOKUP(D79,DATA!$B$2:$N$25,5,FALSE),VLOOKUP(D79,DATA!$B$2:$N$25,6,FALSE),VLOOKUP(D79,DATA!$B$2:$N$25,7,FALSE),VLOOKUP(D79,DATA!$B$2:$N$25,8,FALSE),VLOOKUP(D79,DATA!$B$2:$N$25,9,FALSE),VLOOKUP(D79,DATA!$B$2:$N$25,10,FALSE),VLOOKUP(D79,DATA!$B$2:$N$25,11,FALSE),VLOOKUP(D79,DATA!$B$2:$N$25,12,FALSE),VLOOKUP(D79,DATA!$B$2:$N$25,13,FALSE),"")*(IF(F79=1,1,0)) -> 0 | J79: =CHOOSE(H79,VLOOKUP(D79,DATA!$B$27:$N$50,2,FALSE),VLOOKUP(D79,DATA!$B$27:$N$50,3,FALSE),VLOOKUP(D79,DATA!$B$27:$N$50,4,FALSE),VLOOKUP(D79,DATA!$B$27:$N$50,5,FALSE),VLOOKUP(D79,DATA!$B$27:$N$50,6,FALSE),VLOOKUP(D79,DATA!$B$27:$N$50,7,FALSE),VLOOKUP(D79,DATA!$B$27:$N$50,8,FALSE),VLOOKUP(D79,DATA!$B$27:$N$50,9,FALSE),VLOOKUP(D79,DATA!$B$27:$N$50,10,FALSE),VLOOKUP(D79,DATA!$B$27:$N$50,11,FALSE),VLOOKUP(D79,DATA!$B$27:$N$50,12,FALSE),VLOOKUP(D79,DATA!$B$27:$N$50,13,FALSE),"")*(IF(F80=1,1,0)) -> 0 | K79: =CHOOSE(H79,VLOOKUP(D79,DATA!$B$52:$N$75,2,FALSE),VLOOKUP(D79,DATA!$B$52:$N$75,3,FALSE),VLOOKUP(D79,DATA!$B$52:$N$75,4,FALSE),VLOOKUP(D79,DATA!$B$52:$N$77,5,FALSE),VLOOKUP(D79,DATA!$B$52:$N$75,6,FALSE),VLOOKUP(D79,DATA!$B$52:$N$75,7,FALSE),VLOOKUP(D79,DATA!$B$52:$N$75,8,FALSE),VLOOKUP(D79,DATA!$B$52:$N$75,9,FALSE),VLOOKUP(D79,DATA!$B$52:$N$75,10,FALSE),VLOOKUP(D79,DATA!$B$52:$N$75,11,FALSE),VLOOKUP(D79,DATA!$B$52:$N$75,12,FALSE),VLOOKUP(D79,DATA!$B$52:$N$75,13,FALSE),"")*(IF(F81=1,1,0)) -> 0 | L79: =CHOOSE(H79,VLOOKUP(D79,DATA!$B$77:$N$100,2,FALSE),VLOOKUP(D79,DATA!$B$77:$N$100,3,FALSE),VLOOKUP(D79,DATA!$B$77:$N$100,4,FALSE),VLOOKUP(D79,DATA!$B$77:$N$100,5,FALSE),VLOOKUP(D79,DATA!$B$77:$N$100,6,FALSE),VLOOKUP(D79,DATA!$B$77:$N$100,7,FALSE),VLOOKUP(D79,DATA!$B$77:$N$100,8,FALSE),VLOOKUP(D79,DATA!$B$77:$N$100,9,FALSE),VLOOKUP(D79,DATA!$B$77:$N$100,10,FALSE),VLOOKUP(D79,DATA!$B$77:$N$100,11,FALSE),VLOOKUP(D79,DATA!$B$77:$N$100,12,FALSE),VLOOKUP(D79,DATA!$B$77:$N$100,13,FALSE),"")*(IF(F82=1,1,0)) -> 0 | M79: =CHOOSE(H79,VLOOKUP(D79,DATA!$B$102:$N$125,2,FALSE),VLOOKUP(D79,DATA!$B$102:$N$125,3,FALSE),VLOOKUP(D79,DATA!$B$102:$N$125,4,FALSE),VLOOKUP(D79,DATA!$B$102:$N$125,5,FALSE),VLOOKUP(D79,DATA!$B$102:$N$125,6,FALSE),VLOOKUP(D79,DATA!$B$102:$N$125,7,FALSE),VLOOKUP(D79,DATA!$B$102:$N$125,8,FALSE),VLOOKUP(D79,DATA!$B$102:$N$125,9,FALSE),VLOOKUP(D79,DATA!$B$102:$N$125,10,FALSE),VLOOKUP(D79,DATA!$B$102:$N$125,11,FALSE),VLOOKUP(D79,DATA!$B$102:$N$125,12,FALSE),VLOOKUP(D79,DATA!$B$102:$N$125,13,FALSE),"")*(IF(F82=1,1,0)) -> 0 | N79: =利用申込書2!AG30 ->  | O79: =IF(AND(F80=1,F81=1,F82=1),"午前-午後-夜間",(IF(AND(F80=1,F81=1,F82=2),"午前-午後",(IF(AND(F80=2,F81=1,F82=1),"午後-夜間",(IF(AND(F80=1,F81=2,F82=2),"午前",(IF(AND(F80=2,F81=1,F82=2),"午後",IF(AND(F80=1,F81=2,F82=1),"午前・夜間","夜間")))))))))) -> 夜間 | Q79: =IF(I79>0,VLOOKUP(O79,$A$235:$B$238,2,FALSE),VLOOKUP(O79,$A$226:$B$232,2,FALSE)) -> 18:00-21:00 | R79: =IF(B79=B75,"",B79) ->  | S79: =B79 -> 00:00:00 | T79: =YEAR(S79) -> 1900 | U79: 年 | V79: =T79&U79&T80&U80 -> 1900年1月 | W79: =IF(AND(F80=1,F81=1,F82=1),"APN",(IF(AND(F80=1,F81=1,F82=2),"AP",(IF(AND(F80=2,F81=1,F82=1),"PN",(IF(AND(F80=1,F81=2,F82=2),"A",(IF(AND(F80=2,F81=1,F82=2),"P","N"))))))))) -> N | X79: =利用申込書1!$AV$50 ->  | Y79: =X80&W79&"・"&AB79 -> 0N・ | Z79: =T79&U79 -> 1900年 | AA79: =Z79&V80 -> 1900年1月0日 | AB79: =CLEAN(X79) -> 
B80: =TEXT(B79,"YYYY") -> 1900 | E80: チェック2 | F80: =IF(F79=1,1,IF(G80,1,2)) -> 2 | G80: FALSE | J80: =B82&$J$6 -> 0A | K80: =B82&$K$6 -> 0P | L80: =B82&$L$6 -> 0N | Q80: =LEFT(Q79,2) -> 18 | S80: =B79 -> 00:00:00 | T80: =MONTH(S79) -> 1 | U80: 月 | V80: =T80&U80&T81&U81 -> 1月0日 | W80: =D79 -> 0 | X80: =LEFT(W80,3) -> 0
B81: =TEXT(B79,"YYYYmm") -> 190001 | E81: チェック3 | F81: 2 | G81: FALSE | J81: =G80 -> FALSE | K81: =G81 -> FALSE | L81: =G82 -> FALSE | Q81: =IF(MID(Q79,6,1)="-",MID(Q79,7,2),MID(Q79,6,2)) -> 21 | T81: =DAY(S79) -> 0 | U81: 日 | V81: =T81&U81 -> 0日
B82: =TEXT(B79,"d") -> 0 | E82: チェック4 | F82: 2 | G82: FALSE | V82: =T80&U80 -> 1月
A83: =IF(D83="大会議室(準備)","大会議室",(IF(D83="大会議室(本番)","大会議室",(IF(D83="ピアザホール(準備)","PH",IF(D83="ピアザホール(本番)","PH",IF(D83="練習室(一般)","練習室",IF(D83="練習室(学生)","練習室",D83)))))))) -> 0 | B83: =IF(利用申込書2!A32="", B79,利用申込書2!A32) -> 00:00:00 | C83: =IF(OR((WEEKDAY(B83,2)>=6),COUNTIF(DATA!$Q$3:$T$23,B83)),2,1) -> 2 | D83: =利用申込書2!F32 -> 0 | E83: チェック1 | F83: 2 | G83: FALSE | H83: =IF(AND($C$1=1,$C$2=1,C83=1),1,(IF(AND($C$1=1,$C$2=2,C83=1),2,(IF(AND($C$1=1,$C$2=3,C83=1),3,(IF(AND($C$1=2,$C$2=1,C83=1),4,(IF(AND($C$1=2,$C$2=2,C83=1),5,(IF(AND($C$1=2,$C$2=3,C83=1),6,(IF(AND($C$1=1,$C$2=1,C83=2),7,(IF(AND($C$1=1,$C$2=2,C83=2),8,(IF(AND($C$1=1,$C$2=3,C83=2),9,(IF(AND($C$1=2,$C$2=1,C83=2),10,(IF(AND($C$1=2,$C$2=2,C83=2),11,(IF(AND($C$1=2,$C$2=3,C83=2),12,""))))))))))))))))))))))) -> 7 | I83: =CHOOSE(H83,VLOOKUP(D83,DATA!$B$2:$N$25,2,FALSE),VLOOKUP(D83,DATA!$B$2:$N$25,3,FALSE),VLOOKUP(D83,DATA!$B$2:$N$25,4,FALSE),VLOOKUP(D83,DATA!$B$2:$N$25,5,FALSE),VLOOKUP(D83,DATA!$B$2:$N$25,6,FALSE),VLOOKUP(D83,DATA!$B$2:$N$25,7,FALSE),VLOOKUP(D83,DATA!$B$2:$N$25,8,FALSE),VLOOKUP(D83,DATA!$B$2:$N$25,9,FALSE),VLOOKUP(D83,DATA!$B$2:$N$25,10,FALSE),VLOOKUP(D83,DATA!$B$2:$N$25,11,FALSE),VLOOKUP(D83,DATA!$B$2:$N$25,12,FALSE),VLOOKUP(D83,DATA!$B$2:$N$25,13,FALSE),"")*(IF(F83=1,1,0)) -> 0 | J83: =CHOOSE(H83,VLOOKUP(D83,DATA!$B$27:$N$50,2,FALSE),VLOOKUP(D83,DATA!$B$27:$N$50,3,FALSE),VLOOKUP(D83,DATA!$B$27:$N$50,4,FALSE),VLOOKUP(D83,DATA!$B$27:$N$50,5,FALSE),VLOOKUP(D83,DATA!$B$27:$N$50,6,FALSE),VLOOKUP(D83,DATA!$B$27:$N$50,7,FALSE),VLOOKUP(D83,DATA!$B$27:$N$50,8,FALSE),VLOOKUP(D83,DATA!$B$27:$N$50,9,FALSE),VLOOKUP(D83,DATA!$B$27:$N$50,10,FALSE),VLOOKUP(D83,DATA!$B$27:$N$50,11,FALSE),VLOOKUP(D83,DATA!$B$27:$N$50,12,FALSE),VLOOKUP(D83,DATA!$B$27:$N$50,13,FALSE),"")*(IF(F84=1,1,0)) -> 0 | K83: =CHOOSE(H83,VLOOKUP(D83,DATA!$B$52:$N$75,2,FALSE),VLOOKUP(D83,DATA!$B$52:$N$75,3,FALSE),VLOOKUP(D83,DATA!$B$52:$N$75,4,FALSE),VLOOKUP(D83,DATA!$B$52:$N$77,5,FALSE),VLOOKUP(D83,DATA!$B$52:$N$75,6,FALSE),VLOOKUP(D83,DATA!$B$52:$N$75,7,FALSE),VLOOKUP(D83,DATA!$B$52:$N$75,8,FALSE),VLOOKUP(D83,DATA!$B$52:$N$75,9,FALSE),VLOOKUP(D83,DATA!$B$52:$N$75,10,FALSE),VLOOKUP(D83,DATA!$B$52:$N$75,11,FALSE),VLOOKUP(D83,DATA!$B$52:$N$75,12,FALSE),VLOOKUP(D83,DATA!$B$52:$N$75,13,FALSE),"")*(IF(F85=1,1,0)) -> 0 | L83: =CHOOSE(H83,VLOOKUP(D83,DATA!$B$77:$N$100,2,FALSE),VLOOKUP(D83,DATA!$B$77:$N$100,3,FALSE),VLOOKUP(D83,DATA!$B$77:$N$100,4,FALSE),VLOOKUP(D83,DATA!$B$77:$N$100,5,FALSE),VLOOKUP(D83,DATA!$B$77:$N$100,6,FALSE),VLOOKUP(D83,DATA!$B$77:$N$100,7,FALSE),VLOOKUP(D83,DATA!$B$77:$N$100,8,FALSE),VLOOKUP(D83,DATA!$B$77:$N$100,9,FALSE),VLOOKUP(D83,DATA!$B$77:$N$100,10,FALSE),VLOOKUP(D83,DATA!$B$77:$N$100,11,FALSE),VLOOKUP(D83,DATA!$B$77:$N$100,12,FALSE),VLOOKUP(D83,DATA!$B$77:$N$100,13,FALSE),"")*(IF(F86=1,1,0)) -> 0 | M83: =CHOOSE(H83,VLOOKUP(D83,DATA!$B$102:$N$125,2,FALSE),VLOOKUP(D83,DATA!$B$102:$N$125,3,FALSE),VLOOKUP(D83,DATA!$B$102:$N$125,4,FALSE),VLOOKUP(D83,DATA!$B$102:$N$125,5,FALSE),VLOOKUP(D83,DATA!$B$102:$N$125,6,FALSE),VLOOKUP(D83,DATA!$B$102:$N$125,7,FALSE),VLOOKUP(D83,DATA!$B$102:$N$125,8,FALSE),VLOOKUP(D83,DATA!$B$102:$N$125,9,FALSE),VLOOKUP(D83,DATA!$B$102:$N$125,10,FALSE),VLOOKUP(D83,DATA!$B$102:$N$125,11,FALSE),VLOOKUP(D83,DATA!$B$102:$N$125,12,FALSE),VLOOKUP(D83,DATA!$B$102:$N$125,13,FALSE),"")*(IF(F86=1,1,0)) -> 0 | N83: =利用申込書2!AG32 ->  | O83: =IF(AND(F84=1,F85=1,F86=1),"午前-午後-夜間",(IF(AND(F84=1,F85=1,F86=2),"午前-午後",(IF(AND(F84=2,F85=1,F86=1),"午後-夜間",(IF(AND(F84=1,F85=2,F86=2),"午前",(IF(AND(F84=2,F85=1,F86=2),"午後",IF(AND(F84=1,F85=2,F86=1),"午前・夜間","夜間")))))))))) -> 夜間 | Q83: =IF(I83>0,VLOOKUP(O83,$A$235:$B$238,2,FALSE),VLOOKUP(O83,$A$226:$B$232,2,FALSE)) -> 18:00-21:00 | R83: =IF(B83=B79,"",B83) ->  | S83: =B83 -> 00:00:00 | T83: =YEAR(S83) -> 1900 | U83: 年 | V83: =T83&U83&T84&U84 -> 1900年1月 | W83: =IF(AND(F84=1,F85=1,F86=1),"APN",(IF(AND(F84=1,F85=1,F86=2),"AP",(IF(AND(F84=2,F85=1,F86=1),"PN",(IF(AND(F84=1,F85=2,F86=2),"A",(IF(AND(F84=2,F85=1,F86=2),"P","N"))))))))) -> N | X83: =利用申込書1!$AV$50 ->  | Y83: =X84&W83&"・"&AB83 -> 0N・ | Z83: =T83&U83 -> 1900年 | AA83: =Z83&V84 -> 1900年1月0日 | AB83: =CLEAN(X83) -> 
B84: =TEXT(B83,"YYYY") -> 1900 | E84: チェック2 | F84: =IF(F83=1,1,IF(G84,1,2)) -> 2 | G84: FALSE | J84: =B86&$J$6 -> 0A | K84: =B86&$K$6 -> 0P | L84: =B86&$L$6 -> 0N | Q84: =LEFT(Q83,2) -> 18 | S84: =B83 -> 00:00:00 | T84: =MONTH(S83) -> 1 | U84: 月 | V84: =T84&U84&T85&U85 -> 1月0日 | W84: =D83 -> 0 | X84: =LEFT(W84,3) -> 0
B85: =TEXT(B83,"YYYYmm") -> 190001 | E85: チェック3 | F85: 2 | G85: FALSE | J85: =G84 -> FALSE | K85: =G85 -> FALSE | L85: =G86 -> FALSE | Q85: =IF(MID(Q83,6,1)="-",MID(Q83,7,2),MID(Q83,6,2)) -> 21 | T85: =DAY(S83) -> 0 | U85: 日 | V85: =T85&U85 -> 0日
B86: =TEXT(B83,"d") -> 0 | E86: チェック4 | F86: 2 | G86: FALSE | V86: =T84&U84 -> 1月
A87: =IF(D87="大会議室(準備)","大会議室",(IF(D87="大会議室(本番)","大会議室",(IF(D87="ピアザホール(準備)","PH",IF(D87="ピアザホール(本番)","PH",IF(D87="練習室(一般)","練習室",IF(D87="練習室(学生)","練習室",D87)))))))) -> 0 | B87: =IF(利用申込書2!A34="", B83,利用申込書2!A34) -> 00:00:00 | C87: =IF(OR((WEEKDAY(B87,2)>=6),COUNTIF(DATA!$Q$3:$T$23,B87)),2,1) -> 2 | D87: =利用申込書2!F34 -> 0 | E87: チェック1 | F87: 2 | G87: FALSE | H87: =IF(AND($C$1=1,$C$2=1,C87=1),1,(IF(AND($C$1=1,$C$2=2,C87=1),2,(IF(AND($C$1=1,$C$2=3,C87=1),3,(IF(AND($C$1=2,$C$2=1,C87=1),4,(IF(AND($C$1=2,$C$2=2,C87=1),5,(IF(AND($C$1=2,$C$2=3,C87=1),6,(IF(AND($C$1=1,$C$2=1,C87=2),7,(IF(AND($C$1=1,$C$2=2,C87=2),8,(IF(AND($C$1=1,$C$2=3,C87=2),9,(IF(AND($C$1=2,$C$2=1,C87=2),10,(IF(AND($C$1=2,$C$2=2,C87=2),11,(IF(AND($C$1=2,$C$2=3,C87=2),12,""))))))))))))))))))))))) -> 7 | I87: =CHOOSE(H87,VLOOKUP(D87,DATA!$B$2:$N$25,2,FALSE),VLOOKUP(D87,DATA!$B$2:$N$25,3,FALSE),VLOOKUP(D87,DATA!$B$2:$N$25,4,FALSE),VLOOKUP(D87,DATA!$B$2:$N$25,5,FALSE),VLOOKUP(D87,DATA!$B$2:$N$25,6,FALSE),VLOOKUP(D87,DATA!$B$2:$N$25,7,FALSE),VLOOKUP(D87,DATA!$B$2:$N$25,8,FALSE),VLOOKUP(D87,DATA!$B$2:$N$25,9,FALSE),VLOOKUP(D87,DATA!$B$2:$N$25,10,FALSE),VLOOKUP(D87,DATA!$B$2:$N$25,11,FALSE),VLOOKUP(D87,DATA!$B$2:$N$25,12,FALSE),VLOOKUP(D87,DATA!$B$2:$N$25,13,FALSE),"")*(IF(F87=1,1,0)) -> 0 | J87: =CHOOSE(H87,VLOOKUP(D87,DATA!$B$27:$N$50,2,FALSE),VLOOKUP(D87,DATA!$B$27:$N$50,3,FALSE),VLOOKUP(D87,DATA!$B$27:$N$50,4,FALSE),VLOOKUP(D87,DATA!$B$27:$N$50,5,FALSE),VLOOKUP(D87,DATA!$B$27:$N$50,6,FALSE),VLOOKUP(D87,DATA!$B$27:$N$50,7,FALSE),VLOOKUP(D87,DATA!$B$27:$N$50,8,FALSE),VLOOKUP(D87,DATA!$B$27:$N$50,9,FALSE),VLOOKUP(D87,DATA!$B$27:$N$50,10,FALSE),VLOOKUP(D87,DATA!$B$27:$N$50,11,FALSE),VLOOKUP(D87,DATA!$B$27:$N$50,12,FALSE),VLOOKUP(D87,DATA!$B$27:$N$50,13,FALSE),"")*(IF(F88=1,1,0)) -> 0 | K87: =CHOOSE(H87,VLOOKUP(D87,DATA!$B$52:$N$75,2,FALSE),VLOOKUP(D87,DATA!$B$52:$N$75,3,FALSE),VLOOKUP(D87,DATA!$B$52:$N$75,4,FALSE),VLOOKUP(D87,DATA!$B$52:$N$77,5,FALSE),VLOOKUP(D87,DATA!$B$52:$N$75,6,FALSE),VLOOKUP(D87,DATA!$B$52:$N$75,7,FALSE),VLOOKUP(D87,DATA!$B$52:$N$75,8,FALSE),VLOOKUP(D87,DATA!$B$52:$N$75,9,FALSE),VLOOKUP(D87,DATA!$B$52:$N$75,10,FALSE),VLOOKUP(D87,DATA!$B$52:$N$75,11,FALSE),VLOOKUP(D87,DATA!$B$52:$N$75,12,FALSE),VLOOKUP(D87,DATA!$B$52:$N$75,13,FALSE),"")*(IF(F89=1,1,0)) -> 0 | L87: =CHOOSE(H87,VLOOKUP(D87,DATA!$B$77:$N$100,2,FALSE),VLOOKUP(D87,DATA!$B$77:$N$100,3,FALSE),VLOOKUP(D87,DATA!$B$77:$N$100,4,FALSE),VLOOKUP(D87,DATA!$B$77:$N$100,5,FALSE),VLOOKUP(D87,DATA!$B$77:$N$100,6,FALSE),VLOOKUP(D87,DATA!$B$77:$N$100,7,FALSE),VLOOKUP(D87,DATA!$B$77:$N$100,8,FALSE),VLOOKUP(D87,DATA!$B$77:$N$100,9,FALSE),VLOOKUP(D87,DATA!$B$77:$N$100,10,FALSE),VLOOKUP(D87,DATA!$B$77:$N$100,11,FALSE),VLOOKUP(D87,DATA!$B$77:$N$100,12,FALSE),VLOOKUP(D87,DATA!$B$77:$N$100,13,FALSE),"")*(IF(F90=1,1,0)) -> 0 | M87: =CHOOSE(H87,VLOOKUP(D87,DATA!$B$102:$N$125,2,FALSE),VLOOKUP(D87,DATA!$B$102:$N$125,3,FALSE),VLOOKUP(D87,DATA!$B$102:$N$125,4,FALSE),VLOOKUP(D87,DATA!$B$102:$N$125,5,FALSE),VLOOKUP(D87,DATA!$B$102:$N$125,6,FALSE),VLOOKUP(D87,DATA!$B$102:$N$125,7,FALSE),VLOOKUP(D87,DATA!$B$102:$N$125,8,FALSE),VLOOKUP(D87,DATA!$B$102:$N$125,9,FALSE),VLOOKUP(D87,DATA!$B$102:$N$125,10,FALSE),VLOOKUP(D87,DATA!$B$102:$N$125,11,FALSE),VLOOKUP(D87,DATA!$B$102:$N$125,12,FALSE),VLOOKUP(D87,DATA!$B$102:$N$125,13,FALSE),"")*(IF(F90=1,1,0)) -> 0 | N87: =利用申込書2!AG34 ->  | O87: =IF(AND(F88=1,F89=1,F90=1),"午前-午後-夜間",(IF(AND(F88=1,F89=1,F90=2),"午前-午後",(IF(AND(F88=2,F89=1,F90=1),"午後-夜間",(IF(AND(F88=1,F89=2,F90=2),"午前",(IF(AND(F88=2,F89=1,F90=2),"午後",IF(AND(F88=1,F89=2,F90=1),"午前・夜間","夜間")))))))))) -> 夜間 | Q87: =IF(I87>0,VLOOKUP(O87,$A$235:$B$238,2,FALSE),VLOOKUP(O87,$A$226:$B$232,2,FALSE)) -> 18:00-21:00 | R87: =IF(B87=B83,"",B87) ->  | S87: =B87 -> 00:00:00 | T87: =YEAR(S87) -> 1900 | U87: 年 | V87: =T87&U87&T88&U88 -> 1900年1月 | W87: =IF(AND(F88=1,F89=1,F90=1),"APN",(IF(AND(F88=1,F89=1,F90=2),"AP",(IF(AND(F88=2,F89=1,F90=1),"PN",(IF(AND(F88=1,F89=2,F90=2),"A",(IF(AND(F88=2,F89=1,F90=2),"P","N"))))))))) -> N | X87: =利用申込書1!$AV$50 ->  | Y87: =X88&W87&"・"&AB87 -> 0N・ | Z87: =T87&U87 -> 1900年 | AB87: =CLEAN(X87) -> 
B88: =TEXT(B87,"YYYY") -> 1900 | E88: チェック2 | F88: =IF(F87=1,1,IF(G88,1,2)) -> 2 | G88: FALSE | J88: =B90&$J$6 -> 0A | K88: =B90&$K$6 -> 0P | L88: =B90&$L$6 -> 0N | S88: =B87 -> 00:00:00 | T88: =MONTH(S87) -> 1 | U88: 月 | V88: =T88&U88&T89&U89 -> 1月0日 | W88: =D87 -> 0 | X88: =LEFT(W88,3) -> 0
B89: =TEXT(B87,"YYYYmm") -> 190001 | E89: チェック3 | F89: 2 | G89: FALSE | J89: =G88 -> FALSE | K89: =G89 -> FALSE | L89: =G90 -> FALSE | T89: =DAY(S87) -> 0 | U89: 日 | V89: =T89&U89 -> 0日
B90: =TEXT(B87,"d") -> 0 | E90: チェック4 | F90: 2 | G90: FALSE | V90: =T88&U88 -> 1月
A91: =IF(D91="大会議室(準備)","大会議室",(IF(D91="大会議室(本番)","大会議室",(IF(D91="ピアザホール(準備)","PH",IF(D91="ピアザホール(本番)","PH",IF(D91="練習室(一般)","練習室",IF(D91="練習室(学生)","練習室",D91)))))))) -> 0 | B91: =IF(利用申込書2!A36="",B87,利用申込書2!A36) -> 00:00:00 | C91: =IF(OR((WEEKDAY(B91,2)>=6),COUNTIF(DATA!$Q$3:$T$23,B91)),2,1) -> 2 | D91: =利用申込書2!F36 -> 0 | E91: チェック1 | F91: 2 | G91: FALSE | H91: =IF(AND($C$1=1,$C$2=1,C91=1),1,(IF(AND($C$1=1,$C$2=2,C91=1),2,(IF(AND($C$1=1,$C$2=3,C91=1),3,(IF(AND($C$1=2,$C$2=1,C91=1),4,(IF(AND($C$1=2,$C$2=2,C91=1),5,(IF(AND($C$1=2,$C$2=3,C91=1),6,(IF(AND($C$1=1,$C$2=1,C91=2),7,(IF(AND($C$1=1,$C$2=2,C91=2),8,(IF(AND($C$1=1,$C$2=3,C91=2),9,(IF(AND($C$1=2,$C$2=1,C91=2),10,(IF(AND($C$1=2,$C$2=2,C91=2),11,(IF(AND($C$1=2,$C$2=3,C91=2),12,""))))))))))))))))))))))) -> 7 | I91: =CHOOSE(H91,VLOOKUP(D91,DATA!$B$2:$N$25,2,FALSE),VLOOKUP(D91,DATA!$B$2:$N$25,3,FALSE),VLOOKUP(D91,DATA!$B$2:$N$25,4,FALSE),VLOOKUP(D91,DATA!$B$2:$N$25,5,FALSE),VLOOKUP(D91,DATA!$B$2:$N$25,6,FALSE),VLOOKUP(D91,DATA!$B$2:$N$25,7,FALSE),VLOOKUP(D91,DATA!$B$2:$N$25,8,FALSE),VLOOKUP(D91,DATA!$B$2:$N$25,9,FALSE),VLOOKUP(D91,DATA!$B$2:$N$25,10,FALSE),VLOOKUP(D91,DATA!$B$2:$N$25,11,FALSE),VLOOKUP(D91,DATA!$B$2:$N$25,12,FALSE),VLOOKUP(D91,DATA!$B$2:$N$25,13,FALSE),"")*(IF(F91=1,1,0)) -> 0 | J91: =CHOOSE(H91,VLOOKUP(D91,DATA!$B$27:$N$50,2,FALSE),VLOOKUP(D91,DATA!$B$27:$N$50,3,FALSE),VLOOKUP(D91,DATA!$B$27:$N$50,4,FALSE),VLOOKUP(D91,DATA!$B$27:$N$50,5,FALSE),VLOOKUP(D91,DATA!$B$27:$N$50,6,FALSE),VLOOKUP(D91,DATA!$B$27:$N$50,7,FALSE),VLOOKUP(D91,DATA!$B$27:$N$50,8,FALSE),VLOOKUP(D91,DATA!$B$27:$N$50,9,FALSE),VLOOKUP(D91,DATA!$B$27:$N$50,10,FALSE),VLOOKUP(D91,DATA!$B$27:$N$50,11,FALSE),VLOOKUP(D91,DATA!$B$27:$N$50,12,FALSE),VLOOKUP(D91,DATA!$B$27:$N$50,13,FALSE),"")*(IF(F92=1,1,0)) -> 0 | K91: =CHOOSE(H91,VLOOKUP(D91,DATA!$B$52:$N$75,2,FALSE),VLOOKUP(D91,DATA!$B$52:$N$75,3,FALSE),VLOOKUP(D91,DATA!$B$52:$N$75,4,FALSE),VLOOKUP(D91,DATA!$B$52:$N$77,5,FALSE),VLOOKUP(D91,DATA!$B$52:$N$75,6,FALSE),VLOOKUP(D91,DATA!$B$52:$N$75,7,FALSE),VLOOKUP(D91,DATA!$B$52:$N$75,8,FALSE),VLOOKUP(D91,DATA!$B$52:$N$75,9,FALSE),VLOOKUP(D91,DATA!$B$52:$N$75,10,FALSE),VLOOKUP(D91,DATA!$B$52:$N$75,11,FALSE),VLOOKUP(D91,DATA!$B$52:$N$75,12,FALSE),VLOOKUP(D91,DATA!$B$52:$N$75,13,FALSE),"")*(IF(F93=1,1,0)) -> 0 | L91: =CHOOSE(H91,VLOOKUP(D91,DATA!$B$77:$N$100,2,FALSE),VLOOKUP(D91,DATA!$B$77:$N$100,3,FALSE),VLOOKUP(D91,DATA!$B$77:$N$100,4,FALSE),VLOOKUP(D91,DATA!$B$77:$N$100,5,FALSE),VLOOKUP(D91,DATA!$B$77:$N$100,6,FALSE),VLOOKUP(D91,DATA!$B$77:$N$100,7,FALSE),VLOOKUP(D91,DATA!$B$77:$N$100,8,FALSE),VLOOKUP(D91,DATA!$B$77:$N$100,9,FALSE),VLOOKUP(D91,DATA!$B$77:$N$100,10,FALSE),VLOOKUP(D91,DATA!$B$77:$N$100,11,FALSE),VLOOKUP(D91,DATA!$B$77:$N$100,12,FALSE),VLOOKUP(D91,DATA!$B$77:$N$100,13,FALSE),"")*(IF(F94=1,1,0)) -> 0 | M91: =CHOOSE(H91,VLOOKUP(D91,DATA!$B$102:$N$125,2,FALSE),VLOOKUP(D91,DATA!$B$102:$N$125,3,FALSE),VLOOKUP(D91,DATA!$B$102:$N$125,4,FALSE),VLOOKUP(D91,DATA!$B$102:$N$125,5,FALSE),VLOOKUP(D91,DATA!$B$102:$N$125,6,FALSE),VLOOKUP(D91,DATA!$B$102:$N$125,7,FALSE),VLOOKUP(D91,DATA!$B$102:$N$125,8,FALSE),VLOOKUP(D91,DATA!$B$102:$N$125,9,FALSE),VLOOKUP(D91,DATA!$B$102:$N$125,10,FALSE),VLOOKUP(D91,DATA!$B$102:$N$125,11,FALSE),VLOOKUP(D91,DATA!$B$102:$N$125,12,FALSE),VLOOKUP(D91,DATA!$B$102:$N$125,13,FALSE),"")*(IF(F94=1,1,0)) -> 0 | N91: =利用申込書2!AG36 ->  | O91: =IF(AND(F92=1,F93=1,F94=1),"午前-午後-夜間",(IF(AND(F92=1,F93=1,F94=2),"午前-午後",(IF(AND(F92=2,F93=1,F94=1),"午後-夜間",(IF(AND(F92=1,F93=2,F94=2),"午前",(IF(AND(F92=2,F93=1,F94=2),"午後",IF(AND(F92=1,F93=2,F94=1),"午前・夜間","夜間")))))))))) -> 夜間 | Q91: =IF(I91>0,VLOOKUP(O91,$A$235:$B$238,2,FALSE),VLOOKUP(O91,$A$226:$B$232,2,FALSE)) -> 18:00-21:00 | R91: =IF(B91=B87,"",B91) ->  | S91: =B91 -> 00:00:00 | T91: =YEAR(S91) -> 1900 | U91: 年 | V91: =T91&U91&T92&U92 -> 1900年1月 | W91: =IF(AND(F92=1,F93=1,F94=1),"APN",(IF(AND(F92=1,F93=1,F94=2),"AP",(IF(AND(F92=2,F93=1,F94=1),"PN",(IF(AND(F92=1,F93=2,F94=2),"A",(IF(AND(F92=2,F93=1,F94=2),"P","N"))))))))) -> N | X91: =利用申込書1!$AV$50 ->  | Y91: =X92&W91&"・"&AB91 -> 0N・ | Z91: =T91&U91 -> 1900年 | AB91: =CLEAN(X91) -> 
B92: =TEXT(B91,"YYYY") -> 1900 | E92: チェック2 | F92: =IF(F91=1,1,IF(G92,1,2)) -> 2 | G92: FALSE | J92: =B94&$J$6 -> 0A | K92: =B94&$K$6 -> 0P | L92: =B94&$L$6 -> 0N | S92: =B91 -> 00:00:00 | T92: =MONTH(S91) -> 1 | U92: 月 | V92: =T92&U92&T93&U93 -> 1月0日 | W92: =D91 -> 0 | X92: =LEFT(W92,3) -> 0
B93: =TEXT(B91,"YYYYmm") -> 190001 | E93: チェック3 | F93: 2 | G93: FALSE | J93: =G92 -> FALSE | K93: =G93 -> FALSE | L93: =G94 -> FALSE | T93: =DAY(S91) -> 0 | U93: 日 | V93: =T93&U93 -> 0日
B94: =TEXT(B91,"d") -> 0 | E94: チェック4 | F94: 2 | G94: FALSE | V94: =T92&U92 -> 1月
A95: =IF(D95="大会議室(準備)","大会議室",(IF(D95="大会議室(本番)","大会議室",(IF(D95="ピアザホール(準備)","PH",IF(D95="ピアザホール(本番)","PH",IF(D95="練習室(一般)","練習室",IF(D95="練習室(学生)","練習室",D95)))))))) -> 0 | B95: =IF(利用申込書2!A38="", B91,利用申込書2!A38) -> 00:00:00 | C95: =IF(OR((WEEKDAY(B95,2)>=6),COUNTIF(DATA!$Q$3:$T$23,B95)),2,1) -> 2 | D95: =利用申込書2!F38 -> 0 | E95: チェック1 | F95: 2 | G95: FALSE | H95: =IF(AND($C$1=1,$C$2=1,C95=1),1,(IF(AND($C$1=1,$C$2=2,C95=1),2,(IF(AND($C$1=1,$C$2=3,C95=1),3,(IF(AND($C$1=2,$C$2=1,C95=1),4,(IF(AND($C$1=2,$C$2=2,C95=1),5,(IF(AND($C$1=2,$C$2=3,C95=1),6,(IF(AND($C$1=1,$C$2=1,C95=2),7,(IF(AND($C$1=1,$C$2=2,C95=2),8,(IF(AND($C$1=1,$C$2=3,C95=2),9,(IF(AND($C$1=2,$C$2=1,C95=2),10,(IF(AND($C$1=2,$C$2=2,C95=2),11,(IF(AND($C$1=2,$C$2=3,C95=2),12,""))))))))))))))))))))))) -> 7 | I95: =CHOOSE(H95,VLOOKUP(D95,DATA!$B$2:$N$25,2,FALSE),VLOOKUP(D95,DATA!$B$2:$N$25,3,FALSE),VLOOKUP(D95,DATA!$B$2:$N$25,4,FALSE),VLOOKUP(D95,DATA!$B$2:$N$25,5,FALSE),VLOOKUP(D95,DATA!$B$2:$N$25,6,FALSE),VLOOKUP(D95,DATA!$B$2:$N$25,7,FALSE),VLOOKUP(D95,DATA!$B$2:$N$25,8,FALSE),VLOOKUP(D95,DATA!$B$2:$N$25,9,FALSE),VLOOKUP(D95,DATA!$B$2:$N$25,10,FALSE),VLOOKUP(D95,DATA!$B$2:$N$25,11,FALSE),VLOOKUP(D95,DATA!$B$2:$N$25,12,FALSE),VLOOKUP(D95,DATA!$B$2:$N$25,13,FALSE),"")*(IF(F95=1,1,0)) -> 0 | J95: =CHOOSE(H95,VLOOKUP(D95,DATA!$B$27:$N$50,2,FALSE),VLOOKUP(D95,DATA!$B$27:$N$50,3,FALSE),VLOOKUP(D95,DATA!$B$27:$N$50,4,FALSE),VLOOKUP(D95,DATA!$B$27:$N$50,5,FALSE),VLOOKUP(D95,DATA!$B$27:$N$50,6,FALSE),VLOOKUP(D95,DATA!$B$27:$N$50,7,FALSE),VLOOKUP(D95,DATA!$B$27:$N$50,8,FALSE),VLOOKUP(D95,DATA!$B$27:$N$50,9,FALSE),VLOOKUP(D95,DATA!$B$27:$N$50,10,FALSE),VLOOKUP(D95,DATA!$B$27:$N$50,11,FALSE),VLOOKUP(D95,DATA!$B$27:$N$50,12,FALSE),VLOOKUP(D95,DATA!$B$27:$N$50,13,FALSE),"")*(IF(F96=1,1,0)) -> 0 | K95: =CHOOSE(H95,VLOOKUP(D95,DATA!$B$52:$N$75,2,FALSE),VLOOKUP(D95,DATA!$B$52:$N$75,3,FALSE),VLOOKUP(D95,DATA!$B$52:$N$75,4,FALSE),VLOOKUP(D95,DATA!$B$52:$N$77,5,FALSE),VLOOKUP(D95,DATA!$B$52:$N$75,6,FALSE),VLOOKUP(D95,DATA!$B$52:$N$75,7,FALSE),VLOOKUP(D95,DATA!$B$52:$N$75,8,FALSE),VLOOKUP(D95,DATA!$B$52:$N$75,9,FALSE),VLOOKUP(D95,DATA!$B$52:$N$75,10,FALSE),VLOOKUP(D95,DATA!$B$52:$N$75,11,FALSE),VLOOKUP(D95,DATA!$B$52:$N$75,12,FALSE),VLOOKUP(D95,DATA!$B$52:$N$75,13,FALSE),"")*(IF(F97=1,1,0)) -> 0 | L95: =CHOOSE(H95,VLOOKUP(D95,DATA!$B$77:$N$100,2,FALSE),VLOOKUP(D95,DATA!$B$77:$N$100,3,FALSE),VLOOKUP(D95,DATA!$B$77:$N$100,4,FALSE),VLOOKUP(D95,DATA!$B$77:$N$100,5,FALSE),VLOOKUP(D95,DATA!$B$77:$N$100,6,FALSE),VLOOKUP(D95,DATA!$B$77:$N$100,7,FALSE),VLOOKUP(D95,DATA!$B$77:$N$100,8,FALSE),VLOOKUP(D95,DATA!$B$77:$N$100,9,FALSE),VLOOKUP(D95,DATA!$B$77:$N$100,10,FALSE),VLOOKUP(D95,DATA!$B$77:$N$100,11,FALSE),VLOOKUP(D95,DATA!$B$77:$N$100,12,FALSE),VLOOKUP(D95,DATA!$B$77:$N$100,13,FALSE),"")*(IF(F98=1,1,0)) -> 0 | M95: =CHOOSE(H95,VLOOKUP(D95,DATA!$B$102:$N$125,2,FALSE),VLOOKUP(D95,DATA!$B$102:$N$125,3,FALSE),VLOOKUP(D95,DATA!$B$102:$N$125,4,FALSE),VLOOKUP(D95,DATA!$B$102:$N$125,5,FALSE),VLOOKUP(D95,DATA!$B$102:$N$125,6,FALSE),VLOOKUP(D95,DATA!$B$102:$N$125,7,FALSE),VLOOKUP(D95,DATA!$B$102:$N$125,8,FALSE),VLOOKUP(D95,DATA!$B$102:$N$125,9,FALSE),VLOOKUP(D95,DATA!$B$102:$N$125,10,FALSE),VLOOKUP(D95,DATA!$B$102:$N$125,11,FALSE),VLOOKUP(D95,DATA!$B$102:$N$125,12,FALSE),VLOOKUP(D95,DATA!$B$102:$N$125,13,FALSE),"")*(IF(F98=1,1,0)) -> 0 | N95: =利用申込書2!AG38 ->  | O95: =IF(AND(F96=1,F97=1,F98=1),"午前-午後-夜間",(IF(AND(F96=1,F97=1,F98=2),"午前-午後",(IF(AND(F96=2,F97=1,F98=1),"午後-夜間",(IF(AND(F96=1,F97=2,F98=2),"午前",(IF(AND(F96=2,F97=1,F98=2),"午後",IF(AND(F96=1,F97=2,F98=1),"午前・夜間","夜間")))))))))) -> 夜間 | Q95: =IF(I95>0,VLOOKUP(O95,$A$235:$B$238,2,FALSE),VLOOKUP(O95,$A$226:$B$232,2,FALSE)) -> 18:00-21:00 | R95: =IF(B95=B91,"",B95) ->  | S95: =B95 -> 00:00:00 | T95: =YEAR(S95) -> 1900 | U95: 年 | V95: =T95&U95&T96&U96 -> 1900年1月 | W95: =IF(AND(F96=1,F97=1,F98=1),"APN",(IF(AND(F96=1,F97=1,F98=2),"AP",(IF(AND(F96=2,F97=1,F98=1),"PN",(IF(AND(F96=1,F97=2,F98=2),"A",(IF(AND(F96=2,F97=1,F98=2),"P","N"))))))))) -> N | X95: =利用申込書1!$AV$50 ->  | Y95: =X96&W95&"・"&AB95 -> 0N・ | Z95: =T95&U95 -> 1900年 | AB95: =CLEAN(X95) -> 
B96: =TEXT(B95,"YYYY") -> 1900 | E96: チェック2 | F96: =IF(F95=1,1,IF(G96,1,2)) -> 2 | G96: FALSE | J96: =B98&$J$6 -> 0A | K96: =B98&$K$6 -> 0P | L96: =B98&$L$6 -> 0N | S96: =B95 -> 00:00:00 | T96: =MONTH(S95) -> 1 | U96: 月 | V96: =T96&U96&T97&U97 -> 1月0日 | W96: =D95 -> 0 | X96: =LEFT(W96,3) -> 0
B97: =TEXT(B95,"YYYYmm") -> 190001 | E97: チェック3 | F97: 2 | G97: FALSE | J97: =G96 -> FALSE | K97: =G97 -> FALSE | L97: =G98 -> FALSE | T97: =DAY(S95) -> 0 | U97: 日 | V97: =T97&U97 -> 0日
B98: =TEXT(B95,"d") -> 0 | E98: チェック4 | F98: 2 | G98: FALSE | V98: =T96&U96 -> 1月
A99: =IF(D99="大会議室(準備)","大会議室",(IF(D99="大会議室(本番)","大会議室",(IF(D99="ピアザホール(準備)","PH",IF(D99="ピアザホール(本番)","PH",IF(D99="練習室(一般)","練習室",IF(D99="練習室(学生)","練習室",D99)))))))) -> 0 | B99: =IF(利用申込書2!A40="", B95,利用申込書2!A40) -> 00:00:00 | C99: =IF(OR((WEEKDAY(B99,2)>=6),COUNTIF(DATA!$Q$3:$T$23,B99)),2,1) -> 2 | D99: =利用申込書2!F40 -> 0 | E99: チェック1 | F99: 2 | G99: FALSE | H99: =IF(AND($C$1=1,$C$2=1,C99=1),1,(IF(AND($C$1=1,$C$2=2,C99=1),2,(IF(AND($C$1=1,$C$2=3,C99=1),3,(IF(AND($C$1=2,$C$2=1,C99=1),4,(IF(AND($C$1=2,$C$2=2,C99=1),5,(IF(AND($C$1=2,$C$2=3,C99=1),6,(IF(AND($C$1=1,$C$2=1,C99=2),7,(IF(AND($C$1=1,$C$2=2,C99=2),8,(IF(AND($C$1=1,$C$2=3,C99=2),9,(IF(AND($C$1=2,$C$2=1,C99=2),10,(IF(AND($C$1=2,$C$2=2,C99=2),11,(IF(AND($C$1=2,$C$2=3,C99=2),12,""))))))))))))))))))))))) -> 7 | I99: =CHOOSE(H99,VLOOKUP(D99,DATA!$B$2:$N$25,2,FALSE),VLOOKUP(D99,DATA!$B$2:$N$25,3,FALSE),VLOOKUP(D99,DATA!$B$2:$N$25,4,FALSE),VLOOKUP(D99,DATA!$B$2:$N$25,5,FALSE),VLOOKUP(D99,DATA!$B$2:$N$25,6,FALSE),VLOOKUP(D99,DATA!$B$2:$N$25,7,FALSE),VLOOKUP(D99,DATA!$B$2:$N$25,8,FALSE),VLOOKUP(D99,DATA!$B$2:$N$25,9,FALSE),VLOOKUP(D99,DATA!$B$2:$N$25,10,FALSE),VLOOKUP(D99,DATA!$B$2:$N$25,11,FALSE),VLOOKUP(D99,DATA!$B$2:$N$25,12,FALSE),VLOOKUP(D99,DATA!$B$2:$N$25,13,FALSE),"")*(IF(F99=1,1,0)) -> 0 | J99: =CHOOSE(H99,VLOOKUP(D99,DATA!$B$27:$N$50,2,FALSE),VLOOKUP(D99,DATA!$B$27:$N$50,3,FALSE),VLOOKUP(D99,DATA!$B$27:$N$50,4,FALSE),VLOOKUP(D99,DATA!$B$27:$N$50,5,FALSE),VLOOKUP(D99,DATA!$B$27:$N$50,6,FALSE),VLOOKUP(D99,DATA!$B$27:$N$50,7,FALSE),VLOOKUP(D99,DATA!$B$27:$N$50,8,FALSE),VLOOKUP(D99,DATA!$B$27:$N$50,9,FALSE),VLOOKUP(D99,DATA!$B$27:$N$50,10,FALSE),VLOOKUP(D99,DATA!$B$27:$N$50,11,FALSE),VLOOKUP(D99,DATA!$B$27:$N$50,12,FALSE),VLOOKUP(D99,DATA!$B$27:$N$50,13,FALSE),"")*(IF(F100=1,1,0)) -> 0 | K99: =CHOOSE(H99,VLOOKUP(D99,DATA!$B$52:$N$75,2,FALSE),VLOOKUP(D99,DATA!$B$52:$N$75,3,FALSE),VLOOKUP(D99,DATA!$B$52:$N$75,4,FALSE),VLOOKUP(D99,DATA!$B$52:$N$77,5,FALSE),VLOOKUP(D99,DATA!$B$52:$N$75,6,FALSE),VLOOKUP(D99,DATA!$B$52:$N$75,7,FALSE),VLOOKUP(D99,DATA!$B$52:$N$75,8,FALSE),VLOOKUP(D99,DATA!$B$52:$N$75,9,FALSE),VLOOKUP(D99,DATA!$B$52:$N$75,10,FALSE),VLOOKUP(D99,DATA!$B$52:$N$75,11,FALSE),VLOOKUP(D99,DATA!$B$52:$N$75,12,FALSE),VLOOKUP(D99,DATA!$B$52:$N$75,13,FALSE),"")*(IF(F101=1,1,0)) -> 0 | L99: =CHOOSE(H99,VLOOKUP(D99,DATA!$B$77:$N$100,2,FALSE),VLOOKUP(D99,DATA!$B$77:$N$100,3,FALSE),VLOOKUP(D99,DATA!$B$77:$N$100,4,FALSE),VLOOKUP(D99,DATA!$B$77:$N$100,5,FALSE),VLOOKUP(D99,DATA!$B$77:$N$100,6,FALSE),VLOOKUP(D99,DATA!$B$77:$N$100,7,FALSE),VLOOKUP(D99,DATA!$B$77:$N$100,8,FALSE),VLOOKUP(D99,DATA!$B$77:$N$100,9,FALSE),VLOOKUP(D99,DATA!$B$77:$N$100,10,FALSE),VLOOKUP(D99,DATA!$B$77:$N$100,11,FALSE),VLOOKUP(D99,DATA!$B$77:$N$100,12,FALSE),VLOOKUP(D99,DATA!$B$77:$N$100,13,FALSE),"")*(IF(F102=1,1,0)) -> 0 | M99: =CHOOSE(H99,VLOOKUP(D99,DATA!$B$102:$N$125,2,FALSE),VLOOKUP(D99,DATA!$B$102:$N$125,3,FALSE),VLOOKUP(D99,DATA!$B$102:$N$125,4,FALSE),VLOOKUP(D99,DATA!$B$102:$N$125,5,FALSE),VLOOKUP(D99,DATA!$B$102:$N$125,6,FALSE),VLOOKUP(D99,DATA!$B$102:$N$125,7,FALSE),VLOOKUP(D99,DATA!$B$102:$N$125,8,FALSE),VLOOKUP(D99,DATA!$B$102:$N$125,9,FALSE),VLOOKUP(D99,DATA!$B$102:$N$125,10,FALSE),VLOOKUP(D99,DATA!$B$102:$N$125,11,FALSE),VLOOKUP(D99,DATA!$B$102:$N$125,12,FALSE),VLOOKUP(D99,DATA!$B$102:$N$125,13,FALSE),"")*(IF(F102=1,1,0)) -> 0 | N99: =利用申込書2!AG40 ->  | O99: =IF(AND(F100=1,F101=1,F102=1),"午前-午後-夜間",(IF(AND(F100=1,F101=1,F102=2),"午前-午後",(IF(AND(F100=2,F101=1,F102=1),"午後-夜間",(IF(AND(F100=1,F101=2,F102=2),"午前",(IF(AND(F100=2,F101=1,F102=2),"午後",IF(AND(F100=1,F101=2,F102=1),"午前・夜間","夜間")))))))))) -> 夜間 | Q99: =IF(I99>0,VLOOKUP(O99,$A$235:$B$238,2,FALSE),VLOOKUP(O99,$A$226:$B$232,2,FALSE)) -> 18:00-21:00 | R99: =IF(B99=B95,"",B99) ->  | S99: =B99 -> 00:00:00 | T99: =YEAR(S99) -> 1900 | U99: 年 | V99: =T99&U99&T100&U100 -> 1900年1月 | W99: =IF(AND(F100=1,F101=1,F102=1),"APN",(IF(AND(F100=1,F101=1,F102=2),"AP",(IF(AND(F100=2,F101=1,F102=1),"PN",(IF(AND(F100=1,F101=2,F102=2),"A",(IF(AND(F100=2,F101=1,F102=2),"P","N"))))))))) -> N | X99: =利用申込書1!$AV$50 ->  | Y99: =X100&W99&"・"&AB99 -> 0N・ | Z99: =T99&U99 -> 1900年 | AB99: =CLEAN(X99) -> 
B100: =TEXT(B99,"YYYY") -> 1900 | E100: チェック2 | F100: =IF(F99=1,1,IF(G100,1,2)) -> 2 | G100: FALSE | J100: =B102&$J$6 -> 0A | K100: =B102&$K$6 -> 0P | L100: =B102&$L$6 -> 0N | S100: =B99 -> 00:00:00 | T100: =MONTH(S99) -> 1 | U100: 月 | V100: =T100&U100&T101&U101 -> 1月0日 | W100: =D99 -> 0 | X100: =LEFT(W100,3) -> 0
B101: =TEXT(B99,"YYYYmm") -> 190001 | E101: チェック3 | F101: 2 | G101: FALSE | J101: =G100 -> FALSE | K101: =G101 -> FALSE | L101: =G102 -> FALSE | T101: =DAY(S99) -> 0 | U101: 日 | V101: =T101&U101 -> 0日
B102: =TEXT(B99,"d") -> 0 | E102: チェック4 | F102: 2 | G102: FALSE | V102: =T100&U100 -> 1月
A103: =IF(D103="大会議室(準備)","大会議室",(IF(D103="大会議室(本番)","大会議室",(IF(D103="ピアザホール(準備)","PH",IF(D103="ピアザホール(本番)","PH",IF(D103="練習室(一般)","練習室",IF(D103="練習室(学生)","練習室",D103)))))))) -> 0 | B103: =IF(利用申込書2!A42="",B99,利用申込書2!A42) -> 00:00:00 | C103: =IF(OR((WEEKDAY(B103,2)>=6),COUNTIF(DATA!$Q$3:$T$23,B103)),2,1) -> 2 | D103: =利用申込書2!F42 -> 0 | E103: チェック1 | F103: 2 | G103: FALSE | H103: =IF(AND($C$1=1,$C$2=1,C103=1),1,(IF(AND($C$1=1,$C$2=2,C103=1),2,(IF(AND($C$1=1,$C$2=3,C103=1),3,(IF(AND($C$1=2,$C$2=1,C103=1),4,(IF(AND($C$1=2,$C$2=2,C103=1),5,(IF(AND($C$1=2,$C$2=3,C103=1),6,(IF(AND($C$1=1,$C$2=1,C103=2),7,(IF(AND($C$1=1,$C$2=2,C103=2),8,(IF(AND($C$1=1,$C$2=3,C103=2),9,(IF(AND($C$1=2,$C$2=1,C103=2),10,(IF(AND($C$1=2,$C$2=2,C103=2),11,(IF(AND($C$1=2,$C$2=3,C103=2),12,""))))))))))))))))))))))) -> 7 | I103: =CHOOSE(H103,VLOOKUP(D103,DATA!$B$2:$N$25,2,FALSE),VLOOKUP(D103,DATA!$B$2:$N$25,3,FALSE),VLOOKUP(D103,DATA!$B$2:$N$25,4,FALSE),VLOOKUP(D103,DATA!$B$2:$N$25,5,FALSE),VLOOKUP(D103,DATA!$B$2:$N$25,6,FALSE),VLOOKUP(D103,DATA!$B$2:$N$25,7,FALSE),VLOOKUP(D103,DATA!$B$2:$N$25,8,FALSE),VLOOKUP(D103,DATA!$B$2:$N$25,9,FALSE),VLOOKUP(D103,DATA!$B$2:$N$25,10,FALSE),VLOOKUP(D103,DATA!$B$2:$N$25,11,FALSE),VLOOKUP(D103,DATA!$B$2:$N$25,12,FALSE),VLOOKUP(D103,DATA!$B$2:$N$25,13,FALSE),"")*(IF(F103=1,1,0)) -> 0 | J103: =CHOOSE(H103,VLOOKUP(D103,DATA!$B$27:$N$50,2,FALSE),VLOOKUP(D103,DATA!$B$27:$N$50,3,FALSE),VLOOKUP(D103,DATA!$B$27:$N$50,4,FALSE),VLOOKUP(D103,DATA!$B$27:$N$50,5,FALSE),VLOOKUP(D103,DATA!$B$27:$N$50,6,FALSE),VLOOKUP(D103,DATA!$B$27:$N$50,7,FALSE),VLOOKUP(D103,DATA!$B$27:$N$50,8,FALSE),VLOOKUP(D103,DATA!$B$27:$N$50,9,FALSE),VLOOKUP(D103,DATA!$B$27:$N$50,10,FALSE),VLOOKUP(D103,DATA!$B$27:$N$50,11,FALSE),VLOOKUP(D103,DATA!$B$27:$N$50,12,FALSE),VLOOKUP(D103,DATA!$B$27:$N$50,13,FALSE),"")*(IF(F104=1,1,0)) -> 0 | K103: =CHOOSE(H103,VLOOKUP(D103,DATA!$B$52:$N$75,2,FALSE),VLOOKUP(D103,DATA!$B$52:$N$75,3,FALSE),VLOOKUP(D103,DATA!$B$52:$N$75,4,FALSE),VLOOKUP(D103,DATA!$B$52:$N$77,5,FALSE),VLOOKUP(D103,DATA!$B$52:$N$75,6,FALSE),VLOOKUP(D103,DATA!$B$52:$N$75,7,FALSE),VLOOKUP(D103,DATA!$B$52:$N$75,8,FALSE),VLOOKUP(D103,DATA!$B$52:$N$75,9,FALSE),VLOOKUP(D103,DATA!$B$52:$N$75,10,FALSE),VLOOKUP(D103,DATA!$B$52:$N$75,11,FALSE),VLOOKUP(D103,DATA!$B$52:$N$75,12,FALSE),VLOOKUP(D103,DATA!$B$52:$N$75,13,FALSE),"")*(IF(F105=1,1,0)) -> 0 | L103: =CHOOSE(H103,VLOOKUP(D103,DATA!$B$77:$N$100,2,FALSE),VLOOKUP(D103,DATA!$B$77:$N$100,3,FALSE),VLOOKUP(D103,DATA!$B$77:$N$100,4,FALSE),VLOOKUP(D103,DATA!$B$77:$N$100,5,FALSE),VLOOKUP(D103,DATA!$B$77:$N$100,6,FALSE),VLOOKUP(D103,DATA!$B$77:$N$100,7,FALSE),VLOOKUP(D103,DATA!$B$77:$N$100,8,FALSE),VLOOKUP(D103,DATA!$B$77:$N$100,9,FALSE),VLOOKUP(D103,DATA!$B$77:$N$100,10,FALSE),VLOOKUP(D103,DATA!$B$77:$N$100,11,FALSE),VLOOKUP(D103,DATA!$B$77:$N$100,12,FALSE),VLOOKUP(D103,DATA!$B$77:$N$100,13,FALSE),"")*(IF(F106=1,1,0)) -> 0 | M103: =CHOOSE(H103,VLOOKUP(D103,DATA!$B$102:$N$125,2,FALSE),VLOOKUP(D103,DATA!$B$102:$N$125,3,FALSE),VLOOKUP(D103,DATA!$B$102:$N$125,4,FALSE),VLOOKUP(D103,DATA!$B$102:$N$125,5,FALSE),VLOOKUP(D103,DATA!$B$102:$N$125,6,FALSE),VLOOKUP(D103,DATA!$B$102:$N$125,7,FALSE),VLOOKUP(D103,DATA!$B$102:$N$125,8,FALSE),VLOOKUP(D103,DATA!$B$102:$N$125,9,FALSE),VLOOKUP(D103,DATA!$B$102:$N$125,10,FALSE),VLOOKUP(D103,DATA!$B$102:$N$125,11,FALSE),VLOOKUP(D103,DATA!$B$102:$N$125,12,FALSE),VLOOKUP(D103,DATA!$B$102:$N$125,13,FALSE),"")*(IF(F106=1,1,0)) -> 0 | N103: =利用申込書2!AG42 ->  | O103: =IF(AND(F104=1,F105=1,F106=1),"午前-午後-夜間",(IF(AND(F104=1,F105=1,F106=2),"午前-午後",(IF(AND(F104=2,F105=1,F106=1),"午後-夜間",(IF(AND(F104=1,F105=2,F106=2),"午前",(IF(AND(F104=2,F105=1,F106=2),"午後",IF(AND(F104=1,F105=2,F106=1),"午前・夜間","夜間")))))))))) -> 夜間 | Q103: =IF(I103>0,VLOOKUP(O103,$A$235:$B$238,2,FALSE),VLOOKUP(O103,$A$226:$B$232,2,FALSE)) -> 18:00-21:00 | R103: =IF(B103=B99,"",B103) ->  | S103: =B103 -> 00:00:00 | T103: =YEAR(S103) -> 1900 | U103: 年 | V103: =T103&U103&T104&U104 -> 1900年1月 | W103: =IF(AND(F104=1,F105=1,F106=1),"APN",(IF(AND(F104=1,F105=1,F106=2),"AP",(IF(AND(F104=2,F105=1,F106=1),"PN",(IF(AND(F104=1,F105=2,F106=2),"A",(IF(AND(F104=2,F105=1,F106=2),"P","N"))))))))) -> N | X103: =利用申込書1!$AV$50 ->  | Y103: =X104&W103&"・"&AB103 -> 0N・ | Z103: =T103&U103 -> 1900年 | AB103: =CLEAN(X103) -> 
B104: =TEXT(B103,"YYYY") -> 1900 | E104: チェック2 | F104: =IF(F103=1,1,IF(G104,1,2)) -> 2 | G104: FALSE | J104: =B106&$J$6 -> 0A | K104: =B106&$K$6 -> 0P | L104: =B106&$L$6 -> 0N | S104: =B103 -> 00:00:00 | T104: =MONTH(S103) -> 1 | U104: 月 | V104: =T104&U104&T105&U105 -> 1月0日 | W104: =D103 -> 0 | X104: =LEFT(W104,3) -> 0
B105: =TEXT(B103,"YYYYmm") -> 190001 | E105: チェック3 | F105: =IF(G105,1,2) -> 2 | G105: FALSE | J105: =G104 -> FALSE | K105: =G105 -> FALSE | L105: =G106 -> FALSE | T105: =DAY(S103) -> 0 | U105: 日 | V105: =T105&U105 -> 0日
B106: =TEXT(B103,"d") -> 0 | E106: チェック4 | F106: 2 | G106: FALSE | V106: =T104&U104 -> 1月
A107: =IF(D107="大会議室(準備)","大会議室",(IF(D107="大会議室(本番)","大会議室",(IF(D107="ピアザホール(準備)","PH",IF(D107="ピアザホール(本番)","PH",IF(D107="練習室(一般)","練習室",IF(D107="練習室(学生)","練習室",D107)))))))) -> 0 | B107: =IF(利用申込書2!A44="", B103,利用申込書2!A44) -> 00:00:00 | C107: =IF(OR((WEEKDAY(B107,2)>=6),COUNTIF(DATA!$Q$3:$T$23,B107)),2,1) -> 2 | D107: =利用申込書2!F44 -> 0 | E107: チェック1 | F107: 2 | G107: FALSE | H107: =IF(AND($C$1=1,$C$2=1,C107=1),1,(IF(AND($C$1=1,$C$2=2,C107=1),2,(IF(AND($C$1=1,$C$2=3,C107=1),3,(IF(AND($C$1=2,$C$2=1,C107=1),4,(IF(AND($C$1=2,$C$2=2,C107=1),5,(IF(AND($C$1=2,$C$2=3,C107=1),6,(IF(AND($C$1=1,$C$2=1,C107=2),7,(IF(AND($C$1=1,$C$2=2,C107=2),8,(IF(AND($C$1=1,$C$2=3,C107=2),9,(IF(AND($C$1=2,$C$2=1,C107=2),10,(IF(AND($C$1=2,$C$2=2,C107=2),11,(IF(AND($C$1=2,$C$2=3,C107=2),12,""))))))))))))))))))))))) -> 7 | I107: =CHOOSE(H107,VLOOKUP(D107,DATA!$B$2:$N$25,2,FALSE),VLOOKUP(D107,DATA!$B$2:$N$25,3,FALSE),VLOOKUP(D107,DATA!$B$2:$N$25,4,FALSE),VLOOKUP(D107,DATA!$B$2:$N$25,5,FALSE),VLOOKUP(D107,DATA!$B$2:$N$25,6,FALSE),VLOOKUP(D107,DATA!$B$2:$N$25,7,FALSE),VLOOKUP(D107,DATA!$B$2:$N$25,8,FALSE),VLOOKUP(D107,DATA!$B$2:$N$25,9,FALSE),VLOOKUP(D107,DATA!$B$2:$N$25,10,FALSE),VLOOKUP(D107,DATA!$B$2:$N$25,11,FALSE),VLOOKUP(D107,DATA!$B$2:$N$25,12,FALSE),VLOOKUP(D107,DATA!$B$2:$N$25,13,FALSE),"")*(IF(F107=1,1,0)) -> 0 | J107: =CHOOSE(H107,VLOOKUP(D107,DATA!$B$27:$N$50,2,FALSE),VLOOKUP(D107,DATA!$B$27:$N$50,3,FALSE),VLOOKUP(D107,DATA!$B$27:$N$50,4,FALSE),VLOOKUP(D107,DATA!$B$27:$N$50,5,FALSE),VLOOKUP(D107,DATA!$B$27:$N$50,6,FALSE),VLOOKUP(D107,DATA!$B$27:$N$50,7,FALSE),VLOOKUP(D107,DATA!$B$27:$N$50,8,FALSE),VLOOKUP(D107,DATA!$B$27:$N$50,9,FALSE),VLOOKUP(D107,DATA!$B$27:$N$50,10,FALSE),VLOOKUP(D107,DATA!$B$27:$N$50,11,FALSE),VLOOKUP(D107,DATA!$B$27:$N$50,12,FALSE),VLOOKUP(D107,DATA!$B$27:$N$50,13,FALSE),"")*(IF(F108=1,1,0)) -> 0 | K107: =CHOOSE(H107,VLOOKUP(D107,DATA!$B$52:$N$75,2,FALSE),VLOOKUP(D107,DATA!$B$52:$N$75,3,FALSE),VLOOKUP(D107,DATA!$B$52:$N$75,4,FALSE),VLOOKUP(D107,DATA!$B$52:$N$77,5,FALSE),VLOOKUP(D107,DATA!$B$52:$N$75,6,FALSE),VLOOKUP(D107,DATA!$B$52:$N$75,7,FALSE),VLOOKUP(D107,DATA!$B$52:$N$75,8,FALSE),VLOOKUP(D107,DATA!$B$52:$N$75,9,FALSE),VLOOKUP(D107,DATA!$B$52:$N$75,10,FALSE),VLOOKUP(D107,DATA!$B$52:$N$75,11,FALSE),VLOOKUP(D107,DATA!$B$52:$N$75,12,FALSE),VLOOKUP(D107,DATA!$B$52:$N$75,13,FALSE),"")*(IF(F109=1,1,0)) -> 0 | L107: =CHOOSE(H107,VLOOKUP(D107,DATA!$B$77:$N$100,2,FALSE),VLOOKUP(D107,DATA!$B$77:$N$100,3,FALSE),VLOOKUP(D107,DATA!$B$77:$N$100,4,FALSE),VLOOKUP(D107,DATA!$B$77:$N$100,5,FALSE),VLOOKUP(D107,DATA!$B$77:$N$100,6,FALSE),VLOOKUP(D107,DATA!$B$77:$N$100,7,FALSE),VLOOKUP(D107,DATA!$B$77:$N$100,8,FALSE),VLOOKUP(D107,DATA!$B$77:$N$100,9,FALSE),VLOOKUP(D107,DATA!$B$77:$N$100,10,FALSE),VLOOKUP(D107,DATA!$B$77:$N$100,11,FALSE),VLOOKUP(D107,DATA!$B$77:$N$100,12,FALSE),VLOOKUP(D107,DATA!$B$77:$N$100,13,FALSE),"")*(IF(F110=1,1,0)) -> 0 | M107: =CHOOSE(H107,VLOOKUP(D107,DATA!$B$102:$N$125,2,FALSE),VLOOKUP(D107,DATA!$B$102:$N$125,3,FALSE),VLOOKUP(D107,DATA!$B$102:$N$125,4,FALSE),VLOOKUP(D107,DATA!$B$102:$N$125,5,FALSE),VLOOKUP(D107,DATA!$B$102:$N$125,6,FALSE),VLOOKUP(D107,DATA!$B$102:$N$125,7,FALSE),VLOOKUP(D107,DATA!$B$102:$N$125,8,FALSE),VLOOKUP(D107,DATA!$B$102:$N$125,9,FALSE),VLOOKUP(D107,DATA!$B$102:$N$125,10,FALSE),VLOOKUP(D107,DATA!$B$102:$N$125,11,FALSE),VLOOKUP(D107,DATA!$B$102:$N$125,12,FALSE),VLOOKUP(D107,DATA!$B$102:$N$125,13,FALSE),"")*(IF(F110=1,1,0)) -> 0 | N107: =利用申込書2!AG44 ->  | O107: =IF(AND(F108=1,F109=1,F110=1),"午前-午後-夜間",(IF(AND(F108=1,F109=1,F110=2),"午前-午後",(IF(AND(F108=2,F109=1,F110=1),"午後-夜間",(IF(AND(F108=1,F109=2,F110=2),"午前",(IF(AND(F108=2,F109=1,F110=2),"午後",IF(AND(F108=1,F109=2,F110=1),"午前・夜間","夜間")))))))))) -> 夜間 | Q107: =IF(I107>0,VLOOKUP(O107,$A$235:$B$238,2,FALSE),VLOOKUP(O107,$A$226:$B$232,2,FALSE)) -> 18:00-21:00 | R107: =IF(B107=B103,"",B107) ->  | S107: =B107 -> 00:00:00 | T107: =YEAR(S107) -> 1900 | U107: 年 | V107: =T107&U107&T108&U108 -> 1900年1月 | W107: =IF(AND(F108=1,F109=1,F110=1),"APN",(IF(AND(F108=1,F109=1,F110=2),"AP",(IF(AND(F108=2,F109=1,F110=1),"PN",(IF(AND(F108=1,F109=2,F110=2),"A",(IF(AND(F108=2,F109=1,F110=2),"P","N"))))))))) -> N | X107: =利用申込書1!$AV$50 ->  | Y107: =X108&W107&"・"&AB107 -> 0N・ | Z107: =T107&U107 -> 1900年 | AB107: =CLEAN(X107) -> 
B108: =TEXT(B107,"YYYY") -> 1900 | E108: チェック2 | F108: =IF(F107=1,1,IF(G108,1,2)) -> 2 | G108: FALSE | J108: =B110&$J$6 -> 0A | K108: =B110&$K$6 -> 0P | L108: =B110&$L$6 -> 0N | S108: =B107 -> 00:00:00 | T108: =MONTH(S107) -> 1 | U108: 月 | V108: =T108&U108&T109&U109 -> 1月0日 | W108: =D107 -> 0 | X108: =LEFT(W108,3) -> 0
B109: =TEXT(B107,"YYYYmm") -> 190001 | E109: チェック3 | F109: 2 | G109: FALSE | J109: =G108 -> FALSE | K109: =G109 -> FALSE | L109: =G110 -> FALSE | T109: =DAY(S107) -> 0 | U109: 日 | V109: =T109&U109 -> 0日
B110: =TEXT(B107,"d") -> 0 | E110: チェック4 | F110: 2 | G110: FALSE | V110: =T108&U108 -> 1月
A111: =IF(D111="大会議室(準備)","大会議室",(IF(D111="大会議室(本番)","大会議室",(IF(D111="ピアザホール(準備)","PH",IF(D111="ピアザホール(本番)","PH",IF(D111="練習室(一般)","練習室",IF(D111="練習室(学生)","練習室",D111)))))))) -> 0 | B111: =IF(利用申込書2!A46="", B107,利用申込書2!A46) -> 00:00:00 | C111: =IF(OR((WEEKDAY(B111,2)>=6),COUNTIF(DATA!$Q$3:$T$23,B111)),2,1) -> 2 | D111: =利用申込書2!F46 -> 0 | E111: チェック1 | F111: 2 | G111: FALSE | H111: =IF(AND($C$1=1,$C$2=1,C111=1),1,(IF(AND($C$1=1,$C$2=2,C111=1),2,(IF(AND($C$1=1,$C$2=3,C111=1),3,(IF(AND($C$1=2,$C$2=1,C111=1),4,(IF(AND($C$1=2,$C$2=2,C111=1),5,(IF(AND($C$1=2,$C$2=3,C111=1),6,(IF(AND($C$1=1,$C$2=1,C111=2),7,(IF(AND($C$1=1,$C$2=2,C111=2),8,(IF(AND($C$1=1,$C$2=3,C111=2),9,(IF(AND($C$1=2,$C$2=1,C111=2),10,(IF(AND($C$1=2,$C$2=2,C111=2),11,(IF(AND($C$1=2,$C$2=3,C111=2),12,""))))))))))))))))))))))) -> 7 | I111: =CHOOSE(H111,VLOOKUP(D111,DATA!$B$2:$N$25,2,FALSE),VLOOKUP(D111,DATA!$B$2:$N$25,3,FALSE),VLOOKUP(D111,DATA!$B$2:$N$25,4,FALSE),VLOOKUP(D111,DATA!$B$2:$N$25,5,FALSE),VLOOKUP(D111,DATA!$B$2:$N$25,6,FALSE),VLOOKUP(D111,DATA!$B$2:$N$25,7,FALSE),VLOOKUP(D111,DATA!$B$2:$N$25,8,FALSE),VLOOKUP(D111,DATA!$B$2:$N$25,9,FALSE),VLOOKUP(D111,DATA!$B$2:$N$25,10,FALSE),VLOOKUP(D111,DATA!$B$2:$N$25,11,FALSE),VLOOKUP(D111,DATA!$B$2:$N$25,12,FALSE),VLOOKUP(D111,DATA!$B$2:$N$25,13,FALSE),"")*(IF(F111=1,1,0)) -> 0 | J111: =CHOOSE(H111,VLOOKUP(D111,DATA!$B$27:$N$50,2,FALSE),VLOOKUP(D111,DATA!$B$27:$N$50,3,FALSE),VLOOKUP(D111,DATA!$B$27:$N$50,4,FALSE),VLOOKUP(D111,DATA!$B$27:$N$50,5,FALSE),VLOOKUP(D111,DATA!$B$27:$N$50,6,FALSE),VLOOKUP(D111,DATA!$B$27:$N$50,7,FALSE),VLOOKUP(D111,DATA!$B$27:$N$50,8,FALSE),VLOOKUP(D111,DATA!$B$27:$N$50,9,FALSE),VLOOKUP(D111,DATA!$B$27:$N$50,10,FALSE),VLOOKUP(D111,DATA!$B$27:$N$50,11,FALSE),VLOOKUP(D111,DATA!$B$27:$N$50,12,FALSE),VLOOKUP(D111,DATA!$B$27:$N$50,13,FALSE),"")*(IF(F112=1,1,0)) -> 0 | K111: =CHOOSE(H111,VLOOKUP(D111,DATA!$B$52:$N$75,2,FALSE),VLOOKUP(D111,DATA!$B$52:$N$75,3,FALSE),VLOOKUP(D111,DATA!$B$52:$N$75,4,FALSE),VLOOKUP(D111,DATA!$B$52:$N$77,5,FALSE),VLOOKUP(D111,DATA!$B$52:$N$75,6,FALSE),VLOOKUP(D111,DATA!$B$52:$N$75,7,FALSE),VLOOKUP(D111,DATA!$B$52:$N$75,8,FALSE),VLOOKUP(D111,DATA!$B$52:$N$75,9,FALSE),VLOOKUP(D111,DATA!$B$52:$N$75,10,FALSE),VLOOKUP(D111,DATA!$B$52:$N$75,11,FALSE),VLOOKUP(D111,DATA!$B$52:$N$75,12,FALSE),VLOOKUP(D111,DATA!$B$52:$N$75,13,FALSE),"")*(IF(F113=1,1,0)) -> 0 | L111: =CHOOSE(H111,VLOOKUP(D111,DATA!$B$77:$N$100,2,FALSE),VLOOKUP(D111,DATA!$B$77:$N$100,3,FALSE),VLOOKUP(D111,DATA!$B$77:$N$100,4,FALSE),VLOOKUP(D111,DATA!$B$77:$N$100,5,FALSE),VLOOKUP(D111,DATA!$B$77:$N$100,6,FALSE),VLOOKUP(D111,DATA!$B$77:$N$100,7,FALSE),VLOOKUP(D111,DATA!$B$77:$N$100,8,FALSE),VLOOKUP(D111,DATA!$B$77:$N$100,9,FALSE),VLOOKUP(D111,DATA!$B$77:$N$100,10,FALSE),VLOOKUP(D111,DATA!$B$77:$N$100,11,FALSE),VLOOKUP(D111,DATA!$B$77:$N$100,12,FALSE),VLOOKUP(D111,DATA!$B$77:$N$100,13,FALSE),"")*(IF(F114=1,1,0)) -> 0 | M111: =CHOOSE(H111,VLOOKUP(D111,DATA!$B$102:$N$125,2,FALSE),VLOOKUP(D111,DATA!$B$102:$N$125,3,FALSE),VLOOKUP(D111,DATA!$B$102:$N$125,4,FALSE),VLOOKUP(D111,DATA!$B$102:$N$125,5,FALSE),VLOOKUP(D111,DATA!$B$102:$N$125,6,FALSE),VLOOKUP(D111,DATA!$B$102:$N$125,7,FALSE),VLOOKUP(D111,DATA!$B$102:$N$125,8,FALSE),VLOOKUP(D111,DATA!$B$102:$N$125,9,FALSE),VLOOKUP(D111,DATA!$B$102:$N$125,10,FALSE),VLOOKUP(D111,DATA!$B$102:$N$125,11,FALSE),VLOOKUP(D111,DATA!$B$102:$N$125,12,FALSE),VLOOKUP(D111,DATA!$B$102:$N$125,13,FALSE),"")*(IF(F114=1,1,0)) -> 0 | N111: =利用申込書2!AG46 ->  | O111: =IF(AND(F112=1,F113=1,F114=1),"午前-午後-夜間",(IF(AND(F112=1,F113=1,F114=2),"午前-午後",(IF(AND(F112=2,F113=1,F114=1),"午後-夜間",(IF(AND(F112=1,F113=2,F114=2),"午前",(IF(AND(F112=2,F113=1,F114=2),"午後",IF(AND(F112=1,F113=2,F114=1),"午前・夜間","夜間")))))))))) -> 夜間 | Q111: =IF(I111>0,VLOOKUP(O111,$A$235:$B$238,2,FALSE),VLOOKUP(O111,$A$226:$B$232,2,FALSE)) -> 18:00-21:00 | R111: =IF(B111=B107,"",B111) ->  | S111: =B111 -> 00:00:00 | T111: =YEAR(S111) -> 1900 | U111: 年 | V111: =T111&U111&T112&U112 -> 1900年1月 | W111: =IF(AND(F112=1,F113=1,F114=1),"APN",(IF(AND(F112=1,F113=1,F114=2),"AP",(IF(AND(F112=2,F113=1,F114=1),"PN",(IF(AND(F112=1,F113=2,F114=2),"A",(IF(AND(F112=2,F113=1,F114=2),"P","N"))))))))) -> N | X111: =利用申込書1!$AV$50 ->  | Y111: =X112&W111&"・"&AB111 -> 0N・ | Z111: =T111&U111 -> 1900年 | AB111: =CLEAN(X111) -> 
B112: =TEXT(B111,"YYYY") -> 1900 | E112: チェック2 | F112: =IF(F111=1,1,IF(G112,1,2)) -> 2 | G112: FALSE | J112: =B114&$J$6 -> 0A | K112: =B114&$K$6 -> 0P | L112: =B114&$L$6 -> 0N | S112: =B111 -> 00:00:00 | T112: =MONTH(S111) -> 1 | U112: 月 | V112: =T112&U112&T113&U113 -> 1月0日 | W112: =D111 -> 0 | X112: =LEFT(W112,3) -> 0
B113: =TEXT(B111,"YYYYmm") -> 190001 | E113: チェック3 | F113: 2 | G113: FALSE | J113: =G112 -> FALSE | K113: =G113 -> FALSE | L113: =G114 -> FALSE | T113: =DAY(S111) -> 0 | U113: 日 | V113: =T113&U113 -> 0日
B114: =TEXT(B111,"d") -> 0 | E114: チェック4 | F114: 2 | G114: FALSE | V114: =T112&U112 -> 1月
A115: =IF(D115="大会議室(準備)","大会議室",(IF(D115="大会議室(本番)","大会議室",(IF(D115="ピアザホール(準備)","PH",IF(D115="ピアザホール(本番)","PH",IF(D115="練習室(一般)","練習室",IF(D115="練習室(学生)","練習室",D115)))))))) -> 0 | B115: =IF(利用申込書2!A48="", B111,利用申込書2!A48) -> 00:00:00 | C115: =IF(OR((WEEKDAY(B115,2)>=6),COUNTIF(DATA!$Q$3:$T$23,B115)),2,1) -> 2 | D115: =利用申込書2!F48 -> 0 | E115: チェック1 | F115: 2 | G115: FALSE | H115: =IF(AND($C$1=1,$C$2=1,C115=1),1,(IF(AND($C$1=1,$C$2=2,C115=1),2,(IF(AND($C$1=1,$C$2=3,C115=1),3,(IF(AND($C$1=2,$C$2=1,C115=1),4,(IF(AND($C$1=2,$C$2=2,C115=1),5,(IF(AND($C$1=2,$C$2=3,C115=1),6,(IF(AND($C$1=1,$C$2=1,C115=2),7,(IF(AND($C$1=1,$C$2=2,C115=2),8,(IF(AND($C$1=1,$C$2=3,C115=2),9,(IF(AND($C$1=2,$C$2=1,C115=2),10,(IF(AND($C$1=2,$C$2=2,C115=2),11,(IF(AND($C$1=2,$C$2=3,C115=2),12,""))))))))))))))))))))))) -> 7 | I115: =CHOOSE(H115,VLOOKUP(D115,DATA!$B$2:$N$25,2,FALSE),VLOOKUP(D115,DATA!$B$2:$N$25,3,FALSE),VLOOKUP(D115,DATA!$B$2:$N$25,4,FALSE),VLOOKUP(D115,DATA!$B$2:$N$25,5,FALSE),VLOOKUP(D115,DATA!$B$2:$N$25,6,FALSE),VLOOKUP(D115,DATA!$B$2:$N$25,7,FALSE),VLOOKUP(D115,DATA!$B$2:$N$25,8,FALSE),VLOOKUP(D115,DATA!$B$2:$N$25,9,FALSE),VLOOKUP(D115,DATA!$B$2:$N$25,10,FALSE),VLOOKUP(D115,DATA!$B$2:$N$25,11,FALSE),VLOOKUP(D115,DATA!$B$2:$N$25,12,FALSE),VLOOKUP(D115,DATA!$B$2:$N$25,13,FALSE),"")*(IF(F115=1,1,0)) -> 0 | J115: =CHOOSE(H115,VLOOKUP(D115,DATA!$B$27:$N$50,2,FALSE),VLOOKUP(D115,DATA!$B$27:$N$50,3,FALSE),VLOOKUP(D115,DATA!$B$27:$N$50,4,FALSE),VLOOKUP(D115,DATA!$B$27:$N$50,5,FALSE),VLOOKUP(D115,DATA!$B$27:$N$50,6,FALSE),VLOOKUP(D115,DATA!$B$27:$N$50,7,FALSE),VLOOKUP(D115,DATA!$B$27:$N$50,8,FALSE),VLOOKUP(D115,DATA!$B$27:$N$50,9,FALSE),VLOOKUP(D115,DATA!$B$27:$N$50,10,FALSE),VLOOKUP(D115,DATA!$B$27:$N$50,11,FALSE),VLOOKUP(D115,DATA!$B$27:$N$50,12,FALSE),VLOOKUP(D115,DATA!$B$27:$N$50,13,FALSE),"")*(IF(F116=1,1,0)) -> 0 | K115: =CHOOSE(H115,VLOOKUP(D115,DATA!$B$52:$N$75,2,FALSE),VLOOKUP(D115,DATA!$B$52:$N$75,3,FALSE),VLOOKUP(D115,DATA!$B$52:$N$75,4,FALSE),VLOOKUP(D115,DATA!$B$52:$N$77,5,FALSE),VLOOKUP(D115,DATA!$B$52:$N$75,6,FALSE),VLOOKUP(D115,DATA!$B$52:$N$75,7,FALSE),VLOOKUP(D115,DATA!$B$52:$N$75,8,FALSE),VLOOKUP(D115,DATA!$B$52:$N$75,9,FALSE),VLOOKUP(D115,DATA!$B$52:$N$75,10,FALSE),VLOOKUP(D115,DATA!$B$52:$N$75,11,FALSE),VLOOKUP(D115,DATA!$B$52:$N$75,12,FALSE),VLOOKUP(D115,DATA!$B$52:$N$75,13,FALSE),"")*(IF(F117=1,1,0)) -> 0 | L115: =CHOOSE(H115,VLOOKUP(D115,DATA!$B$77:$N$100,2,FALSE),VLOOKUP(D115,DATA!$B$77:$N$100,3,FALSE),VLOOKUP(D115,DATA!$B$77:$N$100,4,FALSE),VLOOKUP(D115,DATA!$B$77:$N$100,5,FALSE),VLOOKUP(D115,DATA!$B$77:$N$100,6,FALSE),VLOOKUP(D115,DATA!$B$77:$N$100,7,FALSE),VLOOKUP(D115,DATA!$B$77:$N$100,8,FALSE),VLOOKUP(D115,DATA!$B$77:$N$100,9,FALSE),VLOOKUP(D115,DATA!$B$77:$N$100,10,FALSE),VLOOKUP(D115,DATA!$B$77:$N$100,11,FALSE),VLOOKUP(D115,DATA!$B$77:$N$100,12,FALSE),VLOOKUP(D115,DATA!$B$77:$N$100,13,FALSE),"")*(IF(F118=1,1,0)) -> 0 | M115: =CHOOSE(H115,VLOOKUP(D115,DATA!$B$102:$N$125,2,FALSE),VLOOKUP(D115,DATA!$B$102:$N$125,3,FALSE),VLOOKUP(D115,DATA!$B$102:$N$125,4,FALSE),VLOOKUP(D115,DATA!$B$102:$N$125,5,FALSE),VLOOKUP(D115,DATA!$B$102:$N$125,6,FALSE),VLOOKUP(D115,DATA!$B$102:$N$125,7,FALSE),VLOOKUP(D115,DATA!$B$102:$N$125,8,FALSE),VLOOKUP(D115,DATA!$B$102:$N$125,9,FALSE),VLOOKUP(D115,DATA!$B$102:$N$125,10,FALSE),VLOOKUP(D115,DATA!$B$102:$N$125,11,FALSE),VLOOKUP(D115,DATA!$B$102:$N$125,12,FALSE),VLOOKUP(D115,DATA!$B$102:$N$125,13,FALSE),"")*(IF(F118=1,1,0)) -> 0 | N115: =利用申込書2!AG48 ->  | O115: =IF(AND(F116=1,F117=1,F118=1),"午前-午後-夜間",(IF(AND(F116=1,F117=1,F118=2),"午前-午後",(IF(AND(F116=2,F117=1,F118=1),"午後-夜間",(IF(AND(F116=1,F117=2,F118=2),"午前",(IF(AND(F116=2,F117=1,F118=2),"午後",IF(AND(F116=1,F117=2,F118=1),"午前・夜間","夜間")))))))))) -> 夜間 | Q115: =IF(I115>0,VLOOKUP(O115,$A$235:$B$238,2,FALSE),VLOOKUP(O115,$A$226:$B$232,2,FALSE)) -> 18:00-21:00 | R115: =IF(B115=B111,"",B115) ->  | S115: =B115 -> 00:00:00 | T115: =YEAR(S115) -> 1900 | U115: 年 | V115: =T115&U115&T116&U116 -> 1900年1月 | W115: =IF(AND(F116=1,F117=1,F118=1),"APN",(IF(AND(F116=1,F117=1,F118=2),"AP",(IF(AND(F116=2,F117=1,F118=1),"PN",(IF(AND(F116=1,F117=2,F118=2),"A",(IF(AND(F116=2,F117=1,F118=2),"P","N"))))))))) -> N | X115: =利用申込書1!$AV$50 ->  | Y115: =X116&W115&"・"&AB115 -> 0N・ | Z115: =T115&U115 -> 1900年 | AB115: =CLEAN(X115) -> 
B116: =TEXT(B115,"YYYY") -> 1900 | E116: チェック2 | F116: =IF(F115=1,1,IF(G116,1,2)) -> 2 | G116: FALSE | J116: =B118&$J$6 -> 0A | K116: =B118&$K$6 -> 0P | L116: =B118&$L$6 -> 0N | S116: =B115 -> 00:00:00 | T116: =MONTH(S115) -> 1 | U116: 月 | V116: =T116&U116&T117&U117 -> 1月0日 | W116: =D115 -> 0 | X116: =LEFT(W116,3) -> 0
B117: =TEXT(B115,"YYYYmm") -> 190001 | E117: チェック3 | F117: 2 | G117: FALSE | J117: =G116 -> FALSE | K117: =G117 -> FALSE | L117: =G118 -> FALSE | T117: =DAY(S115) -> 0 | U117: 日 | V117: =T117&U117 -> 0日
B118: =TEXT(B115,"d") -> 0 | E118: チェック4 | F118: 2 | G118: FALSE | V118: =T116&U116 -> 1月
A119: =IF(D119="大会議室(準備)","大会議室",(IF(D119="大会議室(本番)","大会議室",(IF(D119="ピアザホール(準備)","PH",IF(D119="ピアザホール(本番)","PH",IF(D119="練習室(一般)","練習室",IF(D119="練習室(学生)","練習室",D119)))))))) -> 0 | B119: =IF(利用申込書2!A50="", B115,利用申込書2!A50) -> 00:00:00 | C119: =IF(OR((WEEKDAY(B119,2)>=6),COUNTIF(DATA!$Q$3:$T$23,B119)),2,1) -> 2 | D119: =利用申込書2!F50 -> 0 | E119: チェック1 | F119: 2 | G119: FALSE | H119: =IF(AND($C$1=1,$C$2=1,C119=1),1,(IF(AND($C$1=1,$C$2=2,C119=1),2,(IF(AND($C$1=1,$C$2=3,C119=1),3,(IF(AND($C$1=2,$C$2=1,C119=1),4,(IF(AND($C$1=2,$C$2=2,C119=1),5,(IF(AND($C$1=2,$C$2=3,C119=1),6,(IF(AND($C$1=1,$C$2=1,C119=2),7,(IF(AND($C$1=1,$C$2=2,C119=2),8,(IF(AND($C$1=1,$C$2=3,C119=2),9,(IF(AND($C$1=2,$C$2=1,C119=2),10,(IF(AND($C$1=2,$C$2=2,C119=2),11,(IF(AND($C$1=2,$C$2=3,C119=2),12,""))))))))))))))))))))))) -> 7 | I119: =CHOOSE(H119,VLOOKUP(D119,DATA!$B$2:$N$25,2,FALSE),VLOOKUP(D119,DATA!$B$2:$N$25,3,FALSE),VLOOKUP(D119,DATA!$B$2:$N$25,4,FALSE),VLOOKUP(D119,DATA!$B$2:$N$25,5,FALSE),VLOOKUP(D119,DATA!$B$2:$N$25,6,FALSE),VLOOKUP(D119,DATA!$B$2:$N$25,7,FALSE),VLOOKUP(D119,DATA!$B$2:$N$25,8,FALSE),VLOOKUP(D119,DATA!$B$2:$N$25,9,FALSE),VLOOKUP(D119,DATA!$B$2:$N$25,10,FALSE),VLOOKUP(D119,DATA!$B$2:$N$25,11,FALSE),VLOOKUP(D119,DATA!$B$2:$N$25,12,FALSE),VLOOKUP(D119,DATA!$B$2:$N$25,13,FALSE),"")*(IF(F119=1,1,0)) -> 0 | J119: =CHOOSE(H119,VLOOKUP(D119,DATA!$B$27:$N$50,2,FALSE),VLOOKUP(D119,DATA!$B$27:$N$50,3,FALSE),VLOOKUP(D119,DATA!$B$27:$N$50,4,FALSE),VLOOKUP(D119,DATA!$B$27:$N$50,5,FALSE),VLOOKUP(D119,DATA!$B$27:$N$50,6,FALSE),VLOOKUP(D119,DATA!$B$27:$N$50,7,FALSE),VLOOKUP(D119,DATA!$B$27:$N$50,8,FALSE),VLOOKUP(D119,DATA!$B$27:$N$50,9,FALSE),VLOOKUP(D119,DATA!$B$27:$N$50,10,FALSE),VLOOKUP(D119,DATA!$B$27:$N$50,11,FALSE),VLOOKUP(D119,DATA!$B$27:$N$50,12,FALSE),VLOOKUP(D119,DATA!$B$27:$N$50,13,FALSE),"")*(IF(F120=1,1,0)) -> 0 | K119: =CHOOSE(H119,VLOOKUP(D119,DATA!$B$52:$N$75,2,FALSE),VLOOKUP(D119,DATA!$B$52:$N$75,3,FALSE),VLOOKUP(D119,DATA!$B$52:$N$75,4,FALSE),VLOOKUP(D119,DATA!$B$52:$N$77,5,FALSE),VLOOKUP(D119,DATA!$B$52:$N$75,6,FALSE),VLOOKUP(D119,DATA!$B$52:$N$75,7,FALSE),VLOOKUP(D119,DATA!$B$52:$N$75,8,FALSE),VLOOKUP(D119,DATA!$B$52:$N$75,9,FALSE),VLOOKUP(D119,DATA!$B$52:$N$75,10,FALSE),VLOOKUP(D119,DATA!$B$52:$N$75,11,FALSE),VLOOKUP(D119,DATA!$B$52:$N$75,12,FALSE),VLOOKUP(D119,DATA!$B$52:$N$75,13,FALSE),"")*(IF(F121=1,1,0)) -> 0 | L119: =CHOOSE(H119,VLOOKUP(D119,DATA!$B$77:$N$100,2,FALSE),VLOOKUP(D119,DATA!$B$77:$N$100,3,FALSE),VLOOKUP(D119,DATA!$B$77:$N$100,4,FALSE),VLOOKUP(D119,DATA!$B$77:$N$100,5,FALSE),VLOOKUP(D119,DATA!$B$77:$N$100,6,FALSE),VLOOKUP(D119,DATA!$B$77:$N$100,7,FALSE),VLOOKUP(D119,DATA!$B$77:$N$100,8,FALSE),VLOOKUP(D119,DATA!$B$77:$N$100,9,FALSE),VLOOKUP(D119,DATA!$B$77:$N$100,10,FALSE),VLOOKUP(D119,DATA!$B$77:$N$100,11,FALSE),VLOOKUP(D119,DATA!$B$77:$N$100,12,FALSE),VLOOKUP(D119,DATA!$B$77:$N$100,13,FALSE),"")*(IF(F122=1,1,0)) -> 0 | M119: =CHOOSE(H119,VLOOKUP(D119,DATA!$B$102:$N$125,2,FALSE),VLOOKUP(D119,DATA!$B$102:$N$125,3,FALSE),VLOOKUP(D119,DATA!$B$102:$N$125,4,FALSE),VLOOKUP(D119,DATA!$B$102:$N$125,5,FALSE),VLOOKUP(D119,DATA!$B$102:$N$125,6,FALSE),VLOOKUP(D119,DATA!$B$102:$N$125,7,FALSE),VLOOKUP(D119,DATA!$B$102:$N$125,8,FALSE),VLOOKUP(D119,DATA!$B$102:$N$125,9,FALSE),VLOOKUP(D119,DATA!$B$102:$N$125,10,FALSE),VLOOKUP(D119,DATA!$B$102:$N$125,11,FALSE),VLOOKUP(D119,DATA!$B$102:$N$125,12,FALSE),VLOOKUP(D119,DATA!$B$102:$N$125,13,FALSE),"")*(IF(F122=1,1,0)) -> 0 | N119: =利用申込書2!AG50 ->  | O119: =IF(AND(F120=1,F121=1,F122=1),"午前-午後-夜間",(IF(AND(F120=1,F121=1,F122=2),"午前-午後",(IF(AND(F120=2,F121=1,F122=1),"午後-夜間",(IF(AND(F120=1,F121=2,F122=2),"午前",(IF(AND(F120=2,F121=1,F122=2),"午後",IF(AND(F120=1,F121=2,F122=1),"午前・夜間","夜間")))))))))) -> 夜間 | Q119: =IF(I119>0,VLOOKUP(O119,$A$235:$B$238,2,FALSE),VLOOKUP(O119,$A$226:$B$232,2,FALSE)) -> 18:00-21:00 | R119: =IF(B119=B115,"",B119) ->  | S119: =B119 -> 00:00:00 | T119: =YEAR(S119) -> 1900 | U119: 年 | V119: =T119&U119&T120&U120 -> 1900年1月 | W119: =IF(AND(F120=1,F121=1,F122=1),"APN",(IF(AND(F120=1,F121=1,F122=2),"AP",(IF(AND(F120=2,F121=1,F122=1),"PN",(IF(AND(F120=1,F121=2,F122=2),"A",(IF(AND(F120=2,F121=1,F122=2),"P","N"))))))))) -> N | X119: =利用申込書1!$AV$50 ->  | Y119: =X120&W119&"・"&AB119 -> 0N・ | Z119: =T119&U119 -> 1900年 | AB119: =CLEAN(X119) -> 
B120: =TEXT(B119,"YYYY") -> 1900 | E120: チェック2 | F120: =IF(F119=1,1,IF(G120,1,2)) -> 2 | G120: FALSE | J120: =B122&$J$6 -> 0A | K120: =B122&$K$6 -> 0P | L120: =B122&$L$6 -> 0N | S120: =B119 -> 00:00:00 | T120: =MONTH(S119) -> 1 | U120: 月 | V120: =T120&U120&T121&U121 -> 1月0日 | W120: =D119 -> 0 | X120: =LEFT(W120,3) -> 0
B121: =TEXT(B119,"YYYYmm") -> 190001 | E121: チェック3 | F121: 2 | G121: FALSE | J121: =G120 -> FALSE | K121: =G121 -> FALSE | L121: =G122 -> FALSE | T121: =DAY(S119) -> 0 | U121: 日 | V121: =T121&U121 -> 0日
B122: =TEXT(B119,"d") -> 0 | E122: チェック4 | F122: 2 | G122: FALSE | V122: =T120&U120 -> 1月
A123: =IF(D123="大会議室(準備)","大会議室",(IF(D123="大会議室(本番)","大会議室",(IF(D123="ピアザホール(準備)","PH",IF(D123="ピアザホール(本番)","PH",IF(D123="練習室(一般)","練習室",IF(D123="練習室(学生)","練習室",D123)))))))) -> 0 | B123: =IF(利用申込書2!A52="", B119,利用申込書2!A52) -> 00:00:00 | C123: =IF(OR((WEEKDAY(B123,2)>=6),COUNTIF(DATA!$Q$3:$T$23,B123)),2,1) -> 2 | D123: =利用申込書2!F52 -> 0 | E123: チェック1 | F123: =IF(G123,1,2) -> 2 | G123: FALSE | H123: =IF(AND($C$1=1,$C$2=1,C123=1),1,(IF(AND($C$1=1,$C$2=2,C123=1),2,(IF(AND($C$1=1,$C$2=3,C123=1),3,(IF(AND($C$1=2,$C$2=1,C123=1),4,(IF(AND($C$1=2,$C$2=2,C123=1),5,(IF(AND($C$1=2,$C$2=3,C123=1),6,(IF(AND($C$1=1,$C$2=1,C123=2),7,(IF(AND($C$1=1,$C$2=2,C123=2),8,(IF(AND($C$1=1,$C$2=3,C123=2),9,(IF(AND($C$1=2,$C$2=1,C123=2),10,(IF(AND($C$1=2,$C$2=2,C123=2),11,(IF(AND($C$1=2,$C$2=3,C123=2),12,""))))))))))))))))))))))) -> 7 | I123: =CHOOSE(H123,VLOOKUP(D123,DATA!$B$2:$N$25,2,FALSE),VLOOKUP(D123,DATA!$B$2:$N$25,3,FALSE),VLOOKUP(D123,DATA!$B$2:$N$25,4,FALSE),VLOOKUP(D123,DATA!$B$2:$N$25,5,FALSE),VLOOKUP(D123,DATA!$B$2:$N$25,6,FALSE),VLOOKUP(D123,DATA!$B$2:$N$25,7,FALSE),VLOOKUP(D123,DATA!$B$2:$N$25,8,FALSE),VLOOKUP(D123,DATA!$B$2:$N$25,9,FALSE),VLOOKUP(D123,DATA!$B$2:$N$25,10,FALSE),VLOOKUP(D123,DATA!$B$2:$N$25,11,FALSE),VLOOKUP(D123,DATA!$B$2:$N$25,12,FALSE),VLOOKUP(D123,DATA!$B$2:$N$25,13,FALSE),"")*(IF(F123=1,1,0)) -> 0 | J123: =CHOOSE(H123,VLOOKUP(D123,DATA!$B$27:$N$50,2,FALSE),VLOOKUP(D123,DATA!$B$27:$N$50,3,FALSE),VLOOKUP(D123,DATA!$B$27:$N$50,4,FALSE),VLOOKUP(D123,DATA!$B$27:$N$50,5,FALSE),VLOOKUP(D123,DATA!$B$27:$N$50,6,FALSE),VLOOKUP(D123,DATA!$B$27:$N$50,7,FALSE),VLOOKUP(D123,DATA!$B$27:$N$50,8,FALSE),VLOOKUP(D123,DATA!$B$27:$N$50,9,FALSE),VLOOKUP(D123,DATA!$B$27:$N$50,10,FALSE),VLOOKUP(D123,DATA!$B$27:$N$50,11,FALSE),VLOOKUP(D123,DATA!$B$27:$N$50,12,FALSE),VLOOKUP(D123,DATA!$B$27:$N$50,13,FALSE),"")*(IF(F124=1,1,0)) -> 0 | K123: =CHOOSE(H123,VLOOKUP(D123,DATA!$B$52:$N$75,2,FALSE),VLOOKUP(D123,DATA!$B$52:$N$75,3,FALSE),VLOOKUP(D123,DATA!$B$52:$N$75,4,FALSE),VLOOKUP(D123,DATA!$B$52:$N$77,5,FALSE),VLOOKUP(D123,DATA!$B$52:$N$75,6,FALSE),VLOOKUP(D123,DATA!$B$52:$N$75,7,FALSE),VLOOKUP(D123,DATA!$B$52:$N$75,8,FALSE),VLOOKUP(D123,DATA!$B$52:$N$75,9,FALSE),VLOOKUP(D123,DATA!$B$52:$N$75,10,FALSE),VLOOKUP(D123,DATA!$B$52:$N$75,11,FALSE),VLOOKUP(D123,DATA!$B$52:$N$75,12,FALSE),VLOOKUP(D123,DATA!$B$52:$N$75,13,FALSE),"")*(IF(F125=1,1,0)) -> 0 | L123: =CHOOSE(H123,VLOOKUP(D123,DATA!$B$77:$N$100,2,FALSE),VLOOKUP(D123,DATA!$B$77:$N$100,3,FALSE),VLOOKUP(D123,DATA!$B$77:$N$100,4,FALSE),VLOOKUP(D123,DATA!$B$77:$N$100,5,FALSE),VLOOKUP(D123,DATA!$B$77:$N$100,6,FALSE),VLOOKUP(D123,DATA!$B$77:$N$100,7,FALSE),VLOOKUP(D123,DATA!$B$77:$N$100,8,FALSE),VLOOKUP(D123,DATA!$B$77:$N$100,9,FALSE),VLOOKUP(D123,DATA!$B$77:$N$100,10,FALSE),VLOOKUP(D123,DATA!$B$77:$N$100,11,FALSE),VLOOKUP(D123,DATA!$B$77:$N$100,12,FALSE),VLOOKUP(D123,DATA!$B$77:$N$100,13,FALSE),"")*(IF(F126=1,1,0)) -> 0 | M123: =CHOOSE(H123,VLOOKUP(D123,DATA!$B$102:$N$125,2,FALSE),VLOOKUP(D123,DATA!$B$102:$N$125,3,FALSE),VLOOKUP(D123,DATA!$B$102:$N$125,4,FALSE),VLOOKUP(D123,DATA!$B$102:$N$125,5,FALSE),VLOOKUP(D123,DATA!$B$102:$N$125,6,FALSE),VLOOKUP(D123,DATA!$B$102:$N$125,7,FALSE),VLOOKUP(D123,DATA!$B$102:$N$125,8,FALSE),VLOOKUP(D123,DATA!$B$102:$N$125,9,FALSE),VLOOKUP(D123,DATA!$B$102:$N$125,10,FALSE),VLOOKUP(D123,DATA!$B$102:$N$125,11,FALSE),VLOOKUP(D123,DATA!$B$102:$N$125,12,FALSE),VLOOKUP(D123,DATA!$B$102:$N$125,13,FALSE),"")*(IF(F126=1,1,0)) -> 0 | N123: =利用申込書2!AG52 ->  | O123: =IF(AND(F124=1,F125=1,F126=1),"午前-午後-夜間",(IF(AND(F124=1,F125=1,F126=2),"午前-午後",(IF(AND(F124=2,F125=1,F126=1),"午後-夜間",(IF(AND(F124=1,F125=2,F126=2),"午前",(IF(AND(F124=2,F125=1,F126=2),"午後",IF(AND(F124=1,F125=2,F126=1),"午前・夜間","夜間")))))))))) -> 夜間 | Q123: =IF(I123>0,VLOOKUP(O123,$A$235:$B$238,2,FALSE),VLOOKUP(O123,$A$226:$B$232,2,FALSE)) -> 18:00-21:00 | R123: =IF(B123=B119,"",B123) ->  | S123: =B123 -> 00:00:00 | T123: =YEAR(S123) -> 1900 | U123: 年 | V123: =T123&U123&T124&U124 -> 1900年1月 | W123: =IF(AND(F124=1,F125=1,F126=1),"APN",(IF(AND(F124=1,F125=1,F126=2),"AP",(IF(AND(F124=2,F125=1,F126=1),"PN",(IF(AND(F124=1,F125=2,F126=2),"A",(IF(AND(F124=2,F125=1,F126=2),"P","N"))))))))) -> N | X123: =利用申込書1!$AV$50 ->  | Y123: =X124&W123&"・"&AB123 -> 0N・ | Z123: =T123&U123 -> 1900年 | AB123: =CLEAN(X123) -> 
B124: =TEXT(B123,"YYYY") -> 1900 | E124: チェック2 | F124: =IF(F123=1,1,IF(G124,1,2)) -> 2 | G124: FALSE | J124: =B126&$J$6 -> 0A | K124: =B126&$K$6 -> 0P | L124: =B126&$L$6 -> 0N | S124: =B123 -> 00:00:00 | T124: =MONTH(S123) -> 1 | U124: 月 | V124: =T124&U124&T125&U125 -> 1月0日 | W124: =D123 -> 0 | X124: =LEFT(W124,3) -> 0
B125: =TEXT(B123,"YYYYmm") -> 190001 | E125: チェック3 | F125: 2 | G125: FALSE | J125: =G124 -> FALSE | K125: =G125 -> FALSE | L125: =G126 -> FALSE | T125: =DAY(S123) -> 0 | U125: 日 | V125: =T125&U125 -> 0日
B126: =TEXT(B123,"d") -> 0 | E126: チェック4 | F126: 2 | G126: FALSE | V126: =T124&U124 -> 1月
A127: =IF(D127="大会議室(準備)","大会議室",(IF(D127="大会議室(本番)","大会議室",(IF(D127="ピアザホール(準備)","PH",IF(D127="ピアザホール(本番)","PH",IF(D127="練習室(一般)","練習室",IF(D127="練習室(学生)","練習室",D127)))))))) -> 0 | B127: =IF(利用申込書2!A54="", B123,利用申込書2!A54) -> 00:00:00 | C127: =IF(OR((WEEKDAY(B127,2)>=6),COUNTIF(DATA!$Q$3:$T$23,B127)),2,1) -> 2 | D127: =利用申込書2!F54 -> 0 | E127: チェック1 | F127: 2 | G127: FALSE | H127: =IF(AND($C$1=1,$C$2=1,C127=1),1,(IF(AND($C$1=1,$C$2=2,C127=1),2,(IF(AND($C$1=1,$C$2=3,C127=1),3,(IF(AND($C$1=2,$C$2=1,C127=1),4,(IF(AND($C$1=2,$C$2=2,C127=1),5,(IF(AND($C$1=2,$C$2=3,C127=1),6,(IF(AND($C$1=1,$C$2=1,C127=2),7,(IF(AND($C$1=1,$C$2=2,C127=2),8,(IF(AND($C$1=1,$C$2=3,C127=2),9,(IF(AND($C$1=2,$C$2=1,C127=2),10,(IF(AND($C$1=2,$C$2=2,C127=2),11,(IF(AND($C$1=2,$C$2=3,C127=2),12,""))))))))))))))))))))))) -> 7 | I127: =CHOOSE(H127,VLOOKUP(D127,DATA!$B$2:$N$25,2,FALSE),VLOOKUP(D127,DATA!$B$2:$N$25,3,FALSE),VLOOKUP(D127,DATA!$B$2:$N$25,4,FALSE),VLOOKUP(D127,DATA!$B$2:$N$25,5,FALSE),VLOOKUP(D127,DATA!$B$2:$N$25,6,FALSE),VLOOKUP(D127,DATA!$B$2:$N$25,7,FALSE),VLOOKUP(D127,DATA!$B$2:$N$25,8,FALSE),VLOOKUP(D127,DATA!$B$2:$N$25,9,FALSE),VLOOKUP(D127,DATA!$B$2:$N$25,10,FALSE),VLOOKUP(D127,DATA!$B$2:$N$25,11,FALSE),VLOOKUP(D127,DATA!$B$2:$N$25,12,FALSE),VLOOKUP(D127,DATA!$B$2:$N$25,13,FALSE),"")*(IF(F127=1,1,0)) -> 0 | J127: =CHOOSE(H127,VLOOKUP(D127,DATA!$B$27:$N$50,2,FALSE),VLOOKUP(D127,DATA!$B$27:$N$50,3,FALSE),VLOOKUP(D127,DATA!$B$27:$N$50,4,FALSE),VLOOKUP(D127,DATA!$B$27:$N$50,5,FALSE),VLOOKUP(D127,DATA!$B$27:$N$50,6,FALSE),VLOOKUP(D127,DATA!$B$27:$N$50,7,FALSE),VLOOKUP(D127,DATA!$B$27:$N$50,8,FALSE),VLOOKUP(D127,DATA!$B$27:$N$50,9,FALSE),VLOOKUP(D127,DATA!$B$27:$N$50,10,FALSE),VLOOKUP(D127,DATA!$B$27:$N$50,11,FALSE),VLOOKUP(D127,DATA!$B$27:$N$50,12,FALSE),VLOOKUP(D127,DATA!$B$27:$N$50,13,FALSE),"")*(IF(F128=1,1,0)) -> 0 | K127: =CHOOSE(H127,VLOOKUP(D127,DATA!$B$52:$N$75,2,FALSE),VLOOKUP(D127,DATA!$B$52:$N$75,3,FALSE),VLOOKUP(D127,DATA!$B$52:$N$75,4,FALSE),VLOOKUP(D127,DATA!$B$52:$N$77,5,FALSE),VLOOKUP(D127,DATA!$B$52:$N$75,6,FALSE),VLOOKUP(D127,DATA!$B$52:$N$75,7,FALSE),VLOOKUP(D127,DATA!$B$52:$N$75,8,FALSE),VLOOKUP(D127,DATA!$B$52:$N$75,9,FALSE),VLOOKUP(D127,DATA!$B$52:$N$75,10,FALSE),VLOOKUP(D127,DATA!$B$52:$N$75,11,FALSE),VLOOKUP(D127,DATA!$B$52:$N$75,12,FALSE),VLOOKUP(D127,DATA!$B$52:$N$75,13,FALSE),"")*(IF(F129=1,1,0)) -> 0 | L127: =CHOOSE(H127,VLOOKUP(D127,DATA!$B$77:$N$100,2,FALSE),VLOOKUP(D127,DATA!$B$77:$N$100,3,FALSE),VLOOKUP(D127,DATA!$B$77:$N$100,4,FALSE),VLOOKUP(D127,DATA!$B$77:$N$100,5,FALSE),VLOOKUP(D127,DATA!$B$77:$N$100,6,FALSE),VLOOKUP(D127,DATA!$B$77:$N$100,7,FALSE),VLOOKUP(D127,DATA!$B$77:$N$100,8,FALSE),VLOOKUP(D127,DATA!$B$77:$N$100,9,FALSE),VLOOKUP(D127,DATA!$B$77:$N$100,10,FALSE),VLOOKUP(D127,DATA!$B$77:$N$100,11,FALSE),VLOOKUP(D127,DATA!$B$77:$N$100,12,FALSE),VLOOKUP(D127,DATA!$B$77:$N$100,13,FALSE),"")*(IF(F130=1,1,0)) -> 0 | M127: =CHOOSE(H127,VLOOKUP(D127,DATA!$B$102:$N$125,2,FALSE),VLOOKUP(D127,DATA!$B$102:$N$125,3,FALSE),VLOOKUP(D127,DATA!$B$102:$N$125,4,FALSE),VLOOKUP(D127,DATA!$B$102:$N$125,5,FALSE),VLOOKUP(D127,DATA!$B$102:$N$125,6,FALSE),VLOOKUP(D127,DATA!$B$102:$N$125,7,FALSE),VLOOKUP(D127,DATA!$B$102:$N$125,8,FALSE),VLOOKUP(D127,DATA!$B$102:$N$125,9,FALSE),VLOOKUP(D127,DATA!$B$102:$N$125,10,FALSE),VLOOKUP(D127,DATA!$B$102:$N$125,11,FALSE),VLOOKUP(D127,DATA!$B$102:$N$125,12,FALSE),VLOOKUP(D127,DATA!$B$102:$N$125,13,FALSE),"")*(IF(F130=1,1,0)) -> 0 | N127: =利用申込書2!AG54 ->  | O127: =IF(AND(F128=1,F129=1,F130=1),"午前-午後-夜間",(IF(AND(F128=1,F129=1,F130=2),"午前-午後",(IF(AND(F128=2,F129=1,F130=1),"午後-夜間",(IF(AND(F128=1,F129=2,F130=2),"午前",(IF(AND(F128=2,F129=1,F130=2),"午後",IF(AND(F128=1,F129=2,F130=1),"午前・夜間","夜間")))))))))) -> 夜間 | Q127: =IF(I127>0,VLOOKUP(O127,$A$235:$B$238,2,FALSE),VLOOKUP(O127,$A$226:$B$232,2,FALSE)) -> 18:00-21:00 | R127: =IF(B127=B123,"",B127) ->  | S127: =B127 -> 00:00:00 | T127: =YEAR(S127) -> 1900 | U127: 年 | V127: =T127&U127&T128&U128 -> 1900年1月 | W127: =IF(AND(F128=1,F129=1,F130=1),"APN",(IF(AND(F128=1,F129=1,F130=2),"AP",(IF(AND(F128=2,F129=1,F130=1),"PN",(IF(AND(F128=1,F129=2,F130=2),"A",(IF(AND(F128=2,F129=1,F130=2),"P","N"))))))))) -> N | X127: =利用申込書1!$AV$50 ->  | Y127: =X128&W127&"・"&AB127 -> 0N・ | Z127: =T127&U127 -> 1900年 | AB127: =CLEAN(X127) -> 
B128: =TEXT(B127,"YYYY") -> 1900 | E128: チェック2 | F128: =IF(F127=1,1,IF(G128,1,2)) -> 2 | G128: FALSE | J128: =B130&$J$6 -> 0A | K128: =B130&$K$6 -> 0P | L128: =B130&$L$6 -> 0N | S128: =B127 -> 00:00:00 | T128: =MONTH(S127) -> 1 | U128: 月 | V128: =T128&U128&T129&U129 -> 1月0日 | W128: =D127 -> 0 | X128: =LEFT(W128,3) -> 0
B129: =TEXT(B127,"YYYYmm") -> 190001 | E129: チェック3 | F129: 2 | G129: FALSE | J129: =G128 -> FALSE | K129: =G129 -> FALSE | L129: =G130 -> FALSE | T129: =DAY(S127) -> 0 | U129: 日 | V129: =T129&U129 -> 0日
B130: =TEXT(B127,"d") -> 0 | E130: チェック4 | F130: 2 | G130: FALSE | V130: =T128&U128 -> 1月
A131: =IF(D131="大会議室(準備)","大会議室",(IF(D131="大会議室(本番)","大会議室",(IF(D131="ピアザホール(準備)","PH",IF(D131="ピアザホール(本番)","PH",IF(D131="練習室(一般)","練習室",IF(D131="練習室(学生)","練習室",D131)))))))) -> 0 | B131: =IF(利用申込書3!A10="", B127,利用申込書3!A10) -> 00:00:00 | C131: =IF(OR((WEEKDAY(B131,2)>=6),COUNTIF(DATA!$Q$3:$T$23,B131)),2,1) -> 2 | D131: =利用申込書3!F10 -> 0 | E131: チェック1 | F131: =IF(G131,1,2) -> 2 | G131: FALSE | H131: =IF(AND($C$1=1,$C$2=1,C131=1),1,(IF(AND($C$1=1,$C$2=2,C131=1),2,(IF(AND($C$1=1,$C$2=3,C131=1),3,(IF(AND($C$1=2,$C$2=1,C131=1),4,(IF(AND($C$1=2,$C$2=2,C131=1),5,(IF(AND($C$1=2,$C$2=3,C131=1),6,(IF(AND($C$1=1,$C$2=1,C131=2),7,(IF(AND($C$1=1,$C$2=2,C131=2),8,(IF(AND($C$1=1,$C$2=3,C131=2),9,(IF(AND($C$1=2,$C$2=1,C131=2),10,(IF(AND($C$1=2,$C$2=2,C131=2),11,(IF(AND($C$1=2,$C$2=3,C131=2),12,""))))))))))))))))))))))) -> 7 | I131: =CHOOSE(H131,VLOOKUP(D131,DATA!$B$2:$N$25,2,FALSE),VLOOKUP(D131,DATA!$B$2:$N$25,3,FALSE),VLOOKUP(D131,DATA!$B$2:$N$25,4,FALSE),VLOOKUP(D131,DATA!$B$2:$N$25,5,FALSE),VLOOKUP(D131,DATA!$B$2:$N$25,6,FALSE),VLOOKUP(D131,DATA!$B$2:$N$25,7,FALSE),VLOOKUP(D131,DATA!$B$2:$N$25,8,FALSE),VLOOKUP(D131,DATA!$B$2:$N$25,9,FALSE),VLOOKUP(D131,DATA!$B$2:$N$25,10,FALSE),VLOOKUP(D131,DATA!$B$2:$N$25,11,FALSE),VLOOKUP(D131,DATA!$B$2:$N$25,12,FALSE),VLOOKUP(D131,DATA!$B$2:$N$25,13,FALSE),"")*(IF(F131=1,1,0)) -> 0 | J131: =CHOOSE(H131,VLOOKUP(D131,DATA!$B$27:$N$50,2,FALSE),VLOOKUP(D131,DATA!$B$27:$N$50,3,FALSE),VLOOKUP(D131,DATA!$B$27:$N$50,4,FALSE),VLOOKUP(D131,DATA!$B$27:$N$50,5,FALSE),VLOOKUP(D131,DATA!$B$27:$N$50,6,FALSE),VLOOKUP(D131,DATA!$B$27:$N$50,7,FALSE),VLOOKUP(D131,DATA!$B$27:$N$50,8,FALSE),VLOOKUP(D131,DATA!$B$27:$N$50,9,FALSE),VLOOKUP(D131,DATA!$B$27:$N$50,10,FALSE),VLOOKUP(D131,DATA!$B$27:$N$50,11,FALSE),VLOOKUP(D131,DATA!$B$27:$N$50,12,FALSE),VLOOKUP(D131,DATA!$B$27:$N$50,13,FALSE),"")*(IF(F132=1,1,0)) -> 0 | K131: =CHOOSE(H131,VLOOKUP(D131,DATA!$B$52:$N$75,2,FALSE),VLOOKUP(D131,DATA!$B$52:$N$75,3,FALSE),VLOOKUP(D131,DATA!$B$52:$N$75,4,FALSE),VLOOKUP(D131,DATA!$B$52:$N$77,5,FALSE),VLOOKUP(D131,DATA!$B$52:$N$75,6,FALSE),VLOOKUP(D131,DATA!$B$52:$N$75,7,FALSE),VLOOKUP(D131,DATA!$B$52:$N$75,8,FALSE),VLOOKUP(D131,DATA!$B$52:$N$75,9,FALSE),VLOOKUP(D131,DATA!$B$52:$N$75,10,FALSE),VLOOKUP(D131,DATA!$B$52:$N$75,11,FALSE),VLOOKUP(D131,DATA!$B$52:$N$75,12,FALSE),VLOOKUP(D131,DATA!$B$52:$N$75,13,FALSE),"")*(IF(F133=1,1,0)) -> 0 | L131: =CHOOSE(H131,VLOOKUP(D131,DATA!$B$77:$N$100,2,FALSE),VLOOKUP(D131,DATA!$B$77:$N$100,3,FALSE),VLOOKUP(D131,DATA!$B$77:$N$100,4,FALSE),VLOOKUP(D131,DATA!$B$77:$N$100,5,FALSE),VLOOKUP(D131,DATA!$B$77:$N$100,6,FALSE),VLOOKUP(D131,DATA!$B$77:$N$100,7,FALSE),VLOOKUP(D131,DATA!$B$77:$N$100,8,FALSE),VLOOKUP(D131,DATA!$B$77:$N$100,9,FALSE),VLOOKUP(D131,DATA!$B$77:$N$100,10,FALSE),VLOOKUP(D131,DATA!$B$77:$N$100,11,FALSE),VLOOKUP(D131,DATA!$B$77:$N$100,12,FALSE),VLOOKUP(D131,DATA!$B$77:$N$100,13,FALSE),"")*(IF(F134=1,1,0)) -> 0 | M131: =CHOOSE(H131,VLOOKUP(D131,DATA!$B$102:$N$125,2,FALSE),VLOOKUP(D131,DATA!$B$102:$N$125,3,FALSE),VLOOKUP(D131,DATA!$B$102:$N$125,4,FALSE),VLOOKUP(D131,DATA!$B$102:$N$125,5,FALSE),VLOOKUP(D131,DATA!$B$102:$N$125,6,FALSE),VLOOKUP(D131,DATA!$B$102:$N$125,7,FALSE),VLOOKUP(D131,DATA!$B$102:$N$125,8,FALSE),VLOOKUP(D131,DATA!$B$102:$N$125,9,FALSE),VLOOKUP(D131,DATA!$B$102:$N$125,10,FALSE),VLOOKUP(D131,DATA!$B$102:$N$125,11,FALSE),VLOOKUP(D131,DATA!$B$102:$N$125,12,FALSE),VLOOKUP(D131,DATA!$B$102:$N$125,13,FALSE),"")*(IF(F134=1,1,0)) -> 0 | N131: =利用申込書2!AG10 ->  | O131: =IF(AND(F132=1,F133=1,F134=1),"午前-午後-夜間",(IF(AND(F132=1,F133=1,F134=2),"午前-午後",(IF(AND(F132=2,F133=1,F134=1),"午後-夜間",(IF(AND(F132=1,F133=2,F134=2),"午前",(IF(AND(F132=2,F133=1,F134=2),"午後",IF(AND(F132=1,F133=2,F134=1),"午前・夜間","夜間")))))))))) -> 夜間 | Q131: =IF(I131>0,VLOOKUP(O131,$A$235:$B$238,2,FALSE),VLOOKUP(O131,$A$226:$B$232,2,FALSE)) -> 18:00-21:00 | R131: =IF(B131=B127,"",B131) ->  | S131: =B131 -> 00:00:00 | T131: =YEAR(S131) -> 1900 | U131: 年 | V131: =T131&U131&T132&U132 -> 1900年1月 | W131: =IF(AND(F132=1,F133=1,F134=1),"APN",(IF(AND(F132=1,F133=1,F134=2),"AP",(IF(AND(F132=2,F133=1,F134=1),"PN",(IF(AND(F132=1,F133=2,F134=2),"A",(IF(AND(F132=2,F133=1,F134=2),"P","N"))))))))) -> N | X131: =利用申込書1!$AV$50 ->  | Y131: =X132&W131&"・"&AB131 -> 0N・ | Z131: =T131&U131 -> 1900年 | AB131: =CLEAN(X131) -> 
B132: =TEXT(B131,"YYYY") -> 1900 | E132: チェック2 | F132: =IF(F131=1,1,IF(G132,1,2)) -> 2 | G132: FALSE | J132: =B134&$J$6 -> 0A | K132: =B134&$K$6 -> 0P | L132: =B134&$L$6 -> 0N | S132: =B131 -> 00:00:00 | T132: =MONTH(S131) -> 1 | U132: 月 | V132: =T132&U132&T133&U133 -> 1月0日 | W132: =D131 -> 0 | X132: =LEFT(W132,3) -> 0
B133: =TEXT(B131,"YYYYmm") -> 190001 | E133: チェック3 | F133: 2 | G133: FALSE | J133: =G132 -> FALSE | K133: =G133 -> FALSE | L133: =G134 -> FALSE | T133: =DAY(S131) -> 0 | U133: 日 | V133: =T133&U133 -> 0日
B134: =TEXT(B131,"d") -> 0 | E134: チェック4 | F134: 2 | G134: FALSE | V134: =T132&U132 -> 1月
A135: =IF(D135="大会議室(準備)","大会議室",(IF(D135="大会議室(本番)","大会議室",(IF(D135="ピアザホール(準備)","PH",IF(D135="ピアザホール(本番)","PH",IF(D135="練習室(一般)","練習室",IF(D135="練習室(学生)","練習室",D135)))))))) -> 0 | B135: =IF(利用申込書3!A12="", B131,利用申込書3!A12) -> 00:00:00 | C135: =IF(OR((WEEKDAY(B135,2)>=6),COUNTIF(DATA!$Q$3:$T$23,B135)),2,1) -> 2 | D135: =利用申込書3!F12 -> 0 | E135: チェック1 | F135: 2 | G135: FALSE | H135: =IF(AND($C$1=1,$C$2=1,C135=1),1,(IF(AND($C$1=1,$C$2=2,C135=1),2,(IF(AND($C$1=1,$C$2=3,C135=1),3,(IF(AND($C$1=2,$C$2=1,C135=1),4,(IF(AND($C$1=2,$C$2=2,C135=1),5,(IF(AND($C$1=2,$C$2=3,C135=1),6,(IF(AND($C$1=1,$C$2=1,C135=2),7,(IF(AND($C$1=1,$C$2=2,C135=2),8,(IF(AND($C$1=1,$C$2=3,C135=2),9,(IF(AND($C$1=2,$C$2=1,C135=2),10,(IF(AND($C$1=2,$C$2=2,C135=2),11,(IF(AND($C$1=2,$C$2=3,C135=2),12,""))))))))))))))))))))))) -> 7 | I135: =CHOOSE(H135,VLOOKUP(D135,DATA!$B$2:$N$25,2,FALSE),VLOOKUP(D135,DATA!$B$2:$N$25,3,FALSE),VLOOKUP(D135,DATA!$B$2:$N$25,4,FALSE),VLOOKUP(D135,DATA!$B$2:$N$25,5,FALSE),VLOOKUP(D135,DATA!$B$2:$N$25,6,FALSE),VLOOKUP(D135,DATA!$B$2:$N$25,7,FALSE),VLOOKUP(D135,DATA!$B$2:$N$25,8,FALSE),VLOOKUP(D135,DATA!$B$2:$N$25,9,FALSE),VLOOKUP(D135,DATA!$B$2:$N$25,10,FALSE),VLOOKUP(D135,DATA!$B$2:$N$25,11,FALSE),VLOOKUP(D135,DATA!$B$2:$N$25,12,FALSE),VLOOKUP(D135,DATA!$B$2:$N$25,13,FALSE),"")*(IF(F135=1,1,0)) -> 0 | J135: =CHOOSE(H135,VLOOKUP(D135,DATA!$B$27:$N$50,2,FALSE),VLOOKUP(D135,DATA!$B$27:$N$50,3,FALSE),VLOOKUP(D135,DATA!$B$27:$N$50,4,FALSE),VLOOKUP(D135,DATA!$B$27:$N$50,5,FALSE),VLOOKUP(D135,DATA!$B$27:$N$50,6,FALSE),VLOOKUP(D135,DATA!$B$27:$N$50,7,FALSE),VLOOKUP(D135,DATA!$B$27:$N$50,8,FALSE),VLOOKUP(D135,DATA!$B$27:$N$50,9,FALSE),VLOOKUP(D135,DATA!$B$27:$N$50,10,FALSE),VLOOKUP(D135,DATA!$B$27:$N$50,11,FALSE),VLOOKUP(D135,DATA!$B$27:$N$50,12,FALSE),VLOOKUP(D135,DATA!$B$27:$N$50,13,FALSE),"")*(IF(F136=1,1,0)) -> 0 | K135: =CHOOSE(H135,VLOOKUP(D135,DATA!$B$52:$N$75,2,FALSE),VLOOKUP(D135,DATA!$B$52:$N$75,3,FALSE),VLOOKUP(D135,DATA!$B$52:$N$75,4,FALSE),VLOOKUP(D135,DATA!$B$52:$N$77,5,FALSE),VLOOKUP(D135,DATA!$B$52:$N$75,6,FALSE),VLOOKUP(D135,DATA!$B$52:$N$75,7,FALSE),VLOOKUP(D135,DATA!$B$52:$N$75,8,FALSE),VLOOKUP(D135,DATA!$B$52:$N$75,9,FALSE),VLOOKUP(D135,DATA!$B$52:$N$75,10,FALSE),VLOOKUP(D135,DATA!$B$52:$N$75,11,FALSE),VLOOKUP(D135,DATA!$B$52:$N$75,12,FALSE),VLOOKUP(D135,DATA!$B$52:$N$75,13,FALSE),"")*(IF(F137=1,1,0)) -> 0 | L135: =CHOOSE(H135,VLOOKUP(D135,DATA!$B$77:$N$100,2,FALSE),VLOOKUP(D135,DATA!$B$77:$N$100,3,FALSE),VLOOKUP(D135,DATA!$B$77:$N$100,4,FALSE),VLOOKUP(D135,DATA!$B$77:$N$100,5,FALSE),VLOOKUP(D135,DATA!$B$77:$N$100,6,FALSE),VLOOKUP(D135,DATA!$B$77:$N$100,7,FALSE),VLOOKUP(D135,DATA!$B$77:$N$100,8,FALSE),VLOOKUP(D135,DATA!$B$77:$N$100,9,FALSE),VLOOKUP(D135,DATA!$B$77:$N$100,10,FALSE),VLOOKUP(D135,DATA!$B$77:$N$100,11,FALSE),VLOOKUP(D135,DATA!$B$77:$N$100,12,FALSE),VLOOKUP(D135,DATA!$B$77:$N$100,13,FALSE),"")*(IF(F138=1,1,0)) -> 0 | M135: =CHOOSE(H135,VLOOKUP(D135,DATA!$B$102:$N$125,2,FALSE),VLOOKUP(D135,DATA!$B$102:$N$125,3,FALSE),VLOOKUP(D135,DATA!$B$102:$N$125,4,FALSE),VLOOKUP(D135,DATA!$B$102:$N$125,5,FALSE),VLOOKUP(D135,DATA!$B$102:$N$125,6,FALSE),VLOOKUP(D135,DATA!$B$102:$N$125,7,FALSE),VLOOKUP(D135,DATA!$B$102:$N$125,8,FALSE),VLOOKUP(D135,DATA!$B$102:$N$125,9,FALSE),VLOOKUP(D135,DATA!$B$102:$N$125,10,FALSE),VLOOKUP(D135,DATA!$B$102:$N$125,11,FALSE),VLOOKUP(D135,DATA!$B$102:$N$125,12,FALSE),VLOOKUP(D135,DATA!$B$102:$N$125,13,FALSE),"")*(IF(F138=1,1,0)) -> 0 | N135: =利用申込書2!AG12 -> 
B136: =TEXT(B135,"YYYY") -> 1900 | E136: チェック2 | F136: =IF(F135=1,1,IF(G136,1,2)) -> 2 | G136: FALSE | J136: =B138&$J$6 -> 0A | K136: =B138&$K$6 -> 0P | L136: =B138&$L$6 -> 0N
B137: =TEXT(B135,"YYYYmm") -> 190001 | E137: チェック3 | F137: 2 | G137: FALSE | J137: =G136 -> FALSE | K137: =G137 -> FALSE | L137: =G138 -> FALSE
B138: =TEXT(B135,"d") -> 0 | E138: チェック4 | F138: 2 | G138: FALSE
A139: =IF(D139="大会議室(準備)","大会議室",(IF(D139="大会議室(本番)","大会議室",(IF(D139="ピアザホール(準備)","PH",IF(D139="ピアザホール(本番)","PH",IF(D139="練習室(一般)","練習室",IF(D139="練習室(学生)","練習室",D139)))))))) -> 0 | B139: =IF(利用申込書3!A14="", B135,利用申込書3!A14) -> 00:00:00 | C139: =IF(OR((WEEKDAY(B139,2)>=6),COUNTIF(DATA!$Q$3:$T$23,B139)),2,1) -> 2 | D139: =利用申込書3!F14 -> 0 | E139: チェック1 | F139: 2 | G139: FALSE | H139: =IF(AND($C$1=1,$C$2=1,C139=1),1,(IF(AND($C$1=1,$C$2=2,C139=1),2,(IF(AND($C$1=1,$C$2=3,C139=1),3,(IF(AND($C$1=2,$C$2=1,C139=1),4,(IF(AND($C$1=2,$C$2=2,C139=1),5,(IF(AND($C$1=2,$C$2=3,C139=1),6,(IF(AND($C$1=1,$C$2=1,C139=2),7,(IF(AND($C$1=1,$C$2=2,C139=2),8,(IF(AND($C$1=1,$C$2=3,C139=2),9,(IF(AND($C$1=2,$C$2=1,C139=2),10,(IF(AND($C$1=2,$C$2=2,C139=2),11,(IF(AND($C$1=2,$C$2=3,C139=2),12,""))))))))))))))))))))))) -> 7 | I139: =CHOOSE(H139,VLOOKUP(D139,DATA!$B$2:$N$25,2,FALSE),VLOOKUP(D139,DATA!$B$2:$N$25,3,FALSE),VLOOKUP(D139,DATA!$B$2:$N$25,4,FALSE),VLOOKUP(D139,DATA!$B$2:$N$25,5,FALSE),VLOOKUP(D139,DATA!$B$2:$N$25,6,FALSE),VLOOKUP(D139,DATA!$B$2:$N$25,7,FALSE),VLOOKUP(D139,DATA!$B$2:$N$25,8,FALSE),VLOOKUP(D139,DATA!$B$2:$N$25,9,FALSE),VLOOKUP(D139,DATA!$B$2:$N$25,10,FALSE),VLOOKUP(D139,DATA!$B$2:$N$25,11,FALSE),VLOOKUP(D139,DATA!$B$2:$N$25,12,FALSE),VLOOKUP(D139,DATA!$B$2:$N$25,13,FALSE),"")*(IF(F139=1,1,0)) -> 0 | J139: =CHOOSE(H139,VLOOKUP(D139,DATA!$B$27:$N$50,2,FALSE),VLOOKUP(D139,DATA!$B$27:$N$50,3,FALSE),VLOOKUP(D139,DATA!$B$27:$N$50,4,FALSE),VLOOKUP(D139,DATA!$B$27:$N$50,5,FALSE),VLOOKUP(D139,DATA!$B$27:$N$50,6,FALSE),VLOOKUP(D139,DATA!$B$27:$N$50,7,FALSE),VLOOKUP(D139,DATA!$B$27:$N$50,8,FALSE),VLOOKUP(D139,DATA!$B$27:$N$50,9,FALSE),VLOOKUP(D139,DATA!$B$27:$N$50,10,FALSE),VLOOKUP(D139,DATA!$B$27:$N$50,11,FALSE),VLOOKUP(D139,DATA!$B$27:$N$50,12,FALSE),VLOOKUP(D139,DATA!$B$27:$N$50,13,FALSE),"")*(IF(F140=1,1,0)) -> 0 | K139: =CHOOSE(H139,VLOOKUP(D139,DATA!$B$52:$N$75,2,FALSE),VLOOKUP(D139,DATA!$B$52:$N$75,3,FALSE),VLOOKUP(D139,DATA!$B$52:$N$75,4,FALSE),VLOOKUP(D139,DATA!$B$52:$N$77,5,FALSE),VLOOKUP(D139,DATA!$B$52:$N$75,6,FALSE),VLOOKUP(D139,DATA!$B$52:$N$75,7,FALSE),VLOOKUP(D139,DATA!$B$52:$N$75,8,FALSE),VLOOKUP(D139,DATA!$B$52:$N$75,9,FALSE),VLOOKUP(D139,DATA!$B$52:$N$75,10,FALSE),VLOOKUP(D139,DATA!$B$52:$N$75,11,FALSE),VLOOKUP(D139,DATA!$B$52:$N$75,12,FALSE),VLOOKUP(D139,DATA!$B$52:$N$75,13,FALSE),"")*(IF(F141=1,1,0)) -> 0 | L139: =CHOOSE(H139,VLOOKUP(D139,DATA!$B$77:$N$100,2,FALSE),VLOOKUP(D139,DATA!$B$77:$N$100,3,FALSE),VLOOKUP(D139,DATA!$B$77:$N$100,4,FALSE),VLOOKUP(D139,DATA!$B$77:$N$100,5,FALSE),VLOOKUP(D139,DATA!$B$77:$N$100,6,FALSE),VLOOKUP(D139,DATA!$B$77:$N$100,7,FALSE),VLOOKUP(D139,DATA!$B$77:$N$100,8,FALSE),VLOOKUP(D139,DATA!$B$77:$N$100,9,FALSE),VLOOKUP(D139,DATA!$B$77:$N$100,10,FALSE),VLOOKUP(D139,DATA!$B$77:$N$100,11,FALSE),VLOOKUP(D139,DATA!$B$77:$N$100,12,FALSE),VLOOKUP(D139,DATA!$B$77:$N$100,13,FALSE),"")*(IF(F142=1,1,0)) -> 0 | M139: =CHOOSE(H139,VLOOKUP(D139,DATA!$B$102:$N$125,2,FALSE),VLOOKUP(D139,DATA!$B$102:$N$125,3,FALSE),VLOOKUP(D139,DATA!$B$102:$N$125,4,FALSE),VLOOKUP(D139,DATA!$B$102:$N$125,5,FALSE),VLOOKUP(D139,DATA!$B$102:$N$125,6,FALSE),VLOOKUP(D139,DATA!$B$102:$N$125,7,FALSE),VLOOKUP(D139,DATA!$B$102:$N$125,8,FALSE),VLOOKUP(D139,DATA!$B$102:$N$125,9,FALSE),VLOOKUP(D139,DATA!$B$102:$N$125,10,FALSE),VLOOKUP(D139,DATA!$B$102:$N$125,11,FALSE),VLOOKUP(D139,DATA!$B$102:$N$125,12,FALSE),VLOOKUP(D139,DATA!$B$102:$N$125,13,FALSE),"")*(IF(F142=1,1,0)) -> 0 | N139: =利用申込書2!AG14 -> 
B140: =TEXT(B139,"YYYY") -> 1900 | E140: チェック2 | F140: =IF(F139=1,1,IF(G140,1,2)) -> 2 | G140: FALSE | J140: =B142&$J$6 -> 0A | K140: =B142&$K$6 -> 0P | L140: =B142&$L$6 -> 0N
B141: =TEXT(B139,"YYYYmm") -> 190001 | E141: チェック3 | F141: 2 | G141: FALSE | J141: =G140 -> FALSE | K141: =G141 -> FALSE | L141: =G142 -> FALSE
B142: =TEXT(B139,"d") -> 0 | E142: チェック4 | F142: 2 | G142: FALSE
